Workbook

Sheet Strategy
R1: 0.01 | S1: 0.01 | U1: 0.01 | V1: 0.6 | W1: 0.05 | Z1: 0.85 | AA1: 0.45 | AB1: 0.015 | AC1: 0.8 | AF1: 0.62 | AG1: 0.85 | BI1: =MIN(BI6:BI1414) -> 2 | BN1: 0 | BO1: <- Slippage should be 0.15%
BE2: =BE4*10000 -> 128408849.8 | BF2: <- for a $10k investment | BN2: 0.0005475531492 | BO2: <- Gap between close and minute 1 prices to match Quantopian
T3: =SUM(T6:T1414) -> 1406 | U3: =SUM(U6:U1414)/$T$3 -> 0.009246088193 | V3: =SUM(V6:V1414)/$T$3 -> 0.6052631579 | W3: =SUM(W6:W1414)/$T$3 -> 0.04836415363 | X3: 0.02275960171 | Y3: 0.001422475107 | Z3: 0.1493598862 | AA3: 0.4438122333 | AB3: 0.01564722617 | AC3: 0.2012802276 | AD3: 0 | AE3: 0 | AF3: 0.6251778094 | AG3: 0.1458036984 | AH3: =SUM(AH6:AH1414)/$T$3 -> 0.009246088193 | AI3: =SUM(AI6:AI1414)/$T$3 -> 0.5960170697 | AJ3: 0.0007112375533 | AK3: 0.02275960171 | AL3: 0.001422475107 | AM3: 0.1038406828 | AN3: 0.05476529161 | AO3: 0.004978662873 | AP3: 0.06187766714 | AQ3: 0 | AR3: 0 | AS3: 0.007823613087 | AT3: 0.03129445235 | AU3: =MAX(AU6:AU1414) -> 1 | AV3: 1003 | AW3: 255 | AX3: =MAX(AX6:AX1414) -> 1 | AY3: =SUM(AY6:AY1414) -> 148 | AZ3: =SUM(AZ6:AZ1414) -> 988 | BA3: =SUM(BA6:BA1414) -> 249 | BB3: =MAX(BB6:BB1414) -> 1 | BC3: =SUM(BC6:BC1414) -> 169 | BE3: =COUNTIF(BE6:BE1414,"<0") -> 589 | BF3: =COUNTIF(BF6:BF1414,"<0") -> 570 | BG3: =SUM(BG6:BG1414) -> 353 | BI3: 9.95
O4: 0.7 | R4: =TRUNC(PERCENTILE(R6:R1414,R1),2) -> -0.06 | S4: =TRUNC(PERCENTILE(S6:S1414,S1),2) -> -0.55 | U4: =TRUNC(PERCENTILE(B8:B1414,U1),1) -> 10.8 | V4: =TRUNC(PERCENTILE(O8:O1414,V1),3) -> -0.049 | W4: =TRUNC(PERCENTILE(P6:P1414,W1),2) -> 0.79 | X4: =-V4 -> 0.049 | Y4: =(1-W4)+1 -> 1.21 | Z4: =TRUNC(PERCENTILE(B6:B1414,Z1),1) -> 19.9 | AA4: =TRUNC(PERCENTILE(B6:B1414,AA1),1) -> 14.3 | AB4: =TRUNC(PERCENTILE(Q8:Q1414,AB1),3) -> -0.148 | AC4: =TRUNC(PERCENTILE(Q8:Q1414,AC1),3) -> 0.051 | AD4: 5 | AE4: -5 | AF4: =TRUNC((V4*1000*95%)/1000,3) -> -0.046 | AG4: =TRUNC(PERCENTILE(O8:O1414,AG1),3) -> -0.008 | BD4: =BR4 -> 5.456513724 | BE4: =BP4/BP6 -> 12840.88498 | BN4: =BN1+BN2 -> 0.0005475531492 | BO4: <-Efective Slippage | BP4: =BP1414 -> 1.284088498e+10 | BR4: =(BR1414/BR8)^(252/(BQ1414-BQ9)) -> 5.456513724
A5: Date | B5: Vix | C5: Vxv | D5: Vx1 | E5: Vx2 | F5: XIV Open | G5: XIV Close | H5: XIV daily Change | I5: UVXY Open | J5: UVXY Close | K5: UVXY daily Change | L5: TQQQ Open | M5: TQQQ Close | N5: TQQQ daily Change | O5: R | P5: VIX_VXV | Q5: VIX Change | R5: XIV_Ratio | S5: MACD | T5: Trading | U5: UVXY 0 | V5: XIV 1 | W5: XIV 2 | X5: UVXY 3 | Y5: UVXY 4 | Z5: XIV 5 | AA5: UVXY 6 | AB5: XIV 7 | AC5: UVXY 8 | AD5: XIV 9 | AE5: UVXY 10 | AF5: XIV 11 | AG5: UVXY 12 | AH5: =U5 -> UVXY 0 | AI5: =V5 -> XIV 1 | AJ5: XIV 2 | AK5: UVXY 3 | AL5: UVXY 4 | AM5: XIV 5 | AN5: UVXY 6 | AO5: XIV 7 | AP5: UVXY 8 | AQ5: XIV 9 | AR5: UVXY 10 | AS5: XIV 11 | AT5: UVXY 12 | AU5: Sum | AV5: XIV | AW5: UVXY | AX5: Sum | AY5: TQQQ | AZ5: XIVc | BA5: UVXYc | BB5: Sumc | BC5: TQQQc | BD5: Today's target | BE5: Daily Target change | BF5: Daily Return | BG5: Switch | BH5: Trade | BI5: Shares | BJ5: Open_Share_Value | BK5: Cash position | BL5: Open portfolio_value | BM5: Open portfolio_value post | BN5: Target_share_value | BO5: Close_Share_Value | BP5: Close portfolio_value | BQ5: i | BR5: Value
A6: 2011-09-29 | B6: 38.84 | C6: 38.18 | D6: 38.6 | E6: 35.3 | F6: 5.99 | G6: 5.89 | H6: =G6/F6-1 -> -0.01669449082 | I6: -1 | J6: -1 | K6: =J6/I6-1 -> 0 | L6: 8.68625 | M6: 8.02375 | N6: =M6/L6-1 -> -0.0762699669 | S6: =VLOOKUP(A6,'MACD SPYG'!$A$2:$G$1452,7,FALSE) -> -0.02950395198 | BD6: CASH | BE6: =IF(BD6="CASH",0%,IF(BD6="XIV",H6,IF(BD6="UVXY",K6,N6))) -> 0 | BF6: 0 | BG6: 0 | BH6: 0 | BI6: =BL6/BJ6 -> 1000000 | BJ6: 1 | BK6: 0 | BL6: 1000000 | BM6: 1000000000 | BN6: =IF(BD6="CASH",1,IF(BD6="XIV",F6,IF(BD6="UVXY",I6,L6))) -> 1 | BO6: =IF(BD6="CASH",1,IF(BD6="XIV",G6,IF(BD6="UVXY",J6,M6))) -> 1 | BP6: =BI6*BO6+BK6 -> 1000000 | BQ6: 0 | BR6: =BP6/10^6 -> 1
A7: 2011-09-30 | B7: 42.96 | C7: 41.24 | D7: 42.15 | E7: 37.75 | F7: 5.67 | G7: 5.48 | H7: =G7/F7-1 -> -0.03350970018 | I7: -1 | J7: -1 | K7: =J7/I7-1 -> 0 | L7: 7.70625 | M7: 7.4 | N7: =M7/L7-1 -> -0.0397404704 | S7: =VLOOKUP(A7,'MACD SPYG'!$A$2:$G$1452,7,FALSE) -> -0.1219923018 | BD7: =IF(T7=0,BD6,IF(AZ7=1,"XIV",IF(BA7=1,"UVXY","TQQQ"))) -> CASH | BE7: =IF(BD7="CASH",0%,IF(BD7="XIV",H7,IF(BD7="UVXY",K7,N7))) -> 0 | BF7: 0 | BG7: 0 | BH7: 0 | BI7: =BL7/BJ7 -> 1000000 | BJ7: 1 | BK7: 0 | BL7: =BL6 -> 1000000 | BM7: =BM6 -> 1000000000 | BN7: =IF(BD7="CASH",1,IF(BD7="XIV",F7,IF(BD7="UVXY",I7,L7))) -> 1 | BO7: 1 | BP7: =BI7*BO7+BK7 -> 1000000 | BQ7: =BQ6+1 -> 1 | BR7: =BP7/10^6 -> 1
A8: 2011-10-03 | B8: 45.45 | C8: 43.38 | D8: 45.05 | E8: 40.55 | F8: 5.36 | G8: 5.12 | H8: -0.0447761194 | I8: -1 | J8: -1 | K8: 0 | L8: 7.19 | M8: 6.82 | N8: -0.05146036161 | O8: =$O$4*B7/D7+(1-$O$4)*D7/E7-1 -> 0.04841884471 | P8: =B7/C7 -> 1.041707081 | Q8: =B7/B6-1 -> 0.1060762101 | R8: =F8/G7-1 -> -0.02189781022 | S8: =VLOOKUP(A8,'MACD SPYG'!$A$2:$G$1452,7,FALSE) -> -0.239226122 | T8: =IF(A8-$A$9>=0,1,0) -> 0 | BD8: CASH | BE8: 0 | BF8: =BM9/BM8-1 -> -0.99900001 | BG8: =IF(BD8=BD7,0,1) -> 0 | BH8: =IF(BD8<>BD7,1,0) -> 0 | BI8: =IF(BD8=BD7,BI7,TRUNC((BL8*(1-$BN$4)-$BI$3)/((1+$BN$4)*BN8),0)) -> 1000000 | BJ8: =IF(BD7="CASH",1,IF(BD7="XIV",F8,IF(BD7="UVXY",I8,L8))) -> 1 | BK8: 0 | BL8: =BL7 -> 1000000 | BM8: =BM7 -> 1000000000 | BN8: =IF(BD8="CASH",1,IF(BD8="XIV",F8,IF(BD8="UVXY",I8,L8))) -> 1 | BO8: 1 | BP8: 1000000 | BQ8: 2 | BR8: =BP8/10^6 -> 1
A9: 2011-10-04 | B9: 40.82 | C9: 40.45 | D9: 40.8 | E9: 38.1 | F9: 4.99 | G9: 5.46 | H9: 0.09418837675 | I9: 12134757.3 | J9: 10289794.2 | K9: -0.152039555 | L9: 6.6075 | M9: 7.235 | N9: 0.09496783958 | O9: =$O$4*B8/D8+(1-$O$4)*D8/E8-1 -> 0.03950754813 | P9: 1.047717842 | Q9: 0.05796089385 | R9: -0.025390625 | S9: =VLOOKUP(A9,'MACD SPYG'!$A$2:$G$1452,7,FALSE) -> -0.4073987465 | T9: 1 | U9: =IF(B8<$U$4,1,0) -> 0 | V9: =IF(O9<$V$4,1,0) -> 0 | W9: =IF(P9<$W$4,1,0) -> 0 | X9: =IF(AND(O9>$X$4,S9>$S$4),1,0) -> 0 | Y9: =IF(P9>$Y$4,1,0) -> 0 | Z9: =IF(B8>$Z$4,1,0) -> 1 | AA9: =IF(B8<$AA$4,1,0) -> 0 | AB9: =IF(Q9<$AB$4,1,0) -> 0 | AC9: =IF(Q9>$AC$4,1,0) -> 1 | AD9: =IF(Q9>$AD$4,1,0) -> 0 | AE9: =IF(Q9<$AE$4,1,0) -> 0 | AF9: =IF(O9<$AF$4,1,0) -> 0 | AG9: =IF(O9>$AG$4,1,0) -> 1 | AH9: =U9 -> 0 | AI9: =IF(SUM($AH9:AH9)>0,0,1)*V9 -> 0 | AJ9: =IF(SUM($AH9:AI9)>0,0,1)*W9 -> 0 | AK9: =IF(SUM($AH9:AJ9)>0,0,1)*X9 -> 0 | AL9: =IF(SUM($AH9:AK9)>0,0,1)*Y9 -> 0 | AM9: =IF(SUM($AH9:AL9)>0,0,1)*Z9 -> 1 | AN9: =IF(SUM($AH9:AM9)>0,0,1)*AA9 -> 0 | AO9: =IF(SUM($AH9:AN9)>0,0,1)*AB9 -> 0 | AP9: =IF(SUM($AH9:AO9)>0,0,1)*AC9 -> 0 | AQ9: =IF(SUM($AH9:AP9)>0,0,1)*AD9 -> 0 | AR9: =IF(SUM($AH9:AQ9)>0,0,1)*AE9 -> 0 | AS9: =IF(SUM($AH9:AR9)>0,0,1)*AF9 -> 0 | AT9: =IF(SUM($AH9:AS9)>0,0,1)*AG9 -> 0 | AU9: =SUM(AH9:AT9) -> 1 | AV9: =IF(U9=1,0,IF(V9=1,1,IF(W9=1,1,IF(X9=1,0,IF(Y9=1,0,IF(Z9=1,1,IF(AA9=1,0,IF(AB9=1,1,IF(AC9=1,0,IF(AD9=1,1,IF(AE9=1,0,AF9))))))))))) -> 1 | AW9: =IF(U9=1,1,IF(V9=1,0,IF(W9=1,0,IF(X9=1,1,IF(Y9=1,1,IF(Z9=1,0,IF(AA9=1,1,IF(AB9=1,0,IF(AC9=1,1,IF(AD9=1,0,IF(AE9=1,1,IF(AF9=1,0,AG9)))))))))))) -> 0 | AX9: =AV9+AW9 -> 1 | AY9: =IF(OR(AV9=1,AW9=1),0,1) -> 0 | AZ9: =IF(AV9=0,0,IF(R9<$R$4,0,1)) -> 1 | BA9: =IF(AW9=0,0,IF(R9>-$R$4,0,1)) -> 0 | BB9: =AZ9+BA9 -> 1 | BC9: =IF(OR(AZ9=1,BA9=1),0,1) -> 0 | BD9: XIV | BE9: 0.09418837675 | BF9: =BM10/BM9-1 -> 0.1088228017 | BG9: 1 | BH9: 1 | BI9: =IF(BD9=BD8,BI8,TRUNC((BL9-$BI$3)/BN9,0)) -> 200398 | BJ9: 1 | BK9: =IF(BD9=BD8,BK8,BL9-BN9*BI9-9.95) -> 4.03 | BL9: =BJ9*BI8+BK8 -> 1000000 | BM9: =BN9*BI9+BK9 -> 999990.05 | BN9: =IF(BD9="CASH",1,IF(BD9="XIV",F9,IF(BD9="UVXY",I9,L9))) -> 4.99 | BO9: 5.46 | BP9: 1094177.11 | BQ9: 3 | BR9: 1.09417711
A10: 2011-10-05 | B10: 37.81 | C10: 38.31 | D10: 38.45 | E10: 36.3 | F10: 5.53 | G10: 5.72 | H10: 0.03435804702 | I10: 9872802.54 | J10: 9068818.62 | K10: -0.08143421452 | L10: 7.185 | M10: 7.785 | N10: 0.08350730689 | O10: 0.02160297977 | P10: 1.009147095 | Q10: -0.101870187 | R10: 0.01282051282 | S10: =VLOOKUP(A10,'MACD SPYG'!$A$2:$G$1452,7,FALSE) -> -0.3846033984 | T10: 1 | U10: 0 | V10: =IF(O10<$V$4,1,0) -> 0 | W10: 0 | X10: =IF(AND(O10>$X$4,S10>$S$4),1,0) -> 0 | Y10: =IF(P10>$Y$4,1,0) -> 0 | Z10: =IF(B9>$Z$4,1,0) -> 1 | AA10: =IF(B9<$AA$4,1,0) -> 0 | AB10: =IF(Q10<$AB$4,1,0) -> 0 | AC10: =IF(Q10>$AC$4,1,0) -> 0 | AD10: =IF(Q10>$AD$4,1,0) -> 0 | AE10: =IF(Q10<$AE$4,1,0) -> 0 | AF10: =IF(O10<$AF$4,1,0) -> 0 | AG10: =IF(O10>$AG$4,1,0) -> 1 | AH10: =U10 -> 0 | AI10: =IF(SUM($AH10:AH10)>0,0,1)*V10 -> 0 | AJ10: =IF(SUM($AH10:AI10)>0,0,1)*W10 -> 0 | AK10: =IF(SUM($AH10:AJ10)>0,0,1)*X10 -> 0 | AL10: =IF(SUM($AH10:AK10)>0,0,1)*Y10 -> 0 | AM10: =IF(SUM($AH10:AL10)>0,0,1)*Z10 -> 1 | AN10: =IF(SUM($AH10:AM10)>0,0,1)*AA10 -> 0 | AO10: =IF(SUM($AH10:AN10)>0,0,1)*AB10 -> 0 | AP10: =IF(SUM($AH10:AO10)>0,0,1)*AC10 -> 0 | AQ10: =IF(SUM($AH10:AP10)>0,0,1)*AD10 -> 0 | AR10: =IF(SUM($AH10:AQ10)>0,0,1)*AE10 -> 0 | AS10: =IF(SUM($AH10:AR10)>0,0,1)*AF10 -> 0 | AT10: =IF(SUM($AH10:AS10)>0,0,1)*AG10 -> 0 | AU10: =SUM(AH10:AT10) -> 1 | AV10: 1 | AW10: 0 | AX10: 1 | AY10: 0 | AZ10: 1 | BA10: 0 | BB10: 1 | BC10: 0 | BD10: XIV | BE10: 0.03435804702 | BF10: 0.03074129876 | BG10: 0 | BH10: 0 | BI10: =IF(BD10=BD9,BI9,TRUNC((BL10-$BI$3)/BN10,0)) -> 200398 | BJ10: =IF(BD9="CASH",1,(1-$BN$4)*IF(BD9="XIV",F10,IF(BD9="UVXY",I10,L10))) -> 5.526972031 | BK10: =IF(BD10=BD9,BK9,BL10-BN10*BI10-9.95) -> 4.03 | BL10: =BJ10*BI9+BK9 -> 1107598.171 | BM10: =BN10*BI10+BK10 -> 1108811.769 | BN10: =IF(BD10="CASH",1,(1+$BN$4)*IF(BD10="XIV",F10,IF(BD10="UVXY",I10,L10))) -> 5.533027969 | BO10: 5.72 | BP10: 1146280.59 | BQ10: 4 | BR10: 1.14628059
A11: 2011-10-06 | B11: 36.27 | C11: 37.04 | D11: 37.85 | E11: 35.9 | F11: 5.7 | G11: 5.83 | H11: 0.02280701754 | I11: 9056818.86 | J11: 8699826 | K11: -0.03941702551 | L11: 7.775 | M11: 8.185 | N11: 0.05273311897 | O11: 0.006117099593 | P11: 0.9869485774 | Q11: -0.07373836355 | R11: -0.003496503497 | S11: =VLOOKUP(A11,'MACD SPYG'!$A$2:$G$1452,7,FALSE) -> -0.2871035151 | T11: 1 | U11: 0 | V11: 0 | W11: 0 | X11: 0 | Y11: 0 | Z11: 1 | AA11: 0 | AB11: 0 | AC11: 0 | AD11: 0 | AE11: 0 | AF11: 0 | AG11: 1 | AH11: 0 | AI11: =IF(SUM($AH11:AH11)>0,0,1)*V11 -> 0 | AJ11: =IF(SUM($AH11:AI11)>0,0,1)*W11 -> 0 | AK11: =IF(SUM($AH11:AJ11)>0,0,1)*X11 -> 0 | AL11: =IF(SUM($AH11:AK11)>0,0,1)*Y11 -> 0 | AM11: =IF(SUM($AH11:AL11)>0,0,1)*Z11 -> 1 | AN11: =IF(SUM($AH11:AM11)>0,0,1)*AA11 -> 0 | AO11: =IF(SUM($AH11:AN11)>0,0,1)*AB11 -> 0 | AP11: =IF(SUM($AH11:AO11)>0,0,1)*AC11 -> 0 | AQ11: =IF(SUM($AH11:AP11)>0,0,1)*AD11 -> 0 | AR11: =IF(SUM($AH11:AQ11)>0,0,1)*AE11 -> 0 | AS11: =IF(SUM($AH11:AR11)>0,0,1)*AF11 -> 0 | AT11: =IF(SUM($AH11:AS11)>0,0,1)*AG11 -> 0 | AU11: 1 | AV11: 1 | AW11: 0 | AX11: 1 | AY11: 0 | AZ11: 1 | BA11: 0 | BB11: 1 | BC11: 0 | BD11: XIV | BE11: 0.02280701754 | BF11: 0.04035073491 | BG11: 0 | BH11: 0 | BI11: 200398 | BJ11: =IF(BD10="CASH",1,(1-$BN$4)*IF(BD10="XIV",F11,IF(BD10="UVXY",I11,L11))) -> 5.696878947 | BK11: 4.03 | BL11: 1141647.177 | BM11: 1142898.083 | BN11: =IF(BD11="CASH",1,(1+$BN$4)*IF(BD11="XIV",F11,IF(BD11="UVXY",I11,L11))) -> 5.703121053 | BO11: 5.83 | BP11: 1168324.37 | BQ11: 5 | BR11: 1.16832437
A12: 2011-10-07 | B12: 36.2 | C12: 37.31 | D12: 37.95 | E12: 35.95 | F12: 5.93 | G12: 5.72 | H12: -0.03541315346 | I12: 8528829.42 | J12: 8825823.48 | K12: 0.03482237074 | L12: 8.16125 | M12: 8.01625 | N12: -0.0177668862 | O12: -0.01292534304 | P12: 0.9792116631 | Q12: -0.04072996562 | R12: 0.01715265866 | S12: =VLOOKUP(A12,'MACD SPYG'!$A$2:$G$1452,7,FALSE) -> -0.1223484445 | T12: 1 | U12: 0 | V12: 0 | W12: 0 | X12: 0 | Y12: 0 | Z12: 1 | AA12: 0 | AB12: 0 | AC12: 0 | AD12: 0 | AE12: 0 | AF12: 0 | AG12: 0 | AH12: 0 | AI12: =IF(SUM($AH12:AH12)>0,0,1)*V12 -> 0 | AJ12: =IF(SUM($AH12:AI12)>0,0,1)*W12 -> 0 | AK12: =IF(SUM($AH12:AJ12)>0,0,1)*X12 -> 0 | AL12: =IF(SUM($AH12:AK12)>0,0,1)*Y12 -> 0 | AM12: =IF(SUM($AH12:AL12)>0,0,1)*Z12 -> 1 | AN12: =IF(SUM($AH12:AM12)>0,0,1)*AA12 -> 0 | AO12: =IF(SUM($AH12:AN12)>0,0,1)*AB12 -> 0 | AP12: =IF(SUM($AH12:AO12)>0,0,1)*AC12 -> 0 | AQ12: =IF(SUM($AH12:AP12)>0,0,1)*AD12 -> 0 | AR12: =IF(SUM($AH12:AQ12)>0,0,1)*AE12 -> 0 | AS12: =IF(SUM($AH12:AR12)>0,0,1)*AF12 -> 0 | AT12: =IF(SUM($AH12:AS12)>0,0,1)*AG12 -> 0 | AU12: 1 | AV12: 1 | AW12: 0 | AX12: 1 | AY12: 0 | AZ12: 1 | BA12: 0 | BB12: 1 | BC12: 0 | BD12: XIV | BE12: -0.03541315346 | BF12: 0.00337266985 | BG12: 0 | BH12: 0 | BI12: 200398 | BJ12: =IF(BD11="CASH",1,(1-$BN$4)*IF(BD11="XIV",F12,IF(BD11="UVXY",I12,L12))) -> 5.92675301 | BK12: 4.03 | BL12: 1187713.48 | BM12: 1189014.86 | BN12: =IF(BD12="CASH",1,(1+$BN$4)*IF(BD12="XIV",F12,IF(BD12="UVXY",I12,L12))) -> 5.93324699 | BO12: 5.72 | BP12: 1146280.59 | BQ12: 6 | BR12: 1.14628059
A13: 2011-10-10 | B13: 33.02 | C13: 34.79 | D13: 34.7 | E13: 33.65 | F13: 5.95 | G13: 6.14 | H13: 0.03193277311 | I13: 8273834.52 | J13: 7796844.06 | K13: -0.05765047136 | L13: 8.425 | M13: 8.83875 | N13: 0.04910979228 | O13: -0.01558946788 | P13: 0.9702492629 | Q13: -0.001929969672 | R13: 0.04020979021 | S13: =VLOOKUP(A13,'MACD SPYG'!$A$2:$G$1452,7,FALSE) -> 0.01940527742 | T13: 1 | U13: 0 | V13: 0 | W13: 0 | X13: 0 | Y13: 0 | Z13: 1 | AA13: 0 | AB13: 0 | AC13: 0 | AD13: 0 | AE13: 0 | AF13: 0 | AG13: 0 | AH13: 0 | AI13: =IF(SUM($AH13:AH13)>0,0,1)*V13 -> 0 | AJ13: =IF(SUM($AH13:AI13)>0,0,1)*W13 -> 0 | AK13: =IF(SUM($AH13:AJ13)>0,0,1)*X13 -> 0 | AL13: =IF(SUM($AH13:AK13)>0,0,1)*Y13 -> 0 | AM13: =IF(SUM($AH13:AL13)>0,0,1)*Z13 -> 1 | AN13: =IF(SUM($AH13:AM13)>0,0,1)*AA13 -> 0 | AO13: =IF(SUM($AH13:AN13)>0,0,1)*AB13 -> 0 | AP13: =IF(SUM($AH13:AO13)>0,0,1)*AC13 -> 0 | AQ13: =IF(SUM($AH13:AP13)>0,0,1)*AD13 -> 0 | AR13: =IF(SUM($AH13:AQ13)>0,0,1)*AE13 -> 0 | AS13: =IF(SUM($AH13:AR13)>0,0,1)*AF13 -> 0 | AT13: =IF(SUM($AH13:AS13)>0,0,1)*AG13 -> 0 | AU13: 1 | AV13: 1 | AW13: 0 | AX13: 1 | AY13: 0 | AZ13: 1 | BA13: 0 | BB13: 1 | BC13: 0 | BD13: XIV | BE13: 0.03193277311 | BF13: 0.01848733251 | BG13: 0 | BH13: 0 | BI13: 200398 | BJ13: =IF(BD12="CASH",1,(1-$BN$4)*IF(BD12="XIV",F13,IF(BD12="UVXY",I13,L13))) -> 5.946742059 | BK13: 4.03 | BL13: 1191719.245 | BM13: 1193025.015 | BN13: =IF(BD13="CASH",1,(1+$BN$4)*IF(BD13="XIV",F13,IF(BD13="UVXY",I13,L13))) -> 5.953257941 | BO13: 6.14 | BP13: 1230447.75 | BQ13: 7 | BR13: 1.23044775
A14: 2011-10-11 | B14: 32.86 | C14: 34.06 | D14: 34.5 | E14: 33.5 | F14: 6.06 | G14: 6.21 | H14: 0.02475247525 | I14: 7850842.98 | J14: 7529849.4 | K14: -0.04088651127 | L14: 8.7775 | M14: 9.0275 | N14: 0.02848191398 | O14: -0.02452942008 | P14: 0.9491233113 | Q14: -0.08784530387 | R14: -0.01302931596 | S14: =VLOOKUP(A14,'MACD SPYG'!$A$2:$G$1452,7,FALSE) -> 0.1328854319 | T14: 1 | U14: 0 | V14: 0 | W14: 0 | X14: 0 | Y14: 0 | Z14: 1 | AA14: 0 | AB14: 0 | AC14: 0 | AD14: 0 | AE14: 0 | AF14: 0 | AG14: 0 | AH14: 0 | AI14: =IF(SUM($AH14:AH14)>0,0,1)*V14 -> 0 | AJ14: =IF(SUM($AH14:AI14)>0,0,1)*W14 -> 0 | AK14: =IF(SUM($AH14:AJ14)>0,0,1)*X14 -> 0 | AL14: =IF(SUM($AH14:AK14)>0,0,1)*Y14 -> 0 | AM14: =IF(SUM($AH14:AL14)>0,0,1)*Z14 -> 1 | AN14: =IF(SUM($AH14:AM14)>0,0,1)*AA14 -> 0 | AO14: =IF(SUM($AH14:AN14)>0,0,1)*AB14 -> 0 | AP14: =IF(SUM($AH14:AO14)>0,0,1)*AC14 -> 0 | AQ14: =IF(SUM($AH14:AP14)>0,0,1)*AD14 -> 0 | AR14: =IF(SUM($AH14:AQ14)>0,0,1)*AE14 -> 0 | AS14: =IF(SUM($AH14:AR14)>0,0,1)*AF14 -> 0 | AT14: =IF(SUM($AH14:AS14)>0,0,1)*AG14 -> 0 | AU14: 1 | AV14: 1 | AW14: 0 | AX14: 1 | AY14: 0 | AZ14: 1 | BA14: 0 | BB14: 1 | BC14: 0 | BD14: XIV | BE14: 0.02475247525 | BF14: 0.05940574357 | BG14: 0 | BH14: 0 | BI14: 200398 | BJ14: =IF(BD13="CASH",1,(1-$BN$4)*IF(BD13="XIV",F14,IF(BD13="UVXY",I14,L14))) -> 6.056681828 | BK14: 4.03 | BL14: 1213750.955 | BM14: 1215080.865 | BN14: =IF(BD14="CASH",1,(1+$BN$4)*IF(BD14="XIV",F14,IF(BD14="UVXY",I14,L14))) -> 6.063318172 | BO14: 6.21 | BP14: 1244475.61 | BQ14: 8 | BR14: 1.24447561
A15: 2011-10-12 | B15: 31.26 | C15: 32.97 | D15: 32.25 | E15: 31.45 | F15: 6.42 | G15: 6.62 | H15: 0.03115264798 | I15: 6971860.56 | J15: 6437871.24 | K15: -0.07659208262 | L15: 9.29625 | M15: 9.1725 | N15: -0.01331181928 | O15: -0.02432013844 | P15: 0.9647680564 | Q15: -0.004845548153 | R15: 0.03381642512 | S15: =VLOOKUP(A15,'MACD SPYG'!$A$2:$G$1452,7,FALSE) -> 0.261321283 | T15: 1 | U15: 0 | V15: 0 | W15: 0 | X15: 0 | Y15: 0 | Z15: 1 | AA15: 0 | AB15: 0 | AC15: 0 | AD15: 0 | AE15: 0 | AF15: 0 | AG15: 0 | AH15: 0 | AI15: =IF(SUM($AH15:AH15)>0,0,1)*V15 -> 0 | AJ15: =IF(SUM($AH15:AI15)>0,0,1)*W15 -> 0 | AK15: =IF(SUM($AH15:AJ15)>0,0,1)*X15 -> 0 | AL15: =IF(SUM($AH15:AK15)>0,0,1)*Y15 -> 0 | AM15: =IF(SUM($AH15:AL15)>0,0,1)*Z15 -> 1 | AN15: =IF(SUM($AH15:AM15)>0,0,1)*AA15 -> 0 | AO15: =IF(SUM($AH15:AN15)>0,0,1)*AB15 -> 0 | AP15: =IF(SUM($AH15:AO15)>0,0,1)*AC15 -> 0 | AQ15: =IF(SUM($AH15:AP15)>0,0,1)*AD15 -> 0 | AR15: =IF(SUM($AH15:AQ15)>0,0,1)*AE15 -> 0 | AS15: =IF(SUM($AH15:AR15)>0,0,1)*AF15 -> 0 | AT15: =IF(SUM($AH15:AS15)>0,0,1)*AG15 -> 0 | AU15: 1 | AV15: 1 | AW15: 0 | AX15: 1 | AY15: 0 | AZ15: 1 | BA15: 0 | BB15: 1 | BC15: 0 | BD15: XIV | BE15: 0.03115264798 | BF15: 0.02180678531 | BG15: 0 | BH15: 0 | BI15: 200398 | BJ15: =IF(BD14="CASH",1,(1-$BN$4)*IF(BD14="XIV",F15,IF(BD14="UVXY",I15,L15))) -> 6.416484709 | BK15: 4.03 | BL15: 1285854.733 | BM15: 1287263.647 | BN15: =IF(BD15="CASH",1,(1+$BN$4)*IF(BD15="XIV",F15,IF(BD15="UVXY",I15,L15))) -> 6.423515291 | BO15: 6.62 | BP15: 1326638.79 | BQ15: 9 | BR15: 1.32663879
A16: 2011-10-13 | B16: 30.7 | C16: 32.71 | D16: 32.1 | E16: 31.2 | F16: 6.56 | G16: 6.64 | H16: 0.01219512195 | I16: 6659866.8 | J16: 6482870.34 | K16: -0.02657657658 | L16: 9.1175 | M16: 9.41875 | N16: 0.0330408555 | O16: -0.01385721152 | P16: 0.9481346679 | Q16: -0.04869141814 | R16: -0.009063444109 | S16: =VLOOKUP(A16,'MACD SPYG'!$A$2:$G$1452,7,FALSE) -> 0.3101161695 | T16: 1 | U16: 0 | V16: 0 | W16: 0 | X16: 0 | Y16: 0 | Z16: 1 | AA16: 0 | AB16: 0 | AC16: 0 | AD16: 0 | AE16: 0 | AF16: 0 | AG16: 0 | AH16: 0 | AI16: =IF(SUM($AH16:AH16)>0,0,1)*V16 -> 0 | AJ16: =IF(SUM($AH16:AI16)>0,0,1)*W16 -> 0 | AK16: =IF(SUM($AH16:AJ16)>0,0,1)*X16 -> 0 | AL16: =IF(SUM($AH16:AK16)>0,0,1)*Y16 -> 0 | AM16: =IF(SUM($AH16:AL16)>0,0,1)*Z16 -> 1 | AN16: =IF(SUM($AH16:AM16)>0,0,1)*AA16 -> 0 | AO16: =IF(SUM($AH16:AN16)>0,0,1)*AB16 -> 0 | AP16: =IF(SUM($AH16:AO16)>0,0,1)*AC16 -> 0 | AQ16: =IF(SUM($AH16:AP16)>0,0,1)*AD16 -> 0 | AR16: =IF(SUM($AH16:AQ16)>0,0,1)*AE16 -> 0 | AS16: =IF(SUM($AH16:AR16)>0,0,1)*AF16 -> 0 | AT16: =IF(SUM($AH16:AS16)>0,0,1)*AG16 -> 0 | AU16: 1 | AV16: 1 | AW16: 0 | AX16: 1 | AY16: 0 | AZ16: 1 | BA16: 0 | BB16: 1 | BC16: 0 | BD16: XIV | BE16: 0.01219512195 | BF16: 0.05487788064 | BG16: 0 | BH16: 0 | BI16: 200398 | BJ16: =IF(BD15="CASH",1,(1-$BN$4)*IF(BD15="XIV",F16,IF(BD15="UVXY",I16,L16))) -> 6.556408051 | BK16: 4.03 | BL16: 1313895.091 | BM16: 1315334.729 | BN16: =IF(BD16="CASH",1,(1+$BN$4)*IF(BD16="XIV",F16,IF(BD16="UVXY",I16,L16))) -> 6.563591949 | BO16: 6.64 | BP16: 1330646.75 | BQ16: 10 | BR16: 1.33064675
A17: 2011-10-14 | B17: 28.24 | C17: 30.39 | D17: 29.75 | E17: 29.35 | F17: 6.92 | G17: 7.02 | H17: 0.01445086705 | I17: 5867882.64 | J17: 5843883.12 | K17: -0.00408997955 | L17: 9.77625 | M17: 9.9375 | N17: 0.01649405447 | O17: -0.02187574886 | P17: 0.9385509019 | Q17: -0.01791426743 | R17: 0.0421686747 | S17: =VLOOKUP(A17,'MACD SPYG'!$A$2:$G$1452,7,FALSE) -> 0.4033696228 | T17: 1 | U17: 0 | V17: 0 | W17: 0 | X17: 0 | Y17: 0 | Z17: 1 | AA17: 0 | AB17: 0 | AC17: 0 | AD17: 0 | AE17: 0 | AF17: 0 | AG17: 0 | AH17: 0 | AI17: =IF(SUM($AH17:AH17)>0,0,1)*V17 -> 0 | AJ17: =IF(SUM($AH17:AI17)>0,0,1)*W17 -> 0 | AK17: =IF(SUM($AH17:AJ17)>0,0,1)*X17 -> 0 | AL17: =IF(SUM($AH17:AK17)>0,0,1)*Y17 -> 0 | AM17: =IF(SUM($AH17:AL17)>0,0,1)*Z17 -> 1 | AN17: =IF(SUM($AH17:AM17)>0,0,1)*AA17 -> 0 | AO17: =IF(SUM($AH17:AN17)>0,0,1)*AB17 -> 0 | AP17: =IF(SUM($AH17:AO17)>0,0,1)*AC17 -> 0 | AQ17: =IF(SUM($AH17:AP17)>0,0,1)*AD17 -> 0 | AR17: =IF(SUM($AH17:AQ17)>0,0,1)*AE17 -> 0 | AS17: =IF(SUM($AH17:AR17)>0,0,1)*AF17 -> 0 | AT17: =IF(SUM($AH17:AS17)>0,0,1)*AG17 -> 0 | AU17: 1 | AV17: 1 | AW17: 0 | AX17: 1 | AY17: 0 | AZ17: 1 | BA17: 0 | BB17: 1 | BC17: 0 | BD17: XIV | BE17: 0.01445086705 | BF17: 0.01156066006 | BG17: 0 | BH17: 0 | BI17: 200398 | BJ17: =IF(BD16="CASH",1,(1-$BN$4)*IF(BD16="XIV",F17,IF(BD16="UVXY",I17,L17))) -> 6.916210932 | BK17: 4.03 | BL17: 1385998.868 | BM17: 1387517.512 | BN17: =IF(BD17="CASH",1,(1+$BN$4)*IF(BD17="XIV",F17,IF(BD17="UVXY",I17,L17))) -> 6.923789068 | BO17: 7.02 | BP17: 1406797.99 | BQ17: 11 | BR17: 1.40679799
A18: 2011-10-17 | B18: 33.39 | C18: 33.6 | D18: 34.2 | E18: 32.95 | F18: 7 | G18: 6.27 | H18: -0.1042857143 | I18: 5786884.26 | J18: 6974860.5 | K18: 0.2052877138 | L18: 9.79625 | M18: 9.4775 | N18: -0.03253796095 | O18: -0.03144082573 | P18: 0.9292530438 | Q18: -0.08013029316 | R18: -0.002849002849 | S18: =VLOOKUP(A18,'MACD SPYG'!$A$2:$G$1452,7,FALSE) -> 0.4497582893 | T18: 1 | U18: 0 | V18: 0 | W18: 0 | X18: 0 | Y18: 0 | Z18: 1 | AA18: 0 | AB18: 0 | AC18: 0 | AD18: 0 | AE18: 0 | AF18: 0 | AG18: 0 | AH18: 0 | AI18: =IF(SUM($AH18:AH18)>0,0,1)*V18 -> 0 | AJ18: =IF(SUM($AH18:AI18)>0,0,1)*W18 -> 0 | AK18: =IF(SUM($AH18:AJ18)>0,0,1)*X18 -> 0 | AL18: =IF(SUM($AH18:AK18)>0,0,1)*Y18 -> 0 | AM18: =IF(SUM($AH18:AL18)>0,0,1)*Z18 -> 1 | AN18: =IF(SUM($AH18:AM18)>0,0,1)*AA18 -> 0 | AO18: =IF(SUM($AH18:AN18)>0,0,1)*AB18 -> 0 | AP18: =IF(SUM($AH18:AO18)>0,0,1)*AC18 -> 0 | AQ18: =IF(SUM($AH18:AP18)>0,0,1)*AD18 -> 0 | AR18: =IF(SUM($AH18:AQ18)>0,0,1)*AE18 -> 0 | AS18: =IF(SUM($AH18:AR18)>0,0,1)*AF18 -> 0 | AT18: =IF(SUM($AH18:AS18)>0,0,1)*AG18 -> 0 | AU18: 1 | AV18: 1 | AW18: 0 | AX18: 1 | AY18: 0 | AZ18: 1 | BA18: 0 | BB18: 1 | BC18: 0 | BD18: XIV | BE18: -0.1042857143 | BF18: -0.1071425495 | BG18: 0 | BH18: 0 | BI18: 200398 | BJ18: =IF(BD17="CASH",1,(1-$BN$4)*IF(BD17="XIV",F18,IF(BD17="UVXY",I18,L18))) -> 6.996167128 | BK18: 4.03 | BL18: 1402021.93 | BM18: 1403558.13 | BN18: =IF(BD18="CASH",1,(1+$BN$4)*IF(BD18="XIV",F18,IF(BD18="UVXY",I18,L18))) -> 7.003832872 | BO18: 6.27 | BP18: 1256499.49 | BQ18: 12 | BR18: 1.25649949
A19: 2011-10-18 | B19: 31.56 | C19: 31.98 | D19: 32.15 | E19: 31 | F19: 6.25 | G19: 6.48 | H19: 0.0368 | I19: 6923861.52 | J19: 6509869.8 | K19: -0.05979202773 | L19: 9.44375 | M19: 9.82125 | N19: 0.03997352747 | O19: -0.005198067247 | P19: 0.99375 | Q19: 0.1823654391 | R19: -0.003189792663 | S19: =VLOOKUP(A19,'MACD SPYG'!$A$2:$G$1452,7,FALSE) -> 0.3886493603 | T19: 1 | U19: 0 | V19: 0 | W19: 0 | X19: 0 | Y19: 0 | Z19: 1 | AA19: 0 | AB19: 0 | AC19: 1 | AD19: 0 | AE19: 0 | AF19: 0 | AG19: 1 | AH19: 0 | AI19: =IF(SUM($AH19:AH19)>0,0,1)*V19 -> 0 | AJ19: =IF(SUM($AH19:AI19)>0,0,1)*W19 -> 0 | AK19: =IF(SUM($AH19:AJ19)>0,0,1)*X19 -> 0 | AL19: =IF(SUM($AH19:AK19)>0,0,1)*Y19 -> 0 | AM19: =IF(SUM($AH19:AL19)>0,0,1)*Z19 -> 1 | AN19: =IF(SUM($AH19:AM19)>0,0,1)*AA19 -> 0 | AO19: =IF(SUM($AH19:AN19)>0,0,1)*AB19 -> 0 | AP19: =IF(SUM($AH19:AO19)>0,0,1)*AC19 -> 0 | AQ19: =IF(SUM($AH19:AP19)>0,0,1)*AD19 -> 0 | AR19: =IF(SUM($AH19:AQ19)>0,0,1)*AE19 -> 0 | AS19: =IF(SUM($AH19:AR19)>0,0,1)*AF19 -> 0 | AT19: =IF(SUM($AH19:AS19)>0,0,1)*AG19 -> 0 | AU19: 1 | AV19: 1 | AW19: 0 | AX19: 1 | AY19: 0 | AZ19: 1 | BA19: 0 | BB19: 1 | BC19: 0 | BD19: XIV | BE19: 0.0368 | BF19: 0.04159986622 | BG19: 0 | BH19: 0 | BI19: 200398 | BJ19: =IF(BD18="CASH",1,(1-$BN$4)*IF(BD18="XIV",F19,IF(BD18="UVXY",I19,L19))) -> 6.246577793 | BK19: 4.03 | BL19: 1251805.727 | BM19: 1253177.333 | BN19: =IF(BD19="CASH",1,(1+$BN$4)*IF(BD19="XIV",F19,IF(BD19="UVXY",I19,L19))) -> 6.253422207 | BO19: 6.48 | BP19: 1298583.07 | BQ19: 13 | BR19: 1.29858307
A20: 2011-10-19 | B20: 34.44 | C20: 34.39 | D20: 33.15 | E20: 33.85 | F20: 6.51 | G20: 6.02 | H20: -0.0752688172 | I20: 6299874 | J20: 7232855.34 | K20: 0.1480952381 | L20: 9.695 | M20: 9.255 | N20: -0.04538421867 | O20: -0.001717001957 | P20: 0.9868667917 | Q20: -0.05480682839 | R20: 0.00462962963 | S20: =VLOOKUP(A20,'MACD SPYG'!$A$2:$G$1452,7,FALSE) -> 0.3799048879 | T20: 1 | U20: 0 | V20: 0 | W20: 0 | X20: 0 | Y20: 0 | Z20: 1 | AA20: 0 | AB20: 0 | AC20: 0 | AD20: 0 | AE20: 0 | AF20: 0 | AG20: 1 | AH20: 0 | AI20: =IF(SUM($AH20:AH20)>0,0,1)*V20 -> 0 | AJ20: =IF(SUM($AH20:AI20)>0,0,1)*W20 -> 0 | AK20: =IF(SUM($AH20:AJ20)>0,0,1)*X20 -> 0 | AL20: =IF(SUM($AH20:AK20)>0,0,1)*Y20 -> 0 | AM20: =IF(SUM($AH20:AL20)>0,0,1)*Z20 -> 1 | AN20: =IF(SUM($AH20:AM20)>0,0,1)*AA20 -> 0 | AO20: =IF(SUM($AH20:AN20)>0,0,1)*AB20 -> 0 | AP20: =IF(SUM($AH20:AO20)>0,0,1)*AC20 -> 0 | AQ20: =IF(SUM($AH20:AP20)>0,0,1)*AD20 -> 0 | AR20: =IF(SUM($AH20:AQ20)>0,0,1)*AE20 -> 0 | AS20: =IF(SUM($AH20:AR20)>0,0,1)*AF20 -> 0 | AT20: =IF(SUM($AH20:AS20)>0,0,1)*AG20 -> 0 | AU20: 1 | AV20: 1 | AW20: 0 | AX20: 1 | AY20: 0 | AZ20: 1 | BA20: 0 | BB20: 1 | BC20: 0 | BD20: XIV | BE20: -0.0752688172 | BF20: -0.08294905266 | BG20: 0 | BH20: 0 | BI20: 200398 | BJ20: =IF(BD19="CASH",1,(1-$BN$4)*IF(BD19="XIV",F20,IF(BD19="UVXY",I20,L20))) -> 6.506435429 | BK20: 4.03 | BL20: 1303880.677 | BM20: 1305309.343 | BN20: =IF(BD20="CASH",1,(1+$BN$4)*IF(BD20="XIV",F20,IF(BD20="UVXY",I20,L20))) -> 6.513564571 | BO20: 6.02 | BP20: 1206399.99 | BQ20: 14 | BR20: 1.20639999
A21: 2011-10-20 | B21: 34.78 | C21: 34.2 | D21: 34.1 | E21: 31.55 | F21: 5.97 | G21: 5.95 | H21: -0.003350083752 | I21: 7325853.48 | J21: 7245455.088 | K21: -0.01097461097 | L21: 9.23375 | M21: 9.1375 | N21: -0.01042371734 | O21: 0.02103597853 | P21: 1.001453911 | Q21: 0.09125475285 | R21: -0.008305647841 | S21: =VLOOKUP(A21,'MACD SPYG'!$A$2:$G$1452,7,FALSE) -> 0.320611318 | T21: 1 | U21: 0 | V21: 0 | W21: 0 | X21: 0 | Y21: 0 | Z21: 1 | AA21: 0 | AB21: 0 | AC21: 1 | AD21: 0 | AE21: 0 | AF21: 0 | AG21: 1 | AH21: 0 | AI21: =IF(SUM($AH21:AH21)>0,0,1)*V21 -> 0 | AJ21: =IF(SUM($AH21:AI21)>0,0,1)*W21 -> 0 | AK21: =IF(SUM($AH21:AJ21)>0,0,1)*X21 -> 0 | AL21: =IF(SUM($AH21:AK21)>0,0,1)*Y21 -> 0 | AM21: =IF(SUM($AH21:AL21)>0,0,1)*Z21 -> 1 | AN21: =IF(SUM($AH21:AM21)>0,0,1)*AA21 -> 0 | AO21: =IF(SUM($AH21:AN21)>0,0,1)*AB21 -> 0 | AP21: =IF(SUM($AH21:AO21)>0,0,1)*AC21 -> 0 | AQ21: =IF(SUM($AH21:AP21)>0,0,1)*AD21 -> 0 | AR21: =IF(SUM($AH21:AQ21)>0,0,1)*AE21 -> 0 | AS21: =IF(SUM($AH21:AR21)>0,0,1)*AF21 -> 0 | AT21: =IF(SUM($AH21:AS21)>0,0,1)*AG21 -> 0 | AU21: 1 | AV21: 1 | AW21: 0 | AX21: 1 | AY21: 0 | AZ21: 1 | BA21: 0 | BB21: 1 | BC21: 0 | BD21: XIV | BE21: -0.003350083752 | BF21: 0.03517576097 | BG21: 0 | BH21: 0 | BI21: 200398 | BJ21: =IF(BD20="CASH",1,(1-$BN$4)*IF(BD20="XIV",F21,IF(BD20="UVXY",I21,L21))) -> 5.966731108 | BK21: 4.03 | BL21: 1195725.011 | BM21: 1197035.169 | BN21: =IF(BD21="CASH",1,(1+$BN$4)*IF(BD21="XIV",F21,IF(BD21="UVXY",I21,L21))) -> 5.973268892 | BO21: 5.95 | BP21: 1192372.13 | BQ21: 15 | BR21: 1.19237213
A22: 2011-10-21 | B22: 31.32 | C22: 31.97 | D22: 31.6 | E22: 30 | F22: 6.18 | G22: 6.27 | H22: 0.0145631068 | I22: 6761864.76 | J22: 6509869.8 | K22: -0.03726708075 | L22: 9.41375 | M22: 9.4625 | N22: 0.00517859514 | O22: 0.03820617091 | P22: 1.016959064 | Q22: 0.00987224158 | R22: 0.03865546218 | S22: =VLOOKUP(A22,'MACD SPYG'!$A$2:$G$1452,7,FALSE) -> 0.30731667 | T22: 1 | U22: 0 | V22: 0 | W22: 0 | X22: 0 | Y22: 0 | Z22: 1 | AA22: 0 | AB22: 0 | AC22: 0 | AD22: 0 | AE22: 0 | AF22: 0 | AG22: 1 | AH22: 0 | AI22: =IF(SUM($AH22:AH22)>0,0,1)*V22 -> 0 | AJ22: =IF(SUM($AH22:AI22)>0,0,1)*W22 -> 0 | AK22: =IF(SUM($AH22:AJ22)>0,0,1)*X22 -> 0 | AL22: =IF(SUM($AH22:AK22)>0,0,1)*Y22 -> 0 | AM22: =IF(SUM($AH22:AL22)>0,0,1)*Z22 -> 1 | AN22: =IF(SUM($AH22:AM22)>0,0,1)*AA22 -> 0 | AO22: =IF(SUM($AH22:AN22)>0,0,1)*AB22 -> 0 | AP22: =IF(SUM($AH22:AO22)>0,0,1)*AC22 -> 0 | AQ22: =IF(SUM($AH22:AP22)>0,0,1)*AD22 -> 0 | AR22: =IF(SUM($AH22:AQ22)>0,0,1)*AE22 -> 0 | AS22: =IF(SUM($AH22:AR22)>0,0,1)*AF22 -> 0 | AT22: =IF(SUM($AH22:AS22)>0,0,1)*AG22 -> 0 | AU22: 1 | AV22: 1 | AW22: 0 | AX22: 1 | AY22: 0 | AZ22: 1 | BA22: 0 | BB22: 1 | BC22: 0 | BD22: XIV | BE22: 0.0145631068 | BF22: 0.02588988344 | BG22: 0 | BH22: 0 | BI22: 200398 | BJ22: =IF(BD21="CASH",1,(1-$BN$4)*IF(BD21="XIV",F22,IF(BD21="UVXY",I22,L22))) -> 6.176616122 | BK22: 4.03 | BL22: 1237785.548 | BM22: 1239141.792 | BN22: =IF(BD22="CASH",1,(1+$BN$4)*IF(BD22="XIV",F22,IF(BD22="UVXY",I22,L22))) -> 6.183383878 | BO22: 6.27 | BP22: 1256499.49 | BQ22: 16 | BR22: 1.25649949
A23: 2011-10-24 | B23: 29.26 | C23: 30.47 | D23: 29.75 | E23: 28.85 | F23: 6.34 | G23: 6.66 | H23: 0.05047318612 | I23: 6350872.98 | J23: 5717885.64 | K23: -0.09966934341 | L23: 9.57375 | M23: 10.05375 | N23: 0.05013709362 | O23: 0.009797468354 | P23: 0.9796684392 | Q23: -0.09948246118 | R23: 0.01116427432 | S23: =VLOOKUP(A23,'MACD SPYG'!$A$2:$G$1452,7,FALSE) -> 0.307533634 | T23: 1 | U23: 0 | V23: 0 | W23: 0 | X23: 0 | Y23: 0 | Z23: 1 | AA23: 0 | AB23: 0 | AC23: 0 | AD23: 0 | AE23: 0 | AF23: 0 | AG23: 1 | AH23: 0 | AI23: =IF(SUM($AH23:AH23)>0,0,1)*V23 -> 0 | AJ23: =IF(SUM($AH23:AI23)>0,0,1)*W23 -> 0 | AK23: =IF(SUM($AH23:AJ23)>0,0,1)*X23 -> 0 | AL23: =IF(SUM($AH23:AK23)>0,0,1)*Y23 -> 0 | AM23: =IF(SUM($AH23:AL23)>0,0,1)*Z23 -> 1 | AN23: =IF(SUM($AH23:AM23)>0,0,1)*AA23 -> 0 | AO23: =IF(SUM($AH23:AN23)>0,0,1)*AB23 -> 0 | AP23: =IF(SUM($AH23:AO23)>0,0,1)*AC23 -> 0 | AQ23: =IF(SUM($AH23:AP23)>0,0,1)*AD23 -> 0 | AR23: =IF(SUM($AH23:AQ23)>0,0,1)*AE23 -> 0 | AS23: =IF(SUM($AH23:AR23)>0,0,1)*AF23 -> 0 | AT23: =IF(SUM($AH23:AS23)>0,0,1)*AG23 -> 0 | AU23: 1 | AV23: 1 | AW23: 0 | AX23: 1 | AY23: 0 | AZ23: 1 | BA23: 0 | BB23: 1 | BC23: 0 | BD23: XIV | BE23: 0.05047318612 | BF23: 0.03785476958 | BG23: 0 | BH23: 0 | BI23: 200398 | BJ23: =IF(BD22="CASH",1,(1-$BN$4)*IF(BD22="XIV",F23,IF(BD22="UVXY",I23,L23))) -> 6.336528513 | BK23: 4.03 | BL23: 1269831.671 | BM23: 1271223.029 | BN23: =IF(BD23="CASH",1,(1+$BN$4)*IF(BD23="XIV",F23,IF(BD23="UVXY",I23,L23))) -> 6.343471487 | BO23: 6.66 | BP23: 1334654.71 | BQ23: 17 | BR23: 1.33465471
A24: 2011-10-25 | B24: 32.22 | C24: 32.36 | D24: 32.4 | E24: 30.25 | F24: 6.58 | G24: 6.21 | H24: -0.05623100304 | I24: 5870882.58 | J24: 6464870.7 | K24: 0.1011752683 | L24: 9.94625 | M24: 9.48375 | N24: -0.04649993716 | O24: -0.002170659598 | P24: 0.9602888087 | Q24: -0.06577266922 | R24: -0.01201201201 | S24: =VLOOKUP(A24,'MACD SPYG'!$A$2:$G$1452,7,FALSE) -> 0.2969999234 | T24: 1 | U24: 0 | V24: 0 | W24: 0 | X24: 0 | Y24: 0 | Z24: 1 | AA24: 0 | AB24: 0 | AC24: 0 | AD24: 0 | AE24: 0 | AF24: 0 | AG24: 1 | AH24: 0 | AI24: =IF(SUM($AH24:AH24)>0,0,1)*V24 -> 0 | AJ24: =IF(SUM($AH24:AI24)>0,0,1)*W24 -> 0 | AK24: =IF(SUM($AH24:AJ24)>0,0,1)*X24 -> 0 | AL24: =IF(SUM($AH24:AK24)>0,0,1)*Y24 -> 0 | AM24: =IF(SUM($AH24:AL24)>0,0,1)*Z24 -> 1 | AN24: =IF(SUM($AH24:AM24)>0,0,1)*AA24 -> 0 | AO24: =IF(SUM($AH24:AN24)>0,0,1)*AB24 -> 0 | AP24: =IF(SUM($AH24:AO24)>0,0,1)*AC24 -> 0 | AQ24: =IF(SUM($AH24:AP24)>0,0,1)*AD24 -> 0 | AR24: =IF(SUM($AH24:AQ24)>0,0,1)*AE24 -> 0 | AS24: =IF(SUM($AH24:AR24)>0,0,1)*AF24 -> 0 | AT24: =IF(SUM($AH24:AS24)>0,0,1)*AG24 -> 0 | AU24: 1 | AV24: 1 | AW24: 0 | AX24: 1 | AY24: 0 | AZ24: 1 | BA24: 0 | BB24: 1 | BC24: 0 | BD24: XIV | BE24: -0.05623100304 | BF24: -0.02279628295 | BG24: 0 | BH24: 0 | BI24: 200398 | BJ24: =IF(BD23="CASH",1,(1-$BN$4)*IF(BD23="XIV",F24,IF(BD23="UVXY",I24,L24))) -> 6.5763971 | BK24: 4.03 | BL24: 1317900.856 | BM24: 1319344.884 | BN24: =IF(BD24="CASH",1,(1+$BN$4)*IF(BD24="XIV",F24,IF(BD24="UVXY",I24,L24))) -> 6.5836029 | BO24: 6.21 | BP24: 1244475.61 | BQ24: 18 | BR24: 1.24447561
A25: 2011-10-26 | B25: 29.86 | C25: 30.94 | D25: 30.5 | E25: 29.2 | F25: 6.43 | G25: 6.45 | H25: 0.003110419907 | I25: 5948881.02 | J25: 5950470.988 | K25: 0.0002672718104 | L25: 9.625 | M25: 9.44625 | N25: -0.01857142857 | O25: 0.01743342516 | P25: 0.9956736712 | Q25: 0.1011619959 | R25: 0.03542673108 | S25: =VLOOKUP(A25,'MACD SPYG'!$A$2:$G$1452,7,FALSE) -> 0.266201588 | T25: 1 | U25: 0 | V25: 0 | W25: 0 | X25: 0 | Y25: 0 | Z25: 1 | AA25: 0 | AB25: 0 | AC25: 1 | AD25: 0 | AE25: 0 | AF25: 0 | AG25: 1 | AH25: 0 | AI25: =IF(SUM($AH25:AH25)>0,0,1)*V25 -> 0 | AJ25: =IF(SUM($AH25:AI25)>0,0,1)*W25 -> 0 | AK25: =IF(SUM($AH25:AJ25)>0,0,1)*X25 -> 0 | AL25: =IF(SUM($AH25:AK25)>0,0,1)*Y25 -> 0 | AM25: =IF(SUM($AH25:AL25)>0,0,1)*Z25 -> 1 | AN25: =IF(SUM($AH25:AM25)>0,0,1)*AA25 -> 0 | AO25: =IF(SUM($AH25:AN25)>0,0,1)*AB25 -> 0 | AP25: =IF(SUM($AH25:AO25)>0,0,1)*AC25 -> 0 | AQ25: =IF(SUM($AH25:AP25)>0,0,1)*AD25 -> 0 | AR25: =IF(SUM($AH25:AQ25)>0,0,1)*AE25 -> 0 | AS25: =IF(SUM($AH25:AR25)>0,0,1)*AF25 -> 0 | AT25: =IF(SUM($AH25:AS25)>0,0,1)*AG25 -> 0 | AU25: 1 | AV25: 1 | AW25: 0 | AX25: 1 | AY25: 0 | AZ25: 1 | BA25: 0 | BB25: 1 | BC25: 0 | BD25: XIV | BE25: 0.003110419907 | BF25: 0.1057539463 | BG25: 0 | BH25: 0 | BI25: 200398 | BJ25: =IF(BD24="CASH",1,(1-$BN$4)*IF(BD24="XIV",F25,IF(BD24="UVXY",I25,L25))) -> 6.426479233 | BK25: 4.03 | BL25: 1287857.615 | BM25: 1289268.725 | BN25: =IF(BD25="CASH",1,(1+$BN$4)*IF(BD25="XIV",F25,IF(BD25="UVXY",I25,L25))) -> 6.433520767 | BO25: 6.45 | BP25: 1292571.13 | BQ25: 19 | BR25: 1.29257113
A26: 2011-10-27 | B26: 25.46 | C26: 27.03 | D26: 26.2 | E26: 25.8 | F26: 7.11 | G26: 7.3 | H26: 0.02672292546 | I26: 4718905.62 | J26: 4364912.7 | K26: -0.0750158932 | L26: 10.105 | M26: 10.2075 | N26: 0.01014349332 | O26: -0.001332360207 | P26: 0.9650937298 | Q26: -0.07324643079 | R26: 0.1023255814 | S26: =VLOOKUP(A26,'MACD SPYG'!$A$2:$G$1452,7,FALSE) -> 0.3219887531 | T26: 1 | U26: 0 | V26: 0 | W26: 0 | X26: 0 | Y26: 0 | Z26: 1 | AA26: 0 | AB26: 0 | AC26: 0 | AD26: 0 | AE26: 0 | AF26: 0 | AG26: 1 | AH26: 0 | AI26: =IF(SUM($AH26:AH26)>0,0,1)*V26 -> 0 | AJ26: =IF(SUM($AH26:AI26)>0,0,1)*W26 -> 0 | AK26: =IF(SUM($AH26:AJ26)>0,0,1)*X26 -> 0 | AL26: =IF(SUM($AH26:AK26)>0,0,1)*Y26 -> 0 | AM26: =IF(SUM($AH26:AL26)>0,0,1)*Z26 -> 1 | AN26: =IF(SUM($AH26:AM26)>0,0,1)*AA26 -> 0 | AO26: =IF(SUM($AH26:AN26)>0,0,1)*AB26 -> 0 | AP26: =IF(SUM($AH26:AO26)>0,0,1)*AC26 -> 0 | AQ26: =IF(SUM($AH26:AP26)>0,0,1)*AD26 -> 0 | AR26: =IF(SUM($AH26:AQ26)>0,0,1)*AE26 -> 0 | AS26: =IF(SUM($AH26:AR26)>0,0,1)*AF26 -> 0 | AT26: =IF(SUM($AH26:AS26)>0,0,1)*AG26 -> 0 | AU26: 1 | AV26: 1 | AW26: 0 | AX26: 1 | AY26: 0 | AZ26: 1 | BA26: 0 | BB26: 1 | BC26: 0 | BD26: XIV | BE26: 0.02672292546 | BF26: 0.007032328925 | BG26: 0 | BH26: 0 | BI26: 200398 | BJ26: =IF(BD25="CASH",1,(1-$BN$4)*IF(BD25="XIV",F26,IF(BD25="UVXY",I26,L26))) -> 7.106106897 | BK26: 4.03 | BL26: 1424053.64 | BM26: 1425613.98 | BN26: =IF(BD26="CASH",1,(1+$BN$4)*IF(BD26="XIV",F26,IF(BD26="UVXY",I26,L26))) -> 7.113893103 | BO26: 7.3 | BP26: 1462909.43 | BQ26: 20 | BR26: 1.46290943
A27: 2011-10-28 | B27: 24.53 | C27: 26.52 | D27: 26.25 | E27: 25.55 | F27: 7.16 | G27: 7.33 | H27: 0.02374301676 | I27: 4523909.52 | J27: 4286914.26 | K27: -0.0523872679 | L27: 10.02 | M27: 10.24125 | N27: 0.02208083832 | O27: -0.01511982958 | P27: 0.9419163892 | Q27: -0.1473543202 | R27: -0.01917808219 | S27: =VLOOKUP(A27,'MACD SPYG'!$A$2:$G$1452,7,FALSE) -> 0.3371284403 | T27: 1 | U27: 0 | V27: 0 | W27: 0 | X27: 0 | Y27: 0 | Z27: 1 | AA27: 0 | AB27: 0 | AC27: 0 | AD27: 0 | AE27: 0 | AF27: 0 | AG27: 0 | AH27: 0 | AI27: =IF(SUM($AH27:AH27)>0,0,1)*V27 -> 0 | AJ27: =IF(SUM($AH27:AI27)>0,0,1)*W27 -> 0 | AK27: =IF(SUM($AH27:AJ27)>0,0,1)*X27 -> 0 | AL27: =IF(SUM($AH27:AK27)>0,0,1)*Y27 -> 0 | AM27: =IF(SUM($AH27:AL27)>0,0,1)*Z27 -> 1 | AN27: =IF(SUM($AH27:AM27)>0,0,1)*AA27 -> 0 | AO27: =IF(SUM($AH27:AN27)>0,0,1)*AB27 -> 0 | AP27: =IF(SUM($AH27:AO27)>0,0,1)*AC27 -> 0 | AQ27: =IF(SUM($AH27:AP27)>0,0,1)*AD27 -> 0 | AR27: =IF(SUM($AH27:AQ27)>0,0,1)*AE27 -> 0 | AS27: =IF(SUM($AH27:AR27)>0,0,1)*AF27 -> 0 | AT27: =IF(SUM($AH27:AS27)>0,0,1)*AG27 -> 0 | AU27: 1 | AV27: 1 | AW27: 0 | AX27: 1 | AY27: 0 | AZ27: 1 | BA27: 0 | BB27: 1 | BC27: 0 | BD27: XIV | BE27: 0.02374301676 | BF27: -0.02094966186 | BG27: 0 | BH27: 0 | BI27: 200398 | BJ27: =IF(BD26="CASH",1,(1-$BN$4)*IF(BD26="XIV",F27,IF(BD26="UVXY",I27,L27))) -> 7.156079519 | BK27: 4.03 | BL27: 1434068.054 | BM27: 1435639.366 | BN27: =IF(BD27="CASH",1,(1+$BN$4)*IF(BD27="XIV",F27,IF(BD27="UVXY",I27,L27))) -> 7.163920481 | BO27: 7.33 | BP27: 1468921.37 | BQ27: 21 | BR27: 1.46892137
A28: 2011-10-31 | B28: 29.96 | C28: 30.37 | D28: 29.95 | E28: 28.2 | F28: 7.01 | G28: 6.56 | H28: -0.06419400856 | I28: 4691906.16 | J28: 5198896.02 | K28: 0.108056266 | L28: 9.9675 | M28: 9.73375 | N28: -0.02345121645 | O28: -0.03764748858 | P28: 0.9249622926 | Q28: -0.03652788688 | R28: -0.04365620737 | S28: =VLOOKUP(A28,'MACD SPYG'!$A$2:$G$1452,7,FALSE) -> 0.3105507265 | T28: 1 | U28: 0 | V28: 0 | W28: 0 | X28: 0 | Y28: 0 | Z28: 1 | AA28: 0 | AB28: 0 | AC28: 0 | AD28: 0 | AE28: 0 | AF28: 0 | AG28: 0 | AH28: 0 | AI28: =IF(SUM($AH28:AH28)>0,0,1)*V28 -> 0 | AJ28: =IF(SUM($AH28:AI28)>0,0,1)*W28 -> 0 | AK28: =IF(SUM($AH28:AJ28)>0,0,1)*X28 -> 0 | AL28: =IF(SUM($AH28:AK28)>0,0,1)*Y28 -> 0 | AM28: =IF(SUM($AH28:AL28)>0,0,1)*Z28 -> 1 | AN28: =IF(SUM($AH28:AM28)>0,0,1)*AA28 -> 0 | AO28: =IF(SUM($AH28:AN28)>0,0,1)*AB28 -> 0 | AP28: =IF(SUM($AH28:AO28)>0,0,1)*AC28 -> 0 | AQ28: =IF(SUM($AH28:AP28)>0,0,1)*AD28 -> 0 | AR28: =IF(SUM($AH28:AQ28)>0,0,1)*AE28 -> 0 | AS28: =IF(SUM($AH28:AR28)>0,0,1)*AF28 -> 0 | AT28: =IF(SUM($AH28:AS28)>0,0,1)*AG28 -> 0 | AU28: 1 | AV28: 1 | AW28: 0 | AX28: 1 | AY28: 0 | AZ28: 1 | BA28: 0 | BB28: 1 | BC28: 0 | BD28: XIV | BE28: -0.06419400856 | BF28: -0.2034470512 | BG28: 0 | BH28: 0 | BI28: 200398 | BJ28: =IF(BD27="CASH",1,(1-$BN$4)*IF(BD27="XIV",F28,IF(BD27="UVXY",I28,L28))) -> 7.006161652 | BK28: 4.03 | BL28: 1404024.813 | BM28: 1405563.207 | BN28: =IF(BD28="CASH",1,(1+$BN$4)*IF(BD28="XIV",F28,IF(BD28="UVXY",I28,L28))) -> 7.013838348 | BO28: 6.56 | BP28: 1314614.91 | BQ28: 22 | BR28: 1.31461491
A29: 2011-11-01 | B29: 34.77 | C29: 34.02 | D29: 33.95 | E29: 31.25 | F29: 5.59 | G29: 5.62 | H29: 0.005366726297 | I29: 6779864.4 | J29: 6722865.54 | K29: -0.008407079646 | L29: 9.03125 | M29: 8.98 | N29: -0.005674740484 | O29: 0.01885074415 | P29: 0.9864998354 | Q29: 0.221361598 | R29: -0.1478658537 | S29: =VLOOKUP(A29,'MACD SPYG'!$A$2:$G$1452,7,FALSE) -> 0.1244940826 | T29: 1 | U29: 0 | V29: 0 | W29: 0 | X29: 0 | Y29: 0 | Z29: 1 | AA29: 0 | AB29: 0 | AC29: 1 | AD29: 0 | AE29: 0 | AF29: 0 | AG29: 1 | AH29: 0 | AI29: =IF(SUM($AH29:AH29)>0,0,1)*V29 -> 0 | AJ29: =IF(SUM($AH29:AI29)>0,0,1)*W29 -> 0 | AK29: =IF(SUM($AH29:AJ29)>0,0,1)*X29 -> 0 | AL29: =IF(SUM($AH29:AK29)>0,0,1)*Y29 -> 0 | AM29: =IF(SUM($AH29:AL29)>0,0,1)*Z29 -> 1 | AN29: =IF(SUM($AH29:AM29)>0,0,1)*AA29 -> 0 | AO29: =IF(SUM($AH29:AN29)>0,0,1)*AB29 -> 0 | AP29: =IF(SUM($AH29:AO29)>0,0,1)*AC29 -> 0 | AQ29: =IF(SUM($AH29:AP29)>0,0,1)*AD29 -> 0 | AR29: =IF(SUM($AH29:AQ29)>0,0,1)*AE29 -> 0 | AS29: =IF(SUM($AH29:AR29)>0,0,1)*AF29 -> 0 | AT29: =IF(SUM($AH29:AS29)>0,0,1)*AG29 -> 0 | AU29: 1 | AV29: 1 | AW29: 0 | AX29: 1 | AY29: 0 | AZ29: 0 | BA29: 0 | BB29: 0 | BC29: 1 | BD29: TQQQ | BE29: -0.005674740484 | BF29: 0.02184718125 | BG29: 1 | BH29: 1 | BI29: 123902 | BJ29: =IF(BD28="CASH",1,(1-$BN$4)*IF(BD28="XIV",F29,IF(BD28="UVXY",I29,L29))) -> 5.586939178 | BK29: 2.873407801 | BL29: 1119615.467 | BM29: 1119605.517 | BN29: =IF(BD29="CASH",1,(1+$BN$4)*IF(BD29="XIV",F29,IF(BD29="UVXY",I29,L29))) -> 9.036195089 | BO29: 8.98 | BP29: 1112642.833 | BQ29: 23 | BR29: 1.112642833
A30: 2011-11-02 | B30: 32.74 | C30: 32.88 | D30: 32.7 | E30: 30.4 | F30: 5.82 | G30: 5.78 | H30: -0.006872852234 | I30: 6239875.2 | J30: 6307673.844 | K30: 0.01086538462 | L30: 9.23875 | M30: 9.20125 | N30: -0.004058990664 | O30: 0.04282721649 | P30: 1.022045855 | Q30: 0.1605473965 | R30: 0.03558718861 | S30: =VLOOKUP(A30,'MACD SPYG'!$A$2:$G$1452,7,FALSE) -> 0.05854681986 | T30: 1 | U30: 0 | V30: 0 | W30: 0 | X30: 0 | Y30: 0 | Z30: 1 | AA30: 0 | AB30: 0 | AC30: 1 | AD30: 0 | AE30: 0 | AF30: 0 | AG30: 1 | AH30: 0 | AI30: =IF(SUM($AH30:AH30)>0,0,1)*V30 -> 0 | AJ30: =IF(SUM($AH30:AI30)>0,0,1)*W30 -> 0 | AK30: =IF(SUM($AH30:AJ30)>0,0,1)*X30 -> 0 | AL30: =IF(SUM($AH30:AK30)>0,0,1)*Y30 -> 0 | AM30: =IF(SUM($AH30:AL30)>0,0,1)*Z30 -> 1 | AN30: =IF(SUM($AH30:AM30)>0,0,1)*AA30 -> 0 | AO30: =IF(SUM($AH30:AN30)>0,0,1)*AB30 -> 0 | AP30: =IF(SUM($AH30:AO30)>0,0,1)*AC30 -> 0 | AQ30: =IF(SUM($AH30:AP30)>0,0,1)*AD30 -> 0 | AR30: =IF(SUM($AH30:AQ30)>0,0,1)*AE30 -> 0 | AS30: =IF(SUM($AH30:AR30)>0,0,1)*AF30 -> 0 | AT30: =IF(SUM($AH30:AS30)>0,0,1)*AG30 -> 0 | AU30: 1 | AV30: 1 | AW30: 0 | AX30: 1 | AY30: 0 | AZ30: 1 | BA30: 0 | BB30: 1 | BC30: 0 | BD30: XIV | BE30: -0.006872852234 | BF30: 0.02233673639 | BG30: 1 | BH30: 1 | BI30: 196467 | BJ30: =IF(BD29="CASH",1,(1-$BN$4)*IF(BD29="XIV",F30,IF(BD29="UVXY",I30,L30))) -> 9.233691293 | BK30: 1.708990607 | BL30: 1144075.692 | BM30: 1144065.742 | BN30: =IF(BD30="CASH",1,(1+$BN$4)*IF(BD30="XIV",F30,IF(BD30="UVXY",I30,L30))) -> 5.823186759 | BO30: 5.78 | BP30: 1135580.969 | BQ30: 24 | BR30: 1.135580969
A31: 2011-11-03 | B31: 30.5 | C31: 31.62 | D31: 30.95 | E31: 29.25 | F31: 5.95 | G31: 6.07 | H31: 0.02016806723 | I31: 5942881.14 | J31: 5715785.682 | K31: -0.03821302373 | L31: 9.42625 | M31: 9.76125 | N31: 0.03553905318 | O31: 0.02355363753 | P31: 0.9957420925 | Q31: -0.05838366408 | R31: 0.02941176471 | S31: =VLOOKUP(A31,'MACD SPYG'!$A$2:$G$1452,7,FALSE) -> 0.03100041413 | T31: 1 | U31: 0 | V31: 0 | W31: 0 | X31: 0 | Y31: 0 | Z31: 1 | AA31: 0 | AB31: 0 | AC31: 0 | AD31: 0 | AE31: 0 | AF31: 0 | AG31: 1 | AH31: 0 | AI31: =IF(SUM($AH31:AH31)>0,0,1)*V31 -> 0 | AJ31: =IF(SUM($AH31:AI31)>0,0,1)*W31 -> 0 | AK31: =IF(SUM($AH31:AJ31)>0,0,1)*X31 -> 0 | AL31: =IF(SUM($AH31:AK31)>0,0,1)*Y31 -> 0 | AM31: =IF(SUM($AH31:AL31)>0,0,1)*Z31 -> 1 | AN31: =IF(SUM($AH31:AM31)>0,0,1)*AA31 -> 0 | AO31: =IF(SUM($AH31:AN31)>0,0,1)*AB31 -> 0 | AP31: =IF(SUM($AH31:AO31)>0,0,1)*AC31 -> 0 | AQ31: =IF(SUM($AH31:AP31)>0,0,1)*AD31 -> 0 | AR31: =IF(SUM($AH31:AQ31)>0,0,1)*AE31 -> 0 | AS31: =IF(SUM($AH31:AR31)>0,0,1)*AF31 -> 0 | AT31: =IF(SUM($AH31:AS31)>0,0,1)*AG31 -> 0 | AU31: 1 | AV31: 1 | AW31: 0 | AX31: 1 | AY31: 0 | AZ31: 1 | BA31: 0 | BB31: 1 | BC31: 0 | BD31: XIV | BE31: 0.02016806723 | BF31: -0.00504200944 | BG31: 0 | BH31: 0 | BI31: 196467 | BJ31: =IF(BD30="CASH",1,(1-$BN$4)*IF(BD30="XIV",F31,IF(BD30="UVXY",I31,L31))) -> 5.946742059 | BK31: 1.708990607 | BL31: 1168340.281 | BM31: 1169620.437 | BN31: =IF(BD31="CASH",1,(1+$BN$4)*IF(BD31="XIV",F31,IF(BD31="UVXY",I31,L31))) -> 5.953257941 | BO31: 6.07 | BP31: 1192556.399 | BQ31: 25 | BR31: 1.192556399
A32: 2011-11-04 | B32: 30.16 | C32: 31.23 | D32: 31.4 | E32: 29.85 | F32: 5.92 | G32: 5.93 | H32: 0.001689189189 | I32: 6005879.88 | J32: 5930881.38 | K32: -0.01248751249 | L32: 9.6175 | M32: 9.61 | N32: -0.0007798284377 | O32: 0.007258191459 | P32: 0.9645793801 | Q32: -0.06841783751 | R32: -0.02471169687 | S32: =VLOOKUP(A32,'MACD SPYG'!$A$2:$G$1452,7,FALSE) -> 0.01294187758 | T32: 1 | U32: 0 | V32: 0 | W32: 0 | X32: 0 | Y32: 0 | Z32: 1 | AA32: 0 | AB32: 0 | AC32: 0 | AD32: 0 | AE32: 0 | AF32: 0 | AG32: 1 | AH32: 0 | AI32: =IF(SUM($AH32:AH32)>0,0,1)*V32 -> 0 | AJ32: =IF(SUM($AH32:AI32)>0,0,1)*W32 -> 0 | AK32: =IF(SUM($AH32:AJ32)>0,0,1)*X32 -> 0 | AL32: =IF(SUM($AH32:AK32)>0,0,1)*Y32 -> 0 | AM32: =IF(SUM($AH32:AL32)>0,0,1)*Z32 -> 1 | AN32: =IF(SUM($AH32:AM32)>0,0,1)*AA32 -> 0 | AO32: =IF(SUM($AH32:AN32)>0,0,1)*AB32 -> 0 | AP32: =IF(SUM($AH32:AO32)>0,0,1)*AC32 -> 0 | AQ32: =IF(SUM($AH32:AP32)>0,0,1)*AD32 -> 0 | AR32: =IF(SUM($AH32:AQ32)>0,0,1)*AE32 -> 0 | AS32: =IF(SUM($AH32:AR32)>0,0,1)*AF32 -> 0 | AT32: =IF(SUM($AH32:AS32)>0,0,1)*AG32 -> 0 | AU32: 1 | AV32: 1 | AW32: 0 | AX32: 1 | AY32: 0 | AZ32: 1 | BA32: 0 | BB32: 1 | BC32: 0 | BD32: XIV | BE32: 0.001689189189 | BF32: 0.001689186709 | BG32: 0 | BH32: 0 | BI32: 196467 | BJ32: =IF(BD31="CASH",1,(1-$BN$4)*IF(BD31="XIV",F32,IF(BD31="UVXY",I32,L32))) -> 5.916758485 | BK32: 1.708990607 | BL32: 1162449.498 | BM32: 1163723.2 | BN32: =IF(BD32="CASH",1,(1+$BN$4)*IF(BD32="XIV",F32,IF(BD32="UVXY",I32,L32))) -> 5.923241515 | BO32: 5.93 | BP32: 1165051.019 | BQ32: 26 | BR32: 1.165051019
A33: 2011-11-07 | B33: 29.85 | C33: 31.38 | D33: 31.1 | E33: 29.75 | F33: 5.93 | G33: 5.99 | H33: 0.01011804384 | I33: 5996880.06 | J33: 5821683.564 | K33: -0.0292146073 | L33: 9.61125 | M33: 9.82375 | N33: 0.02210950709 | O33: -0.01206542265 | P33: 0.9657380724 | Q33: -0.01114754098 | R33: 0 | S33: =VLOOKUP(A33,'MACD SPYG'!$A$2:$G$1452,7,FALSE) -> 0.002385363788 | T33: 1 | U33: 0 | V33: 0 | W33: 0 | X33: 0 | Y33: 0 | Z33: 1 | AA33: 0 | AB33: 0 | AC33: 0 | AD33: 0 | AE33: 0 | AF33: 0 | AG33: 0 | AH33: 0 | AI33: =IF(SUM($AH33:AH33)>0,0,1)*V33 -> 0 | AJ33: =IF(SUM($AH33:AI33)>0,0,1)*W33 -> 0 | AK33: =IF(SUM($AH33:AJ33)>0,0,1)*X33 -> 0 | AL33: =IF(SUM($AH33:AK33)>0,0,1)*Y33 -> 0 | AM33: =IF(SUM($AH33:AL33)>0,0,1)*Z33 -> 1 | AN33: =IF(SUM($AH33:AM33)>0,0,1)*AA33 -> 0 | AO33: =IF(SUM($AH33:AN33)>0,0,1)*AB33 -> 0 | AP33: =IF(SUM($AH33:AO33)>0,0,1)*AC33 -> 0 | AQ33: =IF(SUM($AH33:AP33)>0,0,1)*AD33 -> 0 | AR33: =IF(SUM($AH33:AQ33)>0,0,1)*AE33 -> 0 | AS33: =IF(SUM($AH33:AR33)>0,0,1)*AF33 -> 0 | AT33: =IF(SUM($AH33:AS33)>0,0,1)*AG33 -> 0 | AU33: 1 | AV33: 1 | AW33: 0 | AX33: 1 | AY33: 0 | AZ33: 1 | BA33: 0 | BB33: 1 | BC33: 0 | BD33: XIV | BE33: 0.01011804384 | BF33: 0.0269814107 | BG33: 0 | BH33: 0 | BI33: 196467 | BJ33: =IF(BD32="CASH",1,(1-$BN$4)*IF(BD32="XIV",F33,IF(BD32="UVXY",I33,L33))) -> 5.92675301 | BK33: 1.708990607 | BL33: 1164413.093 | BM33: 1165688.945 | BN33: =IF(BD33="CASH",1,(1+$BN$4)*IF(BD33="XIV",F33,IF(BD33="UVXY",I33,L33))) -> 5.93324699 | BO33: 5.99 | BP33: 1176839.039 | BQ33: 27 | BR33: 1.176839039
A34: 2011-11-08 | B34: 27.48 | C34: 29.52 | D34: 28.9 | E34: 28.35 | F34: 6.09 | G34: 6.27 | H34: 0.02955665025 | I34: 5663886.72 | J34: 5272994.538 | K34: -0.06901483051 | L34: 10.0325 | M34: 10.15125 | N34: 0.01183653127 | O34: -0.01452160285 | P34: 0.9512428298 | Q34: -0.01027851459 | R34: 0.01669449082 | S34: =VLOOKUP(A34,'MACD SPYG'!$A$2:$G$1452,7,FALSE) -> 0.02579693824 | T34: 1 | U34: 0 | V34: 0 | W34: 0 | X34: 0 | Y34: 0 | Z34: 1 | AA34: 0 | AB34: 0 | AC34: 0 | AD34: 0 | AE34: 0 | AF34: 0 | AG34: 0 | AH34: 0 | AI34: =IF(SUM($AH34:AH34)>0,0,1)*V34 -> 0 | AJ34: =IF(SUM($AH34:AI34)>0,0,1)*W34 -> 0 | AK34: =IF(SUM($AH34:AJ34)>0,0,1)*X34 -> 0 | AL34: =IF(SUM($AH34:AK34)>0,0,1)*Y34 -> 0 | AM34: =IF(SUM($AH34:AL34)>0,0,1)*Z34 -> 1 | AN34: =IF(SUM($AH34:AM34)>0,0,1)*AA34 -> 0 | AO34: =IF(SUM($AH34:AN34)>0,0,1)*AB34 -> 0 | AP34: =IF(SUM($AH34:AO34)>0,0,1)*AC34 -> 0 | AQ34: =IF(SUM($AH34:AP34)>0,0,1)*AD34 -> 0 | AR34: =IF(SUM($AH34:AQ34)>0,0,1)*AE34 -> 0 | AS34: =IF(SUM($AH34:AR34)>0,0,1)*AF34 -> 0 | AT34: =IF(SUM($AH34:AS34)>0,0,1)*AG34 -> 0 | AU34: 1 | AV34: 1 | AW34: 0 | AX34: 1 | AY34: 0 | AZ34: 1 | BA34: 0 | BB34: 1 | BC34: 0 | BD34: XIV | BE34: 0.02955665025 | BF34: -0.04702944068 | BG34: 0 | BH34: 0 | BI34: 196467 | BJ34: =IF(BD33="CASH",1,(1-$BN$4)*IF(BD33="XIV",F34,IF(BD33="UVXY",I34,L34))) -> 6.086665401 | BK34: 1.708990607 | BL34: 1195830.6 | BM34: 1197140.878 | BN34: =IF(BD34="CASH",1,(1+$BN$4)*IF(BD34="XIV",F34,IF(BD34="UVXY",I34,L34))) -> 6.093334599 | BO34: 6.27 | BP34: 1231849.799 | BQ34: 28 | BR34: 1.231849799
A35: 2011-11-09 | B35: 36.16 | C35: 35.49 | D35: 36.45 | E35: 33.45 | F35: 5.81 | G35: 5.09 | H35: -0.1239242685 | I35: 6062878.74 | J35: 7226855.46 | K35: 0.1919841663 | L35: 9.56125 | M35: 9.10125 | N35: -0.04811086417 | O35: -0.02857435785 | P35: 0.9308943089 | Q35: -0.07939698492 | R35: -0.07336523126 | S35: =VLOOKUP(A35,'MACD SPYG'!$A$2:$G$1452,7,FALSE) -> -0.01375017196 | T35: 1 | U35: 0 | V35: 0 | W35: 0 | X35: 0 | Y35: 0 | Z35: 1 | AA35: 0 | AB35: 0 | AC35: 0 | AD35: 0 | AE35: 0 | AF35: 0 | AG35: 0 | AH35: 0 | AI35: =IF(SUM($AH35:AH35)>0,0,1)*V35 -> 0 | AJ35: =IF(SUM($AH35:AI35)>0,0,1)*W35 -> 0 | AK35: =IF(SUM($AH35:AJ35)>0,0,1)*X35 -> 0 | AL35: =IF(SUM($AH35:AK35)>0,0,1)*Y35 -> 0 | AM35: =IF(SUM($AH35:AL35)>0,0,1)*Z35 -> 1 | AN35: =IF(SUM($AH35:AM35)>0,0,1)*AA35 -> 0 | AO35: =IF(SUM($AH35:AN35)>0,0,1)*AB35 -> 0 | AP35: =IF(SUM($AH35:AO35)>0,0,1)*AC35 -> 0 | AQ35: =IF(SUM($AH35:AP35)>0,0,1)*AD35 -> 0 | AR35: =IF(SUM($AH35:AQ35)>0,0,1)*AE35 -> 0 | AS35: =IF(SUM($AH35:AR35)>0,0,1)*AF35 -> 0 | AT35: =IF(SUM($AH35:AS35)>0,0,1)*AG35 -> 0 | AU35: 1 | AV35: 1 | AW35: 0 | AX35: 1 | AY35: 0 | AZ35: 0 | BA35: 0 | BB35: 0 | BC35: 1 | BD35: TQQQ | BE35: -0.04811086417 | BF35: -0.02134498775 | BG35: 1 | BH35: 1 | BI35: 119253 | BJ35: =IF(BD34="CASH",1,(1-$BN$4)*IF(BD34="XIV",F35,IF(BD34="UVXY",I35,L35))) -> 5.806818716 | BK35: 7.941114694 | BL35: 1140849.962 | BM35: 1140840.012 | BN35: =IF(BD35="CASH",1,(1+$BN$4)*IF(BD35="XIV",F35,IF(BD35="UVXY",I35,L35))) -> 9.566485293 | BO35: 9.10125 | BP35: 1085359.307 | BQ35: 29 | BR35: 1.085359307
A36: 2011-11-10 | B36: 32.81 | C36: 33.75 | D36: 33.45 | E36: 31.5 | F36: 5.38 | G36: 5.39 | H36: 0.001858736059 | I36: 6374872.5 | J36: 6311873.76 | K36: -0.009882352941 | L36: 9.3675 | M36: 9.06375 | N36: -0.03242594075 | O36: 0.02133655662 | P36: 1.018878557 | Q36: 0.3158660844 | R36: 0.05697445972 | S36: =VLOOKUP(A36,'MACD SPYG'!$A$2:$G$1452,7,FALSE) -> -0.06193583387 | T36: 1 | U36: 0 | V36: 0 | W36: 0 | X36: 0 | Y36: 0 | Z36: 1 | AA36: 0 | AB36: 0 | AC36: 1 | AD36: 0 | AE36: 0 | AF36: 0 | AG36: 1 | AH36: 0 | AI36: =IF(SUM($AH36:AH36)>0,0,1)*V36 -> 0 | AJ36: =IF(SUM($AH36:AI36)>0,0,1)*W36 -> 0 | AK36: =IF(SUM($AH36:AJ36)>0,0,1)*X36 -> 0 | AL36: =IF(SUM($AH36:AK36)>0,0,1)*Y36 -> 0 | AM36: =IF(SUM($AH36:AL36)>0,0,1)*Z36 -> 1 | AN36: =IF(SUM($AH36:AM36)>0,0,1)*AA36 -> 0 | AO36: =IF(SUM($AH36:AN36)>0,0,1)*AB36 -> 0 | AP36: =IF(SUM($AH36:AO36)>0,0,1)*AC36 -> 0 | AQ36: =IF(SUM($AH36:AP36)>0,0,1)*AD36 -> 0 | AR36: =IF(SUM($AH36:AQ36)>0,0,1)*AE36 -> 0 | AS36: =IF(SUM($AH36:AR36)>0,0,1)*AF36 -> 0 | AT36: =IF(SUM($AH36:AS36)>0,0,1)*AG36 -> 0 | AU36: 1 | AV36: 1 | AW36: 0 | AX36: 1 | AY36: 0 | AZ36: 1 | BA36: 0 | BB36: 1 | BC36: 0 | BD36: XIV | BE36: 0.001858736059 | BF36: 0.04089214812 | BG36: 1 | BH36: 1 | BI36: 207412 | BJ36: =IF(BD35="CASH",1,(1-$BN$4)*IF(BD35="XIV",F36,IF(BD35="UVXY",I36,L36))) -> 9.362370796 | BK36: 1.233910619 | BL36: 1116498.746 | BM36: 1116488.796 | BN36: =IF(BD36="CASH",1,(1+$BN$4)*IF(BD36="XIV",F36,IF(BD36="UVXY",I36,L36))) -> 5.382945836 | BO36: 5.39 | BP36: 1117951.914 | BQ36: 30 | BR36: 1.117951914
A37: 2011-11-11 | B37: 30.04 | C37: 31.6 | D37: 31.4 | E37: 30.2 | F37: 5.6 | G37: 5.61 | H37: 0.001785714286 | I37: 5843883.12 | J37: 5785864.28 | K37: -0.009928131417 | L37: 9.32125 | M37: 9.5725 | N37: 0.02695453936 | O37: 0.005178304506 | P37: 0.9721481481 | Q37: -0.09264380531 | R37: 0.03896103896 | S37: =VLOOKUP(A37,'MACD SPYG'!$A$2:$G$1452,7,FALSE) -> -0.05862394973 | T37: 1 | U37: 0 | V37: 0 | W37: 0 | X37: 0 | Y37: 0 | Z37: 1 | AA37: 0 | AB37: 0 | AC37: 0 | AD37: 0 | AE37: 0 | AF37: 0 | AG37: 1 | AH37: 0 | AI37: =IF(SUM($AH37:AH37)>0,0,1)*V37 -> 0 | AJ37: =IF(SUM($AH37:AI37)>0,0,1)*W37 -> 0 | AK37: =IF(SUM($AH37:AJ37)>0,0,1)*X37 -> 0 | AL37: =IF(SUM($AH37:AK37)>0,0,1)*Y37 -> 0 | AM37: =IF(SUM($AH37:AL37)>0,0,1)*Z37 -> 1 | AN37: =IF(SUM($AH37:AM37)>0,0,1)*AA37 -> 0 | AO37: =IF(SUM($AH37:AN37)>0,0,1)*AB37 -> 0 | AP37: =IF(SUM($AH37:AO37)>0,0,1)*AC37 -> 0 | AQ37: =IF(SUM($AH37:AP37)>0,0,1)*AD37 -> 0 | AR37: =IF(SUM($AH37:AQ37)>0,0,1)*AE37 -> 0 | AS37: =IF(SUM($AH37:AR37)>0,0,1)*AF37 -> 0 | AT37: =IF(SUM($AH37:AS37)>0,0,1)*AG37 -> 0 | AU37: 1 | AV37: 1 | AW37: 0 | AX37: 1 | AY37: 0 | AZ37: 1 | BA37: 0 | BB37: 1 | BC37: 0 | BD37: XIV | BE37: 0.001785714286 | BF37: -0.01249998673 | BG37: 0 | BH37: 0 | BI37: 207412 | BJ37: =IF(BD36="CASH",1,(1-$BN$4)*IF(BD36="XIV",F37,IF(BD36="UVXY",I37,L37))) -> 5.596933702 | BK37: 1.233910619 | BL37: 1160872.447 | BM37: 1162144.421 | BN37: =IF(BD37="CASH",1,(1+$BN$4)*IF(BD37="XIV",F37,IF(BD37="UVXY",I37,L37))) -> 5.603066298 | BO37: 5.61 | BP37: 1163582.554 | BQ37: 31 | BR37: 1.163582554
A38: 2011-11-14 | B38: 31.13 | C38: 32.72 | D38: 32.1 | E38: 30.75 | F38: 5.53 | G38: 5.47 | H38: -0.01084990958 | I38: 5957880.84 | J38: 6062878.74 | K38: 0.01762336354 | L38: 9.51625 | M38: 9.41 | N38: -0.01116511231 | O38: -0.01839794154 | P38: 0.9506329114 | Q38: -0.08442548004 | R38: -0.01426024955 | S38: =VLOOKUP(A38,'MACD SPYG'!$A$2:$G$1452,7,FALSE) -> -0.04923957834 | T38: 1 | U38: 0 | V38: 0 | W38: 0 | X38: 0 | Y38: 0 | Z38: 1 | AA38: 0 | AB38: 0 | AC38: 0 | AD38: 0 | AE38: 0 | AF38: 0 | AG38: 0 | AH38: 0 | AI38: =IF(SUM($AH38:AH38)>0,0,1)*V38 -> 0 | AJ38: =IF(SUM($AH38:AI38)>0,0,1)*W38 -> 0 | AK38: =IF(SUM($AH38:AJ38)>0,0,1)*X38 -> 0 | AL38: =IF(SUM($AH38:AK38)>0,0,1)*Y38 -> 0 | AM38: =IF(SUM($AH38:AL38)>0,0,1)*Z38 -> 1 | AN38: =IF(SUM($AH38:AM38)>0,0,1)*AA38 -> 0 | AO38: =IF(SUM($AH38:AN38)>0,0,1)*AB38 -> 0 | AP38: =IF(SUM($AH38:AO38)>0,0,1)*AC38 -> 0 | AQ38: =IF(SUM($AH38:AP38)>0,0,1)*AD38 -> 0 | AR38: =IF(SUM($AH38:AQ38)>0,0,1)*AE38 -> 0 | AS38: =IF(SUM($AH38:AR38)>0,0,1)*AF38 -> 0 | AT38: =IF(SUM($AH38:AS38)>0,0,1)*AG38 -> 0 | AU38: 1 | AV38: 1 | AW38: 0 | AX38: 1 | AY38: 0 | AZ38: 1 | BA38: 0 | BB38: 1 | BC38: 0 | BD38: XIV | BE38: -0.01084990958 | BF38: -0.0271247448 | BG38: 0 | BH38: 0 | BI38: 207412 | BJ38: =IF(BD37="CASH",1,(1-$BN$4)*IF(BD37="XIV",F38,IF(BD37="UVXY",I38,L38))) -> 5.526972031 | BK38: 1.233910619 | BL38: 1146361.557 | BM38: 1147617.631 | BN38: =IF(BD38="CASH",1,(1+$BN$4)*IF(BD38="XIV",F38,IF(BD38="UVXY",I38,L38))) -> 5.533027969 | BO38: 5.47 | BP38: 1134544.874 | BQ38: 32 | BR38: 1.134544874
A39: 2011-11-15 | B39: 31.22 | C39: 32.52 | D39: 32.05 | E39: 30.7 | F39: 5.38 | G39: 5.53 | H39: 0.02788104089 | I39: 6281874.36 | J39: 5945881.08 | K39: -0.05348615091 | L39: 9.33875 | M39: 9.7125 | N39: 0.04002141614 | O39: -0.007981916268 | P39: 0.951405868 | Q39: 0.0362849534 | R39: -0.01645338208 | S39: =VLOOKUP(A39,'MACD SPYG'!$A$2:$G$1452,7,FALSE) -> -0.06897600688 | T39: 1 | U39: 0 | V39: 0 | W39: 0 | X39: 0 | Y39: 0 | Z39: 1 | AA39: 0 | AB39: 0 | AC39: 0 | AD39: 0 | AE39: 0 | AF39: 0 | AG39: 1 | AH39: 0 | AI39: =IF(SUM($AH39:AH39)>0,0,1)*V39 -> 0 | AJ39: =IF(SUM($AH39:AI39)>0,0,1)*W39 -> 0 | AK39: =IF(SUM($AH39:AJ39)>0,0,1)*X39 -> 0 | AL39: =IF(SUM($AH39:AK39)>0,0,1)*Y39 -> 0 | AM39: =IF(SUM($AH39:AL39)>0,0,1)*Z39 -> 1 | AN39: =IF(SUM($AH39:AM39)>0,0,1)*AA39 -> 0 | AO39: =IF(SUM($AH39:AN39)>0,0,1)*AB39 -> 0 | AP39: =IF(SUM($AH39:AO39)>0,0,1)*AC39 -> 0 | AQ39: =IF(SUM($AH39:AP39)>0,0,1)*AD39 -> 0 | AR39: =IF(SUM($AH39:AQ39)>0,0,1)*AE39 -> 0 | AS39: =IF(SUM($AH39:AR39)>0,0,1)*AF39 -> 0 | AT39: =IF(SUM($AH39:AS39)>0,0,1)*AG39 -> 0 | AU39: 1 | AV39: 1 | AW39: 0 | AX39: 1 | AY39: 0 | AZ39: 1 | BA39: 0 | BB39: 1 | BC39: 0 | BD39: XIV | BE39: 0.02788104089 | BF39: -0.001858734005 | BG39: 0 | BH39: 0 | BI39: 207412 | BJ39: =IF(BD38="CASH",1,(1-$BN$4)*IF(BD38="XIV",F39,IF(BD38="UVXY",I39,L39))) -> 5.377054164 | BK39: 1.233910619 | BL39: 1115266.792 | BM39: 1116488.796 | BN39: =IF(BD39="CASH",1,(1+$BN$4)*IF(BD39="XIV",F39,IF(BD39="UVXY",I39,L39))) -> 5.382945836 | BO39: 5.53 | BP39: 1146989.594 | BQ39: 33 | BR39: 1.146989594
A40: 2011-11-16 | B40: 33.51 | C40: 34.39 | D40: 33.36 | E40: 32.65 | F40: 5.37 | G40: 5.27 | H40: -0.01862197393 | I40: 6317873.64 | J40: 6521869.56 | K40: 0.03228869896 | L40: 9.505 | M40: 9.23375 | N40: -0.02853761178 | O40: -0.004935742707 | P40: 0.9600246002 | Q40: 0.002891101831 | R40: -0.02893309222 | S40: =VLOOKUP(A40,'MACD SPYG'!$A$2:$G$1452,7,FALSE) -> -0.0949238317 | T40: 1 | U40: 0 | V40: 0 | W40: 0 | X40: 0 | Y40: 0 | Z40: 1 | AA40: 0 | AB40: 0 | AC40: 0 | AD40: 0 | AE40: 0 | AF40: 0 | AG40: 1 | AH40: 0 | AI40: =IF(SUM($AH40:AH40)>0,0,1)*V40 -> 0 | AJ40: =IF(SUM($AH40:AI40)>0,0,1)*W40 -> 0 | AK40: =IF(SUM($AH40:AJ40)>0,0,1)*X40 -> 0 | AL40: =IF(SUM($AH40:AK40)>0,0,1)*Y40 -> 0 | AM40: =IF(SUM($AH40:AL40)>0,0,1)*Z40 -> 1 | AN40: =IF(SUM($AH40:AM40)>0,0,1)*AA40 -> 0 | AO40: =IF(SUM($AH40:AN40)>0,0,1)*AB40 -> 0 | AP40: =IF(SUM($AH40:AO40)>0,0,1)*AC40 -> 0 | AQ40: =IF(SUM($AH40:AP40)>0,0,1)*AD40 -> 0 | AR40: =IF(SUM($AH40:AQ40)>0,0,1)*AE40 -> 0 | AS40: =IF(SUM($AH40:AR40)>0,0,1)*AF40 -> 0 | AT40: =IF(SUM($AH40:AS40)>0,0,1)*AG40 -> 0 | AU40: 1 | AV40: 1 | AW40: 0 | AX40: 1 | AY40: 0 | AZ40: 1 | BA40: 0 | BB40: 1 | BC40: 0 | BD40: XIV | BE40: -0.01862197393 | BF40: -0.0297951253 | BG40: 0 | BH40: 0 | BI40: 207412 | BJ40: =IF(BD39="CASH",1,(1-$BN$4)*IF(BD39="XIV",F40,IF(BD39="UVXY",I40,L40))) -> 5.36705964 | BK40: 1.233910619 | BL40: 1113193.808 | BM40: 1114413.54 | BN40: =IF(BD40="CASH",1,(1+$BN$4)*IF(BD40="XIV",F40,IF(BD40="UVXY",I40,L40))) -> 5.37294036 | BO40: 5.27 | BP40: 1093062.474 | BQ40: 34 | BR40: 1.093062474
A41: 2011-11-17 | B41: 34.51 | C41: 35.32 | D41: 33.75 | E41: 34.65 | F41: 5.21 | G41: 5.03 | H41: -0.03454894434 | I41: 6620867.58 | J41: 7142857.14 | K41: 0.07884005437 | L41: 9.1675 | M41: 8.59875 | N41: -0.06203981456 | O41: 0.009671218615 | P41: 0.974411166 | Q41: 0.0733504164 | R41: -0.01138519924 | S41: =VLOOKUP(A41,'MACD SPYG'!$A$2:$G$1452,7,FALSE) -> -0.1333990871 | T41: 1 | U41: 0 | V41: 0 | W41: 0 | X41: 0 | Y41: 0 | Z41: 1 | AA41: 0 | AB41: 0 | AC41: 1 | AD41: 0 | AE41: 0 | AF41: 0 | AG41: 1 | AH41: 0 | AI41: =IF(SUM($AH41:AH41)>0,0,1)*V41 -> 0 | AJ41: =IF(SUM($AH41:AI41)>0,0,1)*W41 -> 0 | AK41: =IF(SUM($AH41:AJ41)>0,0,1)*X41 -> 0 | AL41: =IF(SUM($AH41:AK41)>0,0,1)*Y41 -> 0 | AM41: =IF(SUM($AH41:AL41)>0,0,1)*Z41 -> 1 | AN41: =IF(SUM($AH41:AM41)>0,0,1)*AA41 -> 0 | AO41: =IF(SUM($AH41:AN41)>0,0,1)*AB41 -> 0 | AP41: =IF(SUM($AH41:AO41)>0,0,1)*AC41 -> 0 | AQ41: =IF(SUM($AH41:AP41)>0,0,1)*AD41 -> 0 | AR41: =IF(SUM($AH41:AQ41)>0,0,1)*AE41 -> 0 | AS41: =IF(SUM($AH41:AR41)>0,0,1)*AF41 -> 0 | AT41: =IF(SUM($AH41:AS41)>0,0,1)*AG41 -> 0 | AU41: 1 | AV41: 1 | AW41: 0 | AX41: 1 | AY41: 0 | AZ41: 1 | BA41: 0 | BB41: 1 | BC41: 0 | BD41: XIV | BE41: -0.03454894434 | BF41: -0.01343568524 | BG41: 0 | BH41: 0 | BI41: 207412 | BJ41: =IF(BD40="CASH",1,(1-$BN$4)*IF(BD40="XIV",F41,IF(BD40="UVXY",I41,L41))) -> 5.207147248 | BK41: 1.233910619 | BL41: 1080026.059 | BM41: 1081209.449 | BN41: =IF(BD41="CASH",1,(1+$BN$4)*IF(BD41="XIV",F41,IF(BD41="UVXY",I41,L41))) -> 5.212852752 | BO41: 5.03 | BP41: 1043283.594 | BQ41: 35 | BR41: 1.043283594
A42: 2011-11-18 | B42: 32 | C42: 34.2 | D42: 32.35 | E42: 33.75 | F42: 5.14 | G42: 5.17 | H42: 0.005836575875 | I42: 6734865.3 | J42: 6653866.92 | K42: -0.01202672606 | L42: 8.5975 | M42: 8.3925 | N42: -0.02384414074 | O42: 0.007970755171 | P42: 0.9770668177 | Q42: 0.02984183826 | R42: 0.02186878728 | S42: =VLOOKUP(A42,'MACD SPYG'!$A$2:$G$1452,7,FALSE) -> -0.2303737829 | T42: 1 | U42: 0 | V42: 0 | W42: 0 | X42: 0 | Y42: 0 | Z42: 1 | AA42: 0 | AB42: 0 | AC42: 0 | AD42: 0 | AE42: 0 | AF42: 0 | AG42: 1 | AH42: 0 | AI42: =IF(SUM($AH42:AH42)>0,0,1)*V42 -> 0 | AJ42: =IF(SUM($AH42:AI42)>0,0,1)*W42 -> 0 | AK42: =IF(SUM($AH42:AJ42)>0,0,1)*X42 -> 0 | AL42: =IF(SUM($AH42:AK42)>0,0,1)*Y42 -> 0 | AM42: =IF(SUM($AH42:AL42)>0,0,1)*Z42 -> 1 | AN42: =IF(SUM($AH42:AM42)>0,0,1)*AA42 -> 0 | AO42: =IF(SUM($AH42:AN42)>0,0,1)*AB42 -> 0 | AP42: =IF(SUM($AH42:AO42)>0,0,1)*AC42 -> 0 | AQ42: =IF(SUM($AH42:AP42)>0,0,1)*AD42 -> 0 | AR42: =IF(SUM($AH42:AQ42)>0,0,1)*AE42 -> 0 | AS42: =IF(SUM($AH42:AR42)>0,0,1)*AF42 -> 0 | AT42: =IF(SUM($AH42:AS42)>0,0,1)*AG42 -> 0 | AU42: 1 | AV42: 1 | AW42: 0 | AX42: 1 | AY42: 0 | AZ42: 1 | BA42: 0 | BB42: 1 | BC42: 0 | BD42: XIV | BE42: 0.005836575875 | BF42: -0.04474702995 | BG42: 0 | BH42: 0 | BI42: 207412 | BJ42: =IF(BD41="CASH",1,(1-$BN$4)*IF(BD41="XIV",F42,IF(BD41="UVXY",I42,L42))) -> 5.137185577 | BK42: 1.233910619 | BL42: 1065515.169 | BM42: 1066682.659 | BN42: =IF(BD42="CASH",1,(1+$BN$4)*IF(BD42="XIV",F42,IF(BD42="UVXY",I42,L42))) -> 5.142814423 | BO42: 5.17 | BP42: 1072321.274 | BQ42: 36 | BR42: 1.072321274
A43: 2011-11-21 | B43: 32.91 | C43: 34.78 | D43: 32.95 | E43: 34.35 | F43: 4.91 | G43: 5.11 | H43: 0.04073319756 | I43: 7361852.76 | J43: 6819163.614 | K43: -0.07371638142 | L43: 8.0675 | M43: 7.905 | N43: -0.02014254726 | O43: -0.02001786021 | P43: 0.9356725146 | Q43: -0.07273254129 | R43: -0.0502901354 | S43: =VLOOKUP(A43,'MACD SPYG'!$A$2:$G$1452,7,FALSE) -> -0.3386229318 | T43: 1 | U43: 0 | V43: 0 | W43: 0 | X43: 0 | Y43: 0 | Z43: 1 | AA43: 0 | AB43: 0 | AC43: 0 | AD43: 0 | AE43: 0 | AF43: 0 | AG43: 0 | AH43: 0 | AI43: =IF(SUM($AH43:AH43)>0,0,1)*V43 -> 0 | AJ43: =IF(SUM($AH43:AI43)>0,0,1)*W43 -> 0 | AK43: =IF(SUM($AH43:AJ43)>0,0,1)*X43 -> 0 | AL43: =IF(SUM($AH43:AK43)>0,0,1)*Y43 -> 0 | AM43: =IF(SUM($AH43:AL43)>0,0,1)*Z43 -> 1 | AN43: =IF(SUM($AH43:AM43)>0,0,1)*AA43 -> 0 | AO43: =IF(SUM($AH43:AN43)>0,0,1)*AB43 -> 0 | AP43: =IF(SUM($AH43:AO43)>0,0,1)*AC43 -> 0 | AQ43: =IF(SUM($AH43:AP43)>0,0,1)*AD43 -> 0 | AR43: =IF(SUM($AH43:AQ43)>0,0,1)*AE43 -> 0 | AS43: =IF(SUM($AH43:AR43)>0,0,1)*AF43 -> 0 | AT43: =IF(SUM($AH43:AS43)>0,0,1)*AG43 -> 0 | AU43: 1 | AV43: 1 | AW43: 0 | AX43: 1 | AY43: 0 | AZ43: 1 | BA43: 0 | BB43: 1 | BC43: 0 | BD43: XIV | BE43: 0.04073319756 | BF43: 0.034623176 | BG43: 0 | BH43: 0 | BI43: 207412 | BJ43: =IF(BD42="CASH",1,(1-$BN$4)*IF(BD42="XIV",F43,IF(BD42="UVXY",I43,L43))) -> 4.907311514 | BK43: 1.233910619 | BL43: 1017836.53 | BM43: 1018951.778 | BN43: =IF(BD43="CASH",1,(1+$BN$4)*IF(BD43="XIV",F43,IF(BD43="UVXY",I43,L43))) -> 4.912688486 | BO43: 5.11 | BP43: 1059876.554 | BQ43: 37 | BR43: 1.059876554
A44: 2011-11-22 | B44: 31.97 | C44: 34.24 | D44: 32.3 | E44: 33.85 | F44: 5.08 | G44: 5.21 | H44: 0.02559055118 | I44: 6890862.18 | J44: 6534169.314 | K44: -0.05176316935 | L44: 7.83625 | M44: 7.97375 | N44: 0.01754665816 | O44: -0.01307684662 | P44: 0.9462334675 | Q44: 0.0284375 | R44: -0.005870841487 | S44: =VLOOKUP(A44,'MACD SPYG'!$A$2:$G$1452,7,FALSE) -> -0.4072872995 | T44: 1 | U44: 0 | V44: 0 | W44: 0 | X44: 0 | Y44: 0 | Z44: 1 | AA44: 0 | AB44: 0 | AC44: 0 | AD44: 0 | AE44: 0 | AF44: 0 | AG44: 0 | AH44: 0 | AI44: =IF(SUM($AH44:AH44)>0,0,1)*V44 -> 0 | AJ44: =IF(SUM($AH44:AI44)>0,0,1)*W44 -> 0 | AK44: =IF(SUM($AH44:AJ44)>0,0,1)*X44 -> 0 | AL44: =IF(SUM($AH44:AK44)>0,0,1)*Y44 -> 0 | AM44: =IF(SUM($AH44:AL44)>0,0,1)*Z44 -> 1 | AN44: =IF(SUM($AH44:AM44)>0,0,1)*AA44 -> 0 | AO44: =IF(SUM($AH44:AN44)>0,0,1)*AB44 -> 0 | AP44: =IF(SUM($AH44:AO44)>0,0,1)*AC44 -> 0 | AQ44: =IF(SUM($AH44:AP44)>0,0,1)*AD44 -> 0 | AR44: =IF(SUM($AH44:AQ44)>0,0,1)*AE44 -> 0 | AS44: =IF(SUM($AH44:AR44)>0,0,1)*AF44 -> 0 | AT44: =IF(SUM($AH44:AS44)>0,0,1)*AG44 -> 0 | AU44: 1 | AV44: 1 | AW44: 0 | AX44: 1 | AY44: 0 | AZ44: 1 | BA44: 0 | BB44: 1 | BC44: 0 | BD44: XIV | BE44: 0.02559055118 | BF44: 0.001968501633 | BG44: 0 | BH44: 0 | BI44: 207412 | BJ44: =IF(BD43="CASH",1,(1-$BN$4)*IF(BD43="XIV",F44,IF(BD43="UVXY",I44,L44))) -> 5.07721843 | BK44: 1.233910619 | BL44: 1053077.263 | BM44: 1054231.125 | BN44: =IF(BD44="CASH",1,(1+$BN$4)*IF(BD44="XIV",F44,IF(BD44="UVXY",I44,L44))) -> 5.08278157 | BO44: 5.21 | BP44: 1080617.754 | BQ44: 38 | BR44: 1.080617754
A45: 2011-11-23 | B45: 33.98 | C45: 35.87 | D45: 33.6 | E45: 35.05 | F45: 5.09 | G45: 4.99 | H45: -0.01964636542 | I45: 6845863.08 | J45: 7121857.56 | K45: 0.04031551271 | L45: 7.81 | M45: 7.44375 | N45: -0.0468950064 | O45: -0.02088877812 | P45: 0.933703271 | Q45: -0.02856274689 | R45: -0.02303262956 | S45: =VLOOKUP(A45,'MACD SPYG'!$A$2:$G$1452,7,FALSE) -> -0.4676723496 | T45: 1 | U45: 0 | V45: 0 | W45: 0 | X45: 0 | Y45: 0 | Z45: 1 | AA45: 0 | AB45: 0 | AC45: 0 | AD45: 0 | AE45: 0 | AF45: 0 | AG45: 0 | AH45: 0 | AI45: =IF(SUM($AH45:AH45)>0,0,1)*V45 -> 0 | AJ45: =IF(SUM($AH45:AI45)>0,0,1)*W45 -> 0 | AK45: =IF(SUM($AH45:AJ45)>0,0,1)*X45 -> 0 | AL45: =IF(SUM($AH45:AK45)>0,0,1)*Y45 -> 0 | AM45: =IF(SUM($AH45:AL45)>0,0,1)*Z45 -> 1 | AN45: =IF(SUM($AH45:AM45)>0,0,1)*AA45 -> 0 | AO45: =IF(SUM($AH45:AN45)>0,0,1)*AB45 -> 0 | AP45: =IF(SUM($AH45:AO45)>0,0,1)*AC45 -> 0 | AQ45: =IF(SUM($AH45:AP45)>0,0,1)*AD45 -> 0 | AR45: =IF(SUM($AH45:AQ45)>0,0,1)*AE45 -> 0 | AS45: =IF(SUM($AH45:AR45)>0,0,1)*AF45 -> 0 | AT45: =IF(SUM($AH45:AS45)>0,0,1)*AG45 -> 0 | AU45: 1 | AV45: 1 | AW45: 0 | AX45: 1 | AY45: 0 | AZ45: 1 | BA45: 0 | BB45: 1 | BC45: 0 | BD45: XIV | BE45: -0.01964636542 | BF45: -0.02357561097 | BG45: 0 | BH45: 0 | BI45: 207412 | BJ45: =IF(BD44="CASH",1,(1-$BN$4)*IF(BD44="XIV",F45,IF(BD44="UVXY",I45,L45))) -> 5.087212954 | BK45: 1.233910619 | BL45: 1055150.247 | BM45: 1056306.381 | BN45: =IF(BD45="CASH",1,(1+$BN$4)*IF(BD45="XIV",F45,IF(BD45="UVXY",I45,L45))) -> 5.092787046 | BO45: 4.99 | BP45: 1034987.114 | BQ45: 39 | BR45: 1.034987114
A46: 2011-11-25 | B46: 34.47 | C46: 36.45 | D46: 34.5 | E46: 35.6 | F46: 4.97 | G46: 4.91 | H46: -0.01207243461 | I46: 7169856.6 | J46: 7304853.9 | K46: 0.01882845188 | L46: 7.3625 | M46: 7.275 | N46: -0.01188455008 | O46: -0.004494174988 | P46: 0.9473097296 | Q46: 0.06287144198 | R46: -0.004008016032 | S46: =VLOOKUP(A46,'MACD SPYG'!$A$2:$G$1452,7,FALSE) -> -0.5365057534 | T46: 1 | U46: 0 | V46: 0 | W46: 0 | X46: 0 | Y46: 0 | Z46: 1 | AA46: 0 | AB46: 0 | AC46: 1 | AD46: 0 | AE46: 0 | AF46: 0 | AG46: 1 | AH46: 0 | AI46: =IF(SUM($AH46:AH46)>0,0,1)*V46 -> 0 | AJ46: =IF(SUM($AH46:AI46)>0,0,1)*W46 -> 0 | AK46: =IF(SUM($AH46:AJ46)>0,0,1)*X46 -> 0 | AL46: =IF(SUM($AH46:AK46)>0,0,1)*Y46 -> 0 | AM46: =IF(SUM($AH46:AL46)>0,0,1)*Z46 -> 1 | AN46: =IF(SUM($AH46:AM46)>0,0,1)*AA46 -> 0 | AO46: =IF(SUM($AH46:AN46)>0,0,1)*AB46 -> 0 | AP46: =IF(SUM($AH46:AO46)>0,0,1)*AC46 -> 0 | AQ46: =IF(SUM($AH46:AP46)>0,0,1)*AD46 -> 0 | AR46: =IF(SUM($AH46:AQ46)>0,0,1)*AE46 -> 0 | AS46: =IF(SUM($AH46:AR46)>0,0,1)*AF46 -> 0 | AT46: =IF(SUM($AH46:AS46)>0,0,1)*AG46 -> 0 | AU46: 1 | AV46: 1 | AW46: 0 | AX46: 1 | AY46: 0 | AZ46: 1 | BA46: 0 | BB46: 1 | BC46: 0 | BD46: XIV | BE46: -0.01207243461 | BF46: 0.05432589074 | BG46: 0 | BH46: 0 | BI46: 207412 | BJ46: =IF(BD45="CASH",1,(1-$BN$4)*IF(BD45="XIV",F46,IF(BD45="UVXY",I46,L46))) -> 4.967278661 | BK46: 1.233910619 | BL46: 1030274.436 | BM46: 1031403.312 | BN46: =IF(BD46="CASH",1,(1+$BN$4)*IF(BD46="XIV",F46,IF(BD46="UVXY",I46,L46))) -> 4.972721339 | BO46: 4.91 | BP46: 1018394.154 | BQ46: 40 | BR46: 1.018394154
A47: 2011-11-28 | B47: 32.13 | C47: 33.94 | D47: 32 | E47: 33.7 | F47: 5.24 | G47: 5.13 | H47: -0.02099236641 | I47: 6332873.34 | J47: 6607967.838 | K47: 0.04343912838 | L47: 7.8075 | M47: 8.02625 | N47: 0.02801793148 | O47: -0.009878358574 | P47: 0.9456790123 | Q47: 0.0144202472 | R47: 0.06720977597 | S47: =VLOOKUP(A47,'MACD SPYG'!$A$2:$G$1452,7,FALSE) -> -0.4634899292 | T47: 1 | U47: 0 | V47: 0 | W47: 0 | X47: 0 | Y47: 0 | Z47: 1 | AA47: 0 | AB47: 0 | AC47: 0 | AD47: 0 | AE47: 0 | AF47: 0 | AG47: 0 | AH47: 0 | AI47: =IF(SUM($AH47:AH47)>0,0,1)*V47 -> 0 | AJ47: =IF(SUM($AH47:AI47)>0,0,1)*W47 -> 0 | AK47: =IF(SUM($AH47:AJ47)>0,0,1)*X47 -> 0 | AL47: =IF(SUM($AH47:AK47)>0,0,1)*Y47 -> 0 | AM47: =IF(SUM($AH47:AL47)>0,0,1)*Z47 -> 1 | AN47: =IF(SUM($AH47:AM47)>0,0,1)*AA47 -> 0 | AO47: =IF(SUM($AH47:AN47)>0,0,1)*AB47 -> 0 | AP47: =IF(SUM($AH47:AO47)>0,0,1)*AC47 -> 0 | AQ47: =IF(SUM($AH47:AP47)>0,0,1)*AD47 -> 0 | AR47: =IF(SUM($AH47:AQ47)>0,0,1)*AE47 -> 0 | AS47: =IF(SUM($AH47:AR47)>0,0,1)*AF47 -> 0 | AT47: =IF(SUM($AH47:AS47)>0,0,1)*AG47 -> 0 | AU47: 1 | AV47: 1 | AW47: 0 | AX47: 1 | AY47: 0 | AZ47: 1 | BA47: 0 | BB47: 1 | BC47: 0 | BD47: XIV | BE47: -0.02099236641 | BF47: -0.01335876347 | BG47: 0 | BH47: 0 | BI47: 207412 | BJ47: =IF(BD46="CASH",1,(1-$BN$4)*IF(BD46="XIV",F47,IF(BD46="UVXY",I47,L47))) -> 5.237130821 | BK47: 1.233910619 | BL47: 1086245.012 | BM47: 1087435.216 | BN47: =IF(BD47="CASH",1,(1+$BN$4)*IF(BD47="XIV",F47,IF(BD47="UVXY",I47,L47))) -> 5.242869179 | BO47: 5.13 | BP47: 1064024.794 | BQ47: 41 | BR47: 1.064024794
A48: 2011-11-29 | B48: 30.64 | C48: 33.21 | D48: 31.35 | E48: 33.2 | F48: 5.17 | G48: 5.23 | H48: 0.01160541586 | I48: 6482870.34 | J48: 6329873.4 | K48: -0.0236001851 | L48: 8.00125 | M48: 7.88125 | N48: -0.01499765662 | O48: -0.01228978116 | P48: 0.9466705952 | Q48: -0.06788511749 | R48: 0.007797270955 | S48: =VLOOKUP(A48,'MACD SPYG'!$A$2:$G$1452,7,FALSE) -> -0.3738982972 | T48: 1 | U48: 0 | V48: 0 | W48: 0 | X48: 0 | Y48: 0 | Z48: 1 | AA48: 0 | AB48: 0 | AC48: 0 | AD48: 0 | AE48: 0 | AF48: 0 | AG48: 0 | AH48: 0 | AI48: =IF(SUM($AH48:AH48)>0,0,1)*V48 -> 0 | AJ48: =IF(SUM($AH48:AI48)>0,0,1)*W48 -> 0 | AK48: =IF(SUM($AH48:AJ48)>0,0,1)*X48 -> 0 | AL48: =IF(SUM($AH48:AK48)>0,0,1)*Y48 -> 0 | AM48: =IF(SUM($AH48:AL48)>0,0,1)*Z48 -> 1 | AN48: =IF(SUM($AH48:AM48)>0,0,1)*AA48 -> 0 | AO48: =IF(SUM($AH48:AN48)>0,0,1)*AB48 -> 0 | AP48: =IF(SUM($AH48:AO48)>0,0,1)*AC48 -> 0 | AQ48: =IF(SUM($AH48:AP48)>0,0,1)*AD48 -> 0 | AR48: =IF(SUM($AH48:AQ48)>0,0,1)*AE48 -> 0 | AS48: =IF(SUM($AH48:AR48)>0,0,1)*AF48 -> 0 | AT48: =IF(SUM($AH48:AS48)>0,0,1)*AG48 -> 0 | AU48: 1 | AV48: 1 | AW48: 0 | AX48: 1 | AY48: 0 | AZ48: 1 | BA48: 0 | BB48: 1 | BC48: 0 | BD48: XIV | BE48: 0.01160541586 | BF48: 0.07930358384 | BG48: 0 | BH48: 0 | BI48: 207412 | BJ48: =IF(BD47="CASH",1,(1-$BN$4)*IF(BD47="XIV",F48,IF(BD47="UVXY",I48,L48))) -> 5.16716915 | BK48: 1.233910619 | BL48: 1071734.122 | BM48: 1072908.426 | BN48: =IF(BD48="CASH",1,(1+$BN$4)*IF(BD48="XIV",F48,IF(BD48="UVXY",I48,L48))) -> 5.17283085 | BO48: 5.23 | BP48: 1084765.994 | BQ48: 42 | BR48: 1.084765994
A49: 2011-11-30 | B49: 27.8 | C49: 30.58 | D49: 28.35 | E49: 30.9 | F49: 5.58 | G49: 5.71 | H49: 0.02329749104 | I49: 5477890.44 | J49: 5207895.84 | K49: -0.04928806134 | L49: 8.52625 | M49: 8.74625 | N49: 0.02580266823 | O49: -0.03257013701 | P49: 0.9226136706 | Q49: -0.0463741052 | R49: 0.06692160612 | S49: =VLOOKUP(A49,'MACD SPYG'!$A$2:$G$1452,7,FALSE) -> -0.2101150255 | T49: 1 | U49: 0 | V49: 0 | W49: 0 | X49: 0 | Y49: 0 | Z49: 1 | AA49: 0 | AB49: 0 | AC49: 0 | AD49: 0 | AE49: 0 | AF49: 0 | AG49: 0 | AH49: 0 | AI49: =IF(SUM($AH49:AH49)>0,0,1)*V49 -> 0 | AJ49: =IF(SUM($AH49:AI49)>0,0,1)*W49 -> 0 | AK49: =IF(SUM($AH49:AJ49)>0,0,1)*X49 -> 0 | AL49: =IF(SUM($AH49:AK49)>0,0,1)*Y49 -> 0 | AM49: =IF(SUM($AH49:AL49)>0,0,1)*Z49 -> 1 | AN49: =IF(SUM($AH49:AM49)>0,0,1)*AA49 -> 0 | AO49: =IF(SUM($AH49:AN49)>0,0,1)*AB49 -> 0 | AP49: =IF(SUM($AH49:AO49)>0,0,1)*AC49 -> 0 | AQ49: =IF(SUM($AH49:AP49)>0,0,1)*AD49 -> 0 | AR49: =IF(SUM($AH49:AQ49)>0,0,1)*AE49 -> 0 | AS49: =IF(SUM($AH49:AR49)>0,0,1)*AF49 -> 0 | AT49: =IF(SUM($AH49:AS49)>0,0,1)*AG49 -> 0 | AU49: 1 | AV49: 1 | AW49: 0 | AX49: 1 | AY49: 0 | AZ49: 1 | BA49: 0 | BB49: 1 | BC49: 0 | BD49: XIV | BE49: 0.02329749104 | BF49: 0.01792112786 | BG49: 0 | BH49: 0 | BI49: 207412 | BJ49: =IF(BD48="CASH",1,(1-$BN$4)*IF(BD48="XIV",F49,IF(BD48="UVXY",I49,L49))) -> 5.576944653 | BK49: 1.233910619 | BL49: 1156726.478 | BM49: 1157993.909 | BN49: =IF(BD49="CASH",1,(1+$BN$4)*IF(BD49="XIV",F49,IF(BD49="UVXY",I49,L49))) -> 5.583055347 | BO49: 5.71 | BP49: 1184323.754 | BQ49: 43 | BR49: 1.184323754
A50: 2011-12-01 | B50: 27.41 | C50: 30.03 | D50: 27.9 | E50: 30.15 | F50: 5.68 | G50: 5.84 | H50: 0.02816901408 | I50: 5249895 | J50: 4969820.602 | K50: -0.05334857143 | L50: 8.75625 | M50: 8.93375 | N50: 0.02027123483 | O50: -0.03833752847 | P50: 0.9090909091 | Q50: -0.09268929504 | R50: -0.005253940455 | S50: =VLOOKUP(A50,'MACD SPYG'!$A$2:$G$1452,7,FALSE) -> -0.06537221722 | T50: 1 | U50: 0 | V50: 0 | W50: 0 | X50: 0 | Y50: 0 | Z50: 1 | AA50: 0 | AB50: 0 | AC50: 0 | AD50: 0 | AE50: 0 | AF50: 0 | AG50: 0 | AH50: 0 | AI50: =IF(SUM($AH50:AH50)>0,0,1)*V50 -> 0 | AJ50: =IF(SUM($AH50:AI50)>0,0,1)*W50 -> 0 | AK50: =IF(SUM($AH50:AJ50)>0,0,1)*X50 -> 0 | AL50: =IF(SUM($AH50:AK50)>0,0,1)*Y50 -> 0 | AM50: =IF(SUM($AH50:AL50)>0,0,1)*Z50 -> 1 | AN50: =IF(SUM($AH50:AM50)>0,0,1)*AA50 -> 0 | AO50: =IF(SUM($AH50:AN50)>0,0,1)*AB50 -> 0 | AP50: =IF(SUM($AH50:AO50)>0,0,1)*AC50 -> 0 | AQ50: =IF(SUM($AH50:AP50)>0,0,1)*AD50 -> 0 | AR50: =IF(SUM($AH50:AQ50)>0,0,1)*AE50 -> 0 | AS50: =IF(SUM($AH50:AR50)>0,0,1)*AF50 -> 0 | AT50: =IF(SUM($AH50:AS50)>0,0,1)*AG50 -> 0 | AU50: 1 | AV50: 1 | AW50: 0 | AX50: 1 | AY50: 0 | AZ50: 1 | BA50: 0 | BB50: 1 | BC50: 0 | BD50: XIV | BE50: 0.02816901408 | BF50: 0.05809853073 | BG50: 0 | BH50: 0 | BI50: 207412 | BJ50: =IF(BD49="CASH",1,(1-$BN$4)*IF(BD49="XIV",F50,IF(BD49="UVXY",I50,L50))) -> 5.676889898 | BK50: 1.233910619 | BL50: 1177456.321 | BM50: 1178746.466 | BN50: =IF(BD50="CASH",1,(1+$BN$4)*IF(BD50="XIV",F50,IF(BD50="UVXY",I50,L50))) -> 5.683110102 | BO50: 5.84 | BP50: 1211287.314 | BQ50: 44 | BR50: 1.211287314
A51: 2011-12-02 | B51: 27.52 | C51: 29.85 | D51: 27.8 | E51: 29.9 | F51: 6.01 | G51: 5.85 | H51: -0.02662229617 | I51: 4682906.34 | J51: 4940901.18 | K51: 0.05509288917 | L51: 9.1975 | M51: 8.84875 | N51: -0.03791791248 | O51: -0.03468196651 | P51: 0.9127539128 | Q51: -0.01402877698 | R51: 0.02910958904 | S51: =VLOOKUP(A51,'MACD SPYG'!$A$2:$G$1452,7,FALSE) -> 0.08105711915 | T51: 1 | U51: 0 | V51: 0 | W51: 0 | X51: 0 | Y51: 0 | Z51: 1 | AA51: 0 | AB51: 0 | AC51: 0 | AD51: 0 | AE51: 0 | AF51: 0 | AG51: 0 | AH51: 0 | AI51: =IF(SUM($AH51:AH51)>0,0,1)*V51 -> 0 | AJ51: =IF(SUM($AH51:AI51)>0,0,1)*W51 -> 0 | AK51: =IF(SUM($AH51:AJ51)>0,0,1)*X51 -> 0 | AL51: =IF(SUM($AH51:AK51)>0,0,1)*Y51 -> 0 | AM51: =IF(SUM($AH51:AL51)>0,0,1)*Z51 -> 1 | AN51: =IF(SUM($AH51:AM51)>0,0,1)*AA51 -> 0 | AO51: =IF(SUM($AH51:AN51)>0,0,1)*AB51 -> 0 | AP51: =IF(SUM($AH51:AO51)>0,0,1)*AC51 -> 0 | AQ51: =IF(SUM($AH51:AP51)>0,0,1)*AD51 -> 0 | AR51: =IF(SUM($AH51:AQ51)>0,0,1)*AE51 -> 0 | AS51: =IF(SUM($AH51:AR51)>0,0,1)*AF51 -> 0 | AT51: =IF(SUM($AH51:AS51)>0,0,1)*AG51 -> 0 | AU51: 1 | AV51: 1 | AW51: 0 | AX51: 1 | AY51: 0 | AZ51: 1 | BA51: 0 | BB51: 1 | BC51: 0 | BD51: XIV | BE51: -0.02662229617 | BF51: 0.01497502678 | BG51: 0 | BH51: 0 | BI51: 207412 | BJ51: =IF(BD50="CASH",1,(1-$BN$4)*IF(BD50="XIV",F51,IF(BD50="UVXY",I51,L51))) -> 6.006709206 | BK51: 1.233910619 | BL51: 1245864.804 | BM51: 1247229.904 | BN51: =IF(BD51="CASH",1,(1+$BN$4)*IF(BD51="XIV",F51,IF(BD51="UVXY",I51,L51))) -> 6.013290794 | BO51: 5.85 | BP51: 1213361.434 | BQ51: 45 | BR51: 1.213361434
A52: 2011-12-05 | B52: 27.84 | C52: 29.9 | D52: 27.8 | E52: 29.7 | F52: 6.1 | G52: 5.85 | H52: -0.04098360656 | I52: 4535909.28 | J52: 4925901.48 | K52: 0.08597883598 | L52: 9.27375 | M52: 9.13875 | N52: -0.01455721795 | O52: -0.02812059383 | P52: 0.9219430486 | Q52: 0.004013133893 | R52: 0.04273504274 | S52: =VLOOKUP(A52,'MACD SPYG'!$A$2:$G$1452,7,FALSE) -> 0.1772869692 | T52: 1 | U52: 0 | V52: 0 | W52: 0 | X52: 0 | Y52: 0 | Z52: 1 | AA52: 0 | AB52: 0 | AC52: 0 | AD52: 0 | AE52: 0 | AF52: 0 | AG52: 0 | AH52: 0 | AI52: =IF(SUM($AH52:AH52)>0,0,1)*V52 -> 0 | AJ52: =IF(SUM($AH52:AI52)>0,0,1)*W52 -> 0 | AK52: =IF(SUM($AH52:AJ52)>0,0,1)*X52 -> 0 | AL52: =IF(SUM($AH52:AK52)>0,0,1)*Y52 -> 0 | AM52: =IF(SUM($AH52:AL52)>0,0,1)*Z52 -> 1 | AN52: =IF(SUM($AH52:AM52)>0,0,1)*AA52 -> 0 | AO52: =IF(SUM($AH52:AN52)>0,0,1)*AB52 -> 0 | AP52: =IF(SUM($AH52:AO52)>0,0,1)*AC52 -> 0 | AQ52: =IF(SUM($AH52:AP52)>0,0,1)*AD52 -> 0 | AR52: =IF(SUM($AH52:AQ52)>0,0,1)*AE52 -> 0 | AS52: =IF(SUM($AH52:AR52)>0,0,1)*AF52 -> 0 | AT52: =IF(SUM($AH52:AS52)>0,0,1)*AG52 -> 0 | AU52: 1 | AV52: 1 | AW52: 0 | AX52: 1 | AY52: 0 | AZ52: 1 | BA52: 0 | BB52: 1 | BC52: 0 | BD52: XIV | BE52: -0.04098360656 | BF52: -0.03934422395 | BG52: 0 | BH52: 0 | BI52: 207412 | BJ52: =IF(BD51="CASH",1,(1-$BN$4)*IF(BD51="XIV",F52,IF(BD51="UVXY",I52,L52))) -> 6.096659926 | BK52: 1.233910619 | BL52: 1264521.662 | BM52: 1265907.205 | BN52: =IF(BD52="CASH",1,(1+$BN$4)*IF(BD52="XIV",F52,IF(BD52="UVXY",I52,L52))) -> 6.103340074 | BO52: 5.85 | BP52: 1213361.434 | BQ52: 46 | BR52: 1.213361434
A53: 2011-12-06 | B53: 28.13 | C53: 30.16 | D53: 28.1 | E53: 29.95 | F53: 5.86 | G53: 5.88 | H53: 0.003412969283 | I53: 4925901.48 | J53: 4880902.38 | K53: -0.009135200974 | L53: 9.1825 | M53: 9.06875 | N53: -0.01238769398 | O53: -0.01818472495 | P53: 0.9311036789 | Q53: 0.01162790698 | R53: 0.001709401709 | S53: =VLOOKUP(A53,'MACD SPYG'!$A$2:$G$1452,7,FALSE) -> 0.2002281485 | T53: 1 | U53: 0 | V53: 0 | W53: 0 | X53: 0 | Y53: 0 | Z53: 1 | AA53: 0 | AB53: 0 | AC53: 0 | AD53: 0 | AE53: 0 | AF53: 0 | AG53: 0 | AH53: 0 | AI53: =IF(SUM($AH53:AH53)>0,0,1)*V53 -> 0 | AJ53: =IF(SUM($AH53:AI53)>0,0,1)*W53 -> 0 | AK53: =IF(SUM($AH53:AJ53)>0,0,1)*X53 -> 0 | AL53: =IF(SUM($AH53:AK53)>0,0,1)*Y53 -> 0 | AM53: =IF(SUM($AH53:AL53)>0,0,1)*Z53 -> 1 | AN53: =IF(SUM($AH53:AM53)>0,0,1)*AA53 -> 0 | AO53: =IF(SUM($AH53:AN53)>0,0,1)*AB53 -> 0 | AP53: =IF(SUM($AH53:AO53)>0,0,1)*AC53 -> 0 | AQ53: =IF(SUM($AH53:AP53)>0,0,1)*AD53 -> 0 | AR53: =IF(SUM($AH53:AQ53)>0,0,1)*AE53 -> 0 | AS53: =IF(SUM($AH53:AR53)>0,0,1)*AF53 -> 0 | AT53: =IF(SUM($AH53:AS53)>0,0,1)*AG53 -> 0 | AU53: 1 | AV53: 1 | AW53: 0 | AX53: 1 | AY53: 0 | AZ53: 1 | BA53: 0 | BB53: 1 | BC53: 0 | BD53: XIV | BE53: 0.003412969283 | BF53: -0.008532414551 | BG53: 0 | BH53: 0 | BI53: 207412 | BJ53: =IF(BD52="CASH",1,(1-$BN$4)*IF(BD52="XIV",F53,IF(BD52="UVXY",I53,L53))) -> 5.856791339 | BK53: 1.233910619 | BL53: 1214770.039 | BM53: 1216101.069 | BN53: =IF(BD53="CASH",1,(1+$BN$4)*IF(BD53="XIV",F53,IF(BD53="UVXY",I53,L53))) -> 5.863208661 | BO53: 5.88 | BP53: 1219583.794 | BQ53: 47 | BR53: 1.219583794
A54: 2011-12-07 | B54: 28.67 | C54: 30.62 | D54: 28.6 | E54: 30.6 | F54: 5.81 | G54: 5.7 | H54: -0.01893287435 | I54: 5024899.5 | J54: 5189896.2 | K54: 0.0328358209 | L54: 9 | M54: 9.0825 | N54: 0.009166666667 | O54: -0.01778355385 | P54: 0.9326923077 | Q54: 0.01041666667 | R54: -0.0119047619 | S54: =VLOOKUP(A54,'MACD SPYG'!$A$2:$G$1452,7,FALSE) -> 0.1934429969 | T54: 1 | U54: 0 | V54: 0 | W54: 0 | X54: 0 | Y54: 0 | Z54: 1 | AA54: 0 | AB54: 0 | AC54: 0 | AD54: 0 | AE54: 0 | AF54: 0 | AG54: 0 | AH54: 0 | AI54: =IF(SUM($AH54:AH54)>0,0,1)*V54 -> 0 | AJ54: =IF(SUM($AH54:AI54)>0,0,1)*W54 -> 0 | AK54: =IF(SUM($AH54:AJ54)>0,0,1)*X54 -> 0 | AL54: =IF(SUM($AH54:AK54)>0,0,1)*Y54 -> 0 | AM54: =IF(SUM($AH54:AL54)>0,0,1)*Z54 -> 1 | AN54: =IF(SUM($AH54:AM54)>0,0,1)*AA54 -> 0 | AO54: =IF(SUM($AH54:AN54)>0,0,1)*AB54 -> 0 | AP54: =IF(SUM($AH54:AO54)>0,0,1)*AC54 -> 0 | AQ54: =IF(SUM($AH54:AP54)>0,0,1)*AD54 -> 0 | AR54: =IF(SUM($AH54:AQ54)>0,0,1)*AE54 -> 0 | AS54: =IF(SUM($AH54:AR54)>0,0,1)*AF54 -> 0 | AT54: =IF(SUM($AH54:AS54)>0,0,1)*AG54 -> 0 | AU54: 1 | AV54: 1 | AW54: 0 | AX54: 1 | AY54: 0 | AZ54: 1 | BA54: 0 | BB54: 1 | BC54: 0 | BD54: XIV | BE54: -0.01893287435 | BF54: -0.04647155313 | BG54: 0 | BH54: 0 | BI54: 207412 | BJ54: =IF(BD53="CASH",1,(1-$BN$4)*IF(BD53="XIV",F54,IF(BD53="UVXY",I54,L54))) -> 5.806818716 | BK54: 1.233910619 | BL54: 1204405.117 | BM54: 1205724.79 | BN54: =IF(BD54="CASH",1,(1+$BN$4)*IF(BD54="XIV",F54,IF(BD54="UVXY",I54,L54))) -> 5.813181284 | BO54: 5.7 | BP54: 1182249.634 | BQ54: 48 | BR54: 1.182249634
A55: 2011-12-08 | B55: 30.59 | C55: 32.09 | D55: 30.15 | E55: 32.1 | F55: 5.54 | G55: 5.45 | H55: -0.01624548736 | I55: 5477890.44 | J55: 5669886.6 | K55: 0.03504928806 | L55: 8.9 | M55: 8.62 | N55: -0.03146067416 | O55: -0.01789455642 | P55: 0.9363161332 | Q55: 0.01919658727 | R55: -0.02807017544 | S55: =VLOOKUP(A55,'MACD SPYG'!$A$2:$G$1452,7,FALSE) -> 0.1832573722 | T55: 1 | U55: 0 | V55: 0 | W55: 0 | X55: 0 | Y55: 0 | Z55: 1 | AA55: 0 | AB55: 0 | AC55: 0 | AD55: 0 | AE55: 0 | AF55: 0 | AG55: 0 | AH55: 0 | AI55: =IF(SUM($AH55:AH55)>0,0,1)*V55 -> 0 | AJ55: =IF(SUM($AH55:AI55)>0,0,1)*W55 -> 0 | AK55: =IF(SUM($AH55:AJ55)>0,0,1)*X55 -> 0 | AL55: =IF(SUM($AH55:AK55)>0,0,1)*Y55 -> 0 | AM55: =IF(SUM($AH55:AL55)>0,0,1)*Z55 -> 1 | AN55: =IF(SUM($AH55:AM55)>0,0,1)*AA55 -> 0 | AO55: =IF(SUM($AH55:AN55)>0,0,1)*AB55 -> 0 | AP55: =IF(SUM($AH55:AO55)>0,0,1)*AC55 -> 0 | AQ55: =IF(SUM($AH55:AP55)>0,0,1)*AD55 -> 0 | AR55: =IF(SUM($AH55:AQ55)>0,0,1)*AE55 -> 0 | AS55: =IF(SUM($AH55:AR55)>0,0,1)*AF55 -> 0 | AT55: =IF(SUM($AH55:AS55)>0,0,1)*AG55 -> 0 | AU55: 1 | AV55: 1 | AW55: 0 | AX55: 1 | AY55: 0 | AZ55: 1 | BA55: 0 | BB55: 1 | BC55: 0 | BD55: XIV | BE55: -0.01624548736 | BF55: -0.005415156643 | BG55: 0 | BH55: 0 | BI55: 207412 | BJ55: =IF(BD54="CASH",1,(1-$BN$4)*IF(BD54="XIV",F55,IF(BD54="UVXY",I55,L55))) -> 5.536966556 | BK55: 1.233910619 | BL55: 1148434.541 | BM55: 1149692.887 | BN55: =IF(BD55="CASH",1,(1+$BN$4)*IF(BD55="XIV",F55,IF(BD55="UVXY",I55,L55))) -> 5.543033444 | BO55: 5.45 | BP55: 1130396.634 | BQ55: 49 | BR55: 1.130396634
A56: 2011-12-09 | B56: 26.38 | C56: 29.53 | D56: 27.2 | E56: 29.55 | F56: 5.51 | G56: 5.82 | H56: 0.05626134301 | I56: 5513889.72 | J56: 4883902.32 | K56: -0.1142546246 | L56: 8.69625 | M56: 9.02875 | N56: 0.03823487135 | O56: -0.008008710342 | P56: 0.9532564662 | Q56: 0.0669689571 | R56: 0.01100917431 | S56: =VLOOKUP(A56,'MACD SPYG'!$A$2:$G$1452,7,FALSE) -> 0.1314895206 | T56: 1 | U56: 0 | V56: 0 | W56: 0 | X56: 0 | Y56: 0 | Z56: 1 | AA56: 0 | AB56: 0 | AC56: 1 | AD56: 0 | AE56: 0 | AF56: 0 | AG56: 0 | AH56: 0 | AI56: =IF(SUM($AH56:AH56)>0,0,1)*V56 -> 0 | AJ56: =IF(SUM($AH56:AI56)>0,0,1)*W56 -> 0 | AK56: =IF(SUM($AH56:AJ56)>0,0,1)*X56 -> 0 | AL56: =IF(SUM($AH56:AK56)>0,0,1)*Y56 -> 0 | AM56: =IF(SUM($AH56:AL56)>0,0,1)*Z56 -> 1 | AN56: =IF(SUM($AH56:AM56)>0,0,1)*AA56 -> 0 | AO56: =IF(SUM($AH56:AN56)>0,0,1)*AB56 -> 0 | AP56: =IF(SUM($AH56:AO56)>0,0,1)*AC56 -> 0 | AQ56: =IF(SUM($AH56:AP56)>0,0,1)*AD56 -> 0 | AR56: =IF(SUM($AH56:AQ56)>0,0,1)*AE56 -> 0 | AS56: =IF(SUM($AH56:AR56)>0,0,1)*AF56 -> 0 | AT56: =IF(SUM($AH56:AS56)>0,0,1)*AG56 -> 0 | AU56: 1 | AV56: 1 | AW56: 0 | AX56: 1 | AY56: 0 | AZ56: 1 | BA56: 0 | BB56: 1 | BC56: 0 | BD56: XIV | BE56: 0.05626134301 | BF56: 0.03085296126 | BG56: 0 | BH56: 0 | BI56: 207412 | BJ56: =IF(BD55="CASH",1,(1-$BN$4)*IF(BD55="XIV",F56,IF(BD55="UVXY",I56,L56))) -> 5.506982982 | BK56: 1.233910619 | BL56: 1142215.588 | BM56: 1143467.12 | BN56: =IF(BD56="CASH",1,(1+$BN$4)*IF(BD56="XIV",F56,IF(BD56="UVXY",I56,L56))) -> 5.513017018 | BO56: 5.82 | BP56: 1207139.074 | BQ56: 50 | BR56: 1.207139074
A57: 2011-12-12 | B57: 25.67 | C57: 30.17 | D57: 27.6 | E57: 30.1 | F57: 5.68 | G57: 5.78 | H57: 0.0176056338 | I57: 5060898.78 | J57: 4895902.08 | K57: -0.03260225252 | L57: 8.75 | M57: 8.7325 | N57: -0.002 | O57: -0.0449608092 | P57: 0.8933288182 | Q57: -0.1376266754 | R57: -0.02405498282 | S57: =VLOOKUP(A57,'MACD SPYG'!$A$2:$G$1452,7,FALSE) -> 0.09372522154 | T57: 1 | U57: 0 | V57: 0 | W57: 0 | X57: 0 | Y57: 0 | Z57: 1 | AA57: 0 | AB57: 0 | AC57: 0 | AD57: 0 | AE57: 0 | AF57: 0 | AG57: 0 | AH57: 0 | AI57: =IF(SUM($AH57:AH57)>0,0,1)*V57 -> 0 | AJ57: =IF(SUM($AH57:AI57)>0,0,1)*W57 -> 0 | AK57: =IF(SUM($AH57:AJ57)>0,0,1)*X57 -> 0 | AL57: =IF(SUM($AH57:AK57)>0,0,1)*Y57 -> 0 | AM57: =IF(SUM($AH57:AL57)>0,0,1)*Z57 -> 1 | AN57: =IF(SUM($AH57:AM57)>0,0,1)*AA57 -> 0 | AO57: =IF(SUM($AH57:AN57)>0,0,1)*AB57 -> 0 | AP57: =IF(SUM($AH57:AO57)>0,0,1)*AC57 -> 0 | AQ57: =IF(SUM($AH57:AP57)>0,0,1)*AD57 -> 0 | AR57: =IF(SUM($AH57:AQ57)>0,0,1)*AE57 -> 0 | AS57: =IF(SUM($AH57:AR57)>0,0,1)*AF57 -> 0 | AT57: =IF(SUM($AH57:AS57)>0,0,1)*AG57 -> 0 | AU57: 1 | AV57: 1 | AW57: 0 | AX57: 1 | AY57: 0 | AZ57: 1 | BA57: 0 | BB57: 1 | BC57: 0 | BD57: XIV | BE57: 0.0176056338 | BF57: 0.03697179228 | BG57: 0 | BH57: 0 | BI57: 207412 | BJ57: =IF(BD56="CASH",1,(1-$BN$4)*IF(BD56="XIV",F57,IF(BD56="UVXY",I57,L57))) -> 5.676889898 | BK57: 1.233910619 | BL57: 1177456.321 | BM57: 1178746.466 | BN57: =IF(BD57="CASH",1,(1+$BN$4)*IF(BD57="XIV",F57,IF(BD57="UVXY",I57,L57))) -> 5.683110102 | BO57: 5.78 | BP57: 1198842.594 | BQ57: 51 | BR57: 1.198842594
A58: 2011-12-13 | B58: 25.41 | C58: 30.17 | D58: 27.1 | E58: 29.9 | F58: 5.89 | G58: 5.81 | H58: -0.01358234295 | I58: 4700905.98 | J58: 4856902.86 | K58: 0.03318442884 | L58: 8.89875 | M58: 8.4375 | N58: -0.05183312263 | O58: -0.07386621888 | P58: 0.8508452105 | Q58: -0.02691432904 | R58: 0.01903114187 | S58: =VLOOKUP(A58,'MACD SPYG'!$A$2:$G$1452,7,FALSE) -> 0.06650438133 | T58: 1 | U58: 0 | V58: 1 | W58: 0 | X58: 0 | Y58: 0 | Z58: 1 | AA58: 0 | AB58: 0 | AC58: 0 | AD58: 0 | AE58: 0 | AF58: 1 | AG58: 0 | AH58: 0 | AI58: =IF(SUM($AH58:AH58)>0,0,1)*V58 -> 1 | AJ58: =IF(SUM($AH58:AI58)>0,0,1)*W58 -> 0 | AK58: =IF(SUM($AH58:AJ58)>0,0,1)*X58 -> 0 | AL58: =IF(SUM($AH58:AK58)>0,0,1)*Y58 -> 0 | AM58: =IF(SUM($AH58:AL58)>0,0,1)*Z58 -> 0 | AN58: =IF(SUM($AH58:AM58)>0,0,1)*AA58 -> 0 | AO58: =IF(SUM($AH58:AN58)>0,0,1)*AB58 -> 0 | AP58: =IF(SUM($AH58:AO58)>0,0,1)*AC58 -> 0 | AQ58: =IF(SUM($AH58:AP58)>0,0,1)*AD58 -> 0 | AR58: =IF(SUM($AH58:AQ58)>0,0,1)*AE58 -> 0 | AS58: =IF(SUM($AH58:AR58)>0,0,1)*AF58 -> 0 | AT58: =IF(SUM($AH58:AS58)>0,0,1)*AG58 -> 0 | AU58: 1 | AV58: 1 | AW58: 0 | AX58: 1 | AY58: 0 | AZ58: 1 | BA58: 0 | BB58: 1 | BC58: 0 | BD58: XIV | BE58: -0.01358234295 | BF58: -0.0152801204 | BG58: 0 | BH58: 0 | BI58: 207412 | BJ58: =IF(BD57="CASH",1,(1-$BN$4)*IF(BD57="XIV",F58,IF(BD57="UVXY",I58,L58))) -> 5.886774912 | BK58: 1.233910619 | BL58: 1220988.992 | BM58: 1222326.836 | BN58: =IF(BD58="CASH",1,(1+$BN$4)*IF(BD58="XIV",F58,IF(BD58="UVXY",I58,L58))) -> 5.893225088 | BO58: 5.81 | BP58: 1205064.954 | BQ58: 52 | BR58: 1.205064954
A59: 2011-12-14 | B59: 26.04 | C59: 30.42 | D59: 27.1 | E59: 30.1 | F59: 5.8 | G59: 5.78 | H59: -0.003448275862 | I59: 4841903.16 | J59: 4874902.5 | K59: 0.006815365551 | L59: 8.33625 | M59: 8.045 | N59: -0.03493777178 | O59: -0.07174678202 | P59: 0.8422273782 | Q59: -0.01012855473 | R59: -0.001721170396 | S59: =VLOOKUP(A59,'MACD SPYG'!$A$2:$G$1452,7,FALSE) -> -0.0281377372 | T59: 1 | U59: 0 | V59: 1 | W59: 0 | X59: 0 | Y59: 0 | Z59: 1 | AA59: 0 | AB59: 0 | AC59: 0 | AD59: 0 | AE59: 0 | AF59: 1 | AG59: 0 | AH59: 0 | AI59: =IF(SUM($AH59:AH59)>0,0,1)*V59 -> 1 | AJ59: =IF(SUM($AH59:AI59)>0,0,1)*W59 -> 0 | AK59: =IF(SUM($AH59:AJ59)>0,0,1)*X59 -> 0 | AL59: =IF(SUM($AH59:AK59)>0,0,1)*Y59 -> 0 | AM59: =IF(SUM($AH59:AL59)>0,0,1)*Z59 -> 0 | AN59: =IF(SUM($AH59:AM59)>0,0,1)*AA59 -> 0 | AO59: =IF(SUM($AH59:AN59)>0,0,1)*AB59 -> 0 | AP59: =IF(SUM($AH59:AO59)>0,0,1)*AC59 -> 0 | AQ59: =IF(SUM($AH59:AP59)>0,0,1)*AD59 -> 0 | AR59: =IF(SUM($AH59:AQ59)>0,0,1)*AE59 -> 0 | AS59: =IF(SUM($AH59:AR59)>0,0,1)*AF59 -> 0 | AT59: =IF(SUM($AH59:AS59)>0,0,1)*AG59 -> 0 | AU59: 1 | AV59: 1 | AW59: 0 | AX59: 1 | AY59: 0 | AZ59: 1 | BA59: 0 | BB59: 1 | BC59: 0 | BD59: XIV | BE59: -0.003448275862 | BF59: 0.03275858711 | BG59: 0 | BH59: 0 | BI59: 207412 | BJ59: =IF(BD58="CASH",1,(1-$BN$4)*IF(BD58="XIV",F59,IF(BD58="UVXY",I59,L59))) -> 5.796824192 | BK59: 1.233910619 | BL59: 1202332.133 | BM59: 1203649.535 | BN59: =IF(BD59="CASH",1,(1+$BN$4)*IF(BD59="XIV",F59,IF(BD59="UVXY",I59,L59))) -> 5.803175808 | BO59: 5.78 | BP59: 1198842.594 | BQ59: 53 | BR59: 1.198842594
A60: 2011-12-15 | B60: 25.11 | C60: 29.46 | D60: 26.35 | E60: 28.9 | F60: 5.99 | G60: 6.01 | H60: 0.003338898164 | I60: 4535909.28 | J60: 4511909.76 | K60: -0.005291005291 | L60: 8.2725 | M60: 7.9825 | N60: -0.03505590813 | O60: -0.05728040603 | P60: 0.8560157791 | Q60: 0.02479338843 | R60: 0.03633217993 | S60: =VLOOKUP(A60,'MACD SPYG'!$A$2:$G$1452,7,FALSE) -> -0.08470787184 | T60: 1 | U60: 0 | V60: 1 | W60: 0 | X60: 0 | Y60: 0 | Z60: 1 | AA60: 0 | AB60: 0 | AC60: 0 | AD60: 0 | AE60: 0 | AF60: 1 | AG60: 0 | AH60: 0 | AI60: =IF(SUM($AH60:AH60)>0,0,1)*V60 -> 1 | AJ60: =IF(SUM($AH60:AI60)>0,0,1)*W60 -> 0 | AK60: =IF(SUM($AH60:AJ60)>0,0,1)*X60 -> 0 | AL60: =IF(SUM($AH60:AK60)>0,0,1)*Y60 -> 0 | AM60: =IF(SUM($AH60:AL60)>0,0,1)*Z60 -> 0 | AN60: =IF(SUM($AH60:AM60)>0,0,1)*AA60 -> 0 | AO60: =IF(SUM($AH60:AN60)>0,0,1)*AB60 -> 0 | AP60: =IF(SUM($AH60:AO60)>0,0,1)*AC60 -> 0 | AQ60: =IF(SUM($AH60:AP60)>0,0,1)*AD60 -> 0 | AR60: =IF(SUM($AH60:AQ60)>0,0,1)*AE60 -> 0 | AS60: =IF(SUM($AH60:AR60)>0,0,1)*AF60 -> 0 | AT60: =IF(SUM($AH60:AS60)>0,0,1)*AG60 -> 0 | AU60: 1 | AV60: 1 | AW60: 0 | AX60: 1 | AY60: 0 | AZ60: 1 | BA60: 0 | BB60: 1 | BC60: 0 | BD60: XIV | BE60: 0.003338898164 | BF60: 0.03505839592 | BG60: 0 | BH60: 0 | BI60: 207412 | BJ60: =IF(BD59="CASH",1,(1-$BN$4)*IF(BD59="XIV",F60,IF(BD59="UVXY",I60,L60))) -> 5.986720157 | BK60: 1.233910619 | BL60: 1241718.835 | BM60: 1243079.393 | BN60: =IF(BD60="CASH",1,(1+$BN$4)*IF(BD60="XIV",F60,IF(BD60="UVXY",I60,L60))) -> 5.993279843 | BO60: 6.01 | BP60: 1246547.354 | BQ60: 54 | BR60: 1.246547354
A61: 2011-12-16 | B61: 24.29 | C61: 29.03 | D61: 26.1 | E61: 28.85 | F61: 6.2 | G61: 6.04 | H61: -0.02580645161 | I61: 4214915.7 | J61: 4460910.78 | K61: 0.05836298932 | L61: 8.11375 | M61: 8.0825 | N61: -0.003851486674 | O61: -0.05941176471 | P61: 0.8523421589 | Q61: -0.03571428571 | R61: 0.03161397671 | S61: =VLOOKUP(A61,'MACD SPYG'!$A$2:$G$1452,7,FALSE) -> -0.1365928406 | T61: 1 | U61: 0 | V61: 1 | W61: 0 | X61: 0 | Y61: 0 | Z61: 1 | AA61: 0 | AB61: 0 | AC61: 0 | AD61: 0 | AE61: 0 | AF61: 1 | AG61: 0 | AH61: 0 | AI61: =IF(SUM($AH61:AH61)>0,0,1)*V61 -> 1 | AJ61: =IF(SUM($AH61:AI61)>0,0,1)*W61 -> 0 | AK61: =IF(SUM($AH61:AJ61)>0,0,1)*X61 -> 0 | AL61: =IF(SUM($AH61:AK61)>0,0,1)*Y61 -> 0 | AM61: =IF(SUM($AH61:AL61)>0,0,1)*Z61 -> 0 | AN61: =IF(SUM($AH61:AM61)>0,0,1)*AA61 -> 0 | AO61: =IF(SUM($AH61:AN61)>0,0,1)*AB61 -> 0 | AP61: =IF(SUM($AH61:AO61)>0,0,1)*AC61 -> 0 | AQ61: =IF(SUM($AH61:AP61)>0,0,1)*AD61 -> 0 | AR61: =IF(SUM($AH61:AQ61)>0,0,1)*AE61 -> 0 | AS61: =IF(SUM($AH61:AR61)>0,0,1)*AF61 -> 0 | AT61: =IF(SUM($AH61:AS61)>0,0,1)*AG61 -> 0 | AU61: 1 | AV61: 1 | AW61: 0 | AX61: 1 | AY61: 0 | AZ61: 1 | BA61: 0 | BB61: 1 | BC61: 0 | BD61: XIV | BE61: -0.02580645161 | BF61: -0.01451611511 | BG61: 0 | BH61: 0 | BI61: 207412 | BJ61: =IF(BD60="CASH",1,(1-$BN$4)*IF(BD60="XIV",F61,IF(BD60="UVXY",I61,L61))) -> 6.19660517 | BK61: 1.233910619 | BL61: 1285251.506 | BM61: 1286659.762 | BN61: =IF(BD61="CASH",1,(1+$BN$4)*IF(BD61="XIV",F61,IF(BD61="UVXY",I61,L61))) -> 6.20339483 | BO61: 6.04 | BP61: 1252769.714 | BQ61: 55 | BR61: 1.252769714
A62: 2011-12-19 | B62: 24.92 | C62: 28.74 | D62: 25.6 | E62: 28.35 | F62: 6.11 | G62: 6.11 | H62: 0 | I62: 4364912.7 | J62: 4361912.76 | K62: -0.0006872852234 | L62: 8.1925 | M62: 7.85875 | N62: -0.04073848032 | O62: -0.07714024848 | P62: 0.8367206338 | Q62: -0.03265631223 | R62: 0.01158940397 | S62: =VLOOKUP(A62,'MACD SPYG'!$A$2:$G$1452,7,FALSE) -> -0.1684702612 | T62: 1 | U62: 0 | V62: 1 | W62: 0 | X62: 0 | Y62: 0 | Z62: 1 | AA62: 0 | AB62: 0 | AC62: 0 | AD62: 0 | AE62: 0 | AF62: 1 | AG62: 0 | AH62: 0 | AI62: =IF(SUM($AH62:AH62)>0,0,1)*V62 -> 1 | AJ62: =IF(SUM($AH62:AI62)>0,0,1)*W62 -> 0 | AK62: =IF(SUM($AH62:AJ62)>0,0,1)*X62 -> 0 | AL62: =IF(SUM($AH62:AK62)>0,0,1)*Y62 -> 0 | AM62: =IF(SUM($AH62:AL62)>0,0,1)*Z62 -> 0 | AN62: =IF(SUM($AH62:AM62)>0,0,1)*AA62 -> 0 | AO62: =IF(SUM($AH62:AN62)>0,0,1)*AB62 -> 0 | AP62: =IF(SUM($AH62:AO62)>0,0,1)*AC62 -> 0 | AQ62: =IF(SUM($AH62:AP62)>0,0,1)*AD62 -> 0 | AR62: =IF(SUM($AH62:AQ62)>0,0,1)*AE62 -> 0 | AS62: =IF(SUM($AH62:AR62)>0,0,1)*AF62 -> 0 | AT62: =IF(SUM($AH62:AS62)>0,0,1)*AG62 -> 0 | AU62: 1 | AV62: 1 | AW62: 0 | AX62: 1 | AY62: 0 | AZ62: 1 | BA62: 0 | BB62: 1 | BC62: 0 | BD62: XIV | BE62: 0 | BF62: 0.04255315008 | BG62: 0 | BH62: 0 | BI62: 207412 | BJ62: =IF(BD61="CASH",1,(1-$BN$4)*IF(BD61="XIV",F62,IF(BD61="UVXY",I62,L62))) -> 6.10665445 | BK62: 1.233910619 | BL62: 1266594.647 | BM62: 1267982.461 | BN62: =IF(BD62="CASH",1,(1+$BN$4)*IF(BD62="XIV",F62,IF(BD62="UVXY",I62,L62))) -> 6.11334555 | BO62: 6.11 | BP62: 1267288.554 | BQ62: 56 | BR62: 1.267288554
A63: 2011-12-20 | B63: 23.22 | C63: 26.87 | D63: 23.85 | E63: 26.55 | F63: 6.37 | G63: 6.47 | H63: 0.01569858713 | I63: 3980920.38 | J63: 3827923.44 | K63: -0.03843255463 | L63: 8.23125 | M63: 8.55625 | N63: 0.03948367502 | O63: -0.0476942791 | P63: 0.8670842032 | Q63: 0.02593659942 | R63: 0.04255319149 | S63: =VLOOKUP(A63,'MACD SPYG'!$A$2:$G$1452,7,FALSE) -> -0.1697976222 | T63: 1 | U63: 0 | V63: 0 | W63: 0 | X63: 0 | Y63: 0 | Z63: 1 | AA63: 0 | AB63: 0 | AC63: 0 | AD63: 0 | AE63: 0 | AF63: 1 | AG63: 0 | AH63: 0 | AI63: =IF(SUM($AH63:AH63)>0,0,1)*V63 -> 0 | AJ63: =IF(SUM($AH63:AI63)>0,0,1)*W63 -> 0 | AK63: =IF(SUM($AH63:AJ63)>0,0,1)*X63 -> 0 | AL63: =IF(SUM($AH63:AK63)>0,0,1)*Y63 -> 0 | AM63: =IF(SUM($AH63:AL63)>0,0,1)*Z63 -> 1 | AN63: =IF(SUM($AH63:AM63)>0,0,1)*AA63 -> 0 | AO63: =IF(SUM($AH63:AN63)>0,0,1)*AB63 -> 0 | AP63: =IF(SUM($AH63:AO63)>0,0,1)*AC63 -> 0 | AQ63: =IF(SUM($AH63:AP63)>0,0,1)*AD63 -> 0 | AR63: =IF(SUM($AH63:AQ63)>0,0,1)*AE63 -> 0 | AS63: =IF(SUM($AH63:AR63)>0,0,1)*AF63 -> 0 | AT63: =IF(SUM($AH63:AS63)>0,0,1)*AG63 -> 0 | AU63: 1 | AV63: 1 | AW63: 0 | AX63: 1 | AY63: 0 | AZ63: 1 | BA63: 0 | BB63: 1 | BC63: 0 | BD63: XIV | BE63: 0.01569858713 | BF63: 0.02511771596 | BG63: 0 | BH63: 0 | BI63: 207412 | BJ63: =IF(BD62="CASH",1,(1-$BN$4)*IF(BD62="XIV",F63,IF(BD62="UVXY",I63,L63))) -> 6.366512086 | BK63: 1.233910619 | BL63: 1320492.239 | BM63: 1321939.109 | BN63: =IF(BD63="CASH",1,(1+$BN$4)*IF(BD63="XIV",F63,IF(BD63="UVXY",I63,L63))) -> 6.373487914 | BO63: 6.47 | BP63: 1341956.874 | BQ63: 57 | BR63: 1.341956874
A64: 2011-12-21 | B64: 21.43 | C64: 25.56 | D64: 21.36 | E64: 24.5 | F64: 6.53 | G64: 6.92 | H64: 0.05972434916 | I64: 3752924.94 | J64: 3323933.52 | K64: -0.1143085532 | L64: 8.41 | M64: 8.2 | N64: -0.02497027348 | O64: -0.04899904061 | P64: 0.8641607741 | Q64: -0.06821829856 | R64: 0.009273570325 | S64: =VLOOKUP(A64,'MACD SPYG'!$A$2:$G$1452,7,FALSE) -> -0.1125916286 | T64: 1 | U64: 0 | V64: 0 | W64: 0 | X64: 0 | Y64: 0 | Z64: 1 | AA64: 0 | AB64: 0 | AC64: 0 | AD64: 0 | AE64: 0 | AF64: 1 | AG64: 0 | AH64: 0 | AI64: =IF(SUM($AH64:AH64)>0,0,1)*V64 -> 0 | AJ64: =IF(SUM($AH64:AI64)>0,0,1)*W64 -> 0 | AK64: =IF(SUM($AH64:AJ64)>0,0,1)*X64 -> 0 | AL64: =IF(SUM($AH64:AK64)>0,0,1)*Y64 -> 0 | AM64: =IF(SUM($AH64:AL64)>0,0,1)*Z64 -> 1 | AN64: =IF(SUM($AH64:AM64)>0,0,1)*AA64 -> 0 | AO64: =IF(SUM($AH64:AN64)>0,0,1)*AB64 -> 0 | AP64: =IF(SUM($AH64:AO64)>0,0,1)*AC64 -> 0 | AQ64: =IF(SUM($AH64:AP64)>0,0,1)*AD64 -> 0 | AR64: =IF(SUM($AH64:AQ64)>0,0,1)*AE64 -> 0 | AS64: =IF(SUM($AH64:AR64)>0,0,1)*AF64 -> 0 | AT64: =IF(SUM($AH64:AS64)>0,0,1)*AG64 -> 0 | AU64: 1 | AV64: 1 | AW64: 0 | AX64: 1 | AY64: 0 | AZ64: 1 | BA64: 0 | BB64: 1 | BC64: 0 | BD64: XIV | BE64: 0.05972434916 | BF64: 0.07810100086 | BG64: 0 | BH64: 0 | BI64: 207412 | BJ64: =IF(BD63="CASH",1,(1-$BN$4)*IF(BD63="XIV",F64,IF(BD63="UVXY",I64,L64))) -> 6.526424478 | BK64: 1.233910619 | BL64: 1353659.988 | BM64: 1355143.2 | BN64: =IF(BD64="CASH",1,(1+$BN$4)*IF(BD64="XIV",F64,IF(BD64="UVXY",I64,L64))) -> 6.533575522 | BO64: 6.92 | BP64: 1435292.274 | BQ64: 58 | BR64: 1.435292274
A65: 2011-12-22 | B65: 21.16 | C65: 25.28 | D65: 25.1 | E65: 26 | F65: 7.04 | G65: 6.88 | H65: -0.02272727273 | I65: 3176936.46 | J65: 3320933.58 | K65: 0.04532577904 | L65: 8.2325 | M65: 8.4 | N65: 0.02034618889 | O65: -0.0361549721 | P65: 0.8384194053 | Q65: -0.07708871662 | R65: 0.01734104046 | S65: =VLOOKUP(A65,'MACD SPYG'!$A$2:$G$1452,7,FALSE) -> -0.06675075337 | T65: 1 | U65: 0 | V65: 0 | W65: 0 | X65: 0 | Y65: 0 | Z65: 1 | AA65: 0 | AB65: 0 | AC65: 0 | AD65: 0 | AE65: 0 | AF65: 0 | AG65: 0 | AH65: 0 | AI65: =IF(SUM($AH65:AH65)>0,0,1)*V65 -> 0 | AJ65: =IF(SUM($AH65:AI65)>0,0,1)*W65 -> 0 | AK65: =IF(SUM($AH65:AJ65)>0,0,1)*X65 -> 0 | AL65: =IF(SUM($AH65:AK65)>0,0,1)*Y65 -> 0 | AM65: =IF(SUM($AH65:AL65)>0,0,1)*Z65 -> 1 | AN65: =IF(SUM($AH65:AM65)>0,0,1)*AA65 -> 0 | AO65: =IF(SUM($AH65:AN65)>0,0,1)*AB65 -> 0 | AP65: =IF(SUM($AH65:AO65)>0,0,1)*AC65 -> 0 | AQ65: =IF(SUM($AH65:AP65)>0,0,1)*AD65 -> 0 | AR65: =IF(SUM($AH65:AQ65)>0,0,1)*AE65 -> 0 | AS65: =IF(SUM($AH65:AR65)>0,0,1)*AF65 -> 0 | AT65: =IF(SUM($AH65:AS65)>0,0,1)*AG65 -> 0 | AU65: 1 | AV65: 1 | AW65: 0 | AX65: 1 | AY65: 0 | AZ65: 1 | BA65: 0 | BB65: 1 | BC65: 0 | BD65: XIV | BE65: -0.02272727273 | BF65: -0.0156249868 | BG65: 0 | BH65: 0 | BI65: 207412 | BJ65: =IF(BD64="CASH",1,(1-$BN$4)*IF(BD64="XIV",F65,IF(BD64="UVXY",I65,L65))) -> 7.036145226 | BK65: 1.233910619 | BL65: 1459382.187 | BM65: 1460981.24 | BN65: =IF(BD65="CASH",1,(1+$BN$4)*IF(BD65="XIV",F65,IF(BD65="UVXY",I65,L65))) -> 7.043854774 | BO65: 6.88 | BP65: 1426995.794 | BQ65: 59 | BR65: 1.426995794
A66: 2011-12-23 | B66: 20.73 | C66: 25.22 | D66: 25.7 | E66: 26.4 | F66: 6.93 | G66: 6.71 | H66: -0.03174603175 | I66: 3227935.44 | J66: 3479930.4 | K66: 0.0780669145 | L66: 8.4475 | M66: 8.6175 | N66: 0.02012429713 | O66: -0.1202650935 | P66: 0.8370253165 | Q66: -0.01259916006 | R66: 0.00726744186 | S66: =VLOOKUP(A66,'MACD SPYG'!$A$2:$G$1452,7,FALSE) -> -0.01305346096 | T66: 1 | U66: 0 | V66: 1 | W66: 0 | X66: 0 | Y66: 0 | Z66: 1 | AA66: 0 | AB66: 0 | AC66: 0 | AD66: 0 | AE66: 0 | AF66: 1 | AG66: 0 | AH66: 0 | AI66: =IF(SUM($AH66:AH66)>0,0,1)*V66 -> 1 | AJ66: =IF(SUM($AH66:AI66)>0,0,1)*W66 -> 0 | AK66: =IF(SUM($AH66:AJ66)>0,0,1)*X66 -> 0 | AL66: =IF(SUM($AH66:AK66)>0,0,1)*Y66 -> 0 | AM66: =IF(SUM($AH66:AL66)>0,0,1)*Z66 -> 0 | AN66: =IF(SUM($AH66:AM66)>0,0,1)*AA66 -> 0 | AO66: =IF(SUM($AH66:AN66)>0,0,1)*AB66 -> 0 | AP66: =IF(SUM($AH66:AO66)>0,0,1)*AC66 -> 0 | AQ66: =IF(SUM($AH66:AP66)>0,0,1)*AD66 -> 0 | AR66: =IF(SUM($AH66:AQ66)>0,0,1)*AE66 -> 0 | AS66: =IF(SUM($AH66:AR66)>0,0,1)*AF66 -> 0 | AT66: =IF(SUM($AH66:AS66)>0,0,1)*AG66 -> 0 | AU66: 1 | AV66: 1 | AW66: 0 | AX66: 1 | AY66: 0 | AZ66: 1 | BA66: 0 | BB66: 1 | BC66: 0 | BD66: XIV | BE66: -0.03174603175 | BF66: -0.0288600041 | BG66: 0 | BH66: 0 | BI66: 207412 | BJ66: =IF(BD65="CASH",1,(1-$BN$4)*IF(BD65="XIV",F66,IF(BD65="UVXY",I66,L66))) -> 6.926205457 | BK66: 1.233910619 | BL66: 1436579.36 | BM66: 1438153.428 | BN66: =IF(BD66="CASH",1,(1+$BN$4)*IF(BD66="XIV",F66,IF(BD66="UVXY",I66,L66))) -> 6.933794543 | BO66: 6.71 | BP66: 1391735.754 | BQ66: 60 | BR66: 1.391735754
A67: 2011-12-27 | B67: 21.91 | C67: 25.54 | D67: 25.45 | E67: 26.2 | F67: 6.73 | G67: 6.75 | H67: 0.002971768202 | I67: 3449931 | J67: 3440931.18 | K67: -0.002608695652 | L67: 8.585 | M67: 8.68375 | N67: 0.01150262085 | O67: -0.1433241953 | P67: 0.8219666931 | Q67: -0.02032136106 | R67: 0.002980625931 | S67: =VLOOKUP(A67,'MACD SPYG'!$A$2:$G$1452,7,FALSE) -> 0.04597375162 | T67: 1 | U67: 0 | V67: 1 | W67: 0 | X67: 0 | Y67: 0 | Z67: 1 | AA67: 0 | AB67: 0 | AC67: 0 | AD67: 0 | AE67: 0 | AF67: 1 | AG67: 0 | AH67: 0 | AI67: =IF(SUM($AH67:AH67)>0,0,1)*V67 -> 1 | AJ67: =IF(SUM($AH67:AI67)>0,0,1)*W67 -> 0 | AK67: =IF(SUM($AH67:AJ67)>0,0,1)*X67 -> 0 | AL67: =IF(SUM($AH67:AK67)>0,0,1)*Y67 -> 0 | AM67: =IF(SUM($AH67:AL67)>0,0,1)*Z67 -> 0 | AN67: =IF(SUM($AH67:AM67)>0,0,1)*AA67 -> 0 | AO67: =IF(SUM($AH67:AN67)>0,0,1)*AB67 -> 0 | AP67: =IF(SUM($AH67:AO67)>0,0,1)*AC67 -> 0 | AQ67: =IF(SUM($AH67:AP67)>0,0,1)*AD67 -> 0 | AR67: =IF(SUM($AH67:AQ67)>0,0,1)*AE67 -> 0 | AS67: =IF(SUM($AH67:AR67)>0,0,1)*AF67 -> 0 | AT67: =IF(SUM($AH67:AS67)>0,0,1)*AG67 -> 0 | AU67: 1 | AV67: 1 | AW67: 0 | AX67: 1 | AY67: 0 | AZ67: 1 | BA67: 0 | BB67: 1 | BC67: 0 | BD67: XIV | BE67: 0.002971768202 | BF67: 0.00891529673 | BG67: 0 | BH67: 0 | BI67: 207412 | BJ67: =IF(BD66="CASH",1,(1-$BN$4)*IF(BD66="XIV",F67,IF(BD66="UVXY",I67,L67))) -> 6.726314967 | BK67: 1.233910619 | BL67: 1395119.674 | BM67: 1396648.314 | BN67: =IF(BD67="CASH",1,(1+$BN$4)*IF(BD67="XIV",F67,IF(BD67="UVXY",I67,L67))) -> 6.733685033 | BO67: 6.75 | BP67: 1400032.234 | BQ67: 61 | BR67: 1.400032234
A68: 2011-12-28 | B68: 23.52 | C68: 26.75 | D68: 26.7 | E68: 27.1 | F68: 6.79 | G68: 6.47 | H68: -0.0471281296 | I68: 3398932.02 | J68: 3713925.72 | K68: 0.09267431598 | L68: 8.6625 | M68: 8.405 | N68: -0.02972582973 | O68: -0.1059551733 | P68: 0.8578700078 | Q68: 0.05692233478 | R68: 0.005925925926 | S68: =VLOOKUP(A68,'MACD SPYG'!$A$2:$G$1452,7,FALSE) -> 0.08663570016 | T68: 1 | U68: 0 | V68: 1 | W68: 0 | X68: 0 | Y68: 0 | Z68: 1 | AA68: 0 | AB68: 0 | AC68: 1 | AD68: 0 | AE68: 0 | AF68: 1 | AG68: 0 | AH68: 0 | AI68: =IF(SUM($AH68:AH68)>0,0,1)*V68 -> 1 | AJ68: =IF(SUM($AH68:AI68)>0,0,1)*W68 -> 0 | AK68: =IF(SUM($AH68:AJ68)>0,0,1)*X68 -> 0 | AL68: =IF(SUM($AH68:AK68)>0,0,1)*Y68 -> 0 | AM68: =IF(SUM($AH68:AL68)>0,0,1)*Z68 -> 0 | AN68: =IF(SUM($AH68:AM68)>0,0,1)*AA68 -> 0 | AO68: =IF(SUM($AH68:AN68)>0,0,1)*AB68 -> 0 | AP68: =IF(SUM($AH68:AO68)>0,0,1)*AC68 -> 0 | AQ68: =IF(SUM($AH68:AP68)>0,0,1)*AD68 -> 0 | AR68: =IF(SUM($AH68:AQ68)>0,0,1)*AE68 -> 0 | AS68: =IF(SUM($AH68:AR68)>0,0,1)*AF68 -> 0 | AT68: =IF(SUM($AH68:AS68)>0,0,1)*AG68 -> 0 | AU68: 1 | AV68: 1 | AW68: 0 | AX68: 1 | AY68: 0 | AZ68: 1 | BA68: 0 | BB68: 1 | BC68: 0 | BD68: XIV | BE68: -0.0471281296 | BF68: -0.03976432453 | BG68: 0 | BH68: 0 | BI68: 207412 | BJ68: =IF(BD67="CASH",1,(1-$BN$4)*IF(BD67="XIV",F68,IF(BD67="UVXY",I68,L68))) -> 6.786282114 | BK68: 1.233910619 | BL68: 1407557.58 | BM68: 1409099.848 | BN68: =IF(BD68="CASH",1,(1+$BN$4)*IF(BD68="XIV",F68,IF(BD68="UVXY",I68,L68))) -> 6.793717886 | BO68: 6.47 | BP68: 1341956.874 | BQ68: 62 | BR68: 1.341956874
A69: 2011-12-29 | B69: 22.65 | C69: 26.25 | D69: 25.95 | E69: 26.55 | F69: 6.52 | G69: 6.63 | H69: 0.01687116564 | I69: 3665926.68 | J69: 3536929.26 | K69: -0.03518821604 | L69: 8.42875 | M69: 8.56875 | N69: 0.01660981759 | O69: -0.0877988308 | P69: 0.8792523364 | Q69: 0.07348242812 | R69: 0.00772797527 | S69: =VLOOKUP(A69,'MACD SPYG'!$A$2:$G$1452,7,FALSE) -> 0.0802721259 | T69: 1 | U69: 0 | V69: 1 | W69: 0 | X69: 0 | Y69: 0 | Z69: 1 | AA69: 0 | AB69: 0 | AC69: 1 | AD69: 0 | AE69: 0 | AF69: 1 | AG69: 0 | AH69: 0 | AI69: =IF(SUM($AH69:AH69)>0,0,1)*V69 -> 1 | AJ69: =IF(SUM($AH69:AI69)>0,0,1)*W69 -> 0 | AK69: =IF(SUM($AH69:AJ69)>0,0,1)*X69 -> 0 | AL69: =IF(SUM($AH69:AK69)>0,0,1)*Y69 -> 0 | AM69: =IF(SUM($AH69:AL69)>0,0,1)*Z69 -> 0 | AN69: =IF(SUM($AH69:AM69)>0,0,1)*AA69 -> 0 | AO69: =IF(SUM($AH69:AN69)>0,0,1)*AB69 -> 0 | AP69: =IF(SUM($AH69:AO69)>0,0,1)*AC69 -> 0 | AQ69: =IF(SUM($AH69:AP69)>0,0,1)*AD69 -> 0 | AR69: =IF(SUM($AH69:AQ69)>0,0,1)*AE69 -> 0 | AS69: =IF(SUM($AH69:AR69)>0,0,1)*AF69 -> 0 | AT69: =IF(SUM($AH69:AS69)>0,0,1)*AG69 -> 0 | AU69: 1 | AV69: 1 | AW69: 0 | AX69: 1 | AY69: 0 | AZ69: 1 | BA69: 0 | BB69: 1 | BC69: 0 | BD69: XIV | BE69: 0.01687116564 | BF69: 0.01993863212 | BG69: 0 | BH69: 0 | BI69: 207412 | BJ69: =IF(BD68="CASH",1,(1-$BN$4)*IF(BD68="XIV",F69,IF(BD68="UVXY",I69,L69))) -> 6.516429953 | BK69: 1.233910619 | BL69: 1351587.003 | BM69: 1353067.944 | BN69: =IF(BD69="CASH",1,(1+$BN$4)*IF(BD69="XIV",F69,IF(BD69="UVXY",I69,L69))) -> 6.523570047 | BO69: 6.63 | BP69: 1375142.794 | BQ69: 63 | BR69: 1.375142794
A70: 2011-12-30 | B70: 23.4 | C70: 26.86 | D70: 26.7 | E70: 27.15 | F70: 6.65 | G70: 6.51 | H70: -0.02105263158 | I70: 3536929.26 | J70: 3647927.04 | K70: 0.03138252757 | L70: 8.51875 | M70: 8.49875 | N70: -0.002347762289 | O70: -0.09579700206 | P70: 0.8628571429 | Q70: -0.03698979592 | R70: 0.003016591252 | S70: =VLOOKUP(A70,'MACD SPYG'!$A$2:$G$1452,7,FALSE) -> 0.08861881333 | T70: 1 | U70: 0 | V70: 1 | W70: 0 | X70: 0 | Y70: 0 | Z70: 1 | AA70: 0 | AB70: 0 | AC70: 0 | AD70: 0 | AE70: 0 | AF70: 1 | AG70: 0 | AH70: 0 | AI70: =IF(SUM($AH70:AH70)>0,0,1)*V70 -> 1 | AJ70: =IF(SUM($AH70:AI70)>0,0,1)*W70 -> 0 | AK70: =IF(SUM($AH70:AJ70)>0,0,1)*X70 -> 0 | AL70: =IF(SUM($AH70:AK70)>0,0,1)*Y70 -> 0 | AM70: =IF(SUM($AH70:AL70)>0,0,1)*Z70 -> 0 | AN70: =IF(SUM($AH70:AM70)>0,0,1)*AA70 -> 0 | AO70: =IF(SUM($AH70:AN70)>0,0,1)*AB70 -> 0 | AP70: =IF(SUM($AH70:AO70)>0,0,1)*AC70 -> 0 | AQ70: =IF(SUM($AH70:AP70)>0,0,1)*AD70 -> 0 | AR70: =IF(SUM($AH70:AQ70)>0,0,1)*AE70 -> 0 | AS70: =IF(SUM($AH70:AR70)>0,0,1)*AF70 -> 0 | AT70: =IF(SUM($AH70:AS70)>0,0,1)*AG70 -> 0 | AU70: 1 | AV70: 1 | AW70: 0 | AX70: 1 | AY70: 0 | AZ70: 1 | BA70: 0 | BB70: 1 | BC70: 0 | BD70: XIV | BE70: -0.02105263158 | BF70: 0.02556388692 | BG70: 0 | BH70: 0 | BI70: 207412 | BJ70: =IF(BD69="CASH",1,(1-$BN$4)*IF(BD69="XIV",F70,IF(BD69="UVXY",I70,L70))) -> 6.646358772 | BK70: 1.233910619 | BL70: 1378535.799 | BM70: 1380046.268 | BN70: =IF(BD70="CASH",1,(1+$BN$4)*IF(BD70="XIV",F70,IF(BD70="UVXY",I70,L70))) -> 6.653641228 | BO70: =IF(BD70="CASH",1,IF(BD70="XIV",G70,IF(BD70="UVXY",J70,M70))) -> 6.51 | BP70: 1350253.354 | BQ70: 64 | BR70: 1.350253354
A71: 2012-01-03 | B71: 22.97 | C71: 26.05 | D71: 24.8 | E71: 25.8 | F71: 6.82 | G71: 6.86 | H71: =G71/F71-1 -> 0.005865102639 | I71: 3311933.76 | J71: 3263934.72 | K71: =J71/I71-1 -> -0.01449275362 | L71: 8.9775 | M71: 8.9825 | N71: =M71/L71-1 -> 0.0005569479254 | O71: -0.09148922962 | P71: 0.8711839166 | Q71: 0.03311258278 | R71: 0.04761904762 | S71: =VLOOKUP(A71,'MACD SPYG'!$A$2:$G$1452,7,FALSE) -> 0.1374549762 | T71: 1 | U71: 0 | V71: 1 | W71: 0 | X71: 0 | Y71: 0 | Z71: 1 | AA71: 0 | AB71: 0 | AC71: 0 | AD71: 0 | AE71: 0 | AF71: 1 | AG71: 0 | AH71: 0 | AI71: =IF(SUM($AH71:AH71)>0,0,1)*V71 -> 1 | AJ71: =IF(SUM($AH71:AI71)>0,0,1)*W71 -> 0 | AK71: =IF(SUM($AH71:AJ71)>0,0,1)*X71 -> 0 | AL71: =IF(SUM($AH71:AK71)>0,0,1)*Y71 -> 0 | AM71: =IF(SUM($AH71:AL71)>0,0,1)*Z71 -> 0 | AN71: =IF(SUM($AH71:AM71)>0,0,1)*AA71 -> 0 | AO71: =IF(SUM($AH71:AN71)>0,0,1)*AB71 -> 0 | AP71: =IF(SUM($AH71:AO71)>0,0,1)*AC71 -> 0 | AQ71: =IF(SUM($AH71:AP71)>0,0,1)*AD71 -> 0 | AR71: =IF(SUM($AH71:AQ71)>0,0,1)*AE71 -> 0 | AS71: =IF(SUM($AH71:AR71)>0,0,1)*AF71 -> 0 | AT71: =IF(SUM($AH71:AS71)>0,0,1)*AG71 -> 0 | AU71: 1 | AV71: 1 | AW71: 0 | AX71: 1 | AY71: 0 | AZ71: 1 | BA71: 0 | BB71: 1 | BC71: 0 | BD71: =IF(T71=0,BD70,IF(AZ71=1,"XIV",IF(BA71=1,"UVXY","TQQQ"))) -> XIV | BE71: =IF(BD71="CASH",0%,IF(BD71="XIV",H71,IF(BD71="UVXY",K71,N71))) -> 0.005865102639 | BF71: -0.007331371907 | BG71: 0 | BH71: 0 | BI71: 207412 | BJ71: =IF(BD70="CASH",1,(1-$BN$4)*IF(BD70="XIV",F71,IF(BD70="UVXY",I71,L71))) -> 6.816265688 | BK71: 1.233910619 | BL71: 1413776.533 | BM71: 1415325.615 | BN71: =IF(BD71="CASH",1,(1+$BN$4)*IF(BD71="XIV",F71,IF(BD71="UVXY",I71,L71))) -> 6.823734312 | BO71: 6.86 | BP71: =BI71*BO71+BK71 -> 1422847.554 | BQ71: =BQ70+1 -> 65 | BR71: 1.422847554
A72: 2012-01-04 | B72: 22.22 | C72: 25.31 | D72: 24.2 | E72: 25.3 | F72: 6.77 | G72: 6.99 | H72: 0.03249630724 | I72: 3356932.86 | J72: 3137937.24 | K72: -0.06523681859 | L72: 8.94 | M72: 9.09 | N72: 0.01677852349 | O72: -0.06328113278 | P72: =B71/C71 -> 0.8817658349 | Q72: =B71/B70-1 -> -0.01837606838 | R72: =F72/G71-1 -> -0.01311953353 | S72: =VLOOKUP(A72,'MACD SPYG'!$A$2:$G$1452,7,FALSE) -> 0.13668171 | T72: =IF(A72-$A$9>=0,1,0) -> 1 | U72: 0 | V72: 1 | W72: 0 | X72: 0 | Y72: 0 | Z72: 1 | AA72: 0 | AB72: 0 | AC72: 0 | AD72: 0 | AE72: 0 | AF72: 1 | AG72: 0 | AH72: 0 | AI72: =IF(SUM($AH72:AH72)>0,0,1)*V72 -> 1 | AJ72: =IF(SUM($AH72:AI72)>0,0,1)*W72 -> 0 | AK72: =IF(SUM($AH72:AJ72)>0,0,1)*X72 -> 0 | AL72: =IF(SUM($AH72:AK72)>0,0,1)*Y72 -> 0 | AM72: =IF(SUM($AH72:AL72)>0,0,1)*Z72 -> 0 | AN72: =IF(SUM($AH72:AM72)>0,0,1)*AA72 -> 0 | AO72: =IF(SUM($AH72:AN72)>0,0,1)*AB72 -> 0 | AP72: =IF(SUM($AH72:AO72)>0,0,1)*AC72 -> 0 | AQ72: =IF(SUM($AH72:AP72)>0,0,1)*AD72 -> 0 | AR72: =IF(SUM($AH72:AQ72)>0,0,1)*AE72 -> 0 | AS72: =IF(SUM($AH72:AR72)>0,0,1)*AF72 -> 0 | AT72: =IF(SUM($AH72:AS72)>0,0,1)*AG72 -> 0 | AU72: 1 | AV72: 1 | AW72: 0 | AX72: 1 | AY72: 0 | AZ72: 1 | BA72: 0 | BB72: 1 | BC72: 0 | BD72: XIV | BE72: 0.03249630724 | BF72: 0.0192023465 | BG72: =IF(BD72=BD71,0,1) -> 0 | BH72: =IF(BD72<>BD71,1,0) -> 0 | BI72: 207412 | BJ72: =IF(BD71="CASH",1,(1-$BN$4)*IF(BD71="XIV",F72,IF(BD71="UVXY",I72,L72))) -> 6.766293065 | BK72: 1.233910619 | BL72: 1403411.611 | BM72: 1404949.337 | BN72: =IF(BD72="CASH",1,(1+$BN$4)*IF(BD72="XIV",F72,IF(BD72="UVXY",I72,L72))) -> 6.773706935 | BO72: 6.99 | BP72: 1449811.114 | BQ72: 66 | BR72: =BP72/10^6 -> 1.449811114
A73: 2012-01-05 | B73: 21.48 | C73: 24.7 | D73: 23.75 | E73: 24.9 | F73: 6.9 | G73: 7.15 | H73: 0.03623188406 | I73: 3221935.56 | J73: 2993400.131 | K73: -0.0709310987 | L73: 9.04375 | M73: 9.31375 | N73: 0.02985487215 | O73: =$O$4*B72/D72+(1-$O$4)*D72/E72-1 -> -0.07031620553 | P73: 0.877913868 | Q73: -0.03265128428 | R73: -0.01287553648 | S73: =VLOOKUP(A73,'MACD SPYG'!$A$2:$G$1452,7,FALSE) -> 0.116668773 | T73: 1 | U73: =IF(B72<$U$4,1,0) -> 0 | V73: 1 | W73: =IF(P73<$W$4,1,0) -> 0 | X73: 0 | Y73: 0 | Z73: 1 | AA73: 0 | AB73: 0 | AC73: 0 | AD73: 0 | AE73: 0 | AF73: 1 | AG73: 0 | AH73: 0 | AI73: =IF(SUM($AH73:AH73)>0,0,1)*V73 -> 1 | AJ73: =IF(SUM($AH73:AI73)>0,0,1)*W73 -> 0 | AK73: =IF(SUM($AH73:AJ73)>0,0,1)*X73 -> 0 | AL73: =IF(SUM($AH73:AK73)>0,0,1)*Y73 -> 0 | AM73: =IF(SUM($AH73:AL73)>0,0,1)*Z73 -> 0 | AN73: =IF(SUM($AH73:AM73)>0,0,1)*AA73 -> 0 | AO73: =IF(SUM($AH73:AN73)>0,0,1)*AB73 -> 0 | AP73: =IF(SUM($AH73:AO73)>0,0,1)*AC73 -> 0 | AQ73: =IF(SUM($AH73:AP73)>0,0,1)*AD73 -> 0 | AR73: =IF(SUM($AH73:AQ73)>0,0,1)*AE73 -> 0 | AS73: =IF(SUM($AH73:AR73)>0,0,1)*AF73 -> 0 | AT73: =IF(SUM($AH73:AS73)>0,0,1)*AG73 -> 0 | AU73: 1 | AV73: =IF(U73=1,0,IF(V73=1,1,IF(W73=1,1,IF(X73=1,0,IF(Y73=1,0,IF(Z73=1,1,IF(AA73=1,0,IF(AB73=1,1,IF(AC73=1,0,IF(AD73=1,1,IF(AE73=1,0,AF73))))))))))) -> 1 | AW73: =IF(U73=1,1,IF(V73=1,0,IF(W73=1,0,IF(X73=1,1,IF(Y73=1,1,IF(Z73=1,0,IF(AA73=1,1,IF(AB73=1,0,IF(AC73=1,1,IF(AD73=1,0,IF(AE73=1,1,IF(AF73=1,0,AG73)))))))))))) -> 0 | AX73: =AV73+AW73 -> 1 | AY73: =IF(OR(AV73=1,AW73=1),0,1) -> 0 | AZ73: =IF(AV73=0,0,IF(R73<$R$4,0,1)) -> 1 | BA73: =IF(AW73=0,0,IF(R73>-$R$4,0,1)) -> 0 | BB73: =AZ73+BA73 -> 1 | BC73: =IF(OR(AZ73=1,BA73=1),0,1) -> 0 | BD73: XIV | BE73: 0.03623188406 | BF73: =BM74/BM73-1 -> 0.0434782234 | BG73: 0 | BH73: 0 | BI73: 207412 | BJ73: =IF(BD72="CASH",1,(1-$BN$4)*IF(BD72="XIV",F73,IF(BD72="UVXY",I73,L73))) -> 6.896221883 | BK73: 1.233910619 | BL73: 1430360.407 | BM73: 1431927.661 | BN73: =IF(BD73="CASH",1,(1+$BN$4)*IF(BD73="XIV",F73,IF(BD73="UVXY",I73,L73))) -> 6.903778117 | BO73: 7.15 | BP73: 1482997.034 | BQ73: 67 | BR73: 1.482997034
A74: 2012-01-06 | B74: 20.63 | C74: 24.09 | D74: 23.05 | E74: 24.4 | F74: 7.2 | G74: 7.25 | H74: 0.006944444444 | I74: 2942941.14 | J74: 2897942.04 | K74: -0.01529051988 | L74: 9.33875 | M74: 9.41 | N74: 0.007629500736 | O74: -0.08076068484 | P74: 0.8696356275 | Q74: -0.03330333033 | R74: 0.006993006993 | S74: =VLOOKUP(A74,'MACD SPYG'!$A$2:$G$1452,7,FALSE) -> 0.1255849193 | T74: 1 | U74: 0 | V74: =IF(O74<$V$4,1,0) -> 1 | W74: 0 | X74: =IF(AND(O74>$X$4,S74>$S$4),1,0) -> 0 | Y74: =IF(P74>$Y$4,1,0) -> 0 | Z74: =IF(B73>$Z$4,1,0) -> 1 | AA74: =IF(B73<$AA$4,1,0) -> 0 | AB74: =IF(Q74<$AB$4,1,0) -> 0 | AC74: =IF(Q74>$AC$4,1,0) -> 0 | AD74: =IF(Q74>$AD$4,1,0) -> 0 | AE74: =IF(Q74<$AE$4,1,0) -> 0 | AF74: =IF(O74<$AF$4,1,0) -> 1 | AG74: =IF(O74>$AG$4,1,0) -> 0 | AH74: =U74 -> 0 | AI74: =IF(SUM($AH74:AH74)>0,0,1)*V74 -> 1 | AJ74: =IF(SUM($AH74:AI74)>0,0,1)*W74 -> 0 | AK74: =IF(SUM($AH74:AJ74)>0,0,1)*X74 -> 0 | AL74: =IF(SUM($AH74:AK74)>0,0,1)*Y74 -> 0 | AM74: =IF(SUM($AH74:AL74)>0,0,1)*Z74 -> 0 | AN74: =IF(SUM($AH74:AM74)>0,0,1)*AA74 -> 0 | AO74: =IF(SUM($AH74:AN74)>0,0,1)*AB74 -> 0 | AP74: =IF(SUM($AH74:AO74)>0,0,1)*AC74 -> 0 | AQ74: =IF(SUM($AH74:AP74)>0,0,1)*AD74 -> 0 | AR74: =IF(SUM($AH74:AQ74)>0,0,1)*AE74 -> 0 | AS74: =IF(SUM($AH74:AR74)>0,0,1)*AF74 -> 0 | AT74: =IF(SUM($AH74:AS74)>0,0,1)*AG74 -> 0 | AU74: =SUM(AH74:AT74) -> 1 | AV74: 1 | AW74: 0 | AX74: 1 | AY74: 0 | AZ74: 1 | BA74: 0 | BB74: 1 | BC74: 0 | BD74: XIV | BE74: 0.006944444444 | BF74: 0.01805554065 | BG74: 0 | BH74: 0 | BI74: =IF(BD74=BD73,BI73,TRUNC((BL74-$BI$3)/BN74,0)) -> 207412 | BJ74: =IF(BD73="CASH",1,(1-$BN$4)*IF(BD73="XIV",F74,IF(BD73="UVXY",I74,L74))) -> 7.196057617 | BK74: =IF(BD74=BD73,BK73,BL74-BN74*BI74-9.95) -> 1.233910619 | BL74: =BJ74*BI73+BK73 -> 1492549.936 | BM74: =BN74*BI74+BK74 -> 1494185.331 | BN74: =IF(BD74="CASH",1,(1+$BN$4)*IF(BD74="XIV",F74,IF(BD74="UVXY",I74,L74))) -> 7.203942383 | BO74: 7.25 | BP74: 1503738.234 | BQ74: 68 | BR74: 1.503738234
A75: 2012-01-09 | B75: 21.07 | C75: 24.12 | D75: 22.85 | E75: 24.15 | F75: 7.33 | G75: 7.37 | H75: 0.005457025921 | I75: 2843943.12 | J75: 2810943.78 | K75: -0.01160337553 | L75: 9.4875 | M75: 9.33125 | N75: -0.01646903821 | O75: -0.09009076846 | P75: 0.8563719386 | Q75: -0.0395716946 | R75: 0.01103448276 | S75: =VLOOKUP(A75,'MACD SPYG'!$A$2:$G$1452,7,FALSE) -> 0.1237999138 | T75: 1 | U75: 0 | V75: 1 | W75: 0 | X75: 0 | Y75: 0 | Z75: 1 | AA75: 0 | AB75: 0 | AC75: 0 | AD75: 0 | AE75: 0 | AF75: 1 | AG75: 0 | AH75: 0 | AI75: =IF(SUM($AH75:AH75)>0,0,1)*V75 -> 1 | AJ75: =IF(SUM($AH75:AI75)>0,0,1)*W75 -> 0 | AK75: =IF(SUM($AH75:AJ75)>0,0,1)*X75 -> 0 | AL75: =IF(SUM($AH75:AK75)>0,0,1)*Y75 -> 0 | AM75: =IF(SUM($AH75:AL75)>0,0,1)*Z75 -> 0 | AN75: =IF(SUM($AH75:AM75)>0,0,1)*AA75 -> 0 | AO75: =IF(SUM($AH75:AN75)>0,0,1)*AB75 -> 0 | AP75: =IF(SUM($AH75:AO75)>0,0,1)*AC75 -> 0 | AQ75: =IF(SUM($AH75:AP75)>0,0,1)*AD75 -> 0 | AR75: =IF(SUM($AH75:AQ75)>0,0,1)*AE75 -> 0 | AS75: =IF(SUM($AH75:AR75)>0,0,1)*AF75 -> 0 | AT75: =IF(SUM($AH75:AS75)>0,0,1)*AG75 -> 0 | AU75: 1 | AV75: 1 | AW75: 0 | AX75: 1 | AY75: 0 | AZ75: 1 | BA75: 0 | BB75: 1 | BC75: 0 | BD75: XIV | BE75: 0.005457025921 | BF75: 0.03547063971 | BG75: 0 | BH75: 0 | BI75: 207412 | BJ75: =IF(BD74="CASH",1,(1-$BN$4)*IF(BD74="XIV",F75,IF(BD74="UVXY",I75,L75))) -> 7.325986435 | BK75: 1.233910619 | BL75: 1519498.732 | BM75: 1521163.655 | BN75: =IF(BD75="CASH",1,(1+$BN$4)*IF(BD75="XIV",F75,IF(BD75="UVXY",I75,L75))) -> 7.334013565 | BO75: 7.37 | BP75: 1528627.674 | BQ75: 69 | BR75: 1.528627674
A76: 2012-01-10 | B76: 20.69 | C76: 23.68 | D76: 22.35 | E76: 23.65 | F76: 7.59 | G76: 7.52 | H76: -0.009222661397 | I76: 2639947.2 | J76: 2693946.12 | K76: 0.02045454545 | L76: 9.6325 | M76: 9.5225 | N76: -0.01141967298 | O76: -0.0706786088 | P76: 0.8735489221 | Q76: 0.02132816287 | R76: 0.02985074627 | S76: =VLOOKUP(A76,'MACD SPYG'!$A$2:$G$1452,7,FALSE) -> 0.13745516 | T76: 1 | U76: 0 | V76: 1 | W76: 0 | X76: 0 | Y76: 0 | Z76: 1 | AA76: 0 | AB76: 0 | AC76: 0 | AD76: 0 | AE76: 0 | AF76: 1 | AG76: 0 | AH76: 0 | AI76: =IF(SUM($AH76:AH76)>0,0,1)*V76 -> 1 | AJ76: =IF(SUM($AH76:AI76)>0,0,1)*W76 -> 0 | AK76: =IF(SUM($AH76:AJ76)>0,0,1)*X76 -> 0 | AL76: =IF(SUM($AH76:AK76)>0,0,1)*Y76 -> 0 | AM76: =IF(SUM($AH76:AL76)>0,0,1)*Z76 -> 0 | AN76: =IF(SUM($AH76:AM76)>0,0,1)*AA76 -> 0 | AO76: =IF(SUM($AH76:AN76)>0,0,1)*AB76 -> 0 | AP76: =IF(SUM($AH76:AO76)>0,0,1)*AC76 -> 0 | AQ76: =IF(SUM($AH76:AP76)>0,0,1)*AD76 -> 0 | AR76: =IF(SUM($AH76:AQ76)>0,0,1)*AE76 -> 0 | AS76: =IF(SUM($AH76:AR76)>0,0,1)*AF76 -> 0 | AT76: =IF(SUM($AH76:AS76)>0,0,1)*AG76 -> 0 | AU76: 1 | AV76: 1 | AW76: 0 | AX76: 1 | AY76: 0 | AZ76: 1 | BA76: 0 | BB76: 1 | BC76: 0 | BD76: XIV | BE76: -0.009222661397 | BF76: -0.01844530834 | BG76: 0 | BH76: 0 | BI76: 207412 | BJ76: =IF(BD75="CASH",1,(1-$BN$4)*IF(BD75="XIV",F76,IF(BD75="UVXY",I76,L76))) -> 7.585844072 | BK76: 1.233910619 | BL76: 1573396.324 | BM76: 1575120.303 | BN76: =IF(BD76="CASH",1,(1+$BN$4)*IF(BD76="XIV",F76,IF(BD76="UVXY",I76,L76))) -> 7.594155928 | BO76: 7.52 | BP76: 1559739.474 | BQ76: 70 | BR76: 1.559739474
A77: 2012-01-11 | B77: 21.05 | C77: 24.11 | D77: 22.95 | E77: 24.15 | F77: 7.45 | G77: 7.39 | H77: -0.008053691275 | I77: 2738945.22 | J77: 2771944.56 | K77: 0.01204819277 | L77: 9.5225 | M77: 9.58875 | N77: 0.006957206616 | O77: -0.06848153771 | P77: 0.8737331081 | Q77: -0.01803512103 | R77: -0.009308510638 | S77: =VLOOKUP(A77,'MACD SPYG'!$A$2:$G$1452,7,FALSE) -> 0.1138104117 | T77: 1 | U77: 0 | V77: 1 | W77: 0 | X77: 0 | Y77: 0 | Z77: 1 | AA77: 0 | AB77: 0 | AC77: 0 | AD77: 0 | AE77: 0 | AF77: 1 | AG77: 0 | AH77: 0 | AI77: =IF(SUM($AH77:AH77)>0,0,1)*V77 -> 1 | AJ77: =IF(SUM($AH77:AI77)>0,0,1)*W77 -> 0 | AK77: =IF(SUM($AH77:AJ77)>0,0,1)*X77 -> 0 | AL77: =IF(SUM($AH77:AK77)>0,0,1)*Y77 -> 0 | AM77: =IF(SUM($AH77:AL77)>0,0,1)*Z77 -> 0 | AN77: =IF(SUM($AH77:AM77)>0,0,1)*AA77 -> 0 | AO77: =IF(SUM($AH77:AN77)>0,0,1)*AB77 -> 0 | AP77: =IF(SUM($AH77:AO77)>0,0,1)*AC77 -> 0 | AQ77: =IF(SUM($AH77:AP77)>0,0,1)*AD77 -> 0 | AR77: =IF(SUM($AH77:AQ77)>0,0,1)*AE77 -> 0 | AS77: =IF(SUM($AH77:AR77)>0,0,1)*AF77 -> 0 | AT77: =IF(SUM($AH77:AS77)>0,0,1)*AG77 -> 0 | AU77: 1 | AV77: 1 | AW77: 0 | AX77: 1 | AY77: 0 | AZ77: 1 | BA77: 0 | BB77: 1 | BC77: 0 | BD77: XIV | BE77: -0.008053691275 | BF77: -0.002684561616 | BG77: 0 | BH77: 0 | BI77: 207412 | BJ77: =IF(BD76="CASH",1,(1-$BN$4)*IF(BD76="XIV",F77,IF(BD76="UVXY",I77,L77))) -> 7.445920729 | BK77: 1.233910619 | BL77: 1544374.544 | BM77: 1546066.724 | BN77: =IF(BD77="CASH",1,(1+$BN$4)*IF(BD77="XIV",F77,IF(BD77="UVXY",I77,L77))) -> 7.454079271 | BO77: 7.39 | BP77: 1532775.914 | BQ77: 71 | BR77: 1.532775914
A78: 2012-01-12 | B78: 20.47 | C78: 24.04 | D78: 22.2 | E78: 23.75 | F78: 7.43 | G78: 7.5 | H78: 0.009421265141 | I78: 2750944.98 | J78: 2699946 | K78: -0.0185387132 | L78: 9.665 | M78: 9.7025 | N78: 0.003879979307 | O78: -0.07285890201 | P78: 0.8730817088 | Q78: 0.01739971 | R78: 0.005412719892 | S78: =VLOOKUP(A78,'MACD SPYG'!$A$2:$G$1452,7,FALSE) -> 0.1092481394 | T78: 1 | U78: 0 | V78: 1 | W78: 0 | X78: 0 | Y78: 0 | Z78: 1 | AA78: 0 | AB78: 0 | AC78: 0 | AD78: 0 | AE78: 0 | AF78: 1 | AG78: 0 | AH78: 0 | AI78: =IF(SUM($AH78:AH78)>0,0,1)*V78 -> 1 | AJ78: =IF(SUM($AH78:AI78)>0,0,1)*W78 -> 0 | AK78: =IF(SUM($AH78:AJ78)>0,0,1)*X78 -> 0 | AL78: =IF(SUM($AH78:AK78)>0,0,1)*Y78 -> 0 | AM78: =IF(SUM($AH78:AL78)>0,0,1)*Z78 -> 0 | AN78: =IF(SUM($AH78:AM78)>0,0,1)*AA78 -> 0 | AO78: =IF(SUM($AH78:AN78)>0,0,1)*AB78 -> 0 | AP78: =IF(SUM($AH78:AO78)>0,0,1)*AC78 -> 0 | AQ78: =IF(SUM($AH78:AP78)>0,0,1)*AD78 -> 0 | AR78: =IF(SUM($AH78:AQ78)>0,0,1)*AE78 -> 0 | AS78: =IF(SUM($AH78:AR78)>0,0,1)*AF78 -> 0 | AT78: =IF(SUM($AH78:AS78)>0,0,1)*AG78 -> 0 | AU78: 1 | AV78: 1 | AW78: 0 | AX78: 1 | AY78: 0 | AZ78: 1 | BA78: 0 | BB78: 1 | BC78: 0 | BD78: XIV | BE78: 0.009421265141 | BF78: -0.01211304549 | BG78: 0 | BH78: 0 | BI78: 207412 | BJ78: =IF(BD77="CASH",1,(1-$BN$4)*IF(BD77="XIV",F78,IF(BD77="UVXY",I78,L78))) -> 7.42593168 | BK78: 1.233910619 | BL78: 1540228.576 | BM78: 1541916.212 | BN78: =IF(BD78="CASH",1,(1+$BN$4)*IF(BD78="XIV",F78,IF(BD78="UVXY",I78,L78))) -> 7.43406832 | BO78: 7.5 | BP78: 1555591.234 | BQ78: 72 | BR78: 1.555591234
A79: 2012-01-13 | B79: 20.91 | C79: 24.67 | D79: 22.55 | E79: 24.1 | F79: 7.34 | G79: 7.29 | H79: -0.006811989101 | I79: 2831943.36 | J79: 2843943.12 | K79: 0.004237288136 | L79: 9.5525 | M79: 9.59125 | N79: 0.004056529704 | O79: -0.07412849692 | P79: 0.8514975042 | Q79: -0.02755344418 | R79: -0.02133333333 | S79: =VLOOKUP(A79,'MACD SPYG'!$A$2:$G$1452,7,FALSE) -> 0.07260249608 | T79: 1 | U79: 0 | V79: 1 | W79: 0 | X79: 0 | Y79: 0 | Z79: 1 | AA79: 0 | AB79: 0 | AC79: 0 | AD79: 0 | AE79: 0 | AF79: 1 | AG79: 0 | AH79: 0 | AI79: =IF(SUM($AH79:AH79)>0,0,1)*V79 -> 1 | AJ79: =IF(SUM($AH79:AI79)>0,0,1)*W79 -> 0 | AK79: =IF(SUM($AH79:AJ79)>0,0,1)*X79 -> 0 | AL79: =IF(SUM($AH79:AK79)>0,0,1)*Y79 -> 0 | AM79: =IF(SUM($AH79:AL79)>0,0,1)*Z79 -> 0 | AN79: =IF(SUM($AH79:AM79)>0,0,1)*AA79 -> 0 | AO79: =IF(SUM($AH79:AN79)>0,0,1)*AB79 -> 0 | AP79: =IF(SUM($AH79:AO79)>0,0,1)*AC79 -> 0 | AQ79: =IF(SUM($AH79:AP79)>0,0,1)*AD79 -> 0 | AR79: =IF(SUM($AH79:AQ79)>0,0,1)*AE79 -> 0 | AS79: =IF(SUM($AH79:AR79)>0,0,1)*AF79 -> 0 | AT79: =IF(SUM($AH79:AS79)>0,0,1)*AG79 -> 0 | AU79: 1 | AV79: 1 | AW79: 0 | AX79: 1 | AY79: 0 | AZ79: 1 | BA79: 0 | BB79: 1 | BC79: 0 | BD79: XIV | BE79: -0.006811989101 | BF79: 0.02724793433 | BG79: 0 | BH79: 0 | BI79: 207412 | BJ79: =IF(BD78="CASH",1,(1-$BN$4)*IF(BD78="XIV",F79,IF(BD78="UVXY",I79,L79))) -> 7.33598096 | BK79: 1.233910619 | BL79: 1521571.717 | BM79: 1523238.911 | BN79: =IF(BD79="CASH",1,(1+$BN$4)*IF(BD79="XIV",F79,IF(BD79="UVXY",I79,L79))) -> 7.34401904 | BO79: 7.29 | BP79: 1512034.714 | BQ79: 73 | BR79: 1.512034714
A80: 2012-01-17 | B80: 22.2 | C80: 25 | D80: 22.45 | E80: 23.95 | F80: 7.54 | G80: 7.36 | H80: -0.02387267905 | I80: 2660946.78 | J80: 2801943.96 | K80: 0.05298759865 | L80: 9.86 | M80: 9.84875 | N80: -0.001140973631 | O80: -0.07020369672 | P80: 0.8475881638 | Q80: 0.02149487054 | R80: 0.03429355281 | S80: =VLOOKUP(A80,'MACD SPYG'!$A$2:$G$1452,7,FALSE) -> 0.08461165002 | T80: 1 | U80: 0 | V80: 1 | W80: 0 | X80: 0 | Y80: 0 | Z80: 1 | AA80: 0 | AB80: 0 | AC80: 0 | AD80: 0 | AE80: 0 | AF80: 1 | AG80: 0 | AH80: 0 | AI80: =IF(SUM($AH80:AH80)>0,0,1)*V80 -> 1 | AJ80: =IF(SUM($AH80:AI80)>0,0,1)*W80 -> 0 | AK80: =IF(SUM($AH80:AJ80)>0,0,1)*X80 -> 0 | AL80: =IF(SUM($AH80:AK80)>0,0,1)*Y80 -> 0 | AM80: =IF(SUM($AH80:AL80)>0,0,1)*Z80 -> 0 | AN80: =IF(SUM($AH80:AM80)>0,0,1)*AA80 -> 0 | AO80: =IF(SUM($AH80:AN80)>0,0,1)*AB80 -> 0 | AP80: =IF(SUM($AH80:AO80)>0,0,1)*AC80 -> 0 | AQ80: =IF(SUM($AH80:AP80)>0,0,1)*AD80 -> 0 | AR80: =IF(SUM($AH80:AQ80)>0,0,1)*AE80 -> 0 | AS80: =IF(SUM($AH80:AR80)>0,0,1)*AF80 -> 0 | AT80: =IF(SUM($AH80:AS80)>0,0,1)*AG80 -> 0 | AU80: 1 | AV80: 1 | AW80: 0 | AX80: 1 | AY80: 0 | AZ80: 1 | BA80: 0 | BB80: 1 | BC80: 0 | BD80: XIV | BE80: -0.02387267905 | BF80: -0.01856762462 | BG80: 0 | BH80: 0 | BI80: 207412 | BJ80: =IF(BD79="CASH",1,(1-$BN$4)*IF(BD79="XIV",F80,IF(BD79="UVXY",I80,L80))) -> 7.535871449 | BK80: 1.233910619 | BL80: 1563031.403 | BM80: 1564744.025 | BN80: =IF(BD80="CASH",1,(1+$BN$4)*IF(BD80="XIV",F80,IF(BD80="UVXY",I80,L80))) -> 7.544128551 | BO80: 7.36 | BP80: 1526553.554 | BQ80: 74 | BR80: 1.526553554
A81: 2012-01-18 | B81: 20.89 | C81: 24.18 | D81: 23.64 | E81: 23.2 | F81: 7.4 | G81: 7.63 | H81: 0.03108108108 | I81: 2765944.68 | J81: 2603917.921 | K81: -0.0585791757 | L81: 9.92 | M81: 10.24 | N81: 0.03225806452 | O81: -0.02658424427 | P81: 0.888 | Q81: 0.06169296987 | R81: 0.005434782609 | S81: =VLOOKUP(A81,'MACD SPYG'!$A$2:$G$1452,7,FALSE) -> 0.07204909582 | T81: 1 | U81: 0 | V81: 0 | W81: 0 | X81: 0 | Y81: 0 | Z81: 1 | AA81: 0 | AB81: 0 | AC81: 1 | AD81: 0 | AE81: 0 | AF81: 0 | AG81: 0 | AH81: 0 | AI81: =IF(SUM($AH81:AH81)>0,0,1)*V81 -> 0 | AJ81: =IF(SUM($AH81:AI81)>0,0,1)*W81 -> 0 | AK81: =IF(SUM($AH81:AJ81)>0,0,1)*X81 -> 0 | AL81: =IF(SUM($AH81:AK81)>0,0,1)*Y81 -> 0 | AM81: =IF(SUM($AH81:AL81)>0,0,1)*Z81 -> 1 | AN81: =IF(SUM($AH81:AM81)>0,0,1)*AA81 -> 0 | AO81: =IF(SUM($AH81:AN81)>0,0,1)*AB81 -> 0 | AP81: =IF(SUM($AH81:AO81)>0,0,1)*AC81 -> 0 | AQ81: =IF(SUM($AH81:AP81)>0,0,1)*AD81 -> 0 | AR81: =IF(SUM($AH81:AQ81)>0,0,1)*AE81 -> 0 | AS81: =IF(SUM($AH81:AR81)>0,0,1)*AF81 -> 0 | AT81: =IF(SUM($AH81:AS81)>0,0,1)*AG81 -> 0 | AU81: 1 | AV81: 1 | AW81: 0 | AX81: 1 | AY81: 0 | AZ81: 1 | BA81: 0 | BB81: 1 | BC81: 0 | BD81: XIV | BE81: 0.03108108108 | BF81: 0.04594590903 | BG81: 0 | BH81: 0 | BI81: 207412 | BJ81: =IF(BD80="CASH",1,(1-$BN$4)*IF(BD80="XIV",F81,IF(BD80="UVXY",I81,L81))) -> 7.395948107 | BK81: 1.233910619 | BL81: 1534009.623 | BM81: 1535690.445 | BN81: =IF(BD81="CASH",1,(1+$BN$4)*IF(BD81="XIV",F81,IF(BD81="UVXY",I81,L81))) -> 7.404051893 | BO81: 7.63 | BP81: 1582554.794 | BQ81: 75 | BR81: 1.582554794
A82: 2012-01-19 | B82: 19.87 | C82: 23.65 | D82: 22.55 | E82: 24.4 | F82: 7.74 | G82: 7.83 | H82: 0.01162790698 | I82: 2528949.42 | J82: 2456950.86 | K82: -0.02846975089 | L82: 10.385 | M82: 10.445 | N82: 0.005777563794 | O82: -0.07574012486 | P82: 0.8639371381 | Q82: -0.05900900901 | R82: 0.01441677588 | S82: =VLOOKUP(A82,'MACD SPYG'!$A$2:$G$1452,7,FALSE) -> 0.1077596765 | T82: 1 | U82: 0 | V82: 1 | W82: 0 | X82: 0 | Y82: 0 | Z82: 1 | AA82: 0 | AB82: 0 | AC82: 0 | AD82: 0 | AE82: 0 | AF82: 1 | AG82: 0 | AH82: 0 | AI82: =IF(SUM($AH82:AH82)>0,0,1)*V82 -> 1 | AJ82: =IF(SUM($AH82:AI82)>0,0,1)*W82 -> 0 | AK82: =IF(SUM($AH82:AJ82)>0,0,1)*X82 -> 0 | AL82: =IF(SUM($AH82:AK82)>0,0,1)*Y82 -> 0 | AM82: =IF(SUM($AH82:AL82)>0,0,1)*Z82 -> 0 | AN82: =IF(SUM($AH82:AM82)>0,0,1)*AA82 -> 0 | AO82: =IF(SUM($AH82:AN82)>0,0,1)*AB82 -> 0 | AP82: =IF(SUM($AH82:AO82)>0,0,1)*AC82 -> 0 | AQ82: =IF(SUM($AH82:AP82)>0,0,1)*AD82 -> 0 | AR82: =IF(SUM($AH82:AQ82)>0,0,1)*AE82 -> 0 | AS82: =IF(SUM($AH82:AR82)>0,0,1)*AF82 -> 0 | AT82: =IF(SUM($AH82:AS82)>0,0,1)*AG82 -> 0 | AU82: 1 | AV82: 1 | AW82: 0 | AX82: 1 | AY82: 0 | AZ82: 1 | BA82: 0 | BB82: 1 | BC82: 0 | BD82: XIV | BE82: 0.01162790698 | BF82: 0.00775193203 | BG82: 0 | BH82: 0 | BI82: 207412 | BJ82: =IF(BD81="CASH",1,(1-$BN$4)*IF(BD81="XIV",F82,IF(BD81="UVXY",I82,L82))) -> 7.735761939 | BK82: 1.233910619 | BL82: 1604491.089 | BM82: 1606249.139 | BN82: =IF(BD82="CASH",1,(1+$BN$4)*IF(BD82="XIV",F82,IF(BD82="UVXY",I82,L82))) -> 7.744238061 | BO82: 7.83 | BP82: 1624037.194 | BQ82: 76 | BR82: 1.624037194
A83: 2012-01-20 | B83: 18.28 | C83: 22.82 | D83: 21.85 | E83: 23.9 | F83: 7.8 | G83: 8.06 | H83: 0.03333333333 | I83: 2480950.38 | J83: 2312953.74 | K83: -0.0677146312 | L83: 10.305 | M83: 10.39875 | N83: 0.009097525473 | O83: -0.1059388063 | P83: 0.8401691332 | Q83: -0.04882719004 | R83: -0.003831417625 | S83: =VLOOKUP(A83,'MACD SPYG'!$A$2:$G$1452,7,FALSE) -> 0.1224694527 | T83: 1 | U83: 0 | V83: 1 | W83: 0 | X83: 0 | Y83: 0 | Z83: 0 | AA83: 0 | AB83: 0 | AC83: 0 | AD83: 0 | AE83: 0 | AF83: 1 | AG83: 0 | AH83: 0 | AI83: =IF(SUM($AH83:AH83)>0,0,1)*V83 -> 1 | AJ83: =IF(SUM($AH83:AI83)>0,0,1)*W83 -> 0 | AK83: =IF(SUM($AH83:AJ83)>0,0,1)*X83 -> 0 | AL83: =IF(SUM($AH83:AK83)>0,0,1)*Y83 -> 0 | AM83: =IF(SUM($AH83:AL83)>0,0,1)*Z83 -> 0 | AN83: =IF(SUM($AH83:AM83)>0,0,1)*AA83 -> 0 | AO83: =IF(SUM($AH83:AN83)>0,0,1)*AB83 -> 0 | AP83: =IF(SUM($AH83:AO83)>0,0,1)*AC83 -> 0 | AQ83: =IF(SUM($AH83:AP83)>0,0,1)*AD83 -> 0 | AR83: =IF(SUM($AH83:AQ83)>0,0,1)*AE83 -> 0 | AS83: =IF(SUM($AH83:AR83)>0,0,1)*AF83 -> 0 | AT83: =IF(SUM($AH83:AS83)>0,0,1)*AG83 -> 0 | AU83: 1 | AV83: 1 | AW83: 0 | AX83: 1 | AY83: 0 | AZ83: 1 | BA83: 0 | BB83: 1 | BC83: 0 | BD83: XIV | BE83: 0.03333333333 | BF83: 0.03717945884 | BG83: 0 | BH83: 0 | BI83: 207412 | BJ83: =IF(BD82="CASH",1,(1-$BN$4)*IF(BD82="XIV",F83,IF(BD82="UVXY",I83,L83))) -> 7.795729085 | BK83: 1.233910619 | BL83: 1616928.995 | BM83: 1618700.673 | BN83: =IF(BD83="CASH",1,(1+$BN$4)*IF(BD83="XIV",F83,IF(BD83="UVXY",I83,L83))) -> 7.804270915 | BO83: 8.06 | BP83: 1671741.954 | BQ83: 77 | BR83: 1.671741954
A84: 2012-01-23 | B84: 18.67 | C84: 22.32 | D84: 21.3 | E84: 23.5 | F84: 8.09 | G84: 8.27 | H84: 0.02224969098 | I84: 2300953.98 | J84: 2189956.2 | K84: -0.0482398957 | L84: 10.39625 | M84: 10.3975 | N84: 0.0001202356619 | O84: -0.140102927 | P84: 0.801051709 | Q84: -0.08002013085 | R84: 0.003722084367 | S84: =VLOOKUP(A84,'MACD SPYG'!$A$2:$G$1452,7,FALSE) -> 0.1178608026 | T84: 1 | U84: 0 | V84: 1 | W84: 0 | X84: 0 | Y84: 0 | Z84: 0 | AA84: 0 | AB84: 0 | AC84: 0 | AD84: 0 | AE84: 0 | AF84: 1 | AG84: 0 | AH84: 0 | AI84: =IF(SUM($AH84:AH84)>0,0,1)*V84 -> 1 | AJ84: =IF(SUM($AH84:AI84)>0,0,1)*W84 -> 0 | AK84: =IF(SUM($AH84:AJ84)>0,0,1)*X84 -> 0 | AL84: =IF(SUM($AH84:AK84)>0,0,1)*Y84 -> 0 | AM84: =IF(SUM($AH84:AL84)>0,0,1)*Z84 -> 0 | AN84: =IF(SUM($AH84:AM84)>0,0,1)*AA84 -> 0 | AO84: =IF(SUM($AH84:AN84)>0,0,1)*AB84 -> 0 | AP84: =IF(SUM($AH84:AO84)>0,0,1)*AC84 -> 0 | AQ84: =IF(SUM($AH84:AP84)>0,0,1)*AD84 -> 0 | AR84: =IF(SUM($AH84:AQ84)>0,0,1)*AE84 -> 0 | AS84: =IF(SUM($AH84:AR84)>0,0,1)*AF84 -> 0 | AT84: =IF(SUM($AH84:AS84)>0,0,1)*AG84 -> 0 | AU84: 1 | AV84: 1 | AW84: 0 | AX84: 1 | AY84: 0 | AZ84: 1 | BA84: 0 | BB84: 1 | BC84: 0 | BD84: XIV | BE84: 0.02224969098 | BF84: -0.003708279104 | BG84: 0 | BH84: 0 | BI84: 207412 | BJ84: =IF(BD83="CASH",1,(1-$BN$4)*IF(BD83="XIV",F84,IF(BD83="UVXY",I84,L84))) -> 8.085570295 | BK84: 1.233910619 | BL84: 1677045.54 | BM84: 1678883.088 | BN84: =IF(BD84="CASH",1,(1+$BN$4)*IF(BD84="XIV",F84,IF(BD84="UVXY",I84,L84))) -> 8.094429705 | BO84: 8.27 | BP84: 1715298.474 | BQ84: 78 | BR84: 1.715298474
A85: 2012-01-24 | B85: 18.91 | C85: 22.03 | D85: 21.2 | E85: 23.25 | F85: 8.06 | G85: 8.23 | H85: 0.02109181141 | I85: 2297954.04 | J85: 2204955.9 | K85: -0.04046997389 | L85: 10.265 | M85: 10.34 | N85: 0.007306380906 | O85: -0.1145170313 | P85: 0.8364695341 | Q85: 0.02133479212 | R85: -0.0253929867 | S85: =VLOOKUP(A85,'MACD SPYG'!$A$2:$G$1452,7,FALSE) -> 0.1011167016 | T85: 1 | U85: 0 | V85: 1 | W85: 0 | X85: 0 | Y85: 0 | Z85: 0 | AA85: 0 | AB85: 0 | AC85: 0 | AD85: 0 | AE85: 0 | AF85: 1 | AG85: 0 | AH85: 0 | AI85: =IF(SUM($AH85:AH85)>0,0,1)*V85 -> 1 | AJ85: =IF(SUM($AH85:AI85)>0,0,1)*W85 -> 0 | AK85: =IF(SUM($AH85:AJ85)>0,0,1)*X85 -> 0 | AL85: =IF(SUM($AH85:AK85)>0,0,1)*Y85 -> 0 | AM85: =IF(SUM($AH85:AL85)>0,0,1)*Z85 -> 0 | AN85: =IF(SUM($AH85:AM85)>0,0,1)*AA85 -> 0 | AO85: =IF(SUM($AH85:AN85)>0,0,1)*AB85 -> 0 | AP85: =IF(SUM($AH85:AO85)>0,0,1)*AC85 -> 0 | AQ85: =IF(SUM($AH85:AP85)>0,0,1)*AD85 -> 0 | AR85: =IF(SUM($AH85:AQ85)>0,0,1)*AE85 -> 0 | AS85: =IF(SUM($AH85:AR85)>0,0,1)*AF85 -> 0 | AT85: =IF(SUM($AH85:AS85)>0,0,1)*AG85 -> 0 | AU85: 1 | AV85: 1 | AW85: 0 | AX85: 1 | AY85: 0 | AZ85: 1 | BA85: 0 | BB85: 1 | BC85: 0 | BD85: XIV | BE85: 0.02109181141 | BF85: 0.02109179586 | BG85: 0 | BH85: 0 | BI85: 207412 | BJ85: =IF(BD84="CASH",1,(1-$BN$4)*IF(BD84="XIV",F85,IF(BD84="UVXY",I85,L85))) -> 8.055586722 | BK85: 1.233910619 | BL85: 1670826.587 | BM85: 1672657.321 | BN85: =IF(BD85="CASH",1,(1+$BN$4)*IF(BD85="XIV",F85,IF(BD85="UVXY",I85,L85))) -> 8.064413278 | BO85: 8.23 | BP85: 1707001.994 | BQ85: 79 | BR85: 1.707001994
A86: 2012-01-25 | B86: 18.31 | C86: 21.36 | D86: 20.6 | E86: 22.5 | F86: 8.23 | G86: 8.6 | H86: 0.04495747266 | I86: 2204955.9 | J86: 2021959.56 | K86: -0.08299319728 | L86: 10.66625 | M86: 10.735 | N86: 0.00644556428 | O86: -0.1020648205 | P86: 0.8583749433 | Q86: 0.01285484735 | R86: 0 | S86: =VLOOKUP(A86,'MACD SPYG'!$A$2:$G$1452,7,FALSE) -> 0.0863480323 | T86: 1 | U86: 0 | V86: 1 | W86: 0 | X86: 0 | Y86: 0 | Z86: 0 | AA86: 0 | AB86: 0 | AC86: 0 | AD86: 0 | AE86: 0 | AF86: 1 | AG86: 0 | AH86: 0 | AI86: =IF(SUM($AH86:AH86)>0,0,1)*V86 -> 1 | AJ86: =IF(SUM($AH86:AI86)>0,0,1)*W86 -> 0 | AK86: =IF(SUM($AH86:AJ86)>0,0,1)*X86 -> 0 | AL86: =IF(SUM($AH86:AK86)>0,0,1)*Y86 -> 0 | AM86: =IF(SUM($AH86:AL86)>0,0,1)*Z86 -> 0 | AN86: =IF(SUM($AH86:AM86)>0,0,1)*AA86 -> 0 | AO86: =IF(SUM($AH86:AN86)>0,0,1)*AB86 -> 0 | AP86: =IF(SUM($AH86:AO86)>0,0,1)*AC86 -> 0 | AQ86: =IF(SUM($AH86:AP86)>0,0,1)*AD86 -> 0 | AR86: =IF(SUM($AH86:AQ86)>0,0,1)*AE86 -> 0 | AS86: =IF(SUM($AH86:AR86)>0,0,1)*AF86 -> 0 | AT86: =IF(SUM($AH86:AS86)>0,0,1)*AG86 -> 0 | AU86: 1 | AV86: 1 | AW86: 0 | AX86: 1 | AY86: 0 | AZ86: 1 | BA86: 0 | BB86: 1 | BC86: 0 | BD86: XIV | BE86: 0.04495747266 | BF86: 0.0668286273 | BG86: 0 | BH86: 0 | BI86: 207412 | BJ86: =IF(BD85="CASH",1,(1-$BN$4)*IF(BD85="XIV",F86,IF(BD85="UVXY",I86,L86))) -> 8.225493638 | BK86: 1.233910619 | BL86: 1706067.32 | BM86: 1707936.668 | BN86: =IF(BD86="CASH",1,(1+$BN$4)*IF(BD86="XIV",F86,IF(BD86="UVXY",I86,L86))) -> 8.234506362 | BO86: 8.6 | BP86: 1783744.434 | BQ86: 80 | BR86: 1.783744434
A87: 2012-01-26 | B87: 18.57 | C87: 21.68 | D87: 20.55 | E87: 22.55 | F87: 8.78 | G87: 8.61 | H87: -0.01936218679 | I87: 1934961.3 | J87: 2021959.56 | K87: 0.04496124031 | L87: 10.8725 | M87: 10.62125 | N87: -0.02310876063 | O87: -0.1031488673 | P87: 0.8572097378 | Q87: -0.03172924379 | R87: 0.02093023256 | S87: =VLOOKUP(A87,'MACD SPYG'!$A$2:$G$1452,7,FALSE) -> 0.1212581665 | T87: 1 | U87: 0 | V87: 1 | W87: 0 | X87: 0 | Y87: 0 | Z87: 0 | AA87: 0 | AB87: 0 | AC87: 0 | AD87: 0 | AE87: 0 | AF87: 1 | AG87: 0 | AH87: 0 | AI87: =IF(SUM($AH87:AH87)>0,0,1)*V87 -> 1 | AJ87: =IF(SUM($AH87:AI87)>0,0,1)*W87 -> 0 | AK87: =IF(SUM($AH87:AJ87)>0,0,1)*X87 -> 0 | AL87: =IF(SUM($AH87:AK87)>0,0,1)*Y87 -> 0 | AM87: =IF(SUM($AH87:AL87)>0,0,1)*Z87 -> 0 | AN87: =IF(SUM($AH87:AM87)>0,0,1)*AA87 -> 0 | AO87: =IF(SUM($AH87:AN87)>0,0,1)*AB87 -> 0 | AP87: =IF(SUM($AH87:AO87)>0,0,1)*AC87 -> 0 | AQ87: =IF(SUM($AH87:AP87)>0,0,1)*AD87 -> 0 | AR87: =IF(SUM($AH87:AQ87)>0,0,1)*AE87 -> 0 | AS87: =IF(SUM($AH87:AR87)>0,0,1)*AF87 -> 0 | AT87: =IF(SUM($AH87:AS87)>0,0,1)*AG87 -> 0 | AU87: 1 | AV87: 1 | AW87: 0 | AX87: 1 | AY87: 0 | AZ87: 1 | BA87: 0 | BB87: 1 | BC87: 0 | BD87: XIV | BE87: -0.01936218679 | BF87: -0.03530749317 | BG87: 0 | BH87: 0 | BI87: 207412 | BJ87: =IF(BD86="CASH",1,(1-$BN$4)*IF(BD86="XIV",F87,IF(BD86="UVXY",I87,L87))) -> 8.775192483 | BK87: 1.233910619 | BL87: 1820081.457 | BM87: 1822075.731 | BN87: =IF(BD87="CASH",1,(1+$BN$4)*IF(BD87="XIV",F87,IF(BD87="UVXY",I87,L87))) -> 8.784807517 | BO87: 8.61 | BP87: 1785818.554 | BQ87: 81 | BR87: 1.785818554
A88: 2012-01-27 | B88: 18.53 | C88: 21.4 | D88: 20.15 | E88: 22.2 | F88: 8.47 | G88: 8.79 | H88: 0.03778040142 | I88: 2078958.42 | J88: 1937961.24 | K88: -0.06782106782 | L88: 10.56 | M88: 10.72625 | N88: 0.01574337121 | O88: -0.09405279428 | P88: 0.8565498155 | Q88: 0.01419989077 | R88: -0.0162601626 | S88: =VLOOKUP(A88,'MACD SPYG'!$A$2:$G$1452,7,FALSE) -> 0.09394033431 | T88: 1 | U88: 0 | V88: 1 | W88: 0 | X88: 0 | Y88: 0 | Z88: 0 | AA88: 0 | AB88: 0 | AC88: 0 | AD88: 0 | AE88: 0 | AF88: 1 | AG88: 0 | AH88: 0 | AI88: =IF(SUM($AH88:AH88)>0,0,1)*V88 -> 1 | AJ88: =IF(SUM($AH88:AI88)>0,0,1)*W88 -> 0 | AK88: =IF(SUM($AH88:AJ88)>0,0,1)*X88 -> 0 | AL88: =IF(SUM($AH88:AK88)>0,0,1)*Y88 -> 0 | AM88: =IF(SUM($AH88:AL88)>0,0,1)*Z88 -> 0 | AN88: =IF(SUM($AH88:AM88)>0,0,1)*AA88 -> 0 | AO88: =IF(SUM($AH88:AN88)>0,0,1)*AB88 -> 0 | AP88: =IF(SUM($AH88:AO88)>0,0,1)*AC88 -> 0 | AQ88: =IF(SUM($AH88:AP88)>0,0,1)*AD88 -> 0 | AR88: =IF(SUM($AH88:AQ88)>0,0,1)*AE88 -> 0 | AS88: =IF(SUM($AH88:AR88)>0,0,1)*AF88 -> 0 | AT88: =IF(SUM($AH88:AS88)>0,0,1)*AG88 -> 0 | AU88: 1 | AV88: 1 | AW88: 0 | AX88: 1 | AY88: 0 | AZ88: 1 | BA88: 0 | BB88: 1 | BC88: 0 | BD88: XIV | BE88: 0.03778040142 | BF88: 0 | BG88: 0 | BH88: 0 | BI88: 207412 | BJ88: =IF(BD87="CASH",1,(1-$BN$4)*IF(BD87="XIV",F88,IF(BD87="UVXY",I88,L88))) -> 8.465362225 | BK88: 1.233910619 | BL88: 1755818.944 | BM88: 1757742.804 | BN88: =IF(BD88="CASH",1,(1+$BN$4)*IF(BD88="XIV",F88,IF(BD88="UVXY",I88,L88))) -> 8.474637775 | BO88: 8.79 | BP88: 1823152.714 | BQ88: 82 | BR88: 1.823152714
A89: 2012-01-30 | B89: 19.4 | C89: 21.92 | D89: 20.7 | E89: 22.55 | F89: 8.47 | G89: 8.52 | H89: 0.005903187721 | I89: 2078958.42 | J89: 2051958.96 | K89: -0.01298701299 | L89: 10.4525 | M89: 10.74375 | N89: 0.02786414733 | O89: -0.08398061834 | P89: 0.8658878505 | Q89: -0.002154011847 | R89: -0.03640500569 | S89: =VLOOKUP(A89,'MACD SPYG'!$A$2:$G$1452,7,FALSE) -> 0.04351515402 | T89: 1 | U89: 0 | V89: 1 | W89: 0 | X89: 0 | Y89: 0 | Z89: 0 | AA89: 0 | AB89: 0 | AC89: 0 | AD89: 0 | AE89: 0 | AF89: 1 | AG89: 0 | AH89: 0 | AI89: =IF(SUM($AH89:AH89)>0,0,1)*V89 -> 1 | AJ89: =IF(SUM($AH89:AI89)>0,0,1)*W89 -> 0 | AK89: =IF(SUM($AH89:AJ89)>0,0,1)*X89 -> 0 | AL89: =IF(SUM($AH89:AK89)>0,0,1)*Y89 -> 0 | AM89: =IF(SUM($AH89:AL89)>0,0,1)*Z89 -> 0 | AN89: =IF(SUM($AH89:AM89)>0,0,1)*AA89 -> 0 | AO89: =IF(SUM($AH89:AN89)>0,0,1)*AB89 -> 0 | AP89: =IF(SUM($AH89:AO89)>0,0,1)*AC89 -> 0 | AQ89: =IF(SUM($AH89:AP89)>0,0,1)*AD89 -> 0 | AR89: =IF(SUM($AH89:AQ89)>0,0,1)*AE89 -> 0 | AS89: =IF(SUM($AH89:AR89)>0,0,1)*AF89 -> 0 | AT89: =IF(SUM($AH89:AS89)>0,0,1)*AG89 -> 0 | AU89: 1 | AV89: 1 | AW89: 0 | AX89: 1 | AY89: 0 | AZ89: 1 | BA89: 0 | BB89: 1 | BC89: 0 | BD89: XIV | BE89: 0.005903187721 | BF89: 0.02715464446 | BG89: 0 | BH89: 0 | BI89: 207412 | BJ89: =IF(BD88="CASH",1,(1-$BN$4)*IF(BD88="XIV",F89,IF(BD88="UVXY",I89,L89))) -> 8.465362225 | BK89: 1.233910619 | BL89: 1755818.944 | BM89: 1757742.804 | BN89: =IF(BD89="CASH",1,(1+$BN$4)*IF(BD89="XIV",F89,IF(BD89="UVXY",I89,L89))) -> 8.474637775 | BO89: 8.52 | BP89: 1767151.474 | BQ89: 83 | BR89: 1.767151474
A90: 2012-01-31 | B90: 19.44 | C90: 22.09 | D90: 20.9 | E90: 22.75 | F90: 8.7 | G90: 8.52 | H90: -0.02068965517 | I90: 1958960.82 | J90: 2048959.02 | K90: 0.04594180704 | L90: 10.8975 | M90: 10.78125 | N90: -0.01066758431 | O90: -0.06857332605 | P90: 0.8850364964 | Q90: 0.04695089045 | R90: 0.02112676056 | S90: =VLOOKUP(A90,'MACD SPYG'!$A$2:$G$1452,7,FALSE) -> 0.04433028661 | T90: 1 | U90: 0 | V90: 1 | W90: 0 | X90: 0 | Y90: 0 | Z90: 0 | AA90: 0 | AB90: 0 | AC90: 0 | AD90: 0 | AE90: 0 | AF90: 1 | AG90: 0 | AH90: 0 | AI90: =IF(SUM($AH90:AH90)>0,0,1)*V90 -> 1 | AJ90: =IF(SUM($AH90:AI90)>0,0,1)*W90 -> 0 | AK90: =IF(SUM($AH90:AJ90)>0,0,1)*X90 -> 0 | AL90: =IF(SUM($AH90:AK90)>0,0,1)*Y90 -> 0 | AM90: =IF(SUM($AH90:AL90)>0,0,1)*Z90 -> 0 | AN90: =IF(SUM($AH90:AM90)>0,0,1)*AA90 -> 0 | AO90: =IF(SUM($AH90:AN90)>0,0,1)*AB90 -> 0 | AP90: =IF(SUM($AH90:AO90)>0,0,1)*AC90 -> 0 | AQ90: =IF(SUM($AH90:AP90)>0,0,1)*AD90 -> 0 | AR90: =IF(SUM($AH90:AQ90)>0,0,1)*AE90 -> 0 | AS90: =IF(SUM($AH90:AR90)>0,0,1)*AF90 -> 0 | AT90: =IF(SUM($AH90:AS90)>0,0,1)*AG90 -> 0 | AU90: 1 | AV90: 1 | AW90: 0 | AX90: 1 | AY90: 0 | AZ90: 1 | BA90: 0 | BB90: 1 | BC90: 0 | BD90: XIV | BE90: -0.02068965517 | BF90: 0.001149424502 | BG90: 0 | BH90: 0 | BI90: 207412 | BJ90: =IF(BD89="CASH",1,(1-$BN$4)*IF(BD89="XIV",F90,IF(BD89="UVXY",I90,L90))) -> 8.695236288 | BK90: 1.233910619 | BL90: 1803497.583 | BM90: 1805473.685 | BN90: =IF(BD90="CASH",1,(1+$BN$4)*IF(BD90="XIV",F90,IF(BD90="UVXY",I90,L90))) -> 8.704763712 | BO90: 8.52 | BP90: 1767151.474 | BQ90: 84 | BR90: 1.767151474
A91: 2012-02-01 | B91: 18.55 | C91: 21.54 | D91: 19.85 | E91: 22.05 | F91: 8.71 | G91: 8.74 | H91: 0.003444316877 | I91: 1964960.7 | J91: 1940961.18 | K91: -0.01221374046 | L91: 10.96625 | M91: 11.04625 | N91: 0.007295109997 | O91: -0.07329512593 | P91: 0.8800362155 | Q91: 0.00206185567 | R91: 0.02230046948 | S91: =VLOOKUP(A91,'MACD SPYG'!$A$2:$G$1452,7,FALSE) -> 0.04074233705 | T91: 1 | U91: 0 | V91: 1 | W91: 0 | X91: 0 | Y91: 0 | Z91: 0 | AA91: 0 | AB91: 0 | AC91: 0 | AD91: 0 | AE91: 0 | AF91: 1 | AG91: 0 | AH91: 0 | AI91: =IF(SUM($AH91:AH91)>0,0,1)*V91 -> 1 | AJ91: =IF(SUM($AH91:AI91)>0,0,1)*W91 -> 0 | AK91: =IF(SUM($AH91:AJ91)>0,0,1)*X91 -> 0 | AL91: =IF(SUM($AH91:AK91)>0,0,1)*Y91 -> 0 | AM91: =IF(SUM($AH91:AL91)>0,0,1)*Z91 -> 0 | AN91: =IF(SUM($AH91:AM91)>0,0,1)*AA91 -> 0 | AO91: =IF(SUM($AH91:AN91)>0,0,1)*AB91 -> 0 | AP91: =IF(SUM($AH91:AO91)>0,0,1)*AC91 -> 0 | AQ91: =IF(SUM($AH91:AP91)>0,0,1)*AD91 -> 0 | AR91: =IF(SUM($AH91:AQ91)>0,0,1)*AE91 -> 0 | AS91: =IF(SUM($AH91:AR91)>0,0,1)*AF91 -> 0 | AT91: =IF(SUM($AH91:AS91)>0,0,1)*AG91 -> 0 | AU91: 1 | AV91: 1 | AW91: 0 | AX91: 1 | AY91: 0 | AZ91: 1 | BA91: 0 | BB91: 1 | BC91: 0 | BD91: XIV | BE91: 0.003444316877 | BF91: 0.02296209684 | BG91: 0 | BH91: 0 | BI91: 207412 | BJ91: =IF(BD90="CASH",1,(1-$BN$4)*IF(BD90="XIV",F91,IF(BD90="UVXY",I91,L91))) -> 8.705230812 | BK91: 1.233910619 | BL91: 1805570.567 | BM91: 1807548.941 | BN91: =IF(BD91="CASH",1,(1+$BN$4)*IF(BD91="XIV",F91,IF(BD91="UVXY",I91,L91))) -> 8.714769188 | BO91: 8.74 | BP91: 1812782.114 | BQ91: 85 | BR91: 1.812782114
A92: 2012-02-02 | B92: 17.98 | C92: 21.01 | D92: 19.15 | E92: 21.35 | F92: 8.91 | G92: 9.01 | H92: 0.01122334456 | I92: 1868962.62 | J92: 1823963.52 | K92: -0.02407704655 | L92: 11.155 | M92: 11.16 | N92: 0.0004482294935 | O92: -0.0757758015 | P92: 0.8611884865 | Q92: -0.045781893 | R92: 0.01945080092 | S92: =VLOOKUP(A92,'MACD SPYG'!$A$2:$G$1452,7,FALSE) -> 0.04533865851 | T92: 1 | U92: 0 | V92: 1 | W92: 0 | X92: 0 | Y92: 0 | Z92: 0 | AA92: 0 | AB92: 0 | AC92: 0 | AD92: 0 | AE92: 0 | AF92: 1 | AG92: 0 | AH92: 0 | AI92: =IF(SUM($AH92:AH92)>0,0,1)*V92 -> 1 | AJ92: =IF(SUM($AH92:AI92)>0,0,1)*W92 -> 0 | AK92: =IF(SUM($AH92:AJ92)>0,0,1)*X92 -> 0 | AL92: =IF(SUM($AH92:AK92)>0,0,1)*Y92 -> 0 | AM92: =IF(SUM($AH92:AL92)>0,0,1)*Z92 -> 0 | AN92: =IF(SUM($AH92:AM92)>0,0,1)*AA92 -> 0 | AO92: =IF(SUM($AH92:AN92)>0,0,1)*AB92 -> 0 | AP92: =IF(SUM($AH92:AO92)>0,0,1)*AC92 -> 0 | AQ92: =IF(SUM($AH92:AP92)>0,0,1)*AD92 -> 0 | AR92: =IF(SUM($AH92:AQ92)>0,0,1)*AE92 -> 0 | AS92: =IF(SUM($AH92:AR92)>0,0,1)*AF92 -> 0 | AT92: =IF(SUM($AH92:AS92)>0,0,1)*AG92 -> 0 | AU92: 1 | AV92: 1 | AW92: 0 | AX92: 1 | AY92: 0 | AZ92: 1 | BA92: 0 | BB92: 1 | BC92: 0 | BD92: XIV | BE92: 0.01122334456 | BF92: 0.05274968422 | BG92: 0 | BH92: 0 | BI92: 207412 | BJ92: =IF(BD91="CASH",1,(1-$BN$4)*IF(BD91="XIV",F92,IF(BD91="UVXY",I92,L92))) -> 8.905121301 | BK92: 1.233910619 | BL92: 1847030.253 | BM92: 1849054.055 | BN92: =IF(BD92="CASH",1,(1+$BN$4)*IF(BD92="XIV",F92,IF(BD92="UVXY",I92,L92))) -> 8.914878699 | BO92: 9.01 | BP92: 1868783.354 | BQ92: 86 | BR92: 1.868783354
A93: 2012-02-03 | B93: 17.1 | C93: 20.05 | D93: 17.95 | E93: 20.55 | F93: 9.38 | G93: 9.5 | H93: 0.01279317697 | I93: 1670966.58 | J93: 1631967.36 | K93: -0.02333931777 | L93: 11.46875 | M93: 11.60375 | N93: 0.01177111717 | O93: -0.07368097297 | P93: 0.8557829605 | Q93: -0.0307277628 | R93: 0.0410654828 | S93: =VLOOKUP(A93,'MACD SPYG'!$A$2:$G$1452,7,FALSE) -> 0.06812240442 | T93: 1 | U93: 0 | V93: 1 | W93: 0 | X93: 0 | Y93: 0 | Z93: 0 | AA93: 0 | AB93: 0 | AC93: 0 | AD93: 0 | AE93: 0 | AF93: 1 | AG93: 0 | AH93: 0 | AI93: =IF(SUM($AH93:AH93)>0,0,1)*V93 -> 1 | AJ93: =IF(SUM($AH93:AI93)>0,0,1)*W93 -> 0 | AK93: =IF(SUM($AH93:AJ93)>0,0,1)*X93 -> 0 | AL93: =IF(SUM($AH93:AK93)>0,0,1)*Y93 -> 0 | AM93: =IF(SUM($AH93:AL93)>0,0,1)*Z93 -> 0 | AN93: =IF(SUM($AH93:AM93)>0,0,1)*AA93 -> 0 | AO93: =IF(SUM($AH93:AN93)>0,0,1)*AB93 -> 0 | AP93: =IF(SUM($AH93:AO93)>0,0,1)*AC93 -> 0 | AQ93: =IF(SUM($AH93:AP93)>0,0,1)*AD93 -> 0 | AR93: =IF(SUM($AH93:AQ93)>0,0,1)*AE93 -> 0 | AS93: =IF(SUM($AH93:AR93)>0,0,1)*AF93 -> 0 | AT93: =IF(SUM($AH93:AS93)>0,0,1)*AG93 -> 0 | AU93: 1 | AV93: 1 | AW93: 0 | AX93: 1 | AY93: 0 | AZ93: 1 | BA93: 0 | BB93: 1 | BC93: 0 | BD93: XIV | BE93: 0.01279317697 | BF93: 0.003198292216 | BG93: 0 | BH93: 0 | BI93: 207412 | BJ93: =IF(BD92="CASH",1,(1-$BN$4)*IF(BD92="XIV",F93,IF(BD92="UVXY",I93,L93))) -> 9.374863951 | BK93: 1.233910619 | BL93: 1944460.516 | BM93: 1946591.072 | BN93: =IF(BD93="CASH",1,(1+$BN$4)*IF(BD93="XIV",F93,IF(BD93="UVXY",I93,L93))) -> 9.385136049 | BO93: 9.5 | BP93: 1970415.234 | BQ93: 87 | BR93: 1.970415234
A94: 2012-02-06 | B94: 17.76 | C94: 20.39 | D94: 18.1 | E94: 20.2 | F94: 9.41 | G94: 9.61 | H94: 0.02125398512 | I94: 1655966.88 | J94: 1592968.14 | K94: -0.03804347826 | L94: 11.4725 | M94: 11.5925 | N94: 0.01045979516 | O94: -0.07110383669 | P94: 0.8528678304 | Q94: -0.0489432703 | R94: -0.009473684211 | S94: =VLOOKUP(A94,'MACD SPYG'!$A$2:$G$1452,7,FALSE) -> 0.07415218375 | T94: 1 | U94: 0 | V94: 1 | W94: 0 | X94: 0 | Y94: 0 | Z94: 0 | AA94: 0 | AB94: 0 | AC94: 0 | AD94: 0 | AE94: 0 | AF94: 1 | AG94: 0 | AH94: 0 | AI94: =IF(SUM($AH94:AH94)>0,0,1)*V94 -> 1 | AJ94: =IF(SUM($AH94:AI94)>0,0,1)*W94 -> 0 | AK94: =IF(SUM($AH94:AJ94)>0,0,1)*X94 -> 0 | AL94: =IF(SUM($AH94:AK94)>0,0,1)*Y94 -> 0 | AM94: =IF(SUM($AH94:AL94)>0,0,1)*Z94 -> 0 | AN94: =IF(SUM($AH94:AM94)>0,0,1)*AA94 -> 0 | AO94: =IF(SUM($AH94:AN94)>0,0,1)*AB94 -> 0 | AP94: =IF(SUM($AH94:AO94)>0,0,1)*AC94 -> 0 | AQ94: =IF(SUM($AH94:AP94)>0,0,1)*AD94 -> 0 | AR94: =IF(SUM($AH94:AQ94)>0,0,1)*AE94 -> 0 | AS94: =IF(SUM($AH94:AR94)>0,0,1)*AF94 -> 0 | AT94: =IF(SUM($AH94:AS94)>0,0,1)*AG94 -> 0 | AU94: 1 | AV94: 1 | AW94: 0 | AX94: 1 | AY94: 0 | AZ94: 1 | BA94: 0 | BB94: 1 | BC94: 0 | BD94: XIV | BE94: 0.02125398512 | BF94: 0.01588496575 | BG94: 0 | BH94: 0 | BI94: 207412 | BJ94: =IF(BD93="CASH",1,(1-$BN$4)*IF(BD93="XIV",F94,IF(BD93="UVXY",I94,L94))) -> 9.404847525 | BK94: 1.233910619 | BL94: 1950679.469 | BM94: 1952816.839 | BN94: =IF(BD94="CASH",1,(1+$BN$4)*IF(BD94="XIV",F94,IF(BD94="UVXY",I94,L94))) -> 9.415152475 | BO94: 9.61 | BP94: 1993230.554 | BQ94: 88 | BR94: 1.993230554
A95: 2012-02-07 | B95: 17.65 | C95: 20.14 | D95: 18.4 | E95: 20.4 | F95: 9.57 | G95: 9.5 | H95: -0.007314524556 | I95: 1601967.96 | J95: 1616967.66 | K95: 0.00936329588 | L95: 11.5625 | M95: 11.6425 | N95: 0.006918918919 | O95: -0.04433729008 | P95: 0.8710152035 | Q95: 0.03859649123 | R95: -0.004162330905 | S95: =VLOOKUP(A95,'MACD SPYG'!$A$2:$G$1452,7,FALSE) -> 0.07557801569 | T95: 1 | U95: 0 | V95: 0 | W95: 0 | X95: 0 | Y95: 0 | Z95: 0 | AA95: 0 | AB95: 0 | AC95: 0 | AD95: 0 | AE95: 0 | AF95: 0 | AG95: 0 | AH95: 0 | AI95: =IF(SUM($AH95:AH95)>0,0,1)*V95 -> 0 | AJ95: =IF(SUM($AH95:AI95)>0,0,1)*W95 -> 0 | AK95: =IF(SUM($AH95:AJ95)>0,0,1)*X95 -> 0 | AL95: =IF(SUM($AH95:AK95)>0,0,1)*Y95 -> 0 | AM95: =IF(SUM($AH95:AL95)>0,0,1)*Z95 -> 0 | AN95: =IF(SUM($AH95:AM95)>0,0,1)*AA95 -> 0 | AO95: =IF(SUM($AH95:AN95)>0,0,1)*AB95 -> 0 | AP95: =IF(SUM($AH95:AO95)>0,0,1)*AC95 -> 0 | AQ95: =IF(SUM($AH95:AP95)>0,0,1)*AD95 -> 0 | AR95: =IF(SUM($AH95:AQ95)>0,0,1)*AE95 -> 0 | AS95: =IF(SUM($AH95:AR95)>0,0,1)*AF95 -> 0 | AT95: =IF(SUM($AH95:AS95)>0,0,1)*AG95 -> 0 | AU95: 0 | AV95: 0 | AW95: 0 | AX95: 0 | AY95: 1 | AZ95: 0 | BA95: 0 | BB95: 0 | BC95: 1 | BD95: TQQQ | BE95: 0.006918918919 | BF95: 0.007323671146 | BG95: 1 | BH95: 1 | BI95: 171481 | BJ95: =IF(BD94="CASH",1,(1-$BN$4)*IF(BD94="XIV",F95,IF(BD94="UVXY",I95,L95))) -> 9.564759916 | BK95: 2.54468989 | BL95: 1983847.218 | BM95: 1983837.268 | BN95: =IF(BD95="CASH",1,(1+$BN$4)*IF(BD95="XIV",F95,IF(BD95="UVXY",I95,L95))) -> 11.56883108 | BO95: 11.6425 | BP95: 1996470.087 | BQ95: 89 | BR95: 1.996470087
A96: 2012-02-08 | B96: 18.16 | C96: 20.68 | D96: 19.2 | E96: 21 | F96: 9.52 | G96: 9.28 | H96: -0.02521008403 | I96: 1616967.66 | J96: 1691966.16 | K96: 0.04638218924 | L96: 11.66 | M96: 11.83625 | N96: 0.01511578045 | O96: -0.0579443734 | P96: 0.8763654419 | Q96: -0.006193693694 | R96: 0.002105263158 | S96: =VLOOKUP(A96,'MACD SPYG'!$A$2:$G$1452,7,FALSE) -> 0.08663452186 | T96: 1 | U96: 0 | V96: 1 | W96: 0 | X96: 0 | Y96: 0 | Z96: 0 | AA96: 0 | AB96: 0 | AC96: 0 | AD96: 0 | AE96: 0 | AF96: 1 | AG96: 0 | AH96: 0 | AI96: =IF(SUM($AH96:AH96)>0,0,1)*V96 -> 1 | AJ96: =IF(SUM($AH96:AI96)>0,0,1)*W96 -> 0 | AK96: =IF(SUM($AH96:AJ96)>0,0,1)*X96 -> 0 | AL96: =IF(SUM($AH96:AK96)>0,0,1)*Y96 -> 0 | AM96: =IF(SUM($AH96:AL96)>0,0,1)*Z96 -> 0 | AN96: =IF(SUM($AH96:AM96)>0,0,1)*AA96 -> 0 | AO96: =IF(SUM($AH96:AN96)>0,0,1)*AB96 -> 0 | AP96: =IF(SUM($AH96:AO96)>0,0,1)*AC96 -> 0 | AQ96: =IF(SUM($AH96:AP96)>0,0,1)*AD96 -> 0 | AR96: =IF(SUM($AH96:AQ96)>0,0,1)*AE96 -> 0 | AS96: =IF(SUM($AH96:AR96)>0,0,1)*AF96 -> 0 | AT96: =IF(SUM($AH96:AS96)>0,0,1)*AG96 -> 0 | AU96: 1 | AV96: 1 | AW96: 0 | AX96: 1 | AY96: 0 | AZ96: 1 | BA96: 0 | BB96: 1 | BC96: 0 | BD96: XIV | BE96: -0.02521008403 | BF96: -0.02941168833 | BG96: 1 | BH96: 1 | BI96: 209797 | BJ96: =IF(BD95="CASH",1,(1-$BN$4)*IF(BD95="XIV",F96,IF(BD95="UVXY",I96,L96))) -> 11.65361553 | BK96: 5.189361333 | BL96: 1998376.189 | BM96: 1998366.239 | BN96: =IF(BD96="CASH",1,(1+$BN$4)*IF(BD96="XIV",F96,IF(BD96="UVXY",I96,L96))) -> 9.525212706 | BO96: 9.28 | BP96: 1946921.349 | BQ96: 90 | BR96: 1.946921349
A97: 2012-02-09 | B97: 18.63 | C97: 21.34 | D97: 20 | E97: 21.95 | F97: 9.24 | G97: 8.82 | H97: -0.04545454545 | I97: 1709965.8 | J97: 1859962.8 | K97: 0.08771929825 | L97: 11.965 | M97: 12.09875 | N97: 0.01117843711 | O97: -0.06363095238 | P97: 0.8781431335 | Q97: 0.02889518414 | R97: -0.004310344828 | S97: =VLOOKUP(A97,'MACD SPYG'!$A$2:$G$1452,7,FALSE) -> 0.0952922343 | T97: 1 | U97: 0 | V97: 1 | W97: 0 | X97: 0 | Y97: 0 | Z97: 0 | AA97: 0 | AB97: 0 | AC97: 0 | AD97: 0 | AE97: 0 | AF97: 1 | AG97: 0 | AH97: 0 | AI97: =IF(SUM($AH97:AH97)>0,0,1)*V97 -> 1 | AJ97: =IF(SUM($AH97:AI97)>0,0,1)*W97 -> 0 | AK97: =IF(SUM($AH97:AJ97)>0,0,1)*X97 -> 0 | AL97: =IF(SUM($AH97:AK97)>0,0,1)*Y97 -> 0 | AM97: =IF(SUM($AH97:AL97)>0,0,1)*Z97 -> 0 | AN97: =IF(SUM($AH97:AM97)>0,0,1)*AA97 -> 0 | AO97: =IF(SUM($AH97:AN97)>0,0,1)*AB97 -> 0 | AP97: =IF(SUM($AH97:AO97)>0,0,1)*AC97 -> 0 | AQ97: =IF(SUM($AH97:AP97)>0,0,1)*AD97 -> 0 | AR97: =IF(SUM($AH97:AQ97)>0,0,1)*AE97 -> 0 | AS97: =IF(SUM($AH97:AR97)>0,0,1)*AF97 -> 0 | AT97: =IF(SUM($AH97:AS97)>0,0,1)*AG97 -> 0 | AU97: 1 | AV97: 1 | AW97: 0 | AX97: 1 | AY97: 0 | AZ97: 1 | BA97: 0 | BB97: 1 | BC97: 0 | BD97: XIV | BE97: -0.04545454545 | BF97: -0.09415559224 | BG97: 0 | BH97: 0 | BI97: 209797 | BJ97: =IF(BD96="CASH",1,(1-$BN$4)*IF(BD96="XIV",F97,IF(BD96="UVXY",I97,L97))) -> 9.234940609 | BK97: 5.189361333 | BL97: 1937468.024 | BM97: 1939590.914 | BN97: =IF(BD97="CASH",1,(1+$BN$4)*IF(BD97="XIV",F97,IF(BD97="UVXY",I97,L97))) -> 9.245059391 | BO97: 8.82 | BP97: 1850414.729 | BQ97: 91 | BR97: 1.850414729
A98: 2012-02-10 | B98: 20.79 | C98: 23.28 | D98: 21.75 | E98: 23.55 | F98: 8.37 | G98: 8.08 | H98: -0.03464755078 | I98: 2057958.84 | J98: 2177956.44 | K98: 0.0583090379 | L98: 11.8425 | M98: 11.84 | N98: -0.0002111040743 | O98: -0.07460148064 | P98: 0.8730084349 | Q98: 0.02588105727 | R98: -0.05102040816 | S98: =VLOOKUP(A98,'MACD SPYG'!$A$2:$G$1452,7,FALSE) -> 0.0622082444 | T98: 1 | U98: 0 | V98: 1 | W98: 0 | X98: 0 | Y98: 0 | Z98: 0 | AA98: 0 | AB98: 0 | AC98: 0 | AD98: 0 | AE98: 0 | AF98: 1 | AG98: 0 | AH98: 0 | AI98: =IF(SUM($AH98:AH98)>0,0,1)*V98 -> 1 | AJ98: =IF(SUM($AH98:AI98)>0,0,1)*W98 -> 0 | AK98: =IF(SUM($AH98:AJ98)>0,0,1)*X98 -> 0 | AL98: =IF(SUM($AH98:AK98)>0,0,1)*Y98 -> 0 | AM98: =IF(SUM($AH98:AL98)>0,0,1)*Z98 -> 0 | AN98: =IF(SUM($AH98:AM98)>0,0,1)*AA98 -> 0 | AO98: =IF(SUM($AH98:AN98)>0,0,1)*AB98 -> 0 | AP98: =IF(SUM($AH98:AO98)>0,0,1)*AC98 -> 0 | AQ98: =IF(SUM($AH98:AP98)>0,0,1)*AD98 -> 0 | AR98: =IF(SUM($AH98:AQ98)>0,0,1)*AE98 -> 0 | AS98: =IF(SUM($AH98:AR98)>0,0,1)*AF98 -> 0 | AT98: =IF(SUM($AH98:AS98)>0,0,1)*AG98 -> 0 | AU98: 1 | AV98: 1 | AW98: 0 | AX98: 1 | AY98: 0 | AZ98: 1 | BA98: 0 | BB98: 1 | BC98: 0 | BD98: XIV | BE98: -0.03464755078 | BF98: 0.02031057322 | BG98: 0 | BH98: 0 | BI98: 209797 | BJ98: =IF(BD97="CASH",1,(1-$BN$4)*IF(BD97="XIV",F98,IF(BD97="UVXY",I98,L98))) -> 8.36541698 | BK98: 5.189361333 | BL98: 1755044.576 | BM98: 1756967.583 | BN98: =IF(BD98="CASH",1,(1+$BN$4)*IF(BD98="XIV",F98,IF(BD98="UVXY",I98,L98))) -> 8.37458302 | BO98: 8.08 | BP98: 1695164.949 | BQ98: 92 | BR98: 1.695164949
A99: 2012-02-13 | B99: 19.04 | C99: 22.12 | D99: 19.25 | E99: 21.9 | F99: 8.54 | G99: 8.72 | H99: 0.02107728337 | I99: 1943961.12 | J99: 1847963.04 | K99: -0.04938271605 | L99: 12.105 | M99: 12.15875 | N99: 0.00444031392 | O99: -0.05382648803 | P99: 0.8930412371 | Q99: 0.115942029 | R99: 0.05693069307 | S99: =VLOOKUP(A99,'MACD SPYG'!$A$2:$G$1452,7,FALSE) -> 0.06326627475 | T99: 1 | U99: 0 | V99: 1 | W99: 0 | X99: 0 | Y99: 0 | Z99: 1 | AA99: 0 | AB99: 0 | AC99: 1 | AD99: 0 | AE99: 0 | AF99: 1 | AG99: 0 | AH99: 0 | AI99: =IF(SUM($AH99:AH99)>0,0,1)*V99 -> 1 | AJ99: =IF(SUM($AH99:AI99)>0,0,1)*W99 -> 0 | AK99: =IF(SUM($AH99:AJ99)>0,0,1)*X99 -> 0 | AL99: =IF(SUM($AH99:AK99)>0,0,1)*Y99 -> 0 | AM99: =IF(SUM($AH99:AL99)>0,0,1)*Z99 -> 0 | AN99: =IF(SUM($AH99:AM99)>0,0,1)*AA99 -> 0 | AO99: =IF(SUM($AH99:AN99)>0,0,1)*AB99 -> 0 | AP99: =IF(SUM($AH99:AO99)>0,0,1)*AC99 -> 0 | AQ99: =IF(SUM($AH99:AP99)>0,0,1)*AD99 -> 0 | AR99: =IF(SUM($AH99:AQ99)>0,0,1)*AE99 -> 0 | AS99: =IF(SUM($AH99:AR99)>0,0,1)*AF99 -> 0 | AT99: =IF(SUM($AH99:AS99)>0,0,1)*AG99 -> 0 | AU99: 1 | AV99: 1 | AW99: 0 | AX99: 1 | AY99: 0 | AZ99: 1 | BA99: 0 | BB99: 1 | BC99: 0 | BD99: XIV | BE99: 0.02107728337 | BF99: 0.003578646446 | BG99: 0 | BH99: 0 | BI99: 209797 | BJ99: =IF(BD98="CASH",1,(1-$BN$4)*IF(BD98="XIV",F99,IF(BD98="UVXY",I99,L99))) -> 8.535323896 | BK99: 5.189361333 | BL99: 1790690.537 | BM99: 1792652.602 | BN99: =IF(BD99="CASH",1,(1+$BN$4)*IF(BD99="XIV",F99,IF(BD99="UVXY",I99,L99))) -> 8.544676104 | BO99: 8.72 | BP99: 1829435.029 | BQ99: 93 | BR99: 1.829435029
A100: 2012-02-14 | B100: 19.54 | C100: 22.82 | D100: 19.8 | E100: 22.45 | F100: 8.58 | G100: 8.44 | H100: -0.01631701632 | I100: 1904961.9 | J100: 1958960.82 | K100: 0.02834645669 | L100: 12.09 | M100: 12.265 | N100: 0.01447477254 | O100: -0.0439377335 | P100: 0.8607594937 | Q100: -0.08417508418 | R100: -0.01605504587 | S100: =VLOOKUP(A100,'MACD SPYG'!$A$2:$G$1452,7,FALSE) -> 0.04914813324 | T100: 1 | U100: 0 | V100: 0 | W100: 0 | X100: 0 | Y100: 0 | Z100: 0 | AA100: 0 | AB100: 0 | AC100: 0 | AD100: 0 | AE100: 0 | AF100: 0 | AG100: 0 | AH100: 0 | AI100: =IF(SUM($AH100:AH100)>0,0,1)*V100 -> 0 | AJ100: =IF(SUM($AH100:AI100)>0,0,1)*W100 -> 0 | AK100: =IF(SUM($AH100:AJ100)>0,0,1)*X100 -> 0 | AL100: =IF(SUM($AH100:AK100)>0,0,1)*Y100 -> 0 | AM100: =IF(SUM($AH100:AL100)>0,0,1)*Z100 -> 0 | AN100: =IF(SUM($AH100:AM100)>0,0,1)*AA100 -> 0 | AO100: =IF(SUM($AH100:AN100)>0,0,1)*AB100 -> 0 | AP100: =IF(SUM($AH100:AO100)>0,0,1)*AC100 -> 0 | AQ100: =IF(SUM($AH100:AP100)>0,0,1)*AD100 -> 0 | AR100: =IF(SUM($AH100:AQ100)>0,0,1)*AE100 -> 0 | AS100: =IF(SUM($AH100:AR100)>0,0,1)*AF100 -> 0 | AT100: =IF(SUM($AH100:AS100)>0,0,1)*AG100 -> 0 | AU100: 0 | AV100: 0 | AW100: 0 | AX100: 0 | AY100: 1 | AZ100: 0 | BA100: 0 | BB100: 0 | BC100: 1 | BD100: TQQQ | BE100: 0.01447477254 | BF100: 0.02905277206 | BG100: 1 | BH100: 1 | BI100: 148724 | BJ100: =IF(BD99="CASH",1,(1-$BN$4)*IF(BD99="XIV",F100,IF(BD99="UVXY",I100,L100))) -> 8.575301994 | BK100: 10.17117108 | BL100: 1799077.822 | BM100: 1799067.872 | BN100: =IF(BD100="CASH",1,(1+$BN$4)*IF(BD100="XIV",F100,IF(BD100="UVXY",I100,L100))) -> 12.09661992 | BO100: 12.265 | BP100: 1824110.031 | BQ100: 94 | BR100: 1.824110031
A101: 2012-02-15 | B101: 21.14 | C101: 24.12 | D101: 20.44 | E101: 24.25 | F101: 8.37 | G101: 7.96 | H101: -0.04898446834 | I101: 1991960.16 | J101: 2180956.38 | K101: 0.09487951807 | L101: 12.44125 | M101: 11.99125 | N101: -0.036169999 | O101: -0.04460394592 | P101: 0.856266433 | Q101: 0.0262605042 | R101: -0.008293838863 | S101: =VLOOKUP(A101,'MACD SPYG'!$A$2:$G$1452,7,FALSE) -> 0.05358753442 | T101: 1 | U101: 0 | V101: 0 | W101: 0 | X101: 0 | Y101: 0 | Z101: 0 | AA101: 0 | AB101: 0 | AC101: 0 | AD101: 0 | AE101: 0 | AF101: 0 | AG101: 0 | AH101: 0 | AI101: =IF(SUM($AH101:AH101)>0,0,1)*V101 -> 0 | AJ101: =IF(SUM($AH101:AI101)>0,0,1)*W101 -> 0 | AK101: =IF(SUM($AH101:AJ101)>0,0,1)*X101 -> 0 | AL101: =IF(SUM($AH101:AK101)>0,0,1)*Y101 -> 0 | AM101: =IF(SUM($AH101:AL101)>0,0,1)*Z101 -> 0 | AN101: =IF(SUM($AH101:AM101)>0,0,1)*AA101 -> 0 | AO101: =IF(SUM($AH101:AN101)>0,0,1)*AB101 -> 0 | AP101: =IF(SUM($AH101:AO101)>0,0,1)*AC101 -> 0 | AQ101: =IF(SUM($AH101:AP101)>0,0,1)*AD101 -> 0 | AR101: =IF(SUM($AH101:AQ101)>0,0,1)*AE101 -> 0 | AS101: =IF(SUM($AH101:AR101)>0,0,1)*AF101 -> 0 | AT101: =IF(SUM($AH101:AS101)>0,0,1)*AG101 -> 0 | AU101: 0 | AV101: 0 | AW101: 0 | AX101: 0 | AY101: 1 | AZ101: 0 | BA101: 0 | BB101: 0 | BC101: 1 | BD101: TQQQ | BE101: -0.036169999 | BF101: -0.03431959835 | BG101: 0 | BH101: 0 | BI101: 148724 | BJ101: =IF(BD100="CASH",1,(1-$BN$4)*IF(BD100="XIV",F101,IF(BD100="UVXY",I101,L101))) -> 12.43443775 | BK101: 10.17117108 | BL101: 1849309.492 | BM101: 1851335.781 | BN101: =IF(BD101="CASH",1,(1+$BN$4)*IF(BD101="XIV",F101,IF(BD101="UVXY",I101,L101))) -> 12.44806225 | BO101: 11.99125 | BP101: 1783396.836 | BQ101: 95 | BR101: 1.783396836
A102: 2012-02-16 | B102: 19.22 | C102: 23.17 | D102: 22.8 | E102: 24.65 | F102: 7.75 | G102: 8.23 | H102: 0.06193548387 | I102: 2273954.52 | J102: 2003989.919 | K102: -0.1187203166 | L102: 12.0275 | M102: 12.4925 | N102: 0.03866140096 | O102: -0.02316141788 | P102: 0.8764510779 | Q102: 0.08188331627 | R102: -0.02638190955 | S102: =VLOOKUP(A102,'MACD SPYG'!$A$2:$G$1452,7,FALSE) -> 0.01059127175 | T102: 1 | U102: 0 | V102: 0 | W102: 0 | X102: 0 | Y102: 0 | Z102: 1 | AA102: 0 | AB102: 0 | AC102: 1 | AD102: 0 | AE102: 0 | AF102: 0 | AG102: 0 | AH102: 0 | AI102: =IF(SUM($AH102:AH102)>0,0,1)*V102 -> 0 | AJ102: =IF(SUM($AH102:AI102)>0,0,1)*W102 -> 0 | AK102: =IF(SUM($AH102:AJ102)>0,0,1)*X102 -> 0 | AL102: =IF(SUM($AH102:AK102)>0,0,1)*Y102 -> 0 | AM102: =IF(SUM($AH102:AL102)>0,0,1)*Z102 -> 1 | AN102: =IF(SUM($AH102:AM102)>0,0,1)*AA102 -> 0 | AO102: =IF(SUM($AH102:AN102)>0,0,1)*AB102 -> 0 | AP102: =IF(SUM($AH102:AO102)>0,0,1)*AC102 -> 0 | AQ102: =IF(SUM($AH102:AP102)>0,0,1)*AD102 -> 0 | AR102: =IF(SUM($AH102:AQ102)>0,0,1)*AE102 -> 0 | AS102: =IF(SUM($AH102:AR102)>0,0,1)*AF102 -> 0 | AT102: =IF(SUM($AH102:AS102)>0,0,1)*AG102 -> 0 | AU102: 1 | AV102: 1 | AW102: 0 | AX102: 1 | AY102: 0 | AZ102: 1 | BA102: 0 | BB102: 1 | BC102: 0 | BD102: XIV | BE102: 0.06193548387 | BF102: 0.08129016103 | BG102: 1 | BH102: 1 | BI102: 230557 | BJ102: =IF(BD101="CASH",1,(1-$BN$4)*IF(BD101="XIV",F102,IF(BD101="UVXY",I102,L102))) -> 12.0209143 | BK102: 3.553054746 | BL102: 1787808.63 | BM102: 1787798.68 | BN102: =IF(BD102="CASH",1,(1+$BN$4)*IF(BD102="XIV",F102,IF(BD102="UVXY",I102,L102))) -> 7.754243537 | BO102: 8.23 | BP102: 1897487.663 | BQ102: 96 | BR102: 1.897487663
A103: 2012-02-17 | B103: 17.78 | C103: 22.39 | D103: 22.6 | E103: 24.8 | F103: 8.38 | G103: 8.35 | H103: -0.003579952267 | I103: 1937961.24 | J103: 1979960.4 | K103: 0.02167182663 | L103: 12.50375 | M103: 12.38625 | N103: -0.009397180846 | O103: -0.1324274937 | P103: 0.8295209322 | Q103: -0.0908230842 | R103: 0.01822600243 | S103: =VLOOKUP(A103,'MACD SPYG'!$A$2:$G$1452,7,FALSE) -> 0.02305620384 | T103: 1 | U103: 0 | V103: 1 | W103: 0 | X103: 0 | Y103: 0 | Z103: 0 | AA103: 0 | AB103: 0 | AC103: 0 | AD103: 0 | AE103: 0 | AF103: 1 | AG103: 0 | AH103: 0 | AI103: =IF(SUM($AH103:AH103)>0,0,1)*V103 -> 1 | AJ103: =IF(SUM($AH103:AI103)>0,0,1)*W103 -> 0 | AK103: =IF(SUM($AH103:AJ103)>0,0,1)*X103 -> 0 | AL103: =IF(SUM($AH103:AK103)>0,0,1)*Y103 -> 0 | AM103: =IF(SUM($AH103:AL103)>0,0,1)*Z103 -> 0 | AN103: =IF(SUM($AH103:AM103)>0,0,1)*AA103 -> 0 | AO103: =IF(SUM($AH103:AN103)>0,0,1)*AB103 -> 0 | AP103: =IF(SUM($AH103:AO103)>0,0,1)*AC103 -> 0 | AQ103: =IF(SUM($AH103:AP103)>0,0,1)*AD103 -> 0 | AR103: =IF(SUM($AH103:AQ103)>0,0,1)*AE103 -> 0 | AS103: =IF(SUM($AH103:AR103)>0,0,1)*AF103 -> 0 | AT103: =IF(SUM($AH103:AS103)>0,0,1)*AG103 -> 0 | AU103: 1 | AV103: 1 | AW103: 0 | AX103: 1 | AY103: 0 | AZ103: 1 | BA103: 0 | BB103: 1 | BC103: 0 | BD103: XIV | BE103: -0.003579952267 | BF103: 0.007159891375 | BG103: 0 | BH103: 0 | BI103: 230557 | BJ103: =IF(BD102="CASH",1,(1-$BN$4)*IF(BD102="XIV",F103,IF(BD102="UVXY",I103,L103))) -> 8.375411505 | BK103: 3.553054746 | BL103: 1931013.303 | BM103: 1933129.123 | BN103: =IF(BD103="CASH",1,(1+$BN$4)*IF(BD103="XIV",F103,IF(BD103="UVXY",I103,L103))) -> 8.384588495 | BO103: 8.35 | BP103: 1925154.503 | BQ103: 97 | BR103: 1.925154503
A104: 2012-02-21 | B104: 18.19 | C104: 22.35 | D104: 22.55 | E104: 25.15 | F104: 8.44 | G104: 8.35 | H104: -0.01066350711 | I104: 1904961.9 | J104: 1943961.12 | K104: 0.02047244094 | L104: 12.43375 | M104: 12.49125 | N104: 0.004624509902 | O104: -0.1759049386 | P104: 0.7941045109 | Q104: -0.0749219563 | R104: 0.01077844311 | S104: =VLOOKUP(A104,'MACD SPYG'!$A$2:$G$1452,7,FALSE) -> 0.02299000642 | T104: 1 | U104: 0 | V104: 1 | W104: 0 | X104: 0 | Y104: 0 | Z104: 0 | AA104: 0 | AB104: 0 | AC104: 0 | AD104: 0 | AE104: 0 | AF104: 1 | AG104: 0 | AH104: 0 | AI104: =IF(SUM($AH104:AH104)>0,0,1)*V104 -> 1 | AJ104: =IF(SUM($AH104:AI104)>0,0,1)*W104 -> 0 | AK104: =IF(SUM($AH104:AJ104)>0,0,1)*X104 -> 0 | AL104: =IF(SUM($AH104:AK104)>0,0,1)*Y104 -> 0 | AM104: =IF(SUM($AH104:AL104)>0,0,1)*Z104 -> 0 | AN104: =IF(SUM($AH104:AM104)>0,0,1)*AA104 -> 0 | AO104: =IF(SUM($AH104:AN104)>0,0,1)*AB104 -> 0 | AP104: =IF(SUM($AH104:AO104)>0,0,1)*AC104 -> 0 | AQ104: =IF(SUM($AH104:AP104)>0,0,1)*AD104 -> 0 | AR104: =IF(SUM($AH104:AQ104)>0,0,1)*AE104 -> 0 | AS104: =IF(SUM($AH104:AR104)>0,0,1)*AF104 -> 0 | AT104: =IF(SUM($AH104:AS104)>0,0,1)*AG104 -> 0 | AU104: 1 | AV104: 1 | AW104: 0 | AX104: 1 | AY104: 0 | AZ104: 1 | BA104: 0 | BB104: 1 | BC104: 0 | BD104: XIV | BE104: -0.01066350711 | BF104: -0.01540281549 | BG104: 0 | BH104: 0 | BI104: 230557 | BJ104: =IF(BD103="CASH",1,(1-$BN$4)*IF(BD103="XIV",F104,IF(BD103="UVXY",I104,L104))) -> 8.435378651 | BK104: 3.553054746 | BL104: 1944839.149 | BM104: 1946970.117 | BN104: =IF(BD104="CASH",1,(1+$BN$4)*IF(BD104="XIV",F104,IF(BD104="UVXY",I104,L104))) -> 8.444621349 | BO104: 8.35 | BP104: 1925154.503 | BQ104: 98 | BR104: 1.925154503
A105: 2012-02-22 | B105: 18.19 | C105: 22.09 | D105: 21.8 | E105: 24.55 | F105: 8.31 | G105: 8.58 | H105: 0.03249097473 | I105: 1970960.58 | J105: 1838963.22 | K105: -0.06697108067 | L105: 12.415 | M105: 12.32625 | N105: -0.007148610552 | O105: -0.1663575972 | P105: 0.8138702461 | Q105: 0.02305961755 | R105: -0.004790419162 | S105: =VLOOKUP(A105,'MACD SPYG'!$A$2:$G$1452,7,FALSE) -> 0.008000923324 | T105: 1 | U105: 0 | V105: 1 | W105: 0 | X105: 0 | Y105: 0 | Z105: 0 | AA105: 0 | AB105: 0 | AC105: 0 | AD105: 0 | AE105: 0 | AF105: 1 | AG105: 0 | AH105: 0 | AI105: =IF(SUM($AH105:AH105)>0,0,1)*V105 -> 1 | AJ105: =IF(SUM($AH105:AI105)>0,0,1)*W105 -> 0 | AK105: =IF(SUM($AH105:AJ105)>0,0,1)*X105 -> 0 | AL105: =IF(SUM($AH105:AK105)>0,0,1)*Y105 -> 0 | AM105: =IF(SUM($AH105:AL105)>0,0,1)*Z105 -> 0 | AN105: =IF(SUM($AH105:AM105)>0,0,1)*AA105 -> 0 | AO105: =IF(SUM($AH105:AN105)>0,0,1)*AB105 -> 0 | AP105: =IF(SUM($AH105:AO105)>0,0,1)*AC105 -> 0 | AQ105: =IF(SUM($AH105:AP105)>0,0,1)*AD105 -> 0 | AR105: =IF(SUM($AH105:AQ105)>0,0,1)*AE105 -> 0 | AS105: =IF(SUM($AH105:AR105)>0,0,1)*AF105 -> 0 | AT105: =IF(SUM($AH105:AS105)>0,0,1)*AG105 -> 0 | AU105: 1 | AV105: 1 | AW105: 0 | AX105: 1 | AY105: 0 | AZ105: 1 | BA105: 0 | BB105: 1 | BC105: 0 | BD105: XIV | BE105: 0.03249097473 | BF105: 0.03249091451 | BG105: 0 | BH105: 0 | BI105: 230557 | BJ105: =IF(BD104="CASH",1,(1-$BN$4)*IF(BD104="XIV",F105,IF(BD104="UVXY",I105,L105))) -> 8.305449833 | BK105: 3.553054746 | BL105: 1914883.15 | BM105: 1916981.296 | BN105: =IF(BD105="CASH",1,(1+$BN$4)*IF(BD105="XIV",F105,IF(BD105="UVXY",I105,L105))) -> 8.314550167 | BO105: 8.58 | BP105: 1978182.613 | BQ105: 99 | BR105: 1.978182613
A106: 2012-02-23 | B106: 16.8 | C106: 20.78 | D106: 20.25 | E106: 23.35 | F106: 8.58 | G106: 9.14 | H106: 0.06526806527 | I106: 1841963.16 | J106: 1607967.84 | K106: -0.1270358306 | L106: 12.36875 | M106: 12.56 | N106: 0.01546235472 | O106: -0.1495223192 | P106: 0.8234495247 | Q106: 0 | R106: 0 | S106: =VLOOKUP(A106,'MACD SPYG'!$A$2:$G$1452,7,FALSE) -> -0.006639609498 | T106: 1 | U106: 0 | V106: 1 | W106: 0 | X106: 0 | Y106: 0 | Z106: 0 | AA106: 0 | AB106: 0 | AC106: 0 | AD106: 0 | AE106: 0 | AF106: 1 | AG106: 0 | AH106: 0 | AI106: =IF(SUM($AH106:AH106)>0,0,1)*V106 -> 1 | AJ106: =IF(SUM($AH106:AI106)>0,0,1)*W106 -> 0 | AK106: =IF(SUM($AH106:AJ106)>0,0,1)*X106 -> 0 | AL106: =IF(SUM($AH106:AK106)>0,0,1)*Y106 -> 0 | AM106: =IF(SUM($AH106:AL106)>0,0,1)*Z106 -> 0 | AN106: =IF(SUM($AH106:AM106)>0,0,1)*AA106 -> 0 | AO106: =IF(SUM($AH106:AN106)>0,0,1)*AB106 -> 0 | AP106: =IF(SUM($AH106:AO106)>0,0,1)*AC106 -> 0 | AQ106: =IF(SUM($AH106:AP106)>0,0,1)*AD106 -> 0 | AR106: =IF(SUM($AH106:AQ106)>0,0,1)*AE106 -> 0 | AS106: =IF(SUM($AH106:AR106)>0,0,1)*AF106 -> 0 | AT106: =IF(SUM($AH106:AS106)>0,0,1)*AG106 -> 0 | AU106: 1 | AV106: 1 | AW106: 0 | AX106: 1 | AY106: 0 | AZ106: 1 | BA106: 0 | BB106: 1 | BC106: 0 | BD106: XIV | BE106: 0.06526806527 | BF106: 0.08041943606 | BG106: 0 | BH106: 0 | BI106: 230557 | BJ106: =IF(BD105="CASH",1,(1-$BN$4)*IF(BD105="XIV",F106,IF(BD105="UVXY",I106,L106))) -> 8.575301994 | BK106: 3.553054746 | BL106: 1977099.455 | BM106: 1979265.771 | BN106: =IF(BD106="CASH",1,(1+$BN$4)*IF(BD106="XIV",F106,IF(BD106="UVXY",I106,L106))) -> 8.584698006 | BO106: 9.14 | BP106: 2107294.533 | BQ106: 100 | BR106: 2.107294533
A107: 2012-02-24 | B107: 17.31 | C107: 21.18 | D107: 21.2 | E107: 24.3 | F107: 9.27 | G107: 8.78 | H107: -0.05285868393 | I107: 1562968.74 | J107: 1718965.62 | K107: 0.09980806142 | L107: 12.665 | M107: 12.6825 | N107: 0.001381760758 | O107: -0.159087953 | P107: 0.8084696824 | Q107: -0.07641561297 | R107: 0.01422319475 | S107: =VLOOKUP(A107,'MACD SPYG'!$A$2:$G$1452,7,FALSE) -> 0.002695039876 | T107: 1 | U107: 0 | V107: 1 | W107: 0 | X107: 0 | Y107: 0 | Z107: 0 | AA107: 0 | AB107: 0 | AC107: 0 | AD107: 0 | AE107: 0 | AF107: 1 | AG107: 0 | AH107: 0 | AI107: =IF(SUM($AH107:AH107)>0,0,1)*V107 -> 1 | AJ107: =IF(SUM($AH107:AI107)>0,0,1)*W107 -> 0 | AK107: =IF(SUM($AH107:AJ107)>0,0,1)*X107 -> 0 | AL107: =IF(SUM($AH107:AK107)>0,0,1)*Y107 -> 0 | AM107: =IF(SUM($AH107:AL107)>0,0,1)*Z107 -> 0 | AN107: =IF(SUM($AH107:AM107)>0,0,1)*AA107 -> 0 | AO107: =IF(SUM($AH107:AN107)>0,0,1)*AB107 -> 0 | AP107: =IF(SUM($AH107:AO107)>0,0,1)*AC107 -> 0 | AQ107: =IF(SUM($AH107:AP107)>0,0,1)*AD107 -> 0 | AR107: =IF(SUM($AH107:AQ107)>0,0,1)*AE107 -> 0 | AS107: =IF(SUM($AH107:AR107)>0,0,1)*AF107 -> 0 | AT107: =IF(SUM($AH107:AS107)>0,0,1)*AG107 -> 0 | AU107: 1 | AV107: 1 | AW107: 0 | AX107: 1 | AY107: 0 | AZ107: 1 | BA107: 0 | BB107: 1 | BC107: 0 | BD107: XIV | BE107: -0.05285868393 | BF107: -0.08522100188 | BG107: 0 | BH107: 0 | BI107: 230557 | BJ107: =IF(BD106="CASH",1,(1-$BN$4)*IF(BD106="XIV",F107,IF(BD106="UVXY",I107,L107))) -> 9.264924182 | BK107: 3.553054746 | BL107: 2136096.678 | BM107: 2138437.208 | BN107: =IF(BD107="CASH",1,(1+$BN$4)*IF(BD107="XIV",F107,IF(BD107="UVXY",I107,L107))) -> 9.275075818 | BO107: 8.78 | BP107: 2024294.013 | BQ107: 101 | BR107: 2.024294013
A108: 2012-02-27 | B108: 18.19 | C108: 21.87 | D108: 21.55 | E108: 24.55 | F108: 8.48 | G108: 8.69 | H108: 0.02476415094 | I108: 1835963.28 | J108: 1745965.08 | K108: -0.04901960784 | L108: 12.465 | M108: 12.74375 | N108: 0.02236261532 | O108: -0.1667150012 | P108: 0.8172804533 | Q108: 0.03035714286 | R108: -0.03416856492 | S108: =VLOOKUP(A108,'MACD SPYG'!$A$2:$G$1452,7,FALSE) -> -0.01300517997 | T108: 1 | U108: 0 | V108: 1 | W108: 0 | X108: 0 | Y108: 0 | Z108: 0 | AA108: 0 | AB108: 0 | AC108: 0 | AD108: 0 | AE108: 0 | AF108: 1 | AG108: 0 | AH108: 0 | AI108: =IF(SUM($AH108:AH108)>0,0,1)*V108 -> 1 | AJ108: =IF(SUM($AH108:AI108)>0,0,1)*W108 -> 0 | AK108: =IF(SUM($AH108:AJ108)>0,0,1)*X108 -> 0 | AL108: =IF(SUM($AH108:AK108)>0,0,1)*Y108 -> 0 | AM108: =IF(SUM($AH108:AL108)>0,0,1)*Z108 -> 0 | AN108: =IF(SUM($AH108:AM108)>0,0,1)*AA108 -> 0 | AO108: =IF(SUM($AH108:AN108)>0,0,1)*AB108 -> 0 | AP108: =IF(SUM($AH108:AO108)>0,0,1)*AC108 -> 0 | AQ108: =IF(SUM($AH108:AP108)>0,0,1)*AD108 -> 0 | AR108: =IF(SUM($AH108:AQ108)>0,0,1)*AE108 -> 0 | AS108: =IF(SUM($AH108:AR108)>0,0,1)*AF108 -> 0 | AT108: =IF(SUM($AH108:AS108)>0,0,1)*AG108 -> 0 | AU108: 1 | AV108: 1 | AW108: 0 | AX108: 1 | AY108: 0 | AZ108: 1 | BA108: 0 | BB108: 1 | BC108: 0 | BD108: XIV | BE108: 0.02476415094 | BF108: 0.01533016083 | BG108: 0 | BH108: 0 | BI108: 230557 | BJ108: =IF(BD107="CASH",1,(1-$BN$4)*IF(BD107="XIV",F108,IF(BD107="UVXY",I108,L108))) -> 8.475356749 | BK108: 3.553054746 | BL108: 1954056.379 | BM108: 1956197.447 | BN108: =IF(BD108="CASH",1,(1+$BN$4)*IF(BD108="XIV",F108,IF(BD108="UVXY",I108,L108))) -> 8.484643251 | BO108: 8.69 | BP108: 2003543.883 | BQ108: 102 | BR108: 2.003543883
A109: 2012-02-28 | B109: 17.96 | C109: 21.6 | D109: 20.85 | E109: 24.05 | F109: 8.61 | G109: 8.81 | H109: 0.02322880372 | I109: 1784964.3 | J109: 1706965.86 | K109: -0.04369747899 | L109: 12.77 | M109: 13.125 | N109: 0.02779953015 | O109: -0.1458014091 | P109: 0.8317329675 | Q109: 0.05083766609 | R109: -0.00920598389 | S109: =VLOOKUP(A109,'MACD SPYG'!$A$2:$G$1452,7,FALSE) -> -0.004615578285 | T109: 1 | U109: 0 | V109: 1 | W109: 0 | X109: 0 | Y109: 0 | Z109: 0 | AA109: 0 | AB109: 0 | AC109: 0 | AD109: 0 | AE109: 0 | AF109: 1 | AG109: 0 | AH109: 0 | AI109: =IF(SUM($AH109:AH109)>0,0,1)*V109 -> 1 | AJ109: =IF(SUM($AH109:AI109)>0,0,1)*W109 -> 0 | AK109: =IF(SUM($AH109:AJ109)>0,0,1)*X109 -> 0 | AL109: =IF(SUM($AH109:AK109)>0,0,1)*Y109 -> 0 | AM109: =IF(SUM($AH109:AL109)>0,0,1)*Z109 -> 0 | AN109: =IF(SUM($AH109:AM109)>0,0,1)*AA109 -> 0 | AO109: =IF(SUM($AH109:AN109)>0,0,1)*AB109 -> 0 | AP109: =IF(SUM($AH109:AO109)>0,0,1)*AC109 -> 0 | AQ109: =IF(SUM($AH109:AP109)>0,0,1)*AD109 -> 0 | AR109: =IF(SUM($AH109:AQ109)>0,0,1)*AE109 -> 0 | AS109: =IF(SUM($AH109:AR109)>0,0,1)*AF109 -> 0 | AT109: =IF(SUM($AH109:AS109)>0,0,1)*AG109 -> 0 | AU109: 1 | AV109: 1 | AW109: 0 | AX109: 1 | AY109: 0 | AZ109: 1 | BA109: 0 | BB109: 1 | BC109: 0 | BD109: XIV | BE109: 0.02322880372 | BF109: 0.04065033379 | BG109: 0 | BH109: 0 | BI109: 230557 | BJ109: =IF(BD108="CASH",1,(1-$BN$4)*IF(BD108="XIV",F109,IF(BD108="UVXY",I109,L109))) -> 8.605285567 | BK109: 3.553054746 | BL109: 1984012.378 | BM109: 1986186.268 | BN109: =IF(BD109="CASH",1,(1+$BN$4)*IF(BD109="XIV",F109,IF(BD109="UVXY",I109,L109))) -> 8.614714433 | BO109: 8.81 | BP109: 2031210.723 | BQ109: 103 | BR109: 2.031210723
A110: 2012-02-29 | B110: 18.43 | C110: 21.8 | D110: 21 | E110: 24 | F110: 8.96 | G110: 8.95 | H110: -0.001116071429 | I110: 1649967 | J110: 1646997.059 | K110: -0.0018 | L110: 13.165 | M110: 12.9525 | N110: -0.01614128371 | O110: -0.1369432188 | P110: 0.8314814815 | Q110: -0.01264431006 | R110: 0.0170261067 | S110: =VLOOKUP(A110,'MACD SPYG'!$A$2:$G$1452,7,FALSE) -> 0.01397660725 | T110: 1 | U110: 0 | V110: 1 | W110: 0 | X110: 0 | Y110: 0 | Z110: 0 | AA110: 0 | AB110: 0 | AC110: 0 | AD110: 0 | AE110: 0 | AF110: 1 | AG110: 0 | AH110: 0 | AI110: =IF(SUM($AH110:AH110)>0,0,1)*V110 -> 1 | AJ110: =IF(SUM($AH110:AI110)>0,0,1)*W110 -> 0 | AK110: =IF(SUM($AH110:AJ110)>0,0,1)*X110 -> 0 | AL110: =IF(SUM($AH110:AK110)>0,0,1)*Y110 -> 0 | AM110: =IF(SUM($AH110:AL110)>0,0,1)*Z110 -> 0 | AN110: =IF(SUM($AH110:AM110)>0,0,1)*AA110 -> 0 | AO110: =IF(SUM($AH110:AN110)>0,0,1)*AB110 -> 0 | AP110: =IF(SUM($AH110:AO110)>0,0,1)*AC110 -> 0 | AQ110: =IF(SUM($AH110:AP110)>0,0,1)*AD110 -> 0 | AR110: =IF(SUM($AH110:AQ110)>0,0,1)*AE110 -> 0 | AS110: =IF(SUM($AH110:AR110)>0,0,1)*AF110 -> 0 | AT110: =IF(SUM($AH110:AS110)>0,0,1)*AG110 -> 0 | AU110: 1 | AV110: 1 | AW110: 0 | AX110: 1 | AY110: 0 | AZ110: 1 | BA110: 0 | BB110: 1 | BC110: 0 | BD110: XIV | BE110: -0.001116071429 | BF110: 0.00781248657 | BG110: 0 | BH110: 0 | BI110: 230557 | BJ110: =IF(BD109="CASH",1,(1-$BN$4)*IF(BD109="XIV",F110,IF(BD109="UVXY",I110,L110))) -> 8.955093924 | BK110: 3.553054746 | BL110: 2064663.143 | BM110: 2066925.403 | BN110: =IF(BD110="CASH",1,(1+$BN$4)*IF(BD110="XIV",F110,IF(BD110="UVXY",I110,L110))) -> 8.964906076 | BO110: 8.95 | BP110: 2063488.703 | BQ110: 104 | BR110: 2.063488703
A111: 2012-03-01 | B111: 17.26 | C111: 21.03 | D111: 20.05 | E111: 23.3 | F111: 9.03 | G111: 9.12 | H111: 0.009966777409 | I111: 1628967.42 | J111: 1586938.261 | K111: -0.02580110497 | L111: 13.10375 | M111: 13.2675 | N111: 0.01249642278 | O111: -0.1231666667 | P111: 0.845412844 | Q111: 0.02616926503 | R111: 0.008938547486 | S111: =VLOOKUP(A111,'MACD SPYG'!$A$2:$G$1452,7,FALSE) -> 0.00540988608 | T111: 1 | U111: 0 | V111: 1 | W111: 0 | X111: 0 | Y111: 0 | Z111: 0 | AA111: 0 | AB111: 0 | AC111: 0 | AD111: 0 | AE111: 0 | AF111: 1 | AG111: 0 | AH111: 0 | AI111: =IF(SUM($AH111:AH111)>0,0,1)*V111 -> 1 | AJ111: =IF(SUM($AH111:AI111)>0,0,1)*W111 -> 0 | AK111: =IF(SUM($AH111:AJ111)>0,0,1)*X111 -> 0 | AL111: =IF(SUM($AH111:AK111)>0,0,1)*Y111 -> 0 | AM111: =IF(SUM($AH111:AL111)>0,0,1)*Z111 -> 0 | AN111: =IF(SUM($AH111:AM111)>0,0,1)*AA111 -> 0 | AO111: =IF(SUM($AH111:AN111)>0,0,1)*AB111 -> 0 | AP111: =IF(SUM($AH111:AO111)>0,0,1)*AC111 -> 0 | AQ111: =IF(SUM($AH111:AP111)>0,0,1)*AD111 -> 0 | AR111: =IF(SUM($AH111:AQ111)>0,0,1)*AE111 -> 0 | AS111: =IF(SUM($AH111:AR111)>0,0,1)*AF111 -> 0 | AT111: =IF(SUM($AH111:AS111)>0,0,1)*AG111 -> 0 | AU111: 1 | AV111: 1 | AW111: 0 | AX111: 1 | AY111: 0 | AZ111: 1 | BA111: 0 | BB111: 1 | BC111: 0 | BD111: XIV | BE111: 0.009966777409 | BF111: 0.01107417823 | BG111: 0 | BH111: 0 | BI111: 230557 | BJ111: =IF(BD110="CASH",1,(1-$BN$4)*IF(BD110="XIV",F111,IF(BD110="UVXY",I111,L111))) -> 9.025055595 | BK111: 3.553054746 | BL111: 2080793.296 | BM111: 2083073.23 | BN111: =IF(BD111="CASH",1,(1+$BN$4)*IF(BD111="XIV",F111,IF(BD111="UVXY",I111,L111))) -> 9.034944405 | BO111: 9.12 | BP111: 2102683.393 | BQ111: 105 | BR111: 2.102683393
A112: 2012-03-02 | B112: 17.29 | C112: 21.26 | D112: 20.4 | E112: 23.7 | F112: 9.13 | G112: 9.03 | H112: -0.01095290252 | I112: 1580968.38 | J112: 1610967.78 | K112: 0.01897533207 | L112: 13.2225 | M112: 13.2275 | N112: 0.0003781433163 | O112: -0.1392519774 | P112: 0.8207322872 | Q112: -0.0634834509 | R112: 0.001096491228 | S112: =VLOOKUP(A112,'MACD SPYG'!$A$2:$G$1452,7,FALSE) -> -0.006978844533 | T112: 1 | U112: 0 | V112: 1 | W112: 0 | X112: 0 | Y112: 0 | Z112: 0 | AA112: 0 | AB112: 0 | AC112: 0 | AD112: 0 | AE112: 0 | AF112: 1 | AG112: 0 | AH112: 0 | AI112: =IF(SUM($AH112:AH112)>0,0,1)*V112 -> 1 | AJ112: =IF(SUM($AH112:AI112)>0,0,1)*W112 -> 0 | AK112: =IF(SUM($AH112:AJ112)>0,0,1)*X112 -> 0 | AL112: =IF(SUM($AH112:AK112)>0,0,1)*Y112 -> 0 | AM112: =IF(SUM($AH112:AL112)>0,0,1)*Z112 -> 0 | AN112: =IF(SUM($AH112:AM112)>0,0,1)*AA112 -> 0 | AO112: =IF(SUM($AH112:AN112)>0,0,1)*AB112 -> 0 | AP112: =IF(SUM($AH112:AO112)>0,0,1)*AC112 -> 0 | AQ112: =IF(SUM($AH112:AP112)>0,0,1)*AD112 -> 0 | AR112: =IF(SUM($AH112:AQ112)>0,0,1)*AE112 -> 0 | AS112: =IF(SUM($AH112:AR112)>0,0,1)*AF112 -> 0 | AT112: =IF(SUM($AH112:AS112)>0,0,1)*AG112 -> 0 | AU112: 1 | AV112: 1 | AW112: 0 | AX112: 1 | AY112: 0 | AZ112: 1 | BA112: 0 | BB112: 1 | BC112: 0 | BD112: XIV | BE112: -0.01095290252 | BF112: -0.01642932606 | BG112: 0 | BH112: 0 | BI112: 230557 | BJ112: =IF(BD111="CASH",1,(1-$BN$4)*IF(BD111="XIV",F112,IF(BD111="UVXY",I112,L112))) -> 9.12500084 | BK112: 3.553054746 | BL112: 2103836.372 | BM112: 2106141.554 | BN112: =IF(BD112="CASH",1,(1+$BN$4)*IF(BD112="XIV",F112,IF(BD112="UVXY",I112,L112))) -> 9.13499916 | BO112: 9.03 | BP112: 2081933.263 | BQ112: 106 | BR112: 2.081933263
A113: 2012-03-05 | B113: 18.05 | C113: 21.99 | D113: 20.15 | E113: 23.65 | F113: 8.98 | G113: 9.05 | H113: 0.007795100223 | I113: 1625967.48 | J113: 1595968.08 | K113: -0.0184501845 | L113: 13.21375 | M113: 12.815 | N113: -0.03017689906 | O113: -0.1484878382 | P113: 0.8132643462 | Q113: 0.001738122827 | R113: -0.00553709856 | S113: =VLOOKUP(A113,'MACD SPYG'!$A$2:$G$1452,7,FALSE) -> -0.02556534825 | T113: 1 | U113: 0 | V113: 1 | W113: 0 | X113: 0 | Y113: 0 | Z113: 0 | AA113: 0 | AB113: 0 | AC113: 0 | AD113: 0 | AE113: 0 | AF113: 1 | AG113: 0 | AH113: 0 | AI113: =IF(SUM($AH113:AH113)>0,0,1)*V113 -> 1 | AJ113: =IF(SUM($AH113:AI113)>0,0,1)*W113 -> 0 | AK113: =IF(SUM($AH113:AJ113)>0,0,1)*X113 -> 0 | AL113: =IF(SUM($AH113:AK113)>0,0,1)*Y113 -> 0 | AM113: =IF(SUM($AH113:AL113)>0,0,1)*Z113 -> 0 | AN113: =IF(SUM($AH113:AM113)>0,0,1)*AA113 -> 0 | AO113: =IF(SUM($AH113:AN113)>0,0,1)*AB113 -> 0 | AP113: =IF(SUM($AH113:AO113)>0,0,1)*AC113 -> 0 | AQ113: =IF(SUM($AH113:AP113)>0,0,1)*AD113 -> 0 | AR113: =IF(SUM($AH113:AQ113)>0,0,1)*AE113 -> 0 | AS113: =IF(SUM($AH113:AR113)>0,0,1)*AF113 -> 0 | AT113: =IF(SUM($AH113:AS113)>0,0,1)*AG113 -> 0 | AU113: 1 | AV113: 1 | AW113: 0 | AX113: 1 | AY113: 0 | AZ113: 1 | BA113: 0 | BB113: 1 | BC113: 0 | BD113: XIV | BE113: 0.007795100223 | BF113: -0.05671755885 | BG113: 0 | BH113: 0 | BI113: 230557 | BJ113: =IF(BD112="CASH",1,(1-$BN$4)*IF(BD112="XIV",F113,IF(BD112="UVXY",I113,L113))) -> 8.975082973 | BK113: 3.553054746 | BL113: 2069271.758 | BM113: 2071539.068 | BN113: =IF(BD113="CASH",1,(1+$BN$4)*IF(BD113="XIV",F113,IF(BD113="UVXY",I113,L113))) -> 8.984917027 | BO113: 9.05 | BP113: 2086544.403 | BQ113: 107 | BR113: 2.086544403
A114: 2012-03-06 | B114: 20.87 | C114: 23.9 | D114: 22.5 | E114: 25.3 | F114: 8.48 | G114: 8.35 | H114: -0.01533018868 | I114: 1796964.06 | J114: 1838513.229 | K114: 0.02312186978 | L114: 12.455 | M114: 12.4475 | N114: -0.0006021678041 | O114: -0.1173503166 | P114: 0.8208276489 | Q114: 0.04395604396 | R114: -0.06298342541 | S114: =VLOOKUP(A114,'MACD SPYG'!$A$2:$G$1452,7,FALSE) -> -0.09741959138 | T114: 1 | U114: 0 | V114: 1 | W114: 0 | X114: 0 | Y114: 0 | Z114: 0 | AA114: 0 | AB114: 0 | AC114: 0 | AD114: 0 | AE114: 0 | AF114: 1 | AG114: 0 | AH114: 0 | AI114: =IF(SUM($AH114:AH114)>0,0,1)*V114 -> 1 | AJ114: =IF(SUM($AH114:AI114)>0,0,1)*W114 -> 0 | AK114: =IF(SUM($AH114:AJ114)>0,0,1)*X114 -> 0 | AL114: =IF(SUM($AH114:AK114)>0,0,1)*Y114 -> 0 | AM114: =IF(SUM($AH114:AL114)>0,0,1)*Z114 -> 0 | AN114: =IF(SUM($AH114:AM114)>0,0,1)*AA114 -> 0 | AO114: =IF(SUM($AH114:AN114)>0,0,1)*AB114 -> 0 | AP114: =IF(SUM($AH114:AO114)>0,0,1)*AC114 -> 0 | AQ114: =IF(SUM($AH114:AP114)>0,0,1)*AD114 -> 0 | AR114: =IF(SUM($AH114:AQ114)>0,0,1)*AE114 -> 0 | AS114: =IF(SUM($AH114:AR114)>0,0,1)*AF114 -> 0 | AT114: =IF(SUM($AH114:AS114)>0,0,1)*AG114 -> 0 | AU114: 1 | AV114: 1 | AW114: 0 | AX114: 1 | AY114: 0 | AZ114: 0 | BA114: 0 | BB114: 0 | BC114: 1 | BD114: TQQQ | BE114: -0.0006021678041 | BF114: 0.01213354228 | BG114: 1 | BH114: 1 | BI114: 156802 | BJ114: =IF(BD113="CASH",1,(1-$BN$4)*IF(BD113="XIV",F114,IF(BD113="UVXY",I114,L114))) -> 8.475356749 | BK114: 8.164824953 | BL114: 1954056.379 | BM114: 1954046.429 | BN114: =IF(BD114="CASH",1,(1+$BN$4)*IF(BD114="XIV",F114,IF(BD114="UVXY",I114,L114))) -> 12.46181977 | BO114: 12.4475 | BP114: 1951801.06 | BQ114: 108 | BR114: 1.95180106
A115: 2012-03-07 | B115: 19.07 | C115: 22.72 | D115: 20.65 | E115: 23.95 | F115: 8.45 | G115: 8.76 | H115: 0.03668639053 | I115: 1790964.18 | J115: 1661966.76 | K115: -0.07202680067 | L115: 12.62 | M115: 12.73 | N115: 0.008716323296 | O115: -0.08391269214 | P115: 0.8732217573 | Q115: 0.156232687 | R115: 0.0119760479 | S115: =VLOOKUP(A115,'MACD SPYG'!$A$2:$G$1452,7,FALSE) -> -0.1469801483 | T115: 1 | U115: 0 | V115: 1 | W115: 0 | X115: 0 | Y115: 0 | Z115: 1 | AA115: 0 | AB115: 0 | AC115: 1 | AD115: 0 | AE115: 0 | AF115: 1 | AG115: 0 | AH115: 0 | AI115: =IF(SUM($AH115:AH115)>0,0,1)*V115 -> 1 | AJ115: =IF(SUM($AH115:AI115)>0,0,1)*W115 -> 0 | AK115: =IF(SUM($AH115:AJ115)>0,0,1)*X115 -> 0 | AL115: =IF(SUM($AH115:AK115)>0,0,1)*Y115 -> 0 | AM115: =IF(SUM($AH115:AL115)>0,0,1)*Z115 -> 0 | AN115: =IF(SUM($AH115:AM115)>0,0,1)*AA115 -> 0 | AO115: =IF(SUM($AH115:AN115)>0,0,1)*AB115 -> 0 | AP115: =IF(SUM($AH115:AO115)>0,0,1)*AC115 -> 0 | AQ115: =IF(SUM($AH115:AP115)>0,0,1)*AD115 -> 0 | AR115: =IF(SUM($AH115:AQ115)>0,0,1)*AE115 -> 0 | AS115: =IF(SUM($AH115:AR115)>0,0,1)*AF115 -> 0 | AT115: =IF(SUM($AH115:AS115)>0,0,1)*AG115 -> 0 | AU115: 1 | AV115: 1 | AW115: 0 | AX115: 1 | AY115: 0 | AZ115: 1 | BA115: 0 | BB115: 1 | BC115: 0 | BD115: XIV | BE115: 0.03668639053 | BF115: 0.06153823271 | BG115: 1 | BH115: 1 | BI115: 233925 | BJ115: =IF(BD114="CASH",1,(1-$BN$4)*IF(BD114="XIV",F115,IF(BD114="UVXY",I115,L115))) -> 12.61308988 | BK115: 7.354242128 | BL115: 1977765.884 | BM115: 1977755.934 | BN115: =IF(BD115="CASH",1,(1+$BN$4)*IF(BD115="XIV",F115,IF(BD115="UVXY",I115,L115))) -> 8.454626824 | BO115: 8.76 | BP115: 2049190.354 | BQ115: 109 | BR115: 2.049190354
A116: 2012-03-08 | B116: 17.95 | C116: 21.84 | D116: 19.7 | E116: 23.25 | F116: 8.97 | G116: 9.09 | H116: 0.01337792642 | I116: 1569500 | J116: 1525500 | K116: -0.02803440586 | L116: 12.94625 | M116: 13.13375 | N116: 0.01448295839 | O116: -0.09489543894 | P116: 0.8393485915 | Q116: -0.08624820316 | R116: 0.02397260274 | S116: =VLOOKUP(A116,'MACD SPYG'!$A$2:$G$1452,7,FALSE) -> -0.1438964552 | T116: 1 | U116: 0 | V116: 1 | W116: 0 | X116: 0 | Y116: 0 | Z116: 0 | AA116: 0 | AB116: 0 | AC116: 0 | AD116: 0 | AE116: 0 | AF116: 1 | AG116: 0 | AH116: 0 | AI116: =IF(SUM($AH116:AH116)>0,0,1)*V116 -> 1 | AJ116: =IF(SUM($AH116:AI116)>0,0,1)*W116 -> 0 | AK116: =IF(SUM($AH116:AJ116)>0,0,1)*X116 -> 0 | AL116: =IF(SUM($AH116:AK116)>0,0,1)*Y116 -> 0 | AM116: =IF(SUM($AH116:AL116)>0,0,1)*Z116 -> 0 | AN116: =IF(SUM($AH116:AM116)>0,0,1)*AA116 -> 0 | AO116: =IF(SUM($AH116:AN116)>0,0,1)*AB116 -> 0 | AP116: =IF(SUM($AH116:AO116)>0,0,1)*AC116 -> 0 | AQ116: =IF(SUM($AH116:AP116)>0,0,1)*AD116 -> 0 | AR116: =IF(SUM($AH116:AQ116)>0,0,1)*AE116 -> 0 | AS116: =IF(SUM($AH116:AR116)>0,0,1)*AF116 -> 0 | AT116: =IF(SUM($AH116:AS116)>0,0,1)*AG116 -> 0 | AU116: 1 | AV116: 1 | AW116: 0 | AX116: 1 | AY116: 0 | AZ116: 1 | BA116: 0 | BB116: 1 | BC116: 0 | BD116: XIV | BE116: 0.01337792642 | BF116: 0.02787058242 | BG116: 0 | BH116: 0 | BI116: 233925 | BJ116: =IF(BD115="CASH",1,(1-$BN$4)*IF(BD115="XIV",F116,IF(BD115="UVXY",I116,L116))) -> 8.965088448 | BK116: 7.354242128 | BL116: 2097165.669 | BM116: 2099463.539 | BN116: =IF(BD116="CASH",1,(1+$BN$4)*IF(BD116="XIV",F116,IF(BD116="UVXY",I116,L116))) -> 8.974911552 | BO116: 9.09 | BP116: 2126385.604 | BQ116: 110 | BR116: 2.126385604
A117: 2012-03-09 | B117: 17.11 | C117: 21.22 | D117: 19.05 | E117: 22.75 | F117: 9.22 | G117: 9.26 | H117: 0.004338394794 | I117: 1481000 | J117: 1464275 | K117: -0.01129304524 | L117: 13.21125 | M117: 13.2925 | N117: 0.006150061501 | O117: -0.1079891927 | P117: 0.8218864469 | Q117: -0.05873099109 | R117: 0.01430143014 | S117: =VLOOKUP(A117,'MACD SPYG'!$A$2:$G$1452,7,FALSE) -> -0.1102027558 | T117: 1 | U117: 0 | V117: 1 | W117: 0 | X117: 0 | Y117: 0 | Z117: 0 | AA117: 0 | AB117: 0 | AC117: 0 | AD117: 0 | AE117: 0 | AF117: 1 | AG117: 0 | AH117: 0 | AI117: =IF(SUM($AH117:AH117)>0,0,1)*V117 -> 1 | AJ117: =IF(SUM($AH117:AI117)>0,0,1)*W117 -> 0 | AK117: =IF(SUM($AH117:AJ117)>0,0,1)*X117 -> 0 | AL117: =IF(SUM($AH117:AK117)>0,0,1)*Y117 -> 0 | AM117: =IF(SUM($AH117:AL117)>0,0,1)*Z117 -> 0 | AN117: =IF(SUM($AH117:AM117)>0,0,1)*AA117 -> 0 | AO117: =IF(SUM($AH117:AN117)>0,0,1)*AB117 -> 0 | AP117: =IF(SUM($AH117:AO117)>0,0,1)*AC117 -> 0 | AQ117: =IF(SUM($AH117:AP117)>0,0,1)*AD117 -> 0 | AR117: =IF(SUM($AH117:AQ117)>0,0,1)*AE117 -> 0 | AS117: =IF(SUM($AH117:AR117)>0,0,1)*AF117 -> 0 | AT117: =IF(SUM($AH117:AS117)>0,0,1)*AG117 -> 0 | AU117: 1 | AV117: 1 | AW117: 0 | AX117: 1 | AY117: 0 | AZ117: 1 | BA117: 0 | BB117: 1 | BC117: 0 | BD117: XIV | BE117: 0.004338394794 | BF117: 0.01952271004 | BG117: 0 | BH117: 0 | BI117: 233925 | BJ117: =IF(BD116="CASH",1,(1-$BN$4)*IF(BD116="XIV",F117,IF(BD116="UVXY",I117,L117))) -> 9.21495156 | BK117: 7.354242128 | BL117: 2155614.898 | BM117: 2157976.811 | BN117: =IF(BD117="CASH",1,(1+$BN$4)*IF(BD117="XIV",F117,IF(BD117="UVXY",I117,L117))) -> 9.22504844 | BO117: 9.26 | BP117: 2166152.854 | BQ117: 111 | BR117: 2.166152854
A118: 2012-03-12 | B118: 15.64 | C118: 20.81 | D118: 17.75 | E118: 21.75 | F118: 9.4 | G118: 9.7 | H118: 0.03191489362 | I118: 1424000 | J118: 1329500 | K118: -0.06636235955 | L118: 13.27625 | M118: 13.31375 | N118: 0.002824592788 | O118: -0.120077298 | P118: 0.8063147974 | Q118: -0.04679665738 | R118: 0.0151187905 | S118: =VLOOKUP(A118,'MACD SPYG'!$A$2:$G$1452,7,FALSE) -> -0.09074729822 | T118: 1 | U118: 0 | V118: 1 | W118: 0 | X118: 0 | Y118: 0 | Z118: 0 | AA118: 0 | AB118: 0 | AC118: 0 | AD118: 0 | AE118: 0 | AF118: 1 | AG118: 0 | AH118: 0 | AI118: =IF(SUM($AH118:AH118)>0,0,1)*V118 -> 1 | AJ118: =IF(SUM($AH118:AI118)>0,0,1)*W118 -> 0 | AK118: =IF(SUM($AH118:AJ118)>0,0,1)*X118 -> 0 | AL118: =IF(SUM($AH118:AK118)>0,0,1)*Y118 -> 0 | AM118: =IF(SUM($AH118:AL118)>0,0,1)*Z118 -> 0 | AN118: =IF(SUM($AH118:AM118)>0,0,1)*AA118 -> 0 | AO118: =IF(SUM($AH118:AN118)>0,0,1)*AB118 -> 0 | AP118: =IF(SUM($AH118:AO118)>0,0,1)*AC118 -> 0 | AQ118: =IF(SUM($AH118:AP118)>0,0,1)*AD118 -> 0 | AR118: =IF(SUM($AH118:AQ118)>0,0,1)*AE118 -> 0 | AS118: =IF(SUM($AH118:AR118)>0,0,1)*AF118 -> 0 | AT118: =IF(SUM($AH118:AS118)>0,0,1)*AG118 -> 0 | AU118: 1 | AV118: 1 | AW118: 0 | AX118: 1 | AY118: 0 | AZ118: 1 | BA118: 0 | BB118: 1 | BC118: 0 | BD118: XIV | BE118: 0.03191489362 | BF118: 0.06170192141 | BG118: 0 | BH118: 0 | BI118: 233925 | BJ118: =IF(BD117="CASH",1,(1-$BN$4)*IF(BD117="XIV",F118,IF(BD117="UVXY",I118,L118))) -> 9.394853 | BK118: 7.354242128 | BL118: 2197698.342 | BM118: 2200106.366 | BN118: =IF(BD118="CASH",1,(1+$BN$4)*IF(BD118="XIV",F118,IF(BD118="UVXY",I118,L118))) -> 9.405147 | BO118: 9.7 | BP118: 2269079.854 | BQ118: 112 | BR118: 2.269079854
A119: 2012-03-13 | B119: 14.8 | C119: 19.6 | D119: 17 | E119: 21 | F119: 9.98 | G119: 10.13 | H119: 0.01503006012 | I119: 1252500 | J119: 1208500 | K119: -0.03512974052 | L119: 13.5475 | M119: 14.06375 | N119: 0.03810666175 | O119: -0.1383836814 | P119: 0.7515617492 | Q119: -0.08591466978 | R119: 0.02886597938 | S119: =VLOOKUP(A119,'MACD SPYG'!$A$2:$G$1452,7,FALSE) -> -0.05486384461 | T119: 1 | U119: 0 | V119: 1 | W119: 1 | X119: 0 | Y119: 0 | Z119: 0 | AA119: 0 | AB119: 0 | AC119: 0 | AD119: 0 | AE119: 0 | AF119: 1 | AG119: 0 | AH119: 0 | AI119: =IF(SUM($AH119:AH119)>0,0,1)*V119 -> 1 | AJ119: =IF(SUM($AH119:AI119)>0,0,1)*W119 -> 0 | AK119: =IF(SUM($AH119:AJ119)>0,0,1)*X119 -> 0 | AL119: =IF(SUM($AH119:AK119)>0,0,1)*Y119 -> 0 | AM119: =IF(SUM($AH119:AL119)>0,0,1)*Z119 -> 0 | AN119: =IF(SUM($AH119:AM119)>0,0,1)*AA119 -> 0 | AO119: =IF(SUM($AH119:AN119)>0,0,1)*AB119 -> 0 | AP119: =IF(SUM($AH119:AO119)>0,0,1)*AC119 -> 0 | AQ119: =IF(SUM($AH119:AP119)>0,0,1)*AD119 -> 0 | AR119: =IF(SUM($AH119:AQ119)>0,0,1)*AE119 -> 0 | AS119: =IF(SUM($AH119:AR119)>0,0,1)*AF119 -> 0 | AT119: =IF(SUM($AH119:AS119)>0,0,1)*AG119 -> 0 | AU119: 1 | AV119: 1 | AW119: 0 | AX119: 1 | AY119: 0 | AZ119: 1 | BA119: 0 | BB119: 1 | BC119: 0 | BD119: XIV | BE119: 0.01503006012 | BF119: 0.02304601963 | BG119: 0 | BH119: 0 | BI119: 233925 | BJ119: =IF(BD118="CASH",1,(1-$BN$4)*IF(BD118="XIV",F119,IF(BD118="UVXY",I119,L119))) -> 9.97453542 | BK119: 7.354242128 | BL119: 2333300.552 | BM119: 2335857.156 | BN119: =IF(BD119="CASH",1,(1+$BN$4)*IF(BD119="XIV",F119,IF(BD119="UVXY",I119,L119))) -> 9.98546458 | BO119: 10.13 | BP119: 2369667.604 | BQ119: 113 | BR119: 2.369667604
A120: 2012-03-14 | B120: 15.31 | C120: 20.75 | D120: 17.8 | E120: 22.1 | F120: 10.21 | G120: 9.79 | H120: -0.04113614104 | I120: 1189000 | J120: 1284500 | K120: 0.0803195963 | L120: 14.105 | M120: 14.22125 | N120: 0.008241758242 | O120: -0.1477310924 | P120: 0.7551020408 | Q120: -0.0537084399 | R120: 0.00789733465 | S120: =VLOOKUP(A120,'MACD SPYG'!$A$2:$G$1452,7,FALSE) -> 0.01125853169 | T120: 1 | U120: 0 | V120: 1 | W120: 1 | X120: 0 | Y120: 0 | Z120: 0 | AA120: 0 | AB120: 0 | AC120: 0 | AD120: 0 | AE120: 0 | AF120: 1 | AG120: 0 | AH120: 0 | AI120: =IF(SUM($AH120:AH120)>0,0,1)*V120 -> 1 | AJ120: =IF(SUM($AH120:AI120)>0,0,1)*W120 -> 0 | AK120: =IF(SUM($AH120:AJ120)>0,0,1)*X120 -> 0 | AL120: =IF(SUM($AH120:AK120)>0,0,1)*Y120 -> 0 | AM120: =IF(SUM($AH120:AL120)>0,0,1)*Z120 -> 0 | AN120: =IF(SUM($AH120:AM120)>0,0,1)*AA120 -> 0 | AO120: =IF(SUM($AH120:AN120)>0,0,1)*AB120 -> 0 | AP120: =IF(SUM($AH120:AO120)>0,0,1)*AC120 -> 0 | AQ120: =IF(SUM($AH120:AP120)>0,0,1)*AD120 -> 0 | AR120: =IF(SUM($AH120:AQ120)>0,0,1)*AE120 -> 0 | AS120: =IF(SUM($AH120:AR120)>0,0,1)*AF120 -> 0 | AT120: =IF(SUM($AH120:AS120)>0,0,1)*AG120 -> 0 | AU120: 1 | AV120: 1 | AW120: 0 | AX120: 1 | AY120: 0 | AZ120: 1 | BA120: 0 | BB120: 1 | BC120: 0 | BD120: XIV | BE120: -0.04113614104 | BF120: -0.04995087468 | BG120: 0 | BH120: 0 | BI120: 233925 | BJ120: =IF(BD119="CASH",1,(1-$BN$4)*IF(BD119="XIV",F120,IF(BD119="UVXY",I120,L120))) -> 10.20440948 | BK120: 7.354242128 | BL120: 2387073.842 | BM120: 2389689.366 | BN120: =IF(BD120="CASH",1,(1+$BN$4)*IF(BD120="XIV",F120,IF(BD120="UVXY",I120,L120))) -> 10.21559052 | BO120: 9.79 | BP120: 2290133.104 | BQ120: 114 | BR120: 2.290133104
A121: 2012-03-15 | B121: 15.42 | C121: 20.54 | D121: 17.05 | E121: 21.75 | F121: 9.7 | G121: 9.95 | H121: 0.02577319588 | I121: 1315000 | J121: 1243000 | K121: -0.05475285171 | L121: 14.33875 | M121: 14.33 | N121: -0.0006102345044 | O121: -0.156292389 | P121: 0.7378313253 | Q121: 0.03445945946 | R121: -0.009193054137 | S121: =VLOOKUP(A121,'MACD SPYG'!$A$2:$G$1452,7,FALSE) -> 0.05391288873 | T121: 1 | U121: 0 | V121: 1 | W121: 1 | X121: 0 | Y121: 0 | Z121: 0 | AA121: 0 | AB121: 0 | AC121: 0 | AD121: 0 | AE121: 0 | AF121: 1 | AG121: 0 | AH121: 0 | AI121: =IF(SUM($AH121:AH121)>0,0,1)*V121 -> 1 | AJ121: =IF(SUM($AH121:AI121)>0,0,1)*W121 -> 0 | AK121: =IF(SUM($AH121:AJ121)>0,0,1)*X121 -> 0 | AL121: =IF(SUM($AH121:AK121)>0,0,1)*Y121 -> 0 | AM121: =IF(SUM($AH121:AL121)>0,0,1)*Z121 -> 0 | AN121: =IF(SUM($AH121:AM121)>0,0,1)*AA121 -> 0 | AO121: =IF(SUM($AH121:AN121)>0,0,1)*AB121 -> 0 | AP121: =IF(SUM($AH121:AO121)>0,0,1)*AC121 -> 0 | AQ121: =IF(SUM($AH121:AP121)>0,0,1)*AD121 -> 0 | AR121: =IF(SUM($AH121:AQ121)>0,0,1)*AE121 -> 0 | AS121: =IF(SUM($AH121:AR121)>0,0,1)*AF121 -> 0 | AT121: =IF(SUM($AH121:AS121)>0,0,1)*AG121 -> 0 | AU121: 1 | AV121: 1 | AW121: 0 | AX121: 1 | AY121: 0 | AZ121: 1 | BA121: 0 | BB121: 1 | BC121: 0 | BD121: XIV | BE121: 0.02577319588 | BF121: 0.03092773487 | BG121: 0 | BH121: 0 | BI121: 233925 | BJ121: =IF(BD120="CASH",1,(1-$BN$4)*IF(BD120="XIV",F121,IF(BD120="UVXY",I121,L121))) -> 9.694688734 | BK121: 7.354242128 | BL121: 2267837.416 | BM121: 2270322.292 | BN121: =IF(BD121="CASH",1,(1+$BN$4)*IF(BD121="XIV",F121,IF(BD121="UVXY",I121,L121))) -> 9.705311266 | BO121: 9.95 | BP121: 2327561.104 | BQ121: 115 | BR121: 2.327561104
A122: 2012-03-16 | B122: 14.47 | C122: 20.37 | D122: 16.15 | E122: 21.6 | F122: 10 | G122: 9.96 | H122: -0.004 | I122: 1230000 | J122: 1238495 | K122: 0.006906504065 | L122: 14.4 | M122: 14.29875 | N122: -0.00703125 | O122: -0.1317484073 | P122: 0.7507302824 | Q122: 0.007184846506 | R122: 0.005025125628 | S122: =VLOOKUP(A122,'MACD SPYG'!$A$2:$G$1452,7,FALSE) -> 0.06928848476 | T122: 1 | U122: 0 | V122: 1 | W122: 1 | X122: 0 | Y122: 0 | Z122: 0 | AA122: 0 | AB122: 0 | AC122: 0 | AD122: 0 | AE122: 0 | AF122: 1 | AG122: 0 | AH122: 0 | AI122: =IF(SUM($AH122:AH122)>0,0,1)*V122 -> 1 | AJ122: =IF(SUM($AH122:AI122)>0,0,1)*W122 -> 0 | AK122: =IF(SUM($AH122:AJ122)>0,0,1)*X122 -> 0 | AL122: =IF(SUM($AH122:AK122)>0,0,1)*Y122 -> 0 | AM122: =IF(SUM($AH122:AL122)>0,0,1)*Z122 -> 0 | AN122: =IF(SUM($AH122:AM122)>0,0,1)*AA122 -> 0 | AO122: =IF(SUM($AH122:AN122)>0,0,1)*AB122 -> 0 | AP122: =IF(SUM($AH122:AO122)>0,0,1)*AC122 -> 0 | AQ122: =IF(SUM($AH122:AP122)>0,0,1)*AD122 -> 0 | AR122: =IF(SUM($AH122:AQ122)>0,0,1)*AE122 -> 0 | AS122: =IF(SUM($AH122:AR122)>0,0,1)*AF122 -> 0 | AT122: =IF(SUM($AH122:AS122)>0,0,1)*AG122 -> 0 | AU122: 1 | AV122: 1 | AW122: 0 | AX122: 1 | AY122: 0 | AZ122: 1 | BA122: 0 | BB122: 1 | BC122: 0 | BD122: XIV | BE122: -0.004 | BF122: 0.002999990574 | BG122: 0 | BH122: 0 | BI122: 233925 | BJ122: =IF(BD121="CASH",1,(1-$BN$4)*IF(BD121="XIV",F122,IF(BD121="UVXY",I122,L122))) -> 9.994524469 | BK122: 7.354242128 | BL122: 2337976.491 | BM122: 2340538.218 | BN122: =IF(BD122="CASH",1,(1+$BN$4)*IF(BD122="XIV",F122,IF(BD122="UVXY",I122,L122))) -> 10.00547553 | BO122: 9.96 | BP122: 2329900.354 | BQ122: 116 | BR122: 2.329900354
A123: 2012-03-19 | B123: 15.04 | C123: 19.94 | D123: 15.55 | E123: 20 | F123: 10.03 | G123: 10.58 | H123: 0.05483549352 | I123: 1225000 | J123: 1092575 | K123: -0.1081020408 | L123: 14.37 | M123: 14.61 | N123: 0.01670146138 | O123: -0.1485117819 | P123: 0.7103583702 | Q123: -0.06160830091 | R123: 0.00702811245 | S123: =VLOOKUP(A123,'MACD SPYG'!$A$2:$G$1452,7,FALSE) -> 0.0678790176 | T123: 1 | U123: 0 | V123: 1 | W123: 1 | X123: 0 | Y123: 0 | Z123: 0 | AA123: 0 | AB123: 0 | AC123: 0 | AD123: 0 | AE123: 0 | AF123: 1 | AG123: 0 | AH123: 0 | AI123: =IF(SUM($AH123:AH123)>0,0,1)*V123 -> 1 | AJ123: =IF(SUM($AH123:AI123)>0,0,1)*W123 -> 0 | AK123: =IF(SUM($AH123:AJ123)>0,0,1)*X123 -> 0 | AL123: =IF(SUM($AH123:AK123)>0,0,1)*Y123 -> 0 | AM123: =IF(SUM($AH123:AL123)>0,0,1)*Z123 -> 0 | AN123: =IF(SUM($AH123:AM123)>0,0,1)*AA123 -> 0 | AO123: =IF(SUM($AH123:AN123)>0,0,1)*AB123 -> 0 | AP123: =IF(SUM($AH123:AO123)>0,0,1)*AC123 -> 0 | AQ123: =IF(SUM($AH123:AP123)>0,0,1)*AD123 -> 0 | AR123: =IF(SUM($AH123:AQ123)>0,0,1)*AE123 -> 0 | AS123: =IF(SUM($AH123:AR123)>0,0,1)*AF123 -> 0 | AT123: =IF(SUM($AH123:AS123)>0,0,1)*AG123 -> 0 | AU123: 1 | AV123: 1 | AW123: 0 | AX123: 1 | AY123: 0 | AZ123: 1 | BA123: 0 | BB123: 1 | BC123: 0 | BD123: XIV | BE123: 0.05483549352 | BF123: 0.02691915794 | BG123: 0 | BH123: 0 | BI123: 233925 | BJ123: =IF(BD122="CASH",1,(1-$BN$4)*IF(BD122="XIV",F123,IF(BD122="UVXY",I123,L123))) -> 10.02450804 | BK123: 7.354242128 | BL123: 2344990.398 | BM123: 2347559.811 | BN123: =IF(BD123="CASH",1,(1+$BN$4)*IF(BD123="XIV",F123,IF(BD123="UVXY",I123,L123))) -> 10.03549196 | BO123: 10.58 | BP123: 2474933.854 | BQ123: 117 | BR123: 2.474933854
A124: 2012-03-20 | B124: 15.58 | C124: 19.96 | D124: 15.65 | E124: 19.1 | F124: 10.3 | G124: 11.05 | H124: 0.07281553398 | I124: 1136500 | J124: 986955 | K124: -0.1315838099 | L124: 14.38625 | M124: 14.69 | N124: 0.02111391085 | O124: -0.08970819936 | P124: 0.7542627884 | Q124: 0.0393918452 | R124: -0.02646502836 | S124: =VLOOKUP(A124,'MACD SPYG'!$A$2:$G$1452,7,FALSE) -> 0.04820979968 | T124: 1 | U124: 0 | V124: 1 | W124: 1 | X124: 0 | Y124: 0 | Z124: 0 | AA124: 0 | AB124: 0 | AC124: 0 | AD124: 0 | AE124: 0 | AF124: 1 | AG124: 0 | AH124: 0 | AI124: =IF(SUM($AH124:AH124)>0,0,1)*V124 -> 1 | AJ124: =IF(SUM($AH124:AI124)>0,0,1)*W124 -> 0 | AK124: =IF(SUM($AH124:AJ124)>0,0,1)*X124 -> 0 | AL124: =IF(SUM($AH124:AK124)>0,0,1)*Y124 -> 0 | AM124: =IF(SUM($AH124:AL124)>0,0,1)*Z124 -> 0 | AN124: =IF(SUM($AH124:AM124)>0,0,1)*AA124 -> 0 | AO124: =IF(SUM($AH124:AN124)>0,0,1)*AB124 -> 0 | AP124: =IF(SUM($AH124:AO124)>0,0,1)*AC124 -> 0 | AQ124: =IF(SUM($AH124:AP124)>0,0,1)*AD124 -> 0 | AR124: =IF(SUM($AH124:AQ124)>0,0,1)*AE124 -> 0 | AS124: =IF(SUM($AH124:AR124)>0,0,1)*AF124 -> 0 | AT124: =IF(SUM($AH124:AS124)>0,0,1)*AG124 -> 0 | AU124: 1 | AV124: 1 | AW124: 0 | AX124: 1 | AY124: 0 | AZ124: 1 | BA124: 0 | BB124: 1 | BC124: 0 | BD124: XIV | BE124: 0.07281553398 | BF124: 0.09320359917 | BG124: 0 | BH124: 0 | BI124: 233925 | BJ124: =IF(BD123="CASH",1,(1-$BN$4)*IF(BD123="XIV",F124,IF(BD123="UVXY",I124,L124))) -> 10.2943602 | BK124: 7.354242128 | BL124: 2408115.565 | BM124: 2410754.144 | BN124: =IF(BD124="CASH",1,(1+$BN$4)*IF(BD124="XIV",F124,IF(BD124="UVXY",I124,L124))) -> 10.3056398 | BO124: 11.05 | BP124: 2584878.604 | BQ124: 118 | BR124: 2.584878604
A125: 2012-03-21 | B125: 15.13 | C125: 19.25 | D125: 14.55 | E125: 18.1 | F125: 11.26 | G125: 11.58 | H125: 0.02841918295 | I125: 945500 | J125: 889995 | K125: -0.05870438921 | L125: 14.70375 | M125: 14.685 | N125: -0.001275184902 | O125: -0.05731947209 | P125: 0.7805611222 | Q125: 0.03590425532 | R125: 0.01900452489 | S125: =VLOOKUP(A125,'MACD SPYG'!$A$2:$G$1452,7,FALSE) -> 0.03907695725 | T125: 1 | U125: 0 | V125: 1 | W125: 1 | X125: 0 | Y125: 0 | Z125: 0 | AA125: 0 | AB125: 0 | AC125: 0 | AD125: 0 | AE125: 0 | AF125: 1 | AG125: 0 | AH125: 0 | AI125: =IF(SUM($AH125:AH125)>0,0,1)*V125 -> 1 | AJ125: =IF(SUM($AH125:AI125)>0,0,1)*W125 -> 0 | AK125: =IF(SUM($AH125:AJ125)>0,0,1)*X125 -> 0 | AL125: =IF(SUM($AH125:AK125)>0,0,1)*Y125 -> 0 | AM125: =IF(SUM($AH125:AL125)>0,0,1)*Z125 -> 0 | AN125: =IF(SUM($AH125:AM125)>0,0,1)*AA125 -> 0 | AO125: =IF(SUM($AH125:AN125)>0,0,1)*AB125 -> 0 | AP125: =IF(SUM($AH125:AO125)>0,0,1)*AC125 -> 0 | AQ125: =IF(SUM($AH125:AP125)>0,0,1)*AD125 -> 0 | AR125: =IF(SUM($AH125:AQ125)>0,0,1)*AE125 -> 0 | AS125: =IF(SUM($AH125:AR125)>0,0,1)*AF125 -> 0 | AT125: =IF(SUM($AH125:AS125)>0,0,1)*AG125 -> 0 | AU125: 1 | AV125: 1 | AW125: 0 | AX125: 1 | AY125: 0 | AZ125: 1 | BA125: 0 | BB125: 1 | BC125: 0 | BD125: XIV | BE125: 0.02841918295 | BF125: -0.01776193978 | BG125: 0 | BH125: 0 | BI125: 233925 | BJ125: =IF(BD124="CASH",1,(1-$BN$4)*IF(BD124="XIV",F125,IF(BD124="UVXY",I125,L125))) -> 11.25383455 | BK125: 7.354242128 | BL125: 2632560.602 | BM125: 2635445.107 | BN125: =IF(BD125="CASH",1,(1+$BN$4)*IF(BD125="XIV",F125,IF(BD125="UVXY",I125,L125))) -> 11.26616545 | BO125: 11.58 | BP125: 2708858.854 | BQ125: 119 | BR125: 2.708858854
A126: 2012-03-22 | B126: 15.57 | C126: 19.55 | D126: 18.35 | E126: 21.6 | F126: 11.06 | G126: 11.41 | H126: 0.03164556962 | I126: 962500 | J126: 908500 | K126: -0.0561038961 | L126: 14.42375 | M126: 14.59625 | N126: 0.01195944189 | O126: -0.03093599894 | P126: 0.785974026 | Q126: -0.02888318357 | R126: -0.04490500864 | S126: =VLOOKUP(A126,'MACD SPYG'!$A$2:$G$1452,7,FALSE) -> -0.000714935467 | T126: 1 | U126: 0 | V126: 0 | W126: 1 | X126: 0 | Y126: 0 | Z126: 0 | AA126: 0 | AB126: 0 | AC126: 0 | AD126: 0 | AE126: 0 | AF126: 0 | AG126: 0 | AH126: 0 | AI126: =IF(SUM($AH126:AH126)>0,0,1)*V126 -> 0 | AJ126: =IF(SUM($AH126:AI126)>0,0,1)*W126 -> 1 | AK126: =IF(SUM($AH126:AJ126)>0,0,1)*X126 -> 0 | AL126: =IF(SUM($AH126:AK126)>0,0,1)*Y126 -> 0 | AM126: =IF(SUM($AH126:AL126)>0,0,1)*Z126 -> 0 | AN126: =IF(SUM($AH126:AM126)>0,0,1)*AA126 -> 0 | AO126: =IF(SUM($AH126:AN126)>0,0,1)*AB126 -> 0 | AP126: =IF(SUM($AH126:AO126)>0,0,1)*AC126 -> 0 | AQ126: =IF(SUM($AH126:AP126)>0,0,1)*AD126 -> 0 | AR126: =IF(SUM($AH126:AQ126)>0,0,1)*AE126 -> 0 | AS126: =IF(SUM($AH126:AR126)>0,0,1)*AF126 -> 0 | AT126: =IF(SUM($AH126:AS126)>0,0,1)*AG126 -> 0 | AU126: 1 | AV126: 1 | AW126: 0 | AX126: 1 | AY126: 0 | AZ126: 1 | BA126: 0 | BB126: 1 | BC126: 0 | BD126: XIV | BE126: 0.03164556962 | BF126: 0.03978288879 | BG126: 0 | BH126: 0 | BI126: 233925 | BJ126: =IF(BD125="CASH",1,(1-$BN$4)*IF(BD125="XIV",F126,IF(BD125="UVXY",I126,L126))) -> 11.05394406 | BK126: 7.354242128 | BL126: 2585801.219 | BM126: 2588634.489 | BN126: =IF(BD126="CASH",1,(1+$BN$4)*IF(BD126="XIV",F126,IF(BD126="UVXY",I126,L126))) -> 11.06605594 | BO126: 11.41 | BP126: 2669091.604 | BQ126: 120 | BR126: 2.669091604
A127: 2012-03-23 | B127: 14.82 | C127: 18.64 | D127: 17 | E127: 20.2 | F127: 11.5 | G127: 12.24 | H127: 0.06434782609 | I127: 898000 | J127: 783000 | K127: -0.1280623608 | L127: 14.65375 | M127: 14.57625 | N127: -0.005288748614 | O127: -0.1511879352 | P127: 0.7964194373 | Q127: 0.02908129544 | R127: 0.007887817704 | S127: =VLOOKUP(A127,'MACD SPYG'!$A$2:$G$1452,7,FALSE) -> -0.03466131791 | T127: 1 | U127: 0 | V127: 1 | W127: 0 | X127: 0 | Y127: 0 | Z127: 0 | AA127: 0 | AB127: 0 | AC127: 0 | AD127: 0 | AE127: 0 | AF127: 1 | AG127: 0 | AH127: 0 | AI127: =IF(SUM($AH127:AH127)>0,0,1)*V127 -> 1 | AJ127: =IF(SUM($AH127:AI127)>0,0,1)*W127 -> 0 | AK127: =IF(SUM($AH127:AJ127)>0,0,1)*X127 -> 0 | AL127: =IF(SUM($AH127:AK127)>0,0,1)*Y127 -> 0 | AM127: =IF(SUM($AH127:AL127)>0,0,1)*Z127 -> 0 | AN127: =IF(SUM($AH127:AM127)>0,0,1)*AA127 -> 0 | AO127: =IF(SUM($AH127:AN127)>0,0,1)*AB127 -> 0 | AP127: =IF(SUM($AH127:AO127)>0,0,1)*AC127 -> 0 | AQ127: =IF(SUM($AH127:AP127)>0,0,1)*AD127 -> 0 | AR127: =IF(SUM($AH127:AQ127)>0,0,1)*AE127 -> 0 | AS127: =IF(SUM($AH127:AR127)>0,0,1)*AF127 -> 0 | AT127: =IF(SUM($AH127:AS127)>0,0,1)*AG127 -> 0 | AU127: 1 | AV127: 1 | AW127: 0 | AX127: 1 | AY127: 0 | AZ127: 1 | BA127: 0 | BB127: 1 | BC127: 0 | BD127: XIV | BE127: 0.06434782609 | BF127: 0.1034779781 | BG127: 0 | BH127: 0 | BI127: 233925 | BJ127: =IF(BD126="CASH",1,(1-$BN$4)*IF(BD126="XIV",F127,IF(BD126="UVXY",I127,L127))) -> 11.49370314 | BK127: 7.354242128 | BL127: 2688671.861 | BM127: 2691617.848 | BN127: =IF(BD127="CASH",1,(1+$BN$4)*IF(BD127="XIV",F127,IF(BD127="UVXY",I127,L127))) -> 11.50629686 | BO127: 12.24 | BP127: 2863249.354 | BQ127: 121 | BR127: 2.863249354
A128: 2012-03-26 | B128: 14.26 | C128: 17.43 | D128: 15.6 | E128: 18.3 | F128: 12.69 | G128: 13.36 | H128: 0.05279747833 | I128: 721500 | J128: 637500 | K128: -0.1164241164 | L128: 14.8475 | M128: 15.3375 | N128: 0.03300218892 | O128: -0.1372894584 | P128: 0.7950643777 | Q128: -0.04816955684 | R128: 0.03676470588 | S128: =VLOOKUP(A128,'MACD SPYG'!$A$2:$G$1452,7,FALSE) -> -0.02734755803 | T128: 1 | U128: 0 | V128: 1 | W128: 0 | X128: 0 | Y128: 0 | Z128: 0 | AA128: 0 | AB128: 0 | AC128: 0 | AD128: 0 | AE128: 0 | AF128: 1 | AG128: 0 | AH128: 0 | AI128: =IF(SUM($AH128:AH128)>0,0,1)*V128 -> 1 | AJ128: =IF(SUM($AH128:AI128)>0,0,1)*W128 -> 0 | AK128: =IF(SUM($AH128:AJ128)>0,0,1)*X128 -> 0 | AL128: =IF(SUM($AH128:AK128)>0,0,1)*Y128 -> 0 | AM128: =IF(SUM($AH128:AL128)>0,0,1)*Z128 -> 0 | AN128: =IF(SUM($AH128:AM128)>0,0,1)*AA128 -> 0 | AO128: =IF(SUM($AH128:AN128)>0,0,1)*AB128 -> 0 | AP128: =IF(SUM($AH128:AO128)>0,0,1)*AC128 -> 0 | AQ128: =IF(SUM($AH128:AP128)>0,0,1)*AD128 -> 0 | AR128: =IF(SUM($AH128:AQ128)>0,0,1)*AE128 -> 0 | AS128: =IF(SUM($AH128:AR128)>0,0,1)*AF128 -> 0 | AT128: =IF(SUM($AH128:AS128)>0,0,1)*AG128 -> 0 | AU128: 1 | AV128: 1 | AW128: 0 | AX128: 1 | AY128: 0 | AZ128: 1 | BA128: 0 | BB128: 1 | BC128: 0 | BD128: XIV | BE128: 0.05279747833 | BF128: 0.0354609051 | BG128: 0 | BH128: 0 | BI128: 233925 | BJ128: =IF(BD127="CASH",1,(1-$BN$4)*IF(BD127="XIV",F128,IF(BD127="UVXY",I128,L128))) -> 12.68305155 | BK128: 7.354242128 | BL128: 2966890.188 | BM128: 2970141.02 | BN128: =IF(BD128="CASH",1,(1+$BN$4)*IF(BD128="XIV",F128,IF(BD128="UVXY",I128,L128))) -> 12.69694845 | BO128: 13.36 | BP128: 3125245.354 | BQ128: 122 | BR128: 3.125245354
A129: 2012-03-27 | B129: 15.59 | C129: 18.57 | D129: 17.6 | E129: 19.55 | F129: 13.14 | G129: 12.05 | H129: -0.08295281583 | I129: 657000 | J129: 764000 | K129: 0.1628614916 | L129: 15.35375 | M129: 15.39625 | N129: 0.002768053407 | O129: -0.1043905002 | P129: 0.8181296615 | Q129: -0.03778677463 | R129: -0.01646706587 | S129: =VLOOKUP(A129,'MACD SPYG'!$A$2:$G$1452,7,FALSE) -> 0.01188834024 | T129: 1 | U129: 0 | V129: 1 | W129: 0 | X129: 0 | Y129: 0 | Z129: 0 | AA129: 1 | AB129: 0 | AC129: 0 | AD129: 0 | AE129: 0 | AF129: 1 | AG129: 0 | AH129: 0 | AI129: =IF(SUM($AH129:AH129)>0,0,1)*V129 -> 1 | AJ129: =IF(SUM($AH129:AI129)>0,0,1)*W129 -> 0 | AK129: =IF(SUM($AH129:AJ129)>0,0,1)*X129 -> 0 | AL129: =IF(SUM($AH129:AK129)>0,0,1)*Y129 -> 0 | AM129: =IF(SUM($AH129:AL129)>0,0,1)*Z129 -> 0 | AN129: =IF(SUM($AH129:AM129)>0,0,1)*AA129 -> 0 | AO129: =IF(SUM($AH129:AN129)>0,0,1)*AB129 -> 0 | AP129: =IF(SUM($AH129:AO129)>0,0,1)*AC129 -> 0 | AQ129: =IF(SUM($AH129:AP129)>0,0,1)*AD129 -> 0 | AR129: =IF(SUM($AH129:AQ129)>0,0,1)*AE129 -> 0 | AS129: =IF(SUM($AH129:AR129)>0,0,1)*AF129 -> 0 | AT129: =IF(SUM($AH129:AS129)>0,0,1)*AG129 -> 0 | AU129: 1 | AV129: 1 | AW129: 0 | AX129: 1 | AY129: 0 | AZ129: 1 | BA129: 0 | BB129: 1 | BC129: 0 | BD129: XIV | BE129: -0.08295281583 | BF129: -0.08523571703 | BG129: 0 | BH129: 0 | BI129: 233925 | BJ129: =IF(BD128="CASH",1,(1-$BN$4)*IF(BD128="XIV",F129,IF(BD128="UVXY",I129,L129))) -> 13.13280515 | BK129: 7.354242128 | BL129: 3072098.799 | BM129: 3075464.909 | BN129: =IF(BD129="CASH",1,(1+$BN$4)*IF(BD129="XIV",F129,IF(BD129="UVXY",I129,L129))) -> 13.14719485 | BO129: 12.05 | BP129: 2818803.604 | BQ129: 123 | BR129: 2.818803604
A130: 2012-03-28 | B130: 15.47 | C130: 18.79 | D130: 17.65 | E130: 19.7 | F130: 12.02 | G130: 11.9 | H130: -0.009983361065 | I130: 761000 | J130: 773100 | K130: 0.01590013141 | L130: 15.425 | M130: 15.21625 | N130: -0.01353322528 | O130: -0.1098664555 | P130: 0.8395261174 | Q130: 0.09326788219 | R130: -0.002489626556 | S130: =VLOOKUP(A130,'MACD SPYG'!$A$2:$G$1452,7,FALSE) -> 0.002039707576 | T130: 1 | U130: 0 | V130: 1 | W130: 0 | X130: 0 | Y130: 0 | Z130: 0 | AA130: 0 | AB130: 0 | AC130: 1 | AD130: 0 | AE130: 0 | AF130: 1 | AG130: 0 | AH130: 0 | AI130: =IF(SUM($AH130:AH130)>0,0,1)*V130 -> 1 | AJ130: =IF(SUM($AH130:AI130)>0,0,1)*W130 -> 0 | AK130: =IF(SUM($AH130:AJ130)>0,0,1)*X130 -> 0 | AL130: =IF(SUM($AH130:AK130)>0,0,1)*Y130 -> 0 | AM130: =IF(SUM($AH130:AL130)>0,0,1)*Z130 -> 0 | AN130: =IF(SUM($AH130:AM130)>0,0,1)*AA130 -> 0 | AO130: =IF(SUM($AH130:AN130)>0,0,1)*AB130 -> 0 | AP130: =IF(SUM($AH130:AO130)>0,0,1)*AC130 -> 0 | AQ130: =IF(SUM($AH130:AP130)>0,0,1)*AD130 -> 0 | AR130: =IF(SUM($AH130:AQ130)>0,0,1)*AE130 -> 0 | AS130: =IF(SUM($AH130:AR130)>0,0,1)*AF130 -> 0 | AT130: =IF(SUM($AH130:AS130)>0,0,1)*AG130 -> 0 | AU130: 1 | AV130: 1 | AW130: 0 | AX130: 1 | AY130: 0 | AZ130: 1 | BA130: 0 | BB130: 1 | BC130: 0 | BD130: XIV | BE130: -0.009983361065 | BF130: -0.06738751103 | BG130: 0 | BH130: 0 | BI130: 233925 | BJ130: =IF(BD129="CASH",1,(1-$BN$4)*IF(BD129="XIV",F130,IF(BD129="UVXY",I130,L130))) -> 12.01341841 | BK130: 7.354242128 | BL130: 2810246.256 | BM130: 2813325.452 | BN130: =IF(BD130="CASH",1,(1+$BN$4)*IF(BD130="XIV",F130,IF(BD130="UVXY",I130,L130))) -> 12.02658159 | BO130: 11.9 | BP130: 2783714.854 | BQ130: 124 | BR130: 2.783714854
A131: 2012-03-29 | B131: 15.48 | C131: 18.84 | D131: 17.1 | E131: 19.55 | F131: 11.21 | G131: 11.98 | H131: 0.06868867083 | I131: 869500 | J131: 769000 | K131: -0.1155836688 | L131: 15.00125 | M131: 15.06 | N131: 0.003916340305 | O131: -0.1176771976 | P131: 0.8233102714 | Q131: -0.007697241822 | R131: -0.05798319328 | S131: =VLOOKUP(A131,'MACD SPYG'!$A$2:$G$1452,7,FALSE) -> -0.0310424548 | T131: 1 | U131: 0 | V131: 1 | W131: 0 | X131: 0 | Y131: 0 | Z131: 0 | AA131: 0 | AB131: 0 | AC131: 0 | AD131: 0 | AE131: 0 | AF131: 1 | AG131: 0 | AH131: 0 | AI131: =IF(SUM($AH131:AH131)>0,0,1)*V131 -> 1 | AJ131: =IF(SUM($AH131:AI131)>0,0,1)*W131 -> 0 | AK131: =IF(SUM($AH131:AJ131)>0,0,1)*X131 -> 0 | AL131: =IF(SUM($AH131:AK131)>0,0,1)*Y131 -> 0 | AM131: =IF(SUM($AH131:AL131)>0,0,1)*Z131 -> 0 | AN131: =IF(SUM($AH131:AM131)>0,0,1)*AA131 -> 0 | AO131: =IF(SUM($AH131:AN131)>0,0,1)*AB131 -> 0 | AP131: =IF(SUM($AH131:AO131)>0,0,1)*AC131 -> 0 | AQ131: =IF(SUM($AH131:AP131)>0,0,1)*AD131 -> 0 | AR131: =IF(SUM($AH131:AQ131)>0,0,1)*AE131 -> 0 | AS131: =IF(SUM($AH131:AR131)>0,0,1)*AF131 -> 0 | AT131: =IF(SUM($AH131:AS131)>0,0,1)*AG131 -> 0 | AU131: 1 | AV131: 1 | AW131: 0 | AX131: 1 | AY131: 0 | AZ131: 1 | BA131: 0 | BB131: 1 | BC131: 0 | BD131: XIV | BE131: 0.06868867083 | BF131: 0.1150755026 | BG131: 0 | BH131: 0 | BI131: 233925 | BJ131: =IF(BD130="CASH",1,(1-$BN$4)*IF(BD130="XIV",F131,IF(BD130="UVXY",I131,L131))) -> 11.20386193 | BK131: 7.354242128 | BL131: 2620870.756 | BM131: 2623742.452 | BN131: =IF(BD131="CASH",1,(1+$BN$4)*IF(BD131="XIV",F131,IF(BD131="UVXY",I131,L131))) -> 11.21613807 | BO131: 11.98 | BP131: 2802428.854 | BQ131: 125 | BR131: 2.802428854
A132: 2012-03-30 | B132: 15.5 | C132: 18.61 | D132: 16.8 | E132: 19 | F132: 12.5 | G132: 12.27 | H132: -0.0184 | I132: 704000 | J132: 728000 | K132: 0.03409090909 | L132: 15.25 | M132: 14.955 | N132: -0.0193442623 | O132: -0.1039116974 | P132: 0.821656051 | Q132: 0.0006464124111 | R132: 0.04340567613 | S132: =VLOOKUP(A132,'MACD SPYG'!$A$2:$G$1452,7,FALSE) -> -0.02008437667 | T132: 1 | U132: 0 | V132: 1 | W132: 0 | X132: 0 | Y132: 0 | Z132: 0 | AA132: 0 | AB132: 0 | AC132: 0 | AD132: 0 | AE132: 0 | AF132: 1 | AG132: 0 | AH132: 0 | AI132: =IF(SUM($AH132:AH132)>0,0,1)*V132 -> 1 | AJ132: =IF(SUM($AH132:AI132)>0,0,1)*W132 -> 0 | AK132: =IF(SUM($AH132:AJ132)>0,0,1)*X132 -> 0 | AL132: =IF(SUM($AH132:AK132)>0,0,1)*Y132 -> 0 | AM132: =IF(SUM($AH132:AL132)>0,0,1)*Z132 -> 0 | AN132: =IF(SUM($AH132:AM132)>0,0,1)*AA132 -> 0 | AO132: =IF(SUM($AH132:AN132)>0,0,1)*AB132 -> 0 | AP132: =IF(SUM($AH132:AO132)>0,0,1)*AC132 -> 0 | AQ132: =IF(SUM($AH132:AP132)>0,0,1)*AD132 -> 0 | AR132: =IF(SUM($AH132:AQ132)>0,0,1)*AE132 -> 0 | AS132: =IF(SUM($AH132:AR132)>0,0,1)*AF132 -> 0 | AT132: =IF(SUM($AH132:AS132)>0,0,1)*AG132 -> 0 | AU132: 1 | AV132: 1 | AW132: 0 | AX132: 1 | AY132: 0 | AZ132: 1 | BA132: 0 | BB132: 1 | BC132: 0 | BD132: XIV | BE132: -0.0184 | BF132: -0.02239994369 | BG132: 0 | BH132: 0 | BI132: 233925 | BJ132: =IF(BD131="CASH",1,(1-$BN$4)*IF(BD131="XIV",F132,IF(BD131="UVXY",I132,L132))) -> 12.49315559 | BK132: 7.354242128 | BL132: 2922468.775 | BM132: 2925670.934 | BN132: =IF(BD132="CASH",1,(1+$BN$4)*IF(BD132="XIV",F132,IF(BD132="UVXY",I132,L132))) -> 12.50684441 | BO132: 12.27 | BP132: 2870267.104 | BQ132: 126 | BR132: 2.870267104
A133: 2012-04-02 | B133: 15.64 | C133: 18.46 | D133: 17 | E133: 18.85 | F133: 12.22 | G133: 12.29 | H133: 0.005728314239 | I133: 734500 | J133: 726000 | K133: -0.0115724983 | L133: 14.91375 | M133: 15.41125 | N133: 0.03335847791 | O133: -0.08890350877 | P133: 0.8328855454 | Q133: 0.001291989664 | R133: -0.004074979625 | S133: =VLOOKUP(A133,'MACD SPYG'!$A$2:$G$1452,7,FALSE) -> -0.01459846557 | T133: 1 | U133: 0 | V133: 1 | W133: 0 | X133: 0 | Y133: 0 | Z133: 0 | AA133: 0 | AB133: 0 | AC133: 0 | AD133: 0 | AE133: 0 | AF133: 1 | AG133: 0 | AH133: 0 | AI133: =IF(SUM($AH133:AH133)>0,0,1)*V133 -> 1 | AJ133: =IF(SUM($AH133:AI133)>0,0,1)*W133 -> 0 | AK133: =IF(SUM($AH133:AJ133)>0,0,1)*X133 -> 0 | AL133: =IF(SUM($AH133:AK133)>0,0,1)*Y133 -> 0 | AM133: =IF(SUM($AH133:AL133)>0,0,1)*Z133 -> 0 | AN133: =IF(SUM($AH133:AM133)>0,0,1)*AA133 -> 0 | AO133: =IF(SUM($AH133:AN133)>0,0,1)*AB133 -> 0 | AP133: =IF(SUM($AH133:AO133)>0,0,1)*AC133 -> 0 | AQ133: =IF(SUM($AH133:AP133)>0,0,1)*AD133 -> 0 | AR133: =IF(SUM($AH133:AQ133)>0,0,1)*AE133 -> 0 | AS133: =IF(SUM($AH133:AR133)>0,0,1)*AF133 -> 0 | AT133: =IF(SUM($AH133:AS133)>0,0,1)*AG133 -> 0 | AU133: 1 | AV133: 1 | AW133: 0 | AX133: 1 | AY133: 0 | AZ133: 1 | BA133: 0 | BB133: 1 | BC133: 0 | BD133: XIV | BE133: 0.005728314239 | BF133: 0.01063827052 | BG133: 0 | BH133: 0 | BI133: 233925 | BJ133: =IF(BD132="CASH",1,(1-$BN$4)*IF(BD132="XIV",F133,IF(BD132="UVXY",I133,L133))) -> 12.2133089 | BK133: 7.354242128 | BL133: 2857005.639 | BM133: 2860136.07 | BN133: =IF(BD133="CASH",1,(1+$BN$4)*IF(BD133="XIV",F133,IF(BD133="UVXY",I133,L133))) -> 12.2266911 | BO133: 12.29 | BP133: 2874945.604 | BQ133: 127 | BR133: 2.874945604
A134: 2012-04-03 | B134: 15.66 | C134: 18.81 | D134: 17.25 | E134: 19.3 | F134: 12.35 | G134: 12.05 | H134: -0.02429149798 | I134: 719000 | J134: 751000 | K134: 0.04450625869 | L134: 15.47875 | M134: 15.4125 | N134: -0.004280061374 | O134: -0.08544297082 | P134: 0.8472372698 | Q134: 0.009032258065 | R134: 0.004882017901 | S134: =VLOOKUP(A134,'MACD SPYG'!$A$2:$G$1452,7,FALSE) -> -3.292238213e-05 | T134: 1 | U134: 0 | V134: 1 | W134: 0 | X134: 0 | Y134: 0 | Z134: 0 | AA134: 0 | AB134: 0 | AC134: 0 | AD134: 0 | AE134: 0 | AF134: 1 | AG134: 0 | AH134: 0 | AI134: =IF(SUM($AH134:AH134)>0,0,1)*V134 -> 1 | AJ134: =IF(SUM($AH134:AI134)>0,0,1)*W134 -> 0 | AK134: =IF(SUM($AH134:AJ134)>0,0,1)*X134 -> 0 | AL134: =IF(SUM($AH134:AK134)>0,0,1)*Y134 -> 0 | AM134: =IF(SUM($AH134:AL134)>0,0,1)*Z134 -> 0 | AN134: =IF(SUM($AH134:AM134)>0,0,1)*AA134 -> 0 | AO134: =IF(SUM($AH134:AN134)>0,0,1)*AB134 -> 0 | AP134: =IF(SUM($AH134:AO134)>0,0,1)*AC134 -> 0 | AQ134: =IF(SUM($AH134:AP134)>0,0,1)*AD134 -> 0 | AR134: =IF(SUM($AH134:AQ134)>0,0,1)*AE134 -> 0 | AS134: =IF(SUM($AH134:AR134)>0,0,1)*AF134 -> 0 | AT134: =IF(SUM($AH134:AS134)>0,0,1)*AG134 -> 0 | AU134: 1 | AV134: 1 | AW134: 0 | AX134: 1 | AY134: 0 | AZ134: 1 | BA134: 0 | BB134: 1 | BC134: 0 | BD134: XIV | BE134: -0.02429149798 | BF134: -0.0704451649 | BG134: 0 | BH134: 0 | BI134: 233925 | BJ134: =IF(BD133="CASH",1,(1-$BN$4)*IF(BD133="XIV",F134,IF(BD133="UVXY",I134,L134))) -> 12.34323772 | BK134: 7.354242128 | BL134: 2887399.238 | BM134: 2890562.971 | BN134: =IF(BD134="CASH",1,(1+$BN$4)*IF(BD134="XIV",F134,IF(BD134="UVXY",I134,L134))) -> 12.35676228 | BO134: =IF(BD134="CASH",1,IF(BD134="XIV",G134,IF(BD134="UVXY",J134,M134))) -> 12.05 | BP134: 2818803.604 | BQ134: 128 | BR134: 2.818803604
A135: 2012-04-04 | B135: 16.44 | C135: 19.45 | D135: 17.95 | E135: 19.9 | F135: 11.48 | G135: 11.81 | H135: =G135/F135-1 -> 0.0287456446 | I135: 825500 | J135: 785000 | K135: =J135/I135-1 -> -0.04906117505 | L135: 15.05125 | M135: 14.78375 | N135: =M135/L135-1 -> -0.01777261025 | O135: -0.0963870241 | P135: 0.8325358852 | Q135: 0.001278772379 | R135: -0.04730290456 | S135: =VLOOKUP(A135,'MACD SPYG'!$A$2:$G$1452,7,FALSE) -> -0.03861418204 | T135: 1 | U135: 0 | V135: 1 | W135: 0 | X135: 0 | Y135: 0 | Z135: 0 | AA135: 0 | AB135: 0 | AC135: 0 | AD135: 0 | AE135: 0 | AF135: 1 | AG135: 0 | AH135: 0 | AI135: =IF(SUM($AH135:AH135)>0,0,1)*V135 -> 1 | AJ135: =IF(SUM($AH135:AI135)>0,0,1)*W135 -> 0 | AK135: =IF(SUM($AH135:AJ135)>0,0,1)*X135 -> 0 | AL135: =IF(SUM($AH135:AK135)>0,0,1)*Y135 -> 0 | AM135: =IF(SUM($AH135:AL135)>0,0,1)*Z135 -> 0 | AN135: =IF(SUM($AH135:AM135)>0,0,1)*AA135 -> 0 | AO135: =IF(SUM($AH135:AN135)>0,0,1)*AB135 -> 0 | AP135: =IF(SUM($AH135:AO135)>0,0,1)*AC135 -> 0 | AQ135: =IF(SUM($AH135:AP135)>0,0,1)*AD135 -> 0 | AR135: =IF(SUM($AH135:AQ135)>0,0,1)*AE135 -> 0 | AS135: =IF(SUM($AH135:AR135)>0,0,1)*AF135 -> 0 | AT135: =IF(SUM($AH135:AS135)>0,0,1)*AG135 -> 0 | AU135: 1 | AV135: 1 | AW135: 0 | AX135: 1 | AY135: 0 | AZ135: 1 | BA135: 0 | BB135: 1 | BC135: 0 | BD135: =IF(T135=0,BD134,IF(AZ135=1,"XIV",IF(BA135=1,"UVXY","TQQQ"))) -> XIV | BE135: =IF(BD135="CASH",0%,IF(BD135="XIV",H135,IF(BD135="UVXY",K135,N135))) -> 0.0287456446 | BF135: 0.002613233266 | BG135: 0 | BH135: 0 | BI135: 233925 | BJ135: =IF(BD134="CASH",1,(1-$BN$4)*IF(BD134="XIV",F135,IF(BD134="UVXY",I135,L135))) -> 11.47371409 | BK135: 7.354242128 | BL135: 2683995.923 | BM135: 2686936.786 | BN135: =IF(BD135="CASH",1,(1+$BN$4)*IF(BD135="XIV",F135,IF(BD135="UVXY",I135,L135))) -> 11.48628591 | BO135: 11.81 | BP135: =BI135*BO135+BK135 -> 2762661.604 | BQ135: =BQ134+1 -> 129 | BR135: 2.762661604
A136: 2012-04-05 | B136: 16.7 | C136: 19.82 | D136: 18.45 | E136: 20.45 | F136: 11.51 | G136: 11.55 | H136: 0.003475238923 | I136: 823000 | J136: 818000 | K136: -0.006075334143 | L136: 14.7025 | M136: 15.05375 | N136: 0.02389049481 | O136: -0.0882827788 | P136: =B135/C135 -> 0.8452442159 | Q136: =B135/B134-1 -> 0.04980842912 | R136: =F136/G135-1 -> -0.02540220152 | S136: =VLOOKUP(A136,'MACD SPYG'!$A$2:$G$1452,7,FALSE) -> -0.06755263743 | T136: =IF(A136-$A$9>=0,1,0) -> 1 | U136: 0 | V136: 1 | W136: 0 | X136: 0 | Y136: 0 | Z136: 0 | AA136: 0 | AB136: 0 | AC136: 0 | AD136: 0 | AE136: 0 | AF136: 1 | AG136: 0 | AH136: 0 | AI136: =IF(SUM($AH136:AH136)>0,0,1)*V136 -> 1 | AJ136: =IF(SUM($AH136:AI136)>0,0,1)*W136 -> 0 | AK136: =IF(SUM($AH136:AJ136)>0,0,1)*X136 -> 0 | AL136: =IF(SUM($AH136:AK136)>0,0,1)*Y136 -> 0 | AM136: =IF(SUM($AH136:AL136)>0,0,1)*Z136 -> 0 | AN136: =IF(SUM($AH136:AM136)>0,0,1)*AA136 -> 0 | AO136: =IF(SUM($AH136:AN136)>0,0,1)*AB136 -> 0 | AP136: =IF(SUM($AH136:AO136)>0,0,1)*AC136 -> 0 | AQ136: =IF(SUM($AH136:AP136)>0,0,1)*AD136 -> 0 | AR136: =IF(SUM($AH136:AQ136)>0,0,1)*AE136 -> 0 | AS136: =IF(SUM($AH136:AR136)>0,0,1)*AF136 -> 0 | AT136: =IF(SUM($AH136:AS136)>0,0,1)*AG136 -> 0 | AU136: 1 | AV136: 1 | AW136: 0 | AX136: 1 | AY136: 0 | AZ136: 1 | BA136: 0 | BB136: 1 | BC136: 0 | BD136: XIV | BE136: 0.003475238923 | BF136: -0.05647247833 | BG136: =IF(BD136=BD135,0,1) -> 0 | BH136: =IF(BD136<>BD135,1,0) -> 0 | BI136: 233925 | BJ136: =IF(BD135="CASH",1,(1-$BN$4)*IF(BD135="XIV",F136,IF(BD135="UVXY",I136,L136))) -> 11.50369766 | BK136: 7.354242128 | BL136: 2691009.83 | BM136: 2693958.378 | BN136: =IF(BD136="CASH",1,(1+$BN$4)*IF(BD136="XIV",F136,IF(BD136="UVXY",I136,L136))) -> 11.51630234 | BO136: 11.55 | BP136: 2701841.104 | BQ136: 130 | BR136: =BP136/10^6 -> 2.701841104
A137: 2012-04-09 | B137: 18.81 | C137: 21.21 | D137: 19.6 | E137: 21.45 | F137: 10.86 | G137: 10.81 | H137: -0.004604051565 | I137: 918500 | J137: 922000 | K137: 0.003810560697 | L137: 14.48125 | M137: 14.7075 | N137: 0.01562365127 | O137: =$O$4*B136/D136+(1-$O$4)*D136/E136-1 -> -0.09573551726 | P137: 0.8425832492 | Q137: 0.01581508516 | R137: -0.05974025974 | S137: =VLOOKUP(A137,'MACD SPYG'!$A$2:$G$1452,7,FALSE) -> -0.1123893759 | T137: 1 | U137: =IF(B136<$U$4,1,0) -> 0 | V137: 1 | W137: =IF(P137<$W$4,1,0) -> 0 | X137: 0 | Y137: 0 | Z137: 0 | AA137: 0 | AB137: 0 | AC137: 0 | AD137: 0 | AE137: 0 | AF137: 1 | AG137: 0 | AH137: 0 | AI137: =IF(SUM($AH137:AH137)>0,0,1)*V137 -> 1 | AJ137: =IF(SUM($AH137:AI137)>0,0,1)*W137 -> 0 | AK137: =IF(SUM($AH137:AJ137)>0,0,1)*X137 -> 0 | AL137: =IF(SUM($AH137:AK137)>0,0,1)*Y137 -> 0 | AM137: =IF(SUM($AH137:AL137)>0,0,1)*Z137 -> 0 | AN137: =IF(SUM($AH137:AM137)>0,0,1)*AA137 -> 0 | AO137: =IF(SUM($AH137:AN137)>0,0,1)*AB137 -> 0 | AP137: =IF(SUM($AH137:AO137)>0,0,1)*AC137 -> 0 | AQ137: =IF(SUM($AH137:AP137)>0,0,1)*AD137 -> 0 | AR137: =IF(SUM($AH137:AQ137)>0,0,1)*AE137 -> 0 | AS137: =IF(SUM($AH137:AR137)>0,0,1)*AF137 -> 0 | AT137: =IF(SUM($AH137:AS137)>0,0,1)*AG137 -> 0 | AU137: 1 | AV137: =IF(U137=1,0,IF(V137=1,1,IF(W137=1,1,IF(X137=1,0,IF(Y137=1,0,IF(Z137=1,1,IF(AA137=1,0,IF(AB137=1,1,IF(AC137=1,0,IF(AD137=1,1,IF(AE137=1,0,AF137))))))))))) -> 1 | AW137: =IF(U137=1,1,IF(V137=1,0,IF(W137=1,0,IF(X137=1,1,IF(Y137=1,1,IF(Z137=1,0,IF(AA137=1,1,IF(AB137=1,0,IF(AC137=1,1,IF(AD137=1,0,IF(AE137=1,1,IF(AF137=1,0,AG137)))))))))))) -> 0 | AX137: =AV137+AW137 -> 1 | AY137: =IF(OR(AV137=1,AW137=1),0,1) -> 0 | AZ137: =IF(AV137=0,0,IF(R137<$R$4,0,1)) -> 1 | BA137: =IF(AW137=0,0,IF(R137>-$R$4,0,1)) -> 0 | BB137: =AZ137+BA137 -> 1 | BC137: =IF(OR(AZ137=1,BA137=1),0,1) -> 0 | BD137: XIV | BE137: -0.004604051565 | BF137: =BM138/BM137-1 -> -0.009208076489 | BG137: 0 | BH137: 0 | BI137: 233925 | BJ137: =IF(BD136="CASH",1,(1-$BN$4)*IF(BD136="XIV",F137,IF(BD136="UVXY",I137,L137))) -> 10.85405357 | BK137: 7.354242128 | BL137: 2539041.836 | BM137: 2541823.872 | BN137: =IF(BD137="CASH",1,(1+$BN$4)*IF(BD137="XIV",F137,IF(BD137="UVXY",I137,L137))) -> 10.86594643 | BO137: 10.81 | BP137: 2528736.604 | BQ137: 131 | BR137: 2.528736604
A138: 2012-04-10 | B138: 20.39 | C138: 22.62 | D138: 21.15 | E138: 22.7 | F138: 10.76 | G138: 9.94 | H138: -0.07620817844 | I138: 930500 | J138: 1071140 | K138: 0.1511445459 | L138: 14.68 | M138: 13.9975 | N138: -0.04649182561 | O138: -0.05408841159 | P138: 0.8868458274 | Q138: 0.1263473054 | R138: -0.004625346901 | S138: =VLOOKUP(A138,'MACD SPYG'!$A$2:$G$1452,7,FALSE) -> -0.1486293497 | T138: 1 | U138: 0 | V138: =IF(O138<$V$4,1,0) -> 1 | W138: 0 | X138: =IF(AND(O138>$X$4,S138>$S$4),1,0) -> 0 | Y138: =IF(P138>$Y$4,1,0) -> 0 | Z138: =IF(B137>$Z$4,1,0) -> 0 | AA138: =IF(B137<$AA$4,1,0) -> 0 | AB138: =IF(Q138<$AB$4,1,0) -> 0 | AC138: =IF(Q138>$AC$4,1,0) -> 1 | AD138: =IF(Q138>$AD$4,1,0) -> 0 | AE138: =IF(Q138<$AE$4,1,0) -> 0 | AF138: =IF(O138<$AF$4,1,0) -> 1 | AG138: =IF(O138>$AG$4,1,0) -> 0 | AH138: =U138 -> 0 | AI138: =IF(SUM($AH138:AH138)>0,0,1)*V138 -> 1 | AJ138: =IF(SUM($AH138:AI138)>0,0,1)*W138 -> 0 | AK138: =IF(SUM($AH138:AJ138)>0,0,1)*X138 -> 0 | AL138: =IF(SUM($AH138:AK138)>0,0,1)*Y138 -> 0 | AM138: =IF(SUM($AH138:AL138)>0,0,1)*Z138 -> 0 | AN138: =IF(SUM($AH138:AM138)>0,0,1)*AA138 -> 0 | AO138: =IF(SUM($AH138:AN138)>0,0,1)*AB138 -> 0 | AP138: =IF(SUM($AH138:AO138)>0,0,1)*AC138 -> 0 | AQ138: =IF(SUM($AH138:AP138)>0,0,1)*AD138 -> 0 | AR138: =IF(SUM($AH138:AQ138)>0,0,1)*AE138 -> 0 | AS138: =IF(SUM($AH138:AR138)>0,0,1)*AF138 -> 0 | AT138: =IF(SUM($AH138:AS138)>0,0,1)*AG138 -> 0 | AU138: =SUM(AH138:AT138) -> 1 | AV138: 1 | AW138: 0 | AX138: 1 | AY138: 0 | AZ138: 1 | BA138: 0 | BB138: 1 | BC138: 0 | BD138: XIV | BE138: -0.07620817844 | BF138: -0.02416349821 | BG138: 0 | BH138: 0 | BI138: =IF(BD138=BD137,BI137,TRUNC((BL138-$BI$3)/BN138,0)) -> 233925 | BJ138: =IF(BD137="CASH",1,(1-$BN$4)*IF(BD137="XIV",F138,IF(BD137="UVXY",I138,L138))) -> 10.75410833 | BK138: =IF(BD138=BD137,BK137,BL138-BN138*BI138-9.95) -> 7.354242128 | BL138: =BJ138*BI137+BK137 -> 2515662.145 | BM138: =BN138*BI138+BK138 -> 2518418.564 | BN138: =IF(BD138="CASH",1,(1+$BN$4)*IF(BD138="XIV",F138,IF(BD138="UVXY",I138,L138))) -> 10.76589167 | BO138: 9.94 | BP138: 2325221.854 | BQ138: 132 | BR138: 2.325221854
A139: 2012-04-11 | B139: 20.02 | C139: 22.47 | D139: 20.7 | E139: 22.35 | F139: 10.5 | G139: 10.22 | H139: -0.02666666667 | I139: 964500 | J139: 1020000 | K139: 0.05754276827 | L139: 14.385 | M139: 14.2 | N139: -0.0128606187 | O139: -0.0456382458 | P139: 0.9014146773 | Q139: 0.08399787347 | R139: 0.05633802817 | S139: =VLOOKUP(A139,'MACD SPYG'!$A$2:$G$1452,7,FALSE) -> -0.1931969383 | T139: 1 | U139: 0 | V139: 0 | W139: 0 | X139: 0 | Y139: 0 | Z139: 1 | AA139: 0 | AB139: 0 | AC139: 1 | AD139: 0 | AE139: 0 | AF139: 0 | AG139: 0 | AH139: 0 | AI139: =IF(SUM($AH139:AH139)>0,0,1)*V139 -> 0 | AJ139: =IF(SUM($AH139:AI139)>0,0,1)*W139 -> 0 | AK139: =IF(SUM($AH139:AJ139)>0,0,1)*X139 -> 0 | AL139: =IF(SUM($AH139:AK139)>0,0,1)*Y139 -> 0 | AM139: =IF(SUM($AH139:AL139)>0,0,1)*Z139 -> 1 | AN139: =IF(SUM($AH139:AM139)>0,0,1)*AA139 -> 0 | AO139: =IF(SUM($AH139:AN139)>0,0,1)*AB139 -> 0 | AP139: =IF(SUM($AH139:AO139)>0,0,1)*AC139 -> 0 | AQ139: =IF(SUM($AH139:AP139)>0,0,1)*AD139 -> 0 | AR139: =IF(SUM($AH139:AQ139)>0,0,1)*AE139 -> 0 | AS139: =IF(SUM($AH139:AR139)>0,0,1)*AF139 -> 0 | AT139: =IF(SUM($AH139:AS139)>0,0,1)*AG139 -> 0 | AU139: 1 | AV139: 1 | AW139: 0 | AX139: 1 | AY139: 0 | AZ139: 1 | BA139: 0 | BB139: 1 | BC139: 0 | BD139: XIV | BE139: -0.02666666667 | BF139: -0.01428567154 | BG139: 0 | BH139: 0 | BI139: 233925 | BJ139: =IF(BD138="CASH",1,(1-$BN$4)*IF(BD138="XIV",F139,IF(BD138="UVXY",I139,L139))) -> 10.49425069 | BK139: 7.354242128 | BL139: 2454874.947 | BM139: 2457564.761 | BN139: =IF(BD139="CASH",1,(1+$BN$4)*IF(BD139="XIV",F139,IF(BD139="UVXY",I139,L139))) -> 10.50574931 | BO139: 10.22 | BP139: 2390720.854 | BQ139: 133 | BR139: 2.390720854
A140: 2012-04-12 | B140: 17.2 | C140: 20.25 | D140: 18.2 | E140: 20 | F140: 10.35 | G140: 11.08 | H140: 0.07053140097 | I140: 993000 | J140: 844800 | K140: -0.149244713 | L140: 14.28375 | M140: 14.67625 | N140: 0.02747877833 | O140: -0.04514282009 | P140: 0.8909657321 | Q140: -0.01814615007 | R140: 0.01272015656 | S140: =VLOOKUP(A140,'MACD SPYG'!$A$2:$G$1452,7,FALSE) -> -0.1936208974 | T140: 1 | U140: 0 | V140: 0 | W140: 0 | X140: 0 | Y140: 0 | Z140: 1 | AA140: 0 | AB140: 0 | AC140: 0 | AD140: 0 | AE140: 0 | AF140: 0 | AG140: 0 | AH140: 0 | AI140: =IF(SUM($AH140:AH140)>0,0,1)*V140 -> 0 | AJ140: =IF(SUM($AH140:AI140)>0,0,1)*W140 -> 0 | AK140: =IF(SUM($AH140:AJ140)>0,0,1)*X140 -> 0 | AL140: =IF(SUM($AH140:AK140)>0,0,1)*Y140 -> 0 | AM140: =IF(SUM($AH140:AL140)>0,0,1)*Z140 -> 1 | AN140: =IF(SUM($AH140:AM140)>0,0,1)*AA140 -> 0 | AO140: =IF(SUM($AH140:AN140)>0,0,1)*AB140 -> 0 | AP140: =IF(SUM($AH140:AO140)>0,0,1)*AC140 -> 0 | AQ140: =IF(SUM($AH140:AP140)>0,0,1)*AD140 -> 0 | AR140: =IF(SUM($AH140:AQ140)>0,0,1)*AE140 -> 0 | AS140: =IF(SUM($AH140:AR140)>0,0,1)*AF140 -> 0 | AT140: =IF(SUM($AH140:AS140)>0,0,1)*AG140 -> 0 | AU140: 1 | AV140: 1 | AW140: 0 | AX140: 1 | AY140: 0 | AZ140: 1 | BA140: 0 | BB140: 1 | BC140: 0 | BD140: XIV | BE140: 0.07053140097 | BF140: 0.07149736748 | BG140: 0 | BH140: 0 | BI140: 233925 | BJ140: =IF(BD139="CASH",1,(1-$BN$4)*IF(BD139="XIV",F140,IF(BD139="UVXY",I140,L140))) -> 10.34433282 | BK140: 7.354242128 | BL140: 2419805.41 | BM140: 2422456.798 | BN140: =IF(BD140="CASH",1,(1+$BN$4)*IF(BD140="XIV",F140,IF(BD140="UVXY",I140,L140))) -> 10.35566718 | BO140: 11.08 | BP140: 2591896.354 | BQ140: 134 | BR140: 2.591896354
A141: 2012-04-13 | B141: 19.55 | C141: 21.99 | D141: 19.95 | E141: 21.7 | F141: 11.09 | G141: 10.37 | H141: -0.06492335437 | I141: 833500 | J141: 929400 | K141: 0.1150569886 | L141: 14.52875 | M141: 14.0125 | N141: -0.03553299492 | O141: -0.06546153846 | P141: 0.849382716 | Q141: -0.1408591409 | R141: 0.0009025270758 | S141: =VLOOKUP(A141,'MACD SPYG'!$A$2:$G$1452,7,FALSE) -> -0.180591213 | T141: 1 | U141: 0 | V141: 1 | W141: 0 | X141: 0 | Y141: 0 | Z141: 0 | AA141: 0 | AB141: 0 | AC141: 0 | AD141: 0 | AE141: 0 | AF141: 1 | AG141: 0 | AH141: 0 | AI141: =IF(SUM($AH141:AH141)>0,0,1)*V141 -> 1 | AJ141: =IF(SUM($AH141:AI141)>0,0,1)*W141 -> 0 | AK141: =IF(SUM($AH141:AJ141)>0,0,1)*X141 -> 0 | AL141: =IF(SUM($AH141:AK141)>0,0,1)*Y141 -> 0 | AM141: =IF(SUM($AH141:AL141)>0,0,1)*Z141 -> 0 | AN141: =IF(SUM($AH141:AM141)>0,0,1)*AA141 -> 0 | AO141: =IF(SUM($AH141:AN141)>0,0,1)*AB141 -> 0 | AP141: =IF(SUM($AH141:AO141)>0,0,1)*AC141 -> 0 | AQ141: =IF(SUM($AH141:AP141)>0,0,1)*AD141 -> 0 | AR141: =IF(SUM($AH141:AQ141)>0,0,1)*AE141 -> 0 | AS141: =IF(SUM($AH141:AR141)>0,0,1)*AF141 -> 0 | AT141: =IF(SUM($AH141:AS141)>0,0,1)*AG141 -> 0 | AU141: 1 | AV141: 1 | AW141: 0 | AX141: 1 | AY141: 0 | AZ141: 1 | BA141: 0 | BB141: 1 | BC141: 0 | BD141: XIV | BE141: -0.06492335437 | BF141: -0.03082222169 | BG141: 0 | BH141: 0 | BI141: 233925 | BJ141: =IF(BD140="CASH",1,(1-$BN$4)*IF(BD140="XIV",F141,IF(BD140="UVXY",I141,L141))) -> 11.08392764 | BK141: 7.354242128 | BL141: 2592815.126 | BM141: 2595656.082 | BN141: =IF(BD141="CASH",1,(1+$BN$4)*IF(BD141="XIV",F141,IF(BD141="UVXY",I141,L141))) -> 11.09607236 | BO141: 10.37 | BP141: 2425809.604 | BQ141: 135 | BR141: 2.425809604
A142: 2012-04-16 | B142: 19.55 | C142: 22.04 | D142: 19.85 | E142: 21.35 | F142: 10.76 | G142: 10.57 | H142: -0.01765799257 | I142: 862000 | J142: 895000 | K142: 0.03828306265 | L142: 14.24625 | M142: 13.57125 | N142: -0.04738088971 | O142: -0.03822863611 | P142: 0.8890404729 | Q142: 0.136627907 | R142: 0.03760848602 | S142: =VLOOKUP(A142,'MACD SPYG'!$A$2:$G$1452,7,FALSE) -> -0.1823743916 | T142: 1 | U142: 0 | V142: 0 | W142: 0 | X142: 0 | Y142: 0 | Z142: 0 | AA142: 0 | AB142: 0 | AC142: 1 | AD142: 0 | AE142: 0 | AF142: 0 | AG142: 0 | AH142: 0 | AI142: =IF(SUM($AH142:AH142)>0,0,1)*V142 -> 0 | AJ142: =IF(SUM($AH142:AI142)>0,0,1)*W142 -> 0 | AK142: =IF(SUM($AH142:AJ142)>0,0,1)*X142 -> 0 | AL142: =IF(SUM($AH142:AK142)>0,0,1)*Y142 -> 0 | AM142: =IF(SUM($AH142:AL142)>0,0,1)*Z142 -> 0 | AN142: =IF(SUM($AH142:AM142)>0,0,1)*AA142 -> 0 | AO142: =IF(SUM($AH142:AN142)>0,0,1)*AB142 -> 0 | AP142: =IF(SUM($AH142:AO142)>0,0,1)*AC142 -> 1 | AQ142: =IF(SUM($AH142:AP142)>0,0,1)*AD142 -> 0 | AR142: =IF(SUM($AH142:AQ142)>0,0,1)*AE142 -> 0 | AS142: =IF(SUM($AH142:AR142)>0,0,1)*AF142 -> 0 | AT142: =IF(SUM($AH142:AS142)>0,0,1)*AG142 -> 0 | AU142: 1 | AV142: 0 | AW142: 1 | AX142: 1 | AY142: 0 | AZ142: 0 | BA142: 1 | BB142: 1 | BC142: 0 | BD142: UVXY | BE142: 0.03828306265 | BF142: -0.02300288188 | BG142: 1 | BH142: 1 | BI142: 2 | BJ142: =IF(BD141="CASH",1,(1-$BN$4)*IF(BD141="XIV",F142,IF(BD141="UVXY",I142,L142))) -> 10.75410833 | BK142: 790708.2133 | BL142: 2515662.145 | BM142: 2515652.195 | BN142: =IF(BD142="CASH",1,(1+$BN$4)*IF(BD142="XIV",F142,IF(BD142="UVXY",I142,L142))) -> 862471.9908 | BO142: 895000 | BP142: 2580708.213 | BQ142: 136 | BR142: 2.580708213
A143: 2012-04-17 | B143: 18.46 | C143: 20.85 | D143: 18.2 | E143: 19.95 | F143: 10.93 | G143: 11.11 | H143: 0.0164684355 | I143: 834000 | J143: 799000 | K143: -0.04196642686 | L143: 13.74 | M143: 14.37125 | N143: 0.04594250364 | O143: -0.03165662846 | P143: 0.8870235935 | Q143: 0 | R143: 0.03405865658 | S143: =VLOOKUP(A143,'MACD SPYG'!$A$2:$G$1452,7,FALSE) -> -0.1954855468 | T143: 1 | U143: 0 | V143: 0 | W143: 0 | X143: 0 | Y143: 0 | Z143: 0 | AA143: 0 | AB143: 0 | AC143: 0 | AD143: 0 | AE143: 0 | AF143: 0 | AG143: 0 | AH143: 0 | AI143: =IF(SUM($AH143:AH143)>0,0,1)*V143 -> 0 | AJ143: =IF(SUM($AH143:AI143)>0,0,1)*W143 -> 0 | AK143: =IF(SUM($AH143:AJ143)>0,0,1)*X143 -> 0 | AL143: =IF(SUM($AH143:AK143)>0,0,1)*Y143 -> 0 | AM143: =IF(SUM($AH143:AL143)>0,0,1)*Z143 -> 0 | AN143: =IF(SUM($AH143:AM143)>0,0,1)*AA143 -> 0 | AO143: =IF(SUM($AH143:AN143)>0,0,1)*AB143 -> 0 | AP143: =IF(SUM($AH143:AO143)>0,0,1)*AC143 -> 0 | AQ143: =IF(SUM($AH143:AP143)>0,0,1)*AD143 -> 0 | AR143: =IF(SUM($AH143:AQ143)>0,0,1)*AE143 -> 0 | AS143: =IF(SUM($AH143:AR143)>0,0,1)*AF143 -> 0 | AT143: =IF(SUM($AH143:AS143)>0,0,1)*AG143 -> 0 | AU143: 0 | AV143: 0 | AW143: 0 | AX143: 0 | AY143: 1 | AZ143: 0 | BA143: 0 | BB143: 0 | BC143: 1 | BD143: TQQQ | BE143: 0.04594250364 | BF143: 0.03657201201 | BG143: 1 | BH143: 1 | BI143: 178780 | BJ143: =IF(BD142="CASH",1,(1-$BN$4)*IF(BD142="XIV",F143,IF(BD142="UVXY",I143,L143))) -> 833543.3407 | BK143: 2.714689598 | BL143: 2457794.895 | BM143: 2457784.945 | BN143: =IF(BD143="CASH",1,(1+$BN$4)*IF(BD143="XIV",F143,IF(BD143="UVXY",I143,L143))) -> 13.74752338 | BO143: 14.37125 | BP143: 2569294.79 | BQ143: 137 | BR143: 2.56929479
A144: 2012-04-18 | B144: 18.64 | C144: 21.12 | D144: 19.06 | E144: 20.55 | F144: 11 | G144: 10.92 | H144: -0.007272727273 | I144: 816000 | J144: 818500 | K144: 0.00306372549 | L144: 14.2425 | M144: 14.26625 | N144: 0.001667544322 | O144: -0.01631578947 | P144: 0.8853717026 | Q144: -0.0557544757 | R144: -0.009900990099 | S144: =VLOOKUP(A144,'MACD SPYG'!$A$2:$G$1452,7,FALSE) -> -0.1647863488 | T144: 1 | U144: 0 | V144: 0 | W144: 0 | X144: 0 | Y144: 0 | Z144: 0 | AA144: 0 | AB144: 0 | AC144: 0 | AD144: 0 | AE144: 0 | AF144: 0 | AG144: 0 | AH144: 0 | AI144: =IF(SUM($AH144:AH144)>0,0,1)*V144 -> 0 | AJ144: =IF(SUM($AH144:AI144)>0,0,1)*W144 -> 0 | AK144: =IF(SUM($AH144:AJ144)>0,0,1)*X144 -> 0 | AL144: =IF(SUM($AH144:AK144)>0,0,1)*Y144 -> 0 | AM144: =IF(SUM($AH144:AL144)>0,0,1)*Z144 -> 0 | AN144: =IF(SUM($AH144:AM144)>0,0,1)*AA144 -> 0 | AO144: =IF(SUM($AH144:AN144)>0,0,1)*AB144 -> 0 | AP144: =IF(SUM($AH144:AO144)>0,0,1)*AC144 -> 0 | AQ144: =IF(SUM($AH144:AP144)>0,0,1)*AD144 -> 0 | AR144: =IF(SUM($AH144:AQ144)>0,0,1)*AE144 -> 0 | AS144: =IF(SUM($AH144:AR144)>0,0,1)*AF144 -> 0 | AT144: =IF(SUM($AH144:AS144)>0,0,1)*AG144 -> 0 | AU144: 0 | AV144: 0 | AW144: 0 | AX144: 0 | AY144: 1 | AZ144: 0 | BA144: 0 | BB144: 0 | BC144: 1 | BD144: TQQQ | BE144: 0.001667544322 | BF144: -0.008864305106 | BG144: 0 | BH144: 0 | BI144: 178780 | BJ144: =IF(BD143="CASH",1,(1-$BN$4)*IF(BD143="XIV",F144,IF(BD143="UVXY",I144,L144))) -> 14.23470147 | BK144: 2.714689598 | BL144: 2544882.644 | BM144: 2547671.085 | BN144: =IF(BD144="CASH",1,(1+$BN$4)*IF(BD144="XIV",F144,IF(BD144="UVXY",I144,L144))) -> 14.25029853 | BO144: 14.26625 | BP144: 2550522.89 | BQ144: 138 | BR144: 2.55052289
A145: 2012-04-19 | B145: 18.36 | C145: 21.23 | D145: 20.4 | E145: 22.45 | F145: 10.98 | G145: 10.84 | H145: -0.01275045537 | I145: 816000 | J145: 834000 | K145: 0.02205882353 | L145: 14.11625 | M145: 13.805 | N145: -0.02204905694 | O145: -0.03717679858 | P145: 0.8825757576 | Q145: 0.009750812568 | R145: 0.005494505495 | S145: =VLOOKUP(A145,'MACD SPYG'!$A$2:$G$1452,7,FALSE) -> -0.1461519257 | T145: 1 | U145: 0 | V145: 0 | W145: 0 | X145: 0 | Y145: 0 | Z145: 0 | AA145: 0 | AB145: 0 | AC145: 0 | AD145: 0 | AE145: 0 | AF145: 0 | AG145: 0 | AH145: 0 | AI145: =IF(SUM($AH145:AH145)>0,0,1)*V145 -> 0 | AJ145: =IF(SUM($AH145:AI145)>0,0,1)*W145 -> 0 | AK145: =IF(SUM($AH145:AJ145)>0,0,1)*X145 -> 0 | AL145: =IF(SUM($AH145:AK145)>0,0,1)*Y145 -> 0 | AM145: =IF(SUM($AH145:AL145)>0,0,1)*Z145 -> 0 | AN145: =IF(SUM($AH145:AM145)>0,0,1)*AA145 -> 0 | AO145: =IF(SUM($AH145:AN145)>0,0,1)*AB145 -> 0 | AP145: =IF(SUM($AH145:AO145)>0,0,1)*AC145 -> 0 | AQ145: =IF(SUM($AH145:AP145)>0,0,1)*AD145 -> 0 | AR145: =IF(SUM($AH145:AQ145)>0,0,1)*AE145 -> 0 | AS145: =IF(SUM($AH145:AR145)>0,0,1)*AF145 -> 0 | AT145: =IF(SUM($AH145:AS145)>0,0,1)*AG145 -> 0 | AU145: 0 | AV145: 0 | AW145: 0 | AX145: 0 | AY145: 1 | AZ145: 0 | BA145: 0 | BB145: 0 | BC145: 1 | BD145: TQQQ | BE145: -0.02204905694 | BF145: -0.008970800241 | BG145: 0 | BH145: 0 | BI145: 178780 | BJ145: =IF(BD144="CASH",1,(1-$BN$4)*IF(BD144="XIV",F145,IF(BD144="UVXY",I145,L145))) -> 14.1085206 | BK145: 2.714689598 | BL145: 2522324.028 | BM145: 2525087.751 | BN145: =IF(BD145="CASH",1,(1+$BN$4)*IF(BD145="XIV",F145,IF(BD145="UVXY",I145,L145))) -> 14.1239794 | BO145: 13.805 | BP145: 2468060.615 | BQ145: 139 | BR145: 2.468060615
A146: 2012-04-20 | B146: 17.44 | C146: 20.48 | D146: 19.7 | E146: 21.9 | F146: 11.1 | G146: 11.22 | H146: 0.01081081081 | I146: 799000 | J146: 781500 | K146: -0.02190237797 | L146: 14.005 | M146: 13.65625 | N146: -0.02490182078 | O146: -0.09739420935 | P146: 0.8648139425 | Q146: -0.01502145923 | R146: 0.02398523985 | S146: =VLOOKUP(A146,'MACD SPYG'!$A$2:$G$1452,7,FALSE) -> -0.1363614479 | T146: 1 | U146: 0 | V146: 1 | W146: 0 | X146: 0 | Y146: 0 | Z146: 0 | AA146: 0 | AB146: 0 | AC146: 0 | AD146: 0 | AE146: 0 | AF146: 1 | AG146: 0 | AH146: 0 | AI146: =IF(SUM($AH146:AH146)>0,0,1)*V146 -> 1 | AJ146: =IF(SUM($AH146:AI146)>0,0,1)*W146 -> 0 | AK146: =IF(SUM($AH146:AJ146)>0,0,1)*X146 -> 0 | AL146: =IF(SUM($AH146:AK146)>0,0,1)*Y146 -> 0 | AM146: =IF(SUM($AH146:AL146)>0,0,1)*Z146 -> 0 | AN146: =IF(SUM($AH146:AM146)>0,0,1)*AA146 -> 0 | AO146: =IF(SUM($AH146:AN146)>0,0,1)*AB146 -> 0 | AP146: =IF(SUM($AH146:AO146)>0,0,1)*AC146 -> 0 | AQ146: =IF(SUM($AH146:AP146)>0,0,1)*AD146 -> 0 | AR146: =IF(SUM($AH146:AQ146)>0,0,1)*AE146 -> 0 | AS146: =IF(SUM($AH146:AR146)>0,0,1)*AF146 -> 0 | AT146: =IF(SUM($AH146:AS146)>0,0,1)*AG146 -> 0 | AU146: 1 | AV146: 1 | AW146: 0 | AX146: 1 | AY146: 0 | AZ146: 1 | BA146: 0 | BB146: 1 | BC146: 0 | BD146: XIV | BE146: 0.01081081081 | BF146: -0.04054048986 | BG146: 1 | BH146: 1 | BI146: 225321 | BJ146: =IF(BD145="CASH",1,(1-$BN$4)*IF(BD145="XIV",F146,IF(BD145="UVXY",I146,L146))) -> 13.99733152 | BK146: 3.1285269 | BL146: 2502445.644 | BM146: 2502435.694 | BN146: =IF(BD146="CASH",1,(1+$BN$4)*IF(BD146="XIV",F146,IF(BD146="UVXY",I146,L146))) -> 11.10607784 | BO146: 11.22 | BP146: 2528104.749 | BQ146: 140 | BR146: 2.528104749
A147: 2012-04-23 | B147: 18.97 | C147: 21.39 | D147: 20.6 | E147: 22.55 | F147: 10.65 | G147: 10.83 | H147: 0.01690140845 | I147: 856000 | J147: 829950 | K147: -0.03043224299 | L147: 13.305 | M147: 13.3125 | N147: 0.0005636978579 | O147: -0.1104415548 | P147: 0.8515625 | Q147: -0.05010893246 | R147: -0.05080213904 | S147: =VLOOKUP(A147,'MACD SPYG'!$A$2:$G$1452,7,FALSE) -> -0.171883828 | T147: 1 | U147: 0 | V147: 1 | W147: 0 | X147: 0 | Y147: 0 | Z147: 0 | AA147: 0 | AB147: 0 | AC147: 0 | AD147: 0 | AE147: 0 | AF147: 1 | AG147: 0 | AH147: 0 | AI147: =IF(SUM($AH147:AH147)>0,0,1)*V147 -> 1 | AJ147: =IF(SUM($AH147:AI147)>0,0,1)*W147 -> 0 | AK147: =IF(SUM($AH147:AJ147)>0,0,1)*X147 -> 0 | AL147: =IF(SUM($AH147:AK147)>0,0,1)*Y147 -> 0 | AM147: =IF(SUM($AH147:AL147)>0,0,1)*Z147 -> 0 | AN147: =IF(SUM($AH147:AM147)>0,0,1)*AA147 -> 0 | AO147: =IF(SUM($AH147:AN147)>0,0,1)*AB147 -> 0 | AP147: =IF(SUM($AH147:AO147)>0,0,1)*AC147 -> 0 | AQ147: =IF(SUM($AH147:AP147)>0,0,1)*AD147 -> 0 | AR147: =IF(SUM($AH147:AQ147)>0,0,1)*AE147 -> 0 | AS147: =IF(SUM($AH147:AR147)>0,0,1)*AF147 -> 0 | AT147: =IF(SUM($AH147:AS147)>0,0,1)*AG147 -> 0 | AU147: 1 | AV147: 1 | AW147: 0 | AX147: 1 | AY147: 0 | AZ147: 1 | BA147: 0 | BB147: 1 | BC147: 0 | BD147: XIV | BE147: 0.01690140845 | BF147: 0.02159621599 | BG147: 0 | BH147: 0 | BI147: 225321 | BJ147: =IF(BD146="CASH",1,(1-$BN$4)*IF(BD146="XIV",F147,IF(BD146="UVXY",I147,L147))) -> 10.64416856 | BK147: 3.1285269 | BL147: 2398357.832 | BM147: 2400985.725 | BN147: =IF(BD147="CASH",1,(1+$BN$4)*IF(BD147="XIV",F147,IF(BD147="UVXY",I147,L147))) -> 10.65583144 | BO147: 10.83 | BP147: 2440229.559 | BQ147: 141 | BR147: 2.440229559
A148: 2012-04-24 | B148: 18.1 | C148: 20.51 | D148: 19.75 | E148: 21.8 | F148: 10.88 | G148: 11.1 | H148: 0.02022058824 | I148: 823500 | J148: 790500 | K148: -0.04007285974 | L148: 13.22875 | M148: 13.0775 | N148: -0.01143343097 | O148: -0.08133069985 | P148: 0.8868630201 | Q148: 0.0877293578 | R148: 0.004616805171 | S148: =VLOOKUP(A148,'MACD SPYG'!$A$2:$G$1452,7,FALSE) -> -0.1837753054 | T148: 1 | U148: 0 | V148: 1 | W148: 0 | X148: 0 | Y148: 0 | Z148: 0 | AA148: 0 | AB148: 0 | AC148: 1 | AD148: 0 | AE148: 0 | AF148: 1 | AG148: 0 | AH148: 0 | AI148: =IF(SUM($AH148:AH148)>0,0,1)*V148 -> 1 | AJ148: =IF(SUM($AH148:AI148)>0,0,1)*W148 -> 0 | AK148: =IF(SUM($AH148:AJ148)>0,0,1)*X148 -> 0 | AL148: =IF(SUM($AH148:AK148)>0,0,1)*Y148 -> 0 | AM148: =IF(SUM($AH148:AL148)>0,0,1)*Z148 -> 0 | AN148: =IF(SUM($AH148:AM148)>0,0,1)*AA148 -> 0 | AO148: =IF(SUM($AH148:AN148)>0,0,1)*AB148 -> 0 | AP148: =IF(SUM($AH148:AO148)>0,0,1)*AC148 -> 0 | AQ148: =IF(SUM($AH148:AP148)>0,0,1)*AD148 -> 0 | AR148: =IF(SUM($AH148:AQ148)>0,0,1)*AE148 -> 0 | AS148: =IF(SUM($AH148:AR148)>0,0,1)*AF148 -> 0 | AT148: =IF(SUM($AH148:AS148)>0,0,1)*AG148 -> 0 | AU148: 1 | AV148: 1 | AW148: 0 | AX148: 1 | AY148: 0 | AZ148: 1 | BA148: 0 | BB148: 1 | BC148: 0 | BD148: XIV | BE148: 0.02022058824 | BF148: 0.06158080381 | BG148: 0 | BH148: 0 | BI148: 225321 | BJ148: =IF(BD147="CASH",1,(1-$BN$4)*IF(BD147="XIV",F148,IF(BD147="UVXY",I148,L148))) -> 10.87404262 | BK148: 3.1285269 | BL148: 2450153.286 | BM148: 2452837.931 | BN148: =IF(BD148="CASH",1,(1+$BN$4)*IF(BD148="XIV",F148,IF(BD148="UVXY",I148,L148))) -> 10.88595738 | BO148: 11.1 | BP148: 2501066.229 | BQ148: 142 | BR148: 2.501066229
A149: 2012-04-25 | B149: 16.82 | C149: 19.46 | D149: 18.55 | E149: 20.8 | F149: 11.55 | G149: 11.79 | H149: 0.02077922078 | I149: 728000 | J149: 696000 | K149: -0.04395604396 | L149: 13.89 | M149: 14.11625 | N149: 0.0162886969 | O149: -0.08669202183 | P149: 0.8824963432 | Q149: -0.04586188719 | R149: 0.04054054054 | S149: =VLOOKUP(A149,'MACD SPYG'!$A$2:$G$1452,7,FALSE) -> -0.1313120532 | T149: 1 | U149: 0 | V149: 1 | W149: 0 | X149: 0 | Y149: 0 | Z149: 0 | AA149: 0 | AB149: 0 | AC149: 0 | AD149: 0 | AE149: 0 | AF149: 1 | AG149: 0 | AH149: 0 | AI149: =IF(SUM($AH149:AH149)>0,0,1)*V149 -> 1 | AJ149: =IF(SUM($AH149:AI149)>0,0,1)*W149 -> 0 | AK149: =IF(SUM($AH149:AJ149)>0,0,1)*X149 -> 0 | AL149: =IF(SUM($AH149:AK149)>0,0,1)*Y149 -> 0 | AM149: =IF(SUM($AH149:AL149)>0,0,1)*Z149 -> 0 | AN149: =IF(SUM($AH149:AM149)>0,0,1)*AA149 -> 0 | AO149: =IF(SUM($AH149:AN149)>0,0,1)*AB149 -> 0 | AP149: =IF(SUM($AH149:AO149)>0,0,1)*AC149 -> 0 | AQ149: =IF(SUM($AH149:AP149)>0,0,1)*AD149 -> 0 | AR149: =IF(SUM($AH149:AQ149)>0,0,1)*AE149 -> 0 | AS149: =IF(SUM($AH149:AR149)>0,0,1)*AF149 -> 0 | AT149: =IF(SUM($AH149:AS149)>0,0,1)*AG149 -> 0 | AU149: 1 | AV149: 1 | AW149: 0 | AX149: 1 | AY149: 0 | AZ149: 1 | BA149: 0 | BB149: 1 | BC149: 0 | BD149: XIV | BE149: 0.02077922078 | BF149: 0.01904759616 | BG149: 0 | BH149: 0 | BI149: 225321 | BJ149: =IF(BD148="CASH",1,(1-$BN$4)*IF(BD148="XIV",F149,IF(BD148="UVXY",I149,L149))) -> 11.54367576 | BK149: 3.1285269 | BL149: 2601035.695 | BM149: 2603885.662 | BN149: =IF(BD149="CASH",1,(1+$BN$4)*IF(BD149="XIV",F149,IF(BD149="UVXY",I149,L149))) -> 11.55632424 | BO149: 11.79 | BP149: 2656537.719 | BQ149: 143 | BR149: 2.656537719
A150: 2012-04-26 | B150: 16.24 | C150: 18.55 | D150: 18 | E150: 20.3 | F150: 11.77 | G150: 12.2 | H150: 0.0365335599 | I150: 698000 | J150: 646500 | K150: -0.07378223496 | L150: 14.09625 | M150: 14.36875 | N150: 0.01933138246 | O150: -0.09773494194 | P150: 0.8643371017 | Q150: -0.07071823204 | R150: -0.001696352841 | S150: =VLOOKUP(A150,'MACD SPYG'!$A$2:$G$1452,7,FALSE) -> -0.07414842076 | T150: 1 | U150: 0 | V150: 1 | W150: 0 | X150: 0 | Y150: 0 | Z150: 0 | AA150: 0 | AB150: 0 | AC150: 0 | AD150: 0 | AE150: 0 | AF150: 1 | AG150: 0 | AH150: 0 | AI150: =IF(SUM($AH150:AH150)>0,0,1)*V150 -> 1 | AJ150: =IF(SUM($AH150:AI150)>0,0,1)*W150 -> 0 | AK150: =IF(SUM($AH150:AJ150)>0,0,1)*X150 -> 0 | AL150: =IF(SUM($AH150:AK150)>0,0,1)*Y150 -> 0 | AM150: =IF(SUM($AH150:AL150)>0,0,1)*Z150 -> 0 | AN150: =IF(SUM($AH150:AM150)>0,0,1)*AA150 -> 0 | AO150: =IF(SUM($AH150:AN150)>0,0,1)*AB150 -> 0 | AP150: =IF(SUM($AH150:AO150)>0,0,1)*AC150 -> 0 | AQ150: =IF(SUM($AH150:AP150)>0,0,1)*AD150 -> 0 | AR150: =IF(SUM($AH150:AQ150)>0,0,1)*AE150 -> 0 | AS150: =IF(SUM($AH150:AR150)>0,0,1)*AF150 -> 0 | AT150: =IF(SUM($AH150:AS150)>0,0,1)*AG150 -> 0 | AU150: 1 | AV150: 1 | AW150: 0 | AX150: 1 | AY150: 0 | AZ150: 1 | BA150: 0 | BB150: 1 | BC150: 0 | BD150: XIV | BE150: 0.0365335599 | BF150: 0.04078160018 | BG150: 0 | BH150: 0 | BI150: 225321 | BJ150: =IF(BD149="CASH",1,(1-$BN$4)*IF(BD149="XIV",F150,IF(BD149="UVXY",I150,L150))) -> 11.7635553 | BK150: 3.1285269 | BL150: 2650579.172 | BM150: 2653483.425 | BN150: =IF(BD150="CASH",1,(1+$BN$4)*IF(BD150="XIV",F150,IF(BD150="UVXY",I150,L150))) -> 11.7764447 | BO150: 12.2 | BP150: 2748919.329 | BQ150: 144 | BR150: 2.748919329
A151: 2012-04-27 | B151: 16.32 | C151: 18.74 | D151: 18.05 | E151: 20.15 | F151: 12.25 | G151: 12.2 | H151: -0.004081632653 | I151: 640000 | J151: 642000 | K151: 0.003125 | L151: 14.545 | M151: 14.615 | N151: 0.004812650395 | O151: -0.1024345922 | P151: 0.8754716981 | Q151: -0.03448275862 | R151: 0.004098360656 | S151: =VLOOKUP(A151,'MACD SPYG'!$A$2:$G$1452,7,FALSE) -> 0.01695694038 | T151: 1 | U151: 0 | V151: 1 | W151: 0 | X151: 0 | Y151: 0 | Z151: 0 | AA151: 0 | AB151: 0 | AC151: 0 | AD151: 0 | AE151: 0 | AF151: 1 | AG151: 0 | AH151: 0 | AI151: =IF(SUM($AH151:AH151)>0,0,1)*V151 -> 1 | AJ151: =IF(SUM($AH151:AI151)>0,0,1)*W151 -> 0 | AK151: =IF(SUM($AH151:AJ151)>0,0,1)*X151 -> 0 | AL151: =IF(SUM($AH151:AK151)>0,0,1)*Y151 -> 0 | AM151: =IF(SUM($AH151:AL151)>0,0,1)*Z151 -> 0 | AN151: =IF(SUM($AH151:AM151)>0,0,1)*AA151 -> 0 | AO151: =IF(SUM($AH151:AN151)>0,0,1)*AB151 -> 0 | AP151: =IF(SUM($AH151:AO151)>0,0,1)*AC151 -> 0 | AQ151: =IF(SUM($AH151:AP151)>0,0,1)*AD151 -> 0 | AR151: =IF(SUM($AH151:AQ151)>0,0,1)*AE151 -> 0 | AS151: =IF(SUM($AH151:AR151)>0,0,1)*AF151 -> 0 | AT151: =IF(SUM($AH151:AS151)>0,0,1)*AG151 -> 0 | AU151: 1 | AV151: 1 | AW151: 0 | AX151: 1 | AY151: 0 | AZ151: 1 | BA151: 0 | BB151: 1 | BC151: 0 | BD151: XIV | BE151: -0.004081632653 | BF151: -0.01551018651 | BG151: 0 | BH151: 0 | BI151: 225321 | BJ151: =IF(BD150="CASH",1,(1-$BN$4)*IF(BD150="XIV",F151,IF(BD150="UVXY",I151,L151))) -> 12.24329247 | BK151: 3.1285269 | BL151: 2758674.032 | BM151: 2761696.725 | BN151: =IF(BD151="CASH",1,(1+$BN$4)*IF(BD151="XIV",F151,IF(BD151="UVXY",I151,L151))) -> 12.25670753 | BO151: 12.2 | BP151: 2748919.329 | BQ151: 145 | BR151: 2.748919329
A152: 2012-04-30 | B152: 17.15 | C152: 19.32 | D152: 18.45 | E152: 20.5 | F152: 12.06 | G152: 11.93 | H152: -0.01077943615 | I152: 659000 | J152: 672000 | K152: 0.01972685888 | L152: 14.485 | M152: 14.31125 | N152: -0.01199516741 | O152: -0.09835692143 | P152: 0.870864461 | Q152: 0.004926108374 | R152: -0.01147540984 | S152: =VLOOKUP(A152,'MACD SPYG'!$A$2:$G$1452,7,FALSE) -> 0.05559863688 | T152: 1 | U152: 0 | V152: 1 | W152: 0 | X152: 0 | Y152: 0 | Z152: 0 | AA152: 0 | AB152: 0 | AC152: 0 | AD152: 0 | AE152: 0 | AF152: 1 | AG152: 0 | AH152: 0 | AI152: =IF(SUM($AH152:AH152)>0,0,1)*V152 -> 1 | AJ152: =IF(SUM($AH152:AI152)>0,0,1)*W152 -> 0 | AK152: =IF(SUM($AH152:AJ152)>0,0,1)*X152 -> 0 | AL152: =IF(SUM($AH152:AK152)>0,0,1)*Y152 -> 0 | AM152: =IF(SUM($AH152:AL152)>0,0,1)*Z152 -> 0 | AN152: =IF(SUM($AH152:AM152)>0,0,1)*AA152 -> 0 | AO152: =IF(SUM($AH152:AN152)>0,0,1)*AB152 -> 0 | AP152: =IF(SUM($AH152:AO152)>0,0,1)*AC152 -> 0 | AQ152: =IF(SUM($AH152:AP152)>0,0,1)*AD152 -> 0 | AR152: =IF(SUM($AH152:AQ152)>0,0,1)*AE152 -> 0 | AS152: =IF(SUM($AH152:AR152)>0,0,1)*AF152 -> 0 | AT152: =IF(SUM($AH152:AS152)>0,0,1)*AG152 -> 0 | AU152: 1 | AV152: 1 | AW152: 0 | AX152: 1 | AY152: 0 | AZ152: 1 | BA152: 0 | BB152: 1 | BC152: 0 | BD152: XIV | BE152: -0.01077943615 | BF152: -0.008291864422 | BG152: 0 | BH152: 0 | BI152: 225321 | BJ152: =IF(BD151="CASH",1,(1-$BN$4)*IF(BD151="XIV",F152,IF(BD151="UVXY",I152,L152))) -> 12.05339651 | BK152: 3.1285269 | BL152: 2715886.483 | BM152: 2718862.294 | BN152: =IF(BD152="CASH",1,(1+$BN$4)*IF(BD152="XIV",F152,IF(BD152="UVXY",I152,L152))) -> 12.06660349 | BO152: 11.93 | BP152: 2688082.659 | BQ152: 146 | BR152: 2.688082659
A153: 2012-05-01 | B153: 16.6 | C153: 19.13 | D153: 18 | E153: 20.05 | F153: 11.96 | G153: 12.33 | H153: 0.03093645485 | I153: 666500 | J153: 628500 | K153: -0.05701425356 | L153: 14.2325 | M153: 14.3925 | N153: 0.01124187599 | O153: -0.07932249322 | P153: 0.8876811594 | Q153: 0.05085784314 | R153: 0.002514668902 | S153: =VLOOKUP(A153,'MACD SPYG'!$A$2:$G$1452,7,FALSE) -> 0.06494858767 | T153: 1 | U153: 0 | V153: 1 | W153: 0 | X153: 0 | Y153: 0 | Z153: 0 | AA153: 0 | AB153: 0 | AC153: 0 | AD153: 0 | AE153: 0 | AF153: 1 | AG153: 0 | AH153: 0 | AI153: =IF(SUM($AH153:AH153)>0,0,1)*V153 -> 1 | AJ153: =IF(SUM($AH153:AI153)>0,0,1)*W153 -> 0 | AK153: =IF(SUM($AH153:AJ153)>0,0,1)*X153 -> 0 | AL153: =IF(SUM($AH153:AK153)>0,0,1)*Y153 -> 0 | AM153: =IF(SUM($AH153:AL153)>0,0,1)*Z153 -> 0 | AN153: =IF(SUM($AH153:AM153)>0,0,1)*AA153 -> 0 | AO153: =IF(SUM($AH153:AN153)>0,0,1)*AB153 -> 0 | AP153: =IF(SUM($AH153:AO153)>0,0,1)*AC153 -> 0 | AQ153: =IF(SUM($AH153:AP153)>0,0,1)*AD153 -> 0 | AR153: =IF(SUM($AH153:AQ153)>0,0,1)*AE153 -> 0 | AS153: =IF(SUM($AH153:AR153)>0,0,1)*AF153 -> 0 | AT153: =IF(SUM($AH153:AS153)>0,0,1)*AG153 -> 0 | AU153: 1 | AV153: 1 | AW153: 0 | AX153: 1 | AY153: 0 | AZ153: 1 | BA153: 0 | BB153: 1 | BC153: 0 | BD153: XIV | BE153: 0.03093645485 | BF153: 0.007525074881 | BG153: 0 | BH153: 0 | BI153: 225321 | BJ153: =IF(BD152="CASH",1,(1-$BN$4)*IF(BD152="XIV",F153,IF(BD152="UVXY",I153,L153))) -> 11.95345126 | BK153: 3.1285269 | BL153: 2693366.721 | BM153: 2696317.856 | BN153: =IF(BD153="CASH",1,(1+$BN$4)*IF(BD153="XIV",F153,IF(BD153="UVXY",I153,L153))) -> 11.96654874 | BO153: 12.33 | BP153: 2778211.059 | BQ153: 147 | BR153: 2.778211059
A154: 2012-05-02 | B154: 16.88 | C154: 19.01 | D154: 18.05 | E154: 19.95 | F154: 12.05 | G154: 12.2 | H154: 0.01244813278 | I154: 657500 | J154: 639000 | K154: -0.02813688213 | L154: 14.16 | M154: 14.4875 | N154: 0.02312853107 | O154: -0.08511776115 | P154: 0.8677469942 | Q154: -0.03206997085 | R154: -0.02270884023 | S154: =VLOOKUP(A154,'MACD SPYG'!$A$2:$G$1452,7,FALSE) -> 0.06551143982 | T154: 1 | U154: 0 | V154: 1 | W154: 0 | X154: 0 | Y154: 0 | Z154: 0 | AA154: 0 | AB154: 0 | AC154: 0 | AD154: 0 | AE154: 0 | AF154: 1 | AG154: 0 | AH154: 0 | AI154: =IF(SUM($AH154:AH154)>0,0,1)*V154 -> 1 | AJ154: =IF(SUM($AH154:AI154)>0,0,1)*W154 -> 0 | AK154: =IF(SUM($AH154:AJ154)>0,0,1)*X154 -> 0 | AL154: =IF(SUM($AH154:AK154)>0,0,1)*Y154 -> 0 | AM154: =IF(SUM($AH154:AL154)>0,0,1)*Z154 -> 0 | AN154: =IF(SUM($AH154:AM154)>0,0,1)*AA154 -> 0 | AO154: =IF(SUM($AH154:AN154)>0,0,1)*AB154 -> 0 | AP154: =IF(SUM($AH154:AO154)>0,0,1)*AC154 -> 0 | AQ154: =IF(SUM($AH154:AP154)>0,0,1)*AD154 -> 0 | AR154: =IF(SUM($AH154:AQ154)>0,0,1)*AE154 -> 0 | AS154: =IF(SUM($AH154:AR154)>0,0,1)*AF154 -> 0 | AT154: =IF(SUM($AH154:AS154)>0,0,1)*AG154 -> 0 | AU154: 1 | AV154: 1 | AW154: 0 | AX154: 1 | AY154: 0 | AZ154: 1 | BA154: 0 | BB154: 1 | BC154: 0 | BD154: XIV | BE154: 0.01244813278 | BF154: 0.0224066132 | BG154: 0 | BH154: 0 | BI154: 225321 | BJ154: =IF(BD153="CASH",1,(1-$BN$4)*IF(BD153="XIV",F154,IF(BD153="UVXY",I154,L154))) -> 12.04340198 | BK154: 3.1285269 | BL154: 2713634.507 | BM154: 2716607.85 | BN154: =IF(BD154="CASH",1,(1+$BN$4)*IF(BD154="XIV",F154,IF(BD154="UVXY",I154,L154))) -> 12.05659802 | BO154: 12.2 | BP154: 2748919.329 | BQ154: 148 | BR154: 2.748919329
A155: 2012-05-03 | B155: 17.56 | C155: 19.5 | D155: 18.8 | E155: 20.55 | F155: 12.32 | G155: 11.93 | H155: -0.03165584416 | I155: 631000 | J155: 666500 | K155: 0.05625990491 | L155: 14.5375 | M155: 14.0375 | N155: -0.03439380911 | O155: -0.07394538979 | P155: 0.8879537086 | Q155: 0.01686746988 | R155: 0.009836065574 | S155: =VLOOKUP(A155,'MACD SPYG'!$A$2:$G$1452,7,FALSE) -> 0.08846778904 | T155: 1 | U155: 0 | V155: 1 | W155: 0 | X155: 0 | Y155: 0 | Z155: 0 | AA155: 0 | AB155: 0 | AC155: 0 | AD155: 0 | AE155: 0 | AF155: 1 | AG155: 0 | AH155: 0 | AI155: =IF(SUM($AH155:AH155)>0,0,1)*V155 -> 1 | AJ155: =IF(SUM($AH155:AI155)>0,0,1)*W155 -> 0 | AK155: =IF(SUM($AH155:AJ155)>0,0,1)*X155 -> 0 | AL155: =IF(SUM($AH155:AK155)>0,0,1)*Y155 -> 0 | AM155: =IF(SUM($AH155:AL155)>0,0,1)*Z155 -> 0 | AN155: =IF(SUM($AH155:AM155)>0,0,1)*AA155 -> 0 | AO155: =IF(SUM($AH155:AN155)>0,0,1)*AB155 -> 0 | AP155: =IF(SUM($AH155:AO155)>0,0,1)*AC155 -> 0 | AQ155: =IF(SUM($AH155:AP155)>0,0,1)*AD155 -> 0 | AR155: =IF(SUM($AH155:AQ155)>0,0,1)*AE155 -> 0 | AS155: =IF(SUM($AH155:AR155)>0,0,1)*AF155 -> 0 | AT155: =IF(SUM($AH155:AS155)>0,0,1)*AG155 -> 0 | AU155: 1 | AV155: 1 | AW155: 0 | AX155: 1 | AY155: 0 | AZ155: 1 | BA155: 0 | BB155: 1 | BC155: 0 | BD155: XIV | BE155: -0.03165584416 | BF155: -0.04058436987 | BG155: 0 | BH155: 0 | BI155: 225321 | BJ155: =IF(BD154="CASH",1,(1-$BN$4)*IF(BD154="XIV",F155,IF(BD154="UVXY",I155,L155))) -> 12.31325415 | BK155: 3.1285269 | BL155: 2774437.866 | BM155: 2777477.831 | BN155: =IF(BD155="CASH",1,(1+$BN$4)*IF(BD155="XIV",F155,IF(BD155="UVXY",I155,L155))) -> 12.32674585 | BO155: 11.93 | BP155: 2688082.659 | BQ155: 149 | BR155: 2.688082659
A156: 2012-05-04 | B156: 19.16 | C156: 20.72 | D156: 20 | E156: 21.45 | F156: 11.82 | G156: 11.42 | H156: -0.03384094755 | I156: 680000 | J156: 728500 | K156: 0.07132352941 | L156: 13.65375 | M156: 13.0075 | N156: -0.04733131923 | O156: -0.07171765802 | P156: 0.9005128205 | Q156: 0.04028436019 | R156: -0.00922045264 | S156: =VLOOKUP(A156,'MACD SPYG'!$A$2:$G$1452,7,FALSE) -> 0.04173011631 | T156: 1 | U156: 0 | V156: 1 | W156: 0 | X156: 0 | Y156: 0 | Z156: 0 | AA156: 0 | AB156: 0 | AC156: 0 | AD156: 0 | AE156: 0 | AF156: 1 | AG156: 0 | AH156: 0 | AI156: =IF(SUM($AH156:AH156)>0,0,1)*V156 -> 1 | AJ156: =IF(SUM($AH156:AI156)>0,0,1)*W156 -> 0 | AK156: =IF(SUM($AH156:AJ156)>0,0,1)*X156 -> 0 | AL156: =IF(SUM($AH156:AK156)>0,0,1)*Y156 -> 0 | AM156: =IF(SUM($AH156:AL156)>0,0,1)*Z156 -> 0 | AN156: =IF(SUM($AH156:AM156)>0,0,1)*AA156 -> 0 | AO156: =IF(SUM($AH156:AN156)>0,0,1)*AB156 -> 0 | AP156: =IF(SUM($AH156:AO156)>0,0,1)*AC156 -> 0 | AQ156: =IF(SUM($AH156:AP156)>0,0,1)*AD156 -> 0 | AR156: =IF(SUM($AH156:AQ156)>0,0,1)*AE156 -> 0 | AS156: =IF(SUM($AH156:AR156)>0,0,1)*AF156 -> 0 | AT156: =IF(SUM($AH156:AS156)>0,0,1)*AG156 -> 0 | AU156: 1 | AV156: 1 | AW156: 0 | AX156: 1 | AY156: 0 | AZ156: 1 | BA156: 0 | BB156: 1 | BC156: 0 | BD156: XIV | BE156: -0.03384094755 | BF156: -0.05668352059 | BG156: 0 | BH156: 0 | BI156: 225321 | BJ156: =IF(BD155="CASH",1,(1-$BN$4)*IF(BD155="XIV",F156,IF(BD155="UVXY",I156,L156))) -> 11.81352792 | BK156: 3.1285269 | BL156: 2661839.053 | BM156: 2664755.644 | BN156: =IF(BD156="CASH",1,(1+$BN$4)*IF(BD156="XIV",F156,IF(BD156="UVXY",I156,L156))) -> 11.82647208 | BO156: 11.42 | BP156: 2573168.949 | BQ156: 150 | BR156: 2.573168949
A157: 2012-05-07 | B157: 18.94 | C157: 20.45 | D157: 19.35 | E157: 20.85 | F157: 11.15 | G157: 11.59 | H157: 0.03946188341 | I157: 761500 | J157: 703500 | K157: -0.0761654629 | L157: 12.76 | M157: 13.02625 | N157: 0.02086598746 | O157: -0.04967972028 | P157: 0.9247104247 | Q157: 0.09111617312 | R157: -0.02364273205 | S157: =VLOOKUP(A157,'MACD SPYG'!$A$2:$G$1452,7,FALSE) -> -0.04633527307 | T157: 1 | U157: 0 | V157: 1 | W157: 0 | X157: 0 | Y157: 0 | Z157: 0 | AA157: 0 | AB157: 0 | AC157: 1 | AD157: 0 | AE157: 0 | AF157: 1 | AG157: 0 | AH157: 0 | AI157: =IF(SUM($AH157:AH157)>0,0,1)*V157 -> 1 | AJ157: =IF(SUM($AH157:AI157)>0,0,1)*W157 -> 0 | AK157: =IF(SUM($AH157:AJ157)>0,0,1)*X157 -> 0 | AL157: =IF(SUM($AH157:AK157)>0,0,1)*Y157 -> 0 | AM157: =IF(SUM($AH157:AL157)>0,0,1)*Z157 -> 0 | AN157: =IF(SUM($AH157:AM157)>0,0,1)*AA157 -> 0 | AO157: =IF(SUM($AH157:AN157)>0,0,1)*AB157 -> 0 | AP157: =IF(SUM($AH157:AO157)>0,0,1)*AC157 -> 0 | AQ157: =IF(SUM($AH157:AP157)>0,0,1)*AD157 -> 0 | AR157: =IF(SUM($AH157:AQ157)>0,0,1)*AE157 -> 0 | AS157: =IF(SUM($AH157:AR157)>0,0,1)*AF157 -> 0 | AT157: =IF(SUM($AH157:AS157)>0,0,1)*AG157 -> 0 | AU157: 1 | AV157: 1 | AW157: 0 | AX157: 1 | AY157: 0 | AZ157: 1 | BA157: 0 | BB157: 1 | BC157: 0 | BD157: XIV | BE157: 0.03946188341 | BF157: 0.01502734459 | BG157: 0 | BH157: 0 | BI157: 225321 | BJ157: =IF(BD156="CASH",1,(1-$BN$4)*IF(BD156="XIV",F157,IF(BD156="UVXY",I157,L157))) -> 11.14389478 | BK157: 3.1285269 | BL157: 2510956.645 | BM157: 2513707.912 | BN157: =IF(BD157="CASH",1,(1+$BN$4)*IF(BD157="XIV",F157,IF(BD157="UVXY",I157,L157))) -> 11.15610522 | BO157: 11.59 | BP157: 2611473.519 | BQ157: 151 | BR157: 2.611473519
A158: 2012-05-08 | B158: 19.05 | C158: 20.81 | D158: 19.55 | E158: 21 | F158: 11.33 | G158: 11.45 | H158: 0.0105913504 | I158: 731000 | J158: 717000 | K158: -0.01915184679 | L158: 12.77625 | M158: 12.8825 | N158: 0.008316211721 | O158: -0.03641477516 | P158: 0.9261613692 | Q158: -0.0114822547 | R158: -0.02243313201 | S158: =VLOOKUP(A158,'MACD SPYG'!$A$2:$G$1452,7,FALSE) -> -0.1185678165 | T158: 1 | U158: 0 | V158: 0 | W158: 0 | X158: 0 | Y158: 0 | Z158: 0 | AA158: 0 | AB158: 0 | AC158: 0 | AD158: 0 | AE158: 0 | AF158: 0 | AG158: 0 | AH158: 0 | AI158: =IF(SUM($AH158:AH158)>0,0,1)*V158 -> 0 | AJ158: =IF(SUM($AH158:AI158)>0,0,1)*W158 -> 0 | AK158: =IF(SUM($AH158:AJ158)>0,0,1)*X158 -> 0 | AL158: =IF(SUM($AH158:AK158)>0,0,1)*Y158 -> 0 | AM158: =IF(SUM($AH158:AL158)>0,0,1)*Z158 -> 0 | AN158: =IF(SUM($AH158:AM158)>0,0,1)*AA158 -> 0 | AO158: =IF(SUM($AH158:AN158)>0,0,1)*AB158 -> 0 | AP158: =IF(SUM($AH158:AO158)>0,0,1)*AC158 -> 0 | AQ158: =IF(SUM($AH158:AP158)>0,0,1)*AD158 -> 0 | AR158: =IF(SUM($AH158:AQ158)>0,0,1)*AE158 -> 0 | AS158: =IF(SUM($AH158:AR158)>0,0,1)*AF158 -> 0 | AT158: =IF(SUM($AH158:AS158)>0,0,1)*AG158 -> 0 | AU158: 0 | AV158: 0 | AW158: 0 | AX158: 0 | AY158: 1 | AZ158: 0 | BA158: 0 | BB158: 0 | BC158: 1 | BD158: TQQQ | BE158: 0.008316211721 | BF158: -0.02602474526 | BG158: 1 | BH158: 1 | BI158: 199595 | BJ158: =IF(BD157="CASH",1,(1-$BN$4)*IF(BD157="XIV",F158,IF(BD157="UVXY",I158,L158))) -> 11.32379622 | BK158: 10.34656309 | BL158: 2551492.217 | BM158: 2551482.267 | BN158: =IF(BD158="CASH",1,(1+$BN$4)*IF(BD158="XIV",F158,IF(BD158="UVXY",I158,L158))) -> 12.78324568 | BO158: 12.8825 | BP158: 2571292.934 | BQ158: 152 | BR158: 2.571292934
A159: 2012-05-09 | B159: 20.08 | C159: 21.53 | D159: 20.5 | E159: 21.85 | F159: 10.89 | G159: 11.01 | H159: 0.01101928375 | I159: 786500 | J159: 772500 | K159: -0.01780038144 | L159: 12.44375 | M159: 12.81125 | N159: 0.02953289804 | O159: -0.03861709901 | P159: 0.9154252763 | Q159: 0.00580781415 | R159: -0.04890829694 | S159: =VLOOKUP(A159,'MACD SPYG'!$A$2:$G$1452,7,FALSE) -> -0.1927745208 | T159: 1 | U159: 0 | V159: 0 | W159: 0 | X159: 0 | Y159: 0 | Z159: 0 | AA159: 0 | AB159: 0 | AC159: 0 | AD159: 0 | AE159: 0 | AF159: 0 | AG159: 0 | AH159: 0 | AI159: =IF(SUM($AH159:AH159)>0,0,1)*V159 -> 0 | AJ159: =IF(SUM($AH159:AI159)>0,0,1)*W159 -> 0 | AK159: =IF(SUM($AH159:AJ159)>0,0,1)*X159 -> 0 | AL159: =IF(SUM($AH159:AK159)>0,0,1)*Y159 -> 0 | AM159: =IF(SUM($AH159:AL159)>0,0,1)*Z159 -> 0 | AN159: =IF(SUM($AH159:AM159)>0,0,1)*AA159 -> 0 | AO159: =IF(SUM($AH159:AN159)>0,0,1)*AB159 -> 0 | AP159: =IF(SUM($AH159:AO159)>0,0,1)*AC159 -> 0 | AQ159: =IF(SUM($AH159:AP159)>0,0,1)*AD159 -> 0 | AR159: =IF(SUM($AH159:AQ159)>0,0,1)*AE159 -> 0 | AS159: =IF(SUM($AH159:AR159)>0,0,1)*AF159 -> 0 | AT159: =IF(SUM($AH159:AS159)>0,0,1)*AG159 -> 0 | AU159: 0 | AV159: 0 | AW159: 0 | AX159: 0 | AY159: 1 | AZ159: 0 | BA159: 0 | BB159: 0 | BC159: 1 | BD159: TQQQ | BE159: 0.02953289804 | BF159: 0.03863679535 | BG159: 0 | BH159: 0 | BI159: 199595 | BJ159: =IF(BD158="CASH",1,(1-$BN$4)*IF(BD158="XIV",F159,IF(BD158="UVXY",I159,L159))) -> 12.43693639 | BK159: 10.34656309 | BL159: 2482360.664 | BM159: 2485080.591 | BN159: =IF(BD159="CASH",1,(1+$BN$4)*IF(BD159="XIV",F159,IF(BD159="UVXY",I159,L159))) -> 12.45056361 | BO159: 12.81125 | BP159: 2557071.79 | BQ159: 153 | BR159: 2.55707179
A160: 2012-05-10 | B160: 18.83 | C160: 20.87 | D160: 19.35 | E160: 20.85 | F160: 11.34 | G160: 11.38 | H160: 0.003527336861 | I160: 725500 | J160: 721000 | K160: -0.006202618884 | L160: 12.93875 | M160: 12.68 | N160: -0.01999806782 | O160: -0.03287693252 | P160: 0.9326521133 | Q160: 0.05406824147 | R160: 0.02997275204 | S160: =VLOOKUP(A160,'MACD SPYG'!$A$2:$G$1452,7,FALSE) -> -0.1911367886 | T160: 1 | U160: 0 | V160: 0 | W160: 0 | X160: 0 | Y160: 0 | Z160: 1 | AA160: 0 | AB160: 0 | AC160: 1 | AD160: 0 | AE160: 0 | AF160: 0 | AG160: 0 | AH160: 0 | AI160: =IF(SUM($AH160:AH160)>0,0,1)*V160 -> 0 | AJ160: =IF(SUM($AH160:AI160)>0,0,1)*W160 -> 0 | AK160: =IF(SUM($AH160:AJ160)>0,0,1)*X160 -> 0 | AL160: =IF(SUM($AH160:AK160)>0,0,1)*Y160 -> 0 | AM160: =IF(SUM($AH160:AL160)>0,0,1)*Z160 -> 1 | AN160: =IF(SUM($AH160:AM160)>0,0,1)*AA160 -> 0 | AO160: =IF(SUM($AH160:AN160)>0,0,1)*AB160 -> 0 | AP160: =IF(SUM($AH160:AO160)>0,0,1)*AC160 -> 0 | AQ160: =IF(SUM($AH160:AP160)>0,0,1)*AD160 -> 0 | AR160: =IF(SUM($AH160:AQ160)>0,0,1)*AE160 -> 0 | AS160: =IF(SUM($AH160:AR160)>0,0,1)*AF160 -> 0 | AT160: =IF(SUM($AH160:AS160)>0,0,1)*AG160 -> 0 | AU160: 1 | AV160: 1 | AW160: 0 | AX160: 1 | AY160: 0 | AZ160: 1 | BA160: 0 | BB160: 1 | BC160: 0 | BD160: XIV | BE160: 0.003527336861 | BF160: -0.02488179012 | BG160: 1 | BH160: 1 | BI160: 227485 | BJ160: =IF(BD159="CASH",1,(1-$BN$4)*IF(BD159="XIV",F160,IF(BD159="UVXY",I160,L160))) -> 12.93166535 | BK160: 3.72958268 | BL160: 2581106.091 | BM160: 2581096.141 | BN160: =IF(BD160="CASH",1,(1+$BN$4)*IF(BD160="XIV",F160,IF(BD160="UVXY",I160,L160))) -> 11.34620925 | BO160: 11.38 | BP160: 2588783.03 | BQ160: 154 | BR160: 2.58878303
A161: 2012-05-11 | B161: 19.89 | C161: 21.55 | D161: 20.1 | E161: 21.6 | F161: 11.07 | G161: 11.18 | H161: 0.009936766034 | I161: 758000 | J161: 741550 | K161: -0.02170184697 | L161: 12.5275 | M161: 12.6675 | N161: 0.01117541409 | O161: -0.04039410332 | P161: 0.9022520364 | Q161: -0.06225099602 | R161: -0.02724077329 | S161: =VLOOKUP(A161,'MACD SPYG'!$A$2:$G$1452,7,FALSE) -> -0.2150018872 | T161: 1 | U161: 0 | V161: 0 | W161: 0 | X161: 0 | Y161: 0 | Z161: 0 | AA161: 0 | AB161: 0 | AC161: 0 | AD161: 0 | AE161: 0 | AF161: 0 | AG161: 0 | AH161: 0 | AI161: =IF(SUM($AH161:AH161)>0,0,1)*V161 -> 0 | AJ161: =IF(SUM($AH161:AI161)>0,0,1)*W161 -> 0 | AK161: =IF(SUM($AH161:AJ161)>0,0,1)*X161 -> 0 | AL161: =IF(SUM($AH161:AK161)>0,0,1)*Y161 -> 0 | AM161: =IF(SUM($AH161:AL161)>0,0,1)*Z161 -> 0 | AN161: =IF(SUM($AH161:AM161)>0,0,1)*AA161 -> 0 | AO161: =IF(SUM($AH161:AN161)>0,0,1)*AB161 -> 0 | AP161: =IF(SUM($AH161:AO161)>0,0,1)*AC161 -> 0 | AQ161: =IF(SUM($AH161:AP161)>0,0,1)*AD161 -> 0 | AR161: =IF(SUM($AH161:AQ161)>0,0,1)*AE161 -> 0 | AS161: =IF(SUM($AH161:AR161)>0,0,1)*AF161 -> 0 | AT161: =IF(SUM($AH161:AS161)>0,0,1)*AG161 -> 0 | AU161: 0 | AV161: 0 | AW161: 0 | AX161: 0 | AY161: 1 | AZ161: 0 | BA161: 0 | BB161: 0 | BC161: 1 | BD161: TQQQ | BE161: 0.01117541409 | BF161: -0.01425499994 | BG161: 1 | BH161: 1 | BI161: 200797 | BJ161: =IF(BD160="CASH",1,(1-$BN$4)*IF(BD160="XIV",F161,IF(BD160="UVXY",I161,L161))) -> 11.06393859 | BK161: 12.07004955 | BL161: 2516883.799 | BM161: 2516873.849 | BN161: =IF(BD161="CASH",1,(1+$BN$4)*IF(BD161="XIV",F161,IF(BD161="UVXY",I161,L161))) -> 12.53435947 | BO161: 12.6675 | BP161: 2543608.068 | BQ161: 155 | BR161: 2.543608068
A162: 2012-05-14 | B162: 21.87 | C162: 22.97 | D162: 21.95 | E162: 23 | F162: 10.7 | G162: 10.54 | H162: -0.01495327103 | I162: 806000 | J162: 828000 | K162: 0.02729528536 | L162: 12.3625 | M162: 12.3175 | N162: -0.003640040445 | O162: -0.02814676617 | P162: 0.9229698376 | Q162: 0.05629314923 | R162: -0.04293381038 | S162: =VLOOKUP(A162,'MACD SPYG'!$A$2:$G$1452,7,FALSE) -> -0.2390706356 | T162: 1 | U162: 0 | V162: 0 | W162: 0 | X162: 0 | Y162: 0 | Z162: 0 | AA162: 0 | AB162: 0 | AC162: 1 | AD162: 0 | AE162: 0 | AF162: 0 | AG162: 0 | AH162: 0 | AI162: =IF(SUM($AH162:AH162)>0,0,1)*V162 -> 0 | AJ162: =IF(SUM($AH162:AI162)>0,0,1)*W162 -> 0 | AK162: =IF(SUM($AH162:AJ162)>0,0,1)*X162 -> 0 | AL162: =IF(SUM($AH162:AK162)>0,0,1)*Y162 -> 0 | AM162: =IF(SUM($AH162:AL162)>0,0,1)*Z162 -> 0 | AN162: =IF(SUM($AH162:AM162)>0,0,1)*AA162 -> 0 | AO162: =IF(SUM($AH162:AN162)>0,0,1)*AB162 -> 0 | AP162: =IF(SUM($AH162:AO162)>0,0,1)*AC162 -> 1 | AQ162: =IF(SUM($AH162:AP162)>0,0,1)*AD162 -> 0 | AR162: =IF(SUM($AH162:AQ162)>0,0,1)*AE162 -> 0 | AS162: =IF(SUM($AH162:AR162)>0,0,1)*AF162 -> 0 | AT162: =IF(SUM($AH162:AS162)>0,0,1)*AG162 -> 0 | AU162: 1 | AV162: 0 | AW162: 1 | AX162: 1 | AY162: 0 | AZ162: 0 | BA162: 1 | BB162: 1 | BC162: 0 | BD162: UVXY | BE162: 0.02729528536 | BF162: 0.029746199 | BG162: 1 | BH162: 1 | BI162: 3 | BJ162: =IF(BD161="CASH",1,(1-$BN$4)*IF(BD161="XIV",F162,IF(BD161="UVXY",I162,L162))) -> 12.35573087 | BK162: 61671.82888 | BL162: 2481005.762 | BM162: 2480995.812 | BN162: =IF(BD162="CASH",1,(1+$BN$4)*IF(BD162="XIV",F162,IF(BD162="UVXY",I162,L162))) -> 806441.3278 | BO162: 828000 | BP162: 2545671.829 | BQ162: 156 | BR162: 2.545671829
A163: 2012-05-15 | B163: 21.97 | C163: 23.92 | D163: 21.85 | E163: 23.9 | F163: 10.47 | G163: 9.99 | H163: -0.04584527221 | I163: 831500 | J163: 909500 | K163: 0.09380637402 | L163: 12.4575 | M163: 12.21 | N163: -0.01986754967 | O163: -0.01624690502 | P163: 0.9521114497 | Q163: 0.09954751131 | R163: -0.006641366224 | S163: =VLOOKUP(A163,'MACD SPYG'!$A$2:$G$1452,7,FALSE) -> -0.2499731704 | T163: 1 | U163: 0 | V163: 0 | W163: 0 | X163: 0 | Y163: 0 | Z163: 1 | AA163: 0 | AB163: 0 | AC163: 1 | AD163: 0 | AE163: 0 | AF163: 0 | AG163: 0 | AH163: 0 | AI163: =IF(SUM($AH163:AH163)>0,0,1)*V163 -> 0 | AJ163: =IF(SUM($AH163:AI163)>0,0,1)*W163 -> 0 | AK163: =IF(SUM($AH163:AJ163)>0,0,1)*X163 -> 0 | AL163: =IF(SUM($AH163:AK163)>0,0,1)*Y163 -> 0 | AM163: =IF(SUM($AH163:AL163)>0,0,1)*Z163 -> 1 | AN163: =IF(SUM($AH163:AM163)>0,0,1)*AA163 -> 0 | AO163: =IF(SUM($AH163:AN163)>0,0,1)*AB163 -> 0 | AP163: =IF(SUM($AH163:AO163)>0,0,1)*AC163 -> 0 | AQ163: =IF(SUM($AH163:AP163)>0,0,1)*AD163 -> 0 | AR163: =IF(SUM($AH163:AQ163)>0,0,1)*AE163 -> 0 | AS163: =IF(SUM($AH163:AR163)>0,0,1)*AF163 -> 0 | AT163: =IF(SUM($AH163:AS163)>0,0,1)*AG163 -> 0 | AU163: 1 | AV163: 1 | AW163: 0 | AX163: 1 | AY163: 0 | AZ163: 1 | BA163: 0 | BB163: 1 | BC163: 0 | BD163: XIV | BE163: -0.04584527221 | BF163: -0.03056344662 | BG163: 1 | BH163: 1 | BI163: 243877 | BJ163: =IF(BD162="CASH",1,(1-$BN$4)*IF(BD162="XIV",F163,IF(BD162="UVXY",I163,L163))) -> 831044.7096 | BK163: 5.699614686 | BL163: 2554805.958 | BM163: 2554796.008 | BN163: =IF(BD163="CASH",1,(1+$BN$4)*IF(BD163="XIV",F163,IF(BD163="UVXY",I163,L163))) -> 10.47573288 | BO163: 9.99 | BP163: 2436336.93 | BQ163: 157 | BR163: 2.43633693
A164: 2012-05-16 | B164: 22.27 | C164: 24.92 | D164: 21.46 | E164: 24.4 | F164: 10.15 | G164: 9.65 | H164: -0.04926108374 | I164: 880500 | J164: 971000 | K164: 0.1027825099 | L164: 12.34 | M164: 11.945 | N164: -0.03200972447 | O164: -0.02188782398 | P164: 0.9184782609 | Q164: 0.004572473708 | R164: 0.01601601602 | S164: =VLOOKUP(A164,'MACD SPYG'!$A$2:$G$1452,7,FALSE) -> -0.2451004707 | T164: 1 | U164: 0 | V164: 0 | W164: 0 | X164: 0 | Y164: 0 | Z164: 1 | AA164: 0 | AB164: 0 | AC164: 0 | AD164: 0 | AE164: 0 | AF164: 0 | AG164: 0 | AH164: 0 | AI164: =IF(SUM($AH164:AH164)>0,0,1)*V164 -> 0 | AJ164: =IF(SUM($AH164:AI164)>0,0,1)*W164 -> 0 | AK164: =IF(SUM($AH164:AJ164)>0,0,1)*X164 -> 0 | AL164: =IF(SUM($AH164:AK164)>0,0,1)*Y164 -> 0 | AM164: =IF(SUM($AH164:AL164)>0,0,1)*Z164 -> 1 | AN164: =IF(SUM($AH164:AM164)>0,0,1)*AA164 -> 0 | AO164: =IF(SUM($AH164:AN164)>0,0,1)*AB164 -> 0 | AP164: =IF(SUM($AH164:AO164)>0,0,1)*AC164 -> 0 | AQ164: =IF(SUM($AH164:AP164)>0,0,1)*AD164 -> 0 | AR164: =IF(SUM($AH164:AQ164)>0,0,1)*AE164 -> 0 | AS164: =IF(SUM($AH164:AR164)>0,0,1)*AF164 -> 0 | AT164: =IF(SUM($AH164:AS164)>0,0,1)*AG164 -> 0 | AU164: 1 | AV164: 1 | AW164: 0 | AX164: 1 | AY164: 0 | AZ164: 1 | BA164: 0 | BB164: 1 | BC164: 0 | BD164: XIV | BE164: -0.04926108374 | BF164: -0.04137921512 | BG164: 0 | BH164: 0 | BI164: 243877 | BJ164: =IF(BD163="CASH",1,(1-$BN$4)*IF(BD163="XIV",F164,IF(BD163="UVXY",I164,L164))) -> 10.14444234 | BK164: 5.699614686 | BL164: 2474001.863 | BM164: 2476712.636 | BN164: =IF(BD164="CASH",1,(1+$BN$4)*IF(BD164="XIV",F164,IF(BD164="UVXY",I164,L164))) -> 10.15555766 | BO164: 9.65 | BP164: 2353418.75 | BQ164: 158 | BR164: 2.35341875
A165: 2012-05-17 | B165: 24.49 | C165: 26.41 | D165: 26.2 | E165: 26.7 | F165: 9.73 | G165: 9.19 | H165: -0.05549845838 | I165: 959500 | J165: 1066000 | K165: 0.1109953101 | L165: 11.965 | M165: 11.21 | N165: -0.06310071041 | O165: -0.009726292149 | P165: 0.8936597111 | Q165: 0.01365498407 | R165: 0.00829015544 | S165: =VLOOKUP(A165,'MACD SPYG'!$A$2:$G$1452,7,FALSE) -> -0.247905843 | T165: 1 | U165: 0 | V165: 0 | W165: 0 | X165: 0 | Y165: 0 | Z165: 1 | AA165: 0 | AB165: 0 | AC165: 0 | AD165: 0 | AE165: 0 | AF165: 0 | AG165: 0 | AH165: 0 | AI165: =IF(SUM($AH165:AH165)>0,0,1)*V165 -> 0 | AJ165: =IF(SUM($AH165:AI165)>0,0,1)*W165 -> 0 | AK165: =IF(SUM($AH165:AJ165)>0,0,1)*X165 -> 0 | AL165: =IF(SUM($AH165:AK165)>0,0,1)*Y165 -> 0 | AM165: =IF(SUM($AH165:AL165)>0,0,1)*Z165 -> 1 | AN165: =IF(SUM($AH165:AM165)>0,0,1)*AA165 -> 0 | AO165: =IF(SUM($AH165:AN165)>0,0,1)*AB165 -> 0 | AP165: =IF(SUM($AH165:AO165)>0,0,1)*AC165 -> 0 | AQ165: =IF(SUM($AH165:AP165)>0,0,1)*AD165 -> 0 | AR165: =IF(SUM($AH165:AQ165)>0,0,1)*AE165 -> 0 | AS165: =IF(SUM($AH165:AR165)>0,0,1)*AF165 -> 0 | AT165: =IF(SUM($AH165:AS165)>0,0,1)*AG165 -> 0 | AU165: 1 | AV165: 1 | AW165: 0 | AX165: 1 | AY165: 0 | AZ165: 1 | BA165: 0 | BB165: 1 | BC165: 0 | BD165: XIV | BE165: -0.05549845838 | BF165: -0.0513873381 | BG165: 0 | BH165: 0 | BI165: 243877 | BJ165: =IF(BD164="CASH",1,(1-$BN$4)*IF(BD164="XIV",F165,IF(BD164="UVXY",I165,L165))) -> 9.724672308 | BK165: 5.699614686 | BL165: 2371629.608 | BM165: 2374228.211 | BN165: =IF(BD165="CASH",1,(1+$BN$4)*IF(BD165="XIV",F165,IF(BD165="UVXY",I165,L165))) -> 9.735327692 | BO165: 9.19 | BP165: 2241235.33 | BQ165: 159 | BR165: 2.24123533
A166: 2012-05-18 | B166: 25.1 | C166: 27.66 | D166: 28.2 | E166: 28.15 | F166: 9.23 | G166: 8.57 | H166: -0.07150595883 | I166: 1046500 | J166: 1204000 | K166: 0.1505016722 | L166: 11.315 | M166: 10.76 | N166: -0.04904993372 | O166: -0.05130500043 | P166: 0.9273002651 | Q166: 0.0996856758 | R166: 0.004352557127 | S166: =VLOOKUP(A166,'MACD SPYG'!$A$2:$G$1452,7,FALSE) -> -0.2873584732 | T166: 1 | U166: 0 | V166: 1 | W166: 0 | X166: 0 | Y166: 0 | Z166: 1 | AA166: 0 | AB166: 0 | AC166: 1 | AD166: 0 | AE166: 0 | AF166: 1 | AG166: 0 | AH166: 0 | AI166: =IF(SUM($AH166:AH166)>0,0,1)*V166 -> 1 | AJ166: =IF(SUM($AH166:AI166)>0,0,1)*W166 -> 0 | AK166: =IF(SUM($AH166:AJ166)>0,0,1)*X166 -> 0 | AL166: =IF(SUM($AH166:AK166)>0,0,1)*Y166 -> 0 | AM166: =IF(SUM($AH166:AL166)>0,0,1)*Z166 -> 0 | AN166: =IF(SUM($AH166:AM166)>0,0,1)*AA166 -> 0 | AO166: =IF(SUM($AH166:AN166)>0,0,1)*AB166 -> 0 | AP166: =IF(SUM($AH166:AO166)>0,0,1)*AC166 -> 0 | AQ166: =IF(SUM($AH166:AP166)>0,0,1)*AD166 -> 0 | AR166: =IF(SUM($AH166:AQ166)>0,0,1)*AE166 -> 0 | AS166: =IF(SUM($AH166:AR166)>0,0,1)*AF166 -> 0 | AT166: =IF(SUM($AH166:AS166)>0,0,1)*AG166 -> 0 | AU166: 1 | AV166: 1 | AW166: 0 | AX166: 1 | AY166: 0 | AZ166: 1 | BA166: 0 | BB166: 1 | BC166: 0 | BD166: XIV | BE166: -0.07150595883 | BF166: -0.06933893612 | BG166: 0 | BH166: 0 | BI166: 243877 | BJ166: =IF(BD165="CASH",1,(1-$BN$4)*IF(BD165="XIV",F166,IF(BD165="UVXY",I166,L166))) -> 9.224946084 | BK166: 5.699614686 | BL166: 2249757.876 | BM166: 2252222.943 | BN166: =IF(BD166="CASH",1,(1+$BN$4)*IF(BD166="XIV",F166,IF(BD166="UVXY",I166,L166))) -> 9.235053916 | BO166: 8.57 | BP166: 2090031.59 | BQ166: 160 | BR166: 2.09003159
A167: 2012-05-21 | B167: 22.01 | C167: 24.71 | D167: 24.25 | E167: 25.85 | F167: 8.59 | G167: 9.48 | H167: 0.1036088475 | I167: 1186000 | J167: 928000 | K167: -0.2175379427 | L167: 10.8225 | M167: 11.665 | N167: 0.07784707785 | O167: -0.07641749493 | P167: 0.9074475777 | Q167: 0.02490812577 | R167: 0.002333722287 | S167: =VLOOKUP(A167,'MACD SPYG'!$A$2:$G$1452,7,FALSE) -> -0.3272744264 | T167: 1 | U167: 0 | V167: 1 | W167: 0 | X167: 0 | Y167: 0 | Z167: 1 | AA167: 0 | AB167: 0 | AC167: 0 | AD167: 0 | AE167: 0 | AF167: 1 | AG167: 0 | AH167: 0 | AI167: =IF(SUM($AH167:AH167)>0,0,1)*V167 -> 1 | AJ167: =IF(SUM($AH167:AI167)>0,0,1)*W167 -> 0 | AK167: =IF(SUM($AH167:AJ167)>0,0,1)*X167 -> 0 | AL167: =IF(SUM($AH167:AK167)>0,0,1)*Y167 -> 0 | AM167: =IF(SUM($AH167:AL167)>0,0,1)*Z167 -> 0 | AN167: =IF(SUM($AH167:AM167)>0,0,1)*AA167 -> 0 | AO167: =IF(SUM($AH167:AN167)>0,0,1)*AB167 -> 0 | AP167: =IF(SUM($AH167:AO167)>0,0,1)*AC167 -> 0 | AQ167: =IF(SUM($AH167:AP167)>0,0,1)*AD167 -> 0 | AR167: =IF(SUM($AH167:AQ167)>0,0,1)*AE167 -> 0 | AS167: =IF(SUM($AH167:AR167)>0,0,1)*AF167 -> 0 | AT167: =IF(SUM($AH167:AS167)>0,0,1)*AG167 -> 0 | AU167: 1 | AV167: 1 | AW167: 0 | AX167: 1 | AY167: 0 | AZ167: 1 | BA167: 0 | BB167: 1 | BC167: 0 | BD167: XIV | BE167: 0.1036088475 | BF167: 0.1164141188 | BG167: 0 | BH167: 0 | BI167: 243877 | BJ167: =IF(BD166="CASH",1,(1-$BN$4)*IF(BD166="XIV",F167,IF(BD166="UVXY",I167,L167))) -> 8.585296518 | BK167: 5.699614686 | BL167: 2093762.059 | BM167: 2096056.201 | BN167: =IF(BD167="CASH",1,(1+$BN$4)*IF(BD167="XIV",F167,IF(BD167="UVXY",I167,L167))) -> 8.594703482 | BO167: 9.48 | BP167: 2311959.66 | BQ167: 161 | BR167: 2.31195966
A168: 2012-05-22 | B168: 22.48 | C168: 25.23 | D168: 24.95 | E168: 26.5 | F168: 9.59 | G168: 9.15 | H168: -0.04588112617 | I168: 902000 | J168: 993000 | K168: 0.100886918 | L168: 11.7525 | M168: 11.6225 | N168: -0.01106147628 | O168: -0.08322845919 | P168: 0.890732497 | Q168: -0.1231075697 | R168: 0.01160337553 | S168: =VLOOKUP(A168,'MACD SPYG'!$A$2:$G$1452,7,FALSE) -> -0.2561523681 | T168: 1 | U168: 0 | V168: 1 | W168: 0 | X168: 0 | Y168: 0 | Z168: 1 | AA168: 0 | AB168: 0 | AC168: 0 | AD168: 0 | AE168: 0 | AF168: 1 | AG168: 0 | AH168: 0 | AI168: =IF(SUM($AH168:AH168)>0,0,1)*V168 -> 1 | AJ168: =IF(SUM($AH168:AI168)>0,0,1)*W168 -> 0 | AK168: =IF(SUM($AH168:AJ168)>0,0,1)*X168 -> 0 | AL168: =IF(SUM($AH168:AK168)>0,0,1)*Y168 -> 0 | AM168: =IF(SUM($AH168:AL168)>0,0,1)*Z168 -> 0 | AN168: =IF(SUM($AH168:AM168)>0,0,1)*AA168 -> 0 | AO168: =IF(SUM($AH168:AN168)>0,0,1)*AB168 -> 0 | AP168: =IF(SUM($AH168:AO168)>0,0,1)*AC168 -> 0 | AQ168: =IF(SUM($AH168:AP168)>0,0,1)*AD168 -> 0 | AR168: =IF(SUM($AH168:AQ168)>0,0,1)*AE168 -> 0 | AS168: =IF(SUM($AH168:AR168)>0,0,1)*AF168 -> 0 | AT168: =IF(SUM($AH168:AS168)>0,0,1)*AG168 -> 0 | AU168: 1 | AV168: 1 | AW168: 0 | AX168: 1 | AY168: 0 | AZ168: 1 | BA168: 0 | BB168: 1 | BC168: 0 | BD168: XIV | BE168: -0.04588112617 | BF168: -0.07403527327 | BG168: 0 | BH168: 0 | BI168: 243877 | BJ168: =IF(BD167="CASH",1,(1-$BN$4)*IF(BD167="XIV",F168,IF(BD167="UVXY",I168,L168))) -> 9.584748965 | BK168: 5.699614686 | BL168: 2337505.523 | BM168: 2340066.736 | BN168: =IF(BD168="CASH",1,(1+$BN$4)*IF(BD168="XIV",F168,IF(BD168="UVXY",I168,L168))) -> 9.595251035 | BO168: 9.15 | BP168: 2231480.25 | BQ168: 162 | BR168: 2.23148025
A169: 2012-05-23 | B169: 22.33 | C169: 25.11 | D169: 24.8 | E169: 26.35 | F169: 8.88 | G169: 9.3 | H169: 0.0472972973 | I169: 1048000 | J169: 960500 | K169: -0.08349236641 | L169: 11.335 | M169: 11.6875 | N169: 0.03109836789 | O169: -0.08684576701 | P169: 0.8910027745 | Q169: 0.02135393003 | R169: -0.02950819672 | S169: =VLOOKUP(A169,'MACD SPYG'!$A$2:$G$1452,7,FALSE) -> -0.2226011401 | T169: 1 | U169: 0 | V169: 1 | W169: 0 | X169: 0 | Y169: 0 | Z169: 1 | AA169: 0 | AB169: 0 | AC169: 0 | AD169: 0 | AE169: 0 | AF169: 1 | AG169: 0 | AH169: 0 | AI169: =IF(SUM($AH169:AH169)>0,0,1)*V169 -> 1 | AJ169: =IF(SUM($AH169:AI169)>0,0,1)*W169 -> 0 | AK169: =IF(SUM($AH169:AJ169)>0,0,1)*X169 -> 0 | AL169: =IF(SUM($AH169:AK169)>0,0,1)*Y169 -> 0 | AM169: =IF(SUM($AH169:AL169)>0,0,1)*Z169 -> 0 | AN169: =IF(SUM($AH169:AM169)>0,0,1)*AA169 -> 0 | AO169: =IF(SUM($AH169:AN169)>0,0,1)*AB169 -> 0 | AP169: =IF(SUM($AH169:AO169)>0,0,1)*AC169 -> 0 | AQ169: =IF(SUM($AH169:AP169)>0,0,1)*AD169 -> 0 | AR169: =IF(SUM($AH169:AQ169)>0,0,1)*AE169 -> 0 | AS169: =IF(SUM($AH169:AR169)>0,0,1)*AF169 -> 0 | AT169: =IF(SUM($AH169:AS169)>0,0,1)*AG169 -> 0 | AU169: 1 | AV169: 1 | AW169: 0 | AX169: 1 | AY169: 0 | AZ169: 1 | BA169: 0 | BB169: 1 | BC169: 0 | BD169: XIV | BE169: 0.0472972973 | BF169: 0.05292778871 | BG169: 0 | BH169: 0 | BI169: 243877 | BJ169: =IF(BD168="CASH",1,(1-$BN$4)*IF(BD168="XIV",F169,IF(BD168="UVXY",I169,L169))) -> 8.875137728 | BK169: 5.699614686 | BL169: 2164447.663 | BM169: 2166819.256 | BN169: =IF(BD169="CASH",1,(1+$BN$4)*IF(BD169="XIV",F169,IF(BD169="UVXY",I169,L169))) -> 8.884862272 | BO169: 9.3 | BP169: 2268061.8 | BQ169: 163 | BR169: 2.2680618
A170: 2012-05-24 | B170: 21.54 | C170: 24.78 | D170: 24.25 | E170: 26 | F170: 9.35 | G170: 9.22 | H170: -0.01390374332 | I170: 947000 | J170: 975000 | K170: 0.02956705385 | L170: 11.75 | M170: 11.4775 | N170: -0.02319148936 | O170: -0.08736480076 | P170: 0.8892871366 | Q170: -0.006672597865 | R170: 0.005376344086 | S170: =VLOOKUP(A170,'MACD SPYG'!$A$2:$G$1452,7,FALSE) -> -0.1538613708 | T170: 1 | U170: 0 | V170: 1 | W170: 0 | X170: 0 | Y170: 0 | Z170: 1 | AA170: 0 | AB170: 0 | AC170: 0 | AD170: 0 | AE170: 0 | AF170: 1 | AG170: 0 | AH170: 0 | AI170: =IF(SUM($AH170:AH170)>0,0,1)*V170 -> 1 | AJ170: =IF(SUM($AH170:AI170)>0,0,1)*W170 -> 0 | AK170: =IF(SUM($AH170:AJ170)>0,0,1)*X170 -> 0 | AL170: =IF(SUM($AH170:AK170)>0,0,1)*Y170 -> 0 | AM170: =IF(SUM($AH170:AL170)>0,0,1)*Z170 -> 0 | AN170: =IF(SUM($AH170:AM170)>0,0,1)*AA170 -> 0 | AO170: =IF(SUM($AH170:AN170)>0,0,1)*AB170 -> 0 | AP170: =IF(SUM($AH170:AO170)>0,0,1)*AC170 -> 0 | AQ170: =IF(SUM($AH170:AP170)>0,0,1)*AD170 -> 0 | AR170: =IF(SUM($AH170:AQ170)>0,0,1)*AE170 -> 0 | AS170: =IF(SUM($AH170:AR170)>0,0,1)*AF170 -> 0 | AT170: =IF(SUM($AH170:AS170)>0,0,1)*AG170 -> 0 | AU170: 1 | AV170: 1 | AW170: 0 | AX170: 1 | AY170: 0 | AZ170: 1 | BA170: 0 | BB170: 1 | BC170: 0 | BD170: XIV | BE170: -0.01390374332 | BF170: -0.01390370858 | BG170: 0 | BH170: 0 | BI170: 243877 | BJ170: =IF(BD169="CASH",1,(1-$BN$4)*IF(BD169="XIV",F170,IF(BD169="UVXY",I170,L170))) -> 9.344880378 | BK170: 5.699614686 | BL170: 2279007.092 | BM170: 2281504.208 | BN170: =IF(BD170="CASH",1,(1+$BN$4)*IF(BD170="XIV",F170,IF(BD170="UVXY",I170,L170))) -> 9.355119622 | BO170: 9.22 | BP170: 2248551.64 | BQ170: 164 | BR170: 2.24855164
A171: 2012-05-25 | B171: 21.76 | C171: 24.93 | D171: 24.55 | E171: 26.1 | F171: 9.22 | G171: 9.3 | H171: 0.008676789588 | I171: 972500 | J171: 955000 | K171: -0.01799485861 | L171: 11.4975 | M171: 11.4125 | N171: -0.007392911503 | O171: -0.09841911182 | P171: 0.8692493947 | Q171: -0.03537841469 | R171: 0 | S171: =VLOOKUP(A171,'MACD SPYG'!$A$2:$G$1452,7,FALSE) -> -0.1020567682 | T171: 1 | U171: 0 | V171: 1 | W171: 0 | X171: 0 | Y171: 0 | Z171: 1 | AA171: 0 | AB171: 0 | AC171: 0 | AD171: 0 | AE171: 0 | AF171: 1 | AG171: 0 | AH171: 0 | AI171: =IF(SUM($AH171:AH171)>0,0,1)*V171 -> 1 | AJ171: =IF(SUM($AH171:AI171)>0,0,1)*W171 -> 0 | AK171: =IF(SUM($AH171:AJ171)>0,0,1)*X171 -> 0 | AL171: =IF(SUM($AH171:AK171)>0,0,1)*Y171 -> 0 | AM171: =IF(SUM($AH171:AL171)>0,0,1)*Z171 -> 0 | AN171: =IF(SUM($AH171:AM171)>0,0,1)*AA171 -> 0 | AO171: =IF(SUM($AH171:AN171)>0,0,1)*AB171 -> 0 | AP171: =IF(SUM($AH171:AO171)>0,0,1)*AC171 -> 0 | AQ171: =IF(SUM($AH171:AP171)>0,0,1)*AD171 -> 0 | AR171: =IF(SUM($AH171:AQ171)>0,0,1)*AE171 -> 0 | AS171: =IF(SUM($AH171:AR171)>0,0,1)*AF171 -> 0 | AT171: =IF(SUM($AH171:AS171)>0,0,1)*AG171 -> 0 | AU171: 1 | AV171: 1 | AW171: 0 | AX171: 1 | AY171: 0 | AZ171: 1 | BA171: 0 | BB171: 1 | BC171: 0 | BD171: XIV | BE171: 0.008676789588 | BF171: 0.04121464613 | BG171: 0 | BH171: 0 | BI171: 243877 | BJ171: =IF(BD170="CASH",1,(1-$BN$4)*IF(BD170="XIV",F171,IF(BD170="UVXY",I171,L171))) -> 9.21495156 | BK171: 5.699614686 | BL171: 2247320.441 | BM171: 2249782.838 | BN171: =IF(BD171="CASH",1,(1+$BN$4)*IF(BD171="XIV",F171,IF(BD171="UVXY",I171,L171))) -> 9.22504844 | BO171: 9.3 | BP171: 2268061.8 | BQ171: 165 | BR171: 2.2680618
A172: 2012-05-29 | B172: 21.03 | C172: 23.89 | D172: 23 | E172: 24.8 | F172: 9.6 | G172: 9.77 | H172: 0.01770833333 | I172: 899000 | J172: 862500 | K172: -0.04060066741 | L172: 11.7375 | M172: 11.8375 | N172: 0.00851970181 | O172: -0.09736802678 | P172: 0.8728439631 | Q172: 0.01021355617 | R172: 0.03225806452 | S172: =VLOOKUP(A172,'MACD SPYG'!$A$2:$G$1452,7,FALSE) -> -0.03335582826 | T172: 1 | U172: 0 | V172: 1 | W172: 0 | X172: 0 | Y172: 0 | Z172: 1 | AA172: 0 | AB172: 0 | AC172: 0 | AD172: 0 | AE172: 0 | AF172: 1 | AG172: 0 | AH172: 0 | AI172: =IF(SUM($AH172:AH172)>0,0,1)*V172 -> 1 | AJ172: =IF(SUM($AH172:AI172)>0,0,1)*W172 -> 0 | AK172: =IF(SUM($AH172:AJ172)>0,0,1)*X172 -> 0 | AL172: =IF(SUM($AH172:AK172)>0,0,1)*Y172 -> 0 | AM172: =IF(SUM($AH172:AL172)>0,0,1)*Z172 -> 0 | AN172: =IF(SUM($AH172:AM172)>0,0,1)*AA172 -> 0 | AO172: =IF(SUM($AH172:AN172)>0,0,1)*AB172 -> 0 | AP172: =IF(SUM($AH172:AO172)>0,0,1)*AC172 -> 0 | AQ172: =IF(SUM($AH172:AP172)>0,0,1)*AD172 -> 0 | AR172: =IF(SUM($AH172:AQ172)>0,0,1)*AE172 -> 0 | AS172: =IF(SUM($AH172:AR172)>0,0,1)*AF172 -> 0 | AT172: =IF(SUM($AH172:AS172)>0,0,1)*AG172 -> 0 | AU172: 1 | AV172: 1 | AW172: 0 | AX172: 1 | AY172: 0 | AZ172: 1 | BA172: 0 | BB172: 1 | BC172: 0 | BD172: XIV | BE172: 0.01770833333 | BF172: -0.01249996959 | BG172: 0 | BH172: 0 | BI172: 243877 | BJ172: =IF(BD171="CASH",1,(1-$BN$4)*IF(BD171="XIV",F172,IF(BD171="UVXY",I172,L172))) -> 9.59474349 | BK172: 5.699614686 | BL172: 2339942.958 | BM172: 2342506.842 | BN172: =IF(BD172="CASH",1,(1+$BN$4)*IF(BD172="XIV",F172,IF(BD172="UVXY",I172,L172))) -> 9.60525651 | BO172: 9.77 | BP172: 2382683.99 | BQ172: 166 | BR172: 2.38268399
A173: 2012-05-30 | B173: 24.14 | C173: 26.19 | D173: 25.7 | E173: 26.9 | F173: 9.48 | G173: 9.05 | H173: -0.04535864979 | I173: 907000 | J173: 978500 | K173: 0.07883131202 | L173: 11.525 | M173: 11.55 | N173: 0.002169197397 | O173: -0.08173071529 | P173: 0.8802846379 | Q173: -0.03354779412 | R173: -0.02968270215 | S173: =VLOOKUP(A173,'MACD SPYG'!$A$2:$G$1452,7,FALSE) -> 0.0002906775118 | T173: 1 | U173: 0 | V173: 1 | W173: 0 | X173: 0 | Y173: 0 | Z173: 1 | AA173: 0 | AB173: 0 | AC173: 0 | AD173: 0 | AE173: 0 | AF173: 1 | AG173: 0 | AH173: 0 | AI173: =IF(SUM($AH173:AH173)>0,0,1)*V173 -> 1 | AJ173: =IF(SUM($AH173:AI173)>0,0,1)*W173 -> 0 | AK173: =IF(SUM($AH173:AJ173)>0,0,1)*X173 -> 0 | AL173: =IF(SUM($AH173:AK173)>0,0,1)*Y173 -> 0 | AM173: =IF(SUM($AH173:AL173)>0,0,1)*Z173 -> 0 | AN173: =IF(SUM($AH173:AM173)>0,0,1)*AA173 -> 0 | AO173: =IF(SUM($AH173:AN173)>0,0,1)*AB173 -> 0 | AP173: =IF(SUM($AH173:AO173)>0,0,1)*AC173 -> 0 | AQ173: =IF(SUM($AH173:AP173)>0,0,1)*AD173 -> 0 | AR173: =IF(SUM($AH173:AQ173)>0,0,1)*AE173 -> 0 | AS173: =IF(SUM($AH173:AR173)>0,0,1)*AF173 -> 0 | AT173: =IF(SUM($AH173:AS173)>0,0,1)*AG173 -> 0 | AU173: 1 | AV173: 1 | AW173: 0 | AX173: 1 | AY173: 0 | AZ173: 1 | BA173: 0 | BB173: 1 | BC173: 0 | BD173: XIV | BE173: -0.04535864979 | BF173: -0.05696188497 | BG173: 0 | BH173: 0 | BI173: 243877 | BJ173: =IF(BD172="CASH",1,(1-$BN$4)*IF(BD172="XIV",F173,IF(BD172="UVXY",I173,L173))) -> 9.474809196 | BK173: 5.699614686 | BL173: 2310693.742 | BM173: 2313225.577 | BN173: =IF(BD173="CASH",1,(1+$BN$4)*IF(BD173="XIV",F173,IF(BD173="UVXY",I173,L173))) -> 9.485190804 | BO173: 9.05 | BP173: 2207092.55 | BQ173: 167 | BR173: 2.20709255
A174: 2012-05-31 | B174: 24.06 | C174: 26.22 | D174: 26 | E174: 27.35 | F174: 8.94 | G174: 8.89 | H174: -0.005592841163 | I174: 990000 | J174: 1001000 | K174: 0.01111111111 | L174: 11.51 | M174: 11.385 | N174: -0.01086012163 | O174: -0.055873172 | P174: 0.9217258496 | Q174: 0.1478839753 | R174: -0.01215469613 | S174: =VLOOKUP(A174,'MACD SPYG'!$A$2:$G$1452,7,FALSE) -> 0.005095734368 | T174: 1 | U174: 0 | V174: 1 | W174: 0 | X174: 0 | Y174: 0 | Z174: 1 | AA174: 0 | AB174: 0 | AC174: 1 | AD174: 0 | AE174: 0 | AF174: 1 | AG174: 0 | AH174: 0 | AI174: =IF(SUM($AH174:AH174)>0,0,1)*V174 -> 1 | AJ174: =IF(SUM($AH174:AI174)>0,0,1)*W174 -> 0 | AK174: =IF(SUM($AH174:AJ174)>0,0,1)*X174 -> 0 | AL174: =IF(SUM($AH174:AK174)>0,0,1)*Y174 -> 0 | AM174: =IF(SUM($AH174:AL174)>0,0,1)*Z174 -> 0 | AN174: =IF(SUM($AH174:AM174)>0,0,1)*AA174 -> 0 | AO174: =IF(SUM($AH174:AN174)>0,0,1)*AB174 -> 0 | AP174: =IF(SUM($AH174:AO174)>0,0,1)*AC174 -> 0 | AQ174: =IF(SUM($AH174:AP174)>0,0,1)*AD174 -> 0 | AR174: =IF(SUM($AH174:AQ174)>0,0,1)*AE174 -> 0 | AS174: =IF(SUM($AH174:AR174)>0,0,1)*AF174 -> 0 | AT174: =IF(SUM($AH174:AS174)>0,0,1)*AG174 -> 0 | AU174: 1 | AV174: 1 | AW174: 0 | AX174: 1 | AY174: 0 | AZ174: 1 | BA174: 0 | BB174: 1 | BC174: 0 | BD174: XIV | BE174: -0.005592841163 | BF174: -0.07819559655 | BG174: 0 | BH174: 0 | BI174: 243877 | BJ174: =IF(BD173="CASH",1,(1-$BN$4)*IF(BD173="XIV",F174,IF(BD173="UVXY",I174,L174))) -> 8.935104875 | BK174: 5.699614686 | BL174: 2179072.271 | BM174: 2181459.888 | BN174: =IF(BD174="CASH",1,(1+$BN$4)*IF(BD174="XIV",F174,IF(BD174="UVXY",I174,L174))) -> 8.944895125 | BO174: 8.89 | BP174: 2168072.23 | BQ174: 168 | BR174: 2.16807223
A175: 2012-06-01 | B175: 26.66 | C175: 28.47 | D175: 27.75 | E175: 29.15 | F175: 8.25 | G175: 8.15 | H175: -0.01212121212 | I175: 1152500 | J175: 1173500 | K175: 0.01822125813 | L175: 10.795 | M175: 10.49 | N175: -0.02825382121 | O175: -0.06703881311 | P175: 0.9176201373 | Q175: -0.003314001657 | R175: -0.07199100112 | S175: =VLOOKUP(A175,'MACD SPYG'!$A$2:$G$1452,7,FALSE) -> -0.06077045777 | T175: 1 | U175: 0 | V175: 1 | W175: 0 | X175: 0 | Y175: 0 | Z175: 1 | AA175: 0 | AB175: 0 | AC175: 0 | AD175: 0 | AE175: 0 | AF175: 1 | AG175: 0 | AH175: 0 | AI175: =IF(SUM($AH175:AH175)>0,0,1)*V175 -> 1 | AJ175: =IF(SUM($AH175:AI175)>0,0,1)*W175 -> 0 | AK175: =IF(SUM($AH175:AJ175)>0,0,1)*X175 -> 0 | AL175: =IF(SUM($AH175:AK175)>0,0,1)*Y175 -> 0 | AM175: =IF(SUM($AH175:AL175)>0,0,1)*Z175 -> 0 | AN175: =IF(SUM($AH175:AM175)>0,0,1)*AA175 -> 0 | AO175: =IF(SUM($AH175:AN175)>0,0,1)*AB175 -> 0 | AP175: =IF(SUM($AH175:AO175)>0,0,1)*AC175 -> 0 | AQ175: =IF(SUM($AH175:AP175)>0,0,1)*AD175 -> 0 | AR175: =IF(SUM($AH175:AQ175)>0,0,1)*AE175 -> 0 | AS175: =IF(SUM($AH175:AR175)>0,0,1)*AF175 -> 0 | AT175: =IF(SUM($AH175:AS175)>0,0,1)*AG175 -> 0 | AU175: 1 | AV175: 1 | AW175: 0 | AX175: 1 | AY175: 0 | AZ175: 0 | BA175: 0 | BB175: 0 | BC175: 1 | BD175: TQQQ | BE175: -0.02825382121 | BF175: -0.0207628566 | BG175: 1 | BH175: 1 | BI175: 186176 | BJ175: =IF(BD174="CASH",1,(1-$BN$4)*IF(BD174="XIV",F175,IF(BD174="UVXY",I175,L175))) -> 8.245482687 | BK175: 8.95490605 | BL175: 2010889.281 | BM175: 2010879.331 | BN175: =IF(BD175="CASH",1,(1+$BN$4)*IF(BD175="XIV",F175,IF(BD175="UVXY",I175,L175))) -> 10.80091084 | BO175: 10.49 | BP175: 1952995.195 | BQ175: 169 | BR175: 1.952995195
A176: 2012-06-04 | B176: 26.12 | C176: 28.12 | D176: 26.95 | E176: 28.45 | F176: 8.34 | G176: 8.47 | H176: 0.01558752998 | I176: 1125000 | J176: 1080000 | K176: -0.04 | L176: 10.5825 | M176: 10.715 | N176: 0.01252067092 | O176: -0.04190372877 | P176: 0.9364243063 | Q176: 0.1080631754 | R176: 0.02331288344 | S176: =VLOOKUP(A176,'MACD SPYG'!$A$2:$G$1452,7,FALSE) -> -0.125859343 | T176: 1 | U176: 0 | V176: 0 | W176: 0 | X176: 0 | Y176: 0 | Z176: 1 | AA176: 0 | AB176: 0 | AC176: 1 | AD176: 0 | AE176: 0 | AF176: 0 | AG176: 0 | AH176: 0 | AI176: =IF(SUM($AH176:AH176)>0,0,1)*V176 -> 0 | AJ176: =IF(SUM($AH176:AI176)>0,0,1)*W176 -> 0 | AK176: =IF(SUM($AH176:AJ176)>0,0,1)*X176 -> 0 | AL176: =IF(SUM($AH176:AK176)>0,0,1)*Y176 -> 0 | AM176: =IF(SUM($AH176:AL176)>0,0,1)*Z176 -> 1 | AN176: =IF(SUM($AH176:AM176)>0,0,1)*AA176 -> 0 | AO176: =IF(SUM($AH176:AN176)>0,0,1)*AB176 -> 0 | AP176: =IF(SUM($AH176:AO176)>0,0,1)*AC176 -> 0 | AQ176: =IF(SUM($AH176:AP176)>0,0,1)*AD176 -> 0 | AR176: =IF(SUM($AH176:AQ176)>0,0,1)*AE176 -> 0 | AS176: =IF(SUM($AH176:AR176)>0,0,1)*AF176 -> 0 | AT176: =IF(SUM($AH176:AS176)>0,0,1)*AG176 -> 0 | AU176: 1 | AV176: 1 | AW176: 0 | AX176: 1 | AY176: 0 | AZ176: 1 | BA176: 0 | BB176: 1 | BC176: 0 | BD176: XIV | BE176: 0.01558752998 | BF176: 0.009592316686 | BG176: 1 | BH176: 1 | BI176: 235977 | BJ176: =IF(BD175="CASH",1,(1-$BN$4)*IF(BD175="XIV",F176,IF(BD175="UVXY",I176,L176))) -> 10.57670552 | BK176: 1.940595169 | BL176: 1969137.682 | BM176: 1969127.732 | BN176: =IF(BD176="CASH",1,(1+$BN$4)*IF(BD176="XIV",F176,IF(BD176="UVXY",I176,L176))) -> 8.344566593 | BO176: 8.47 | BP176: 1998727.131 | BQ176: 170 | BR176: 1.998727131
A177: 2012-06-05 | B177: 24.68 | C177: 26.87 | D177: 25.6 | E177: 27.35 | F177: 8.42 | G177: 8.68 | H177: 0.03087885986 | I177: 1101000 | J177: 1031000 | K177: -0.06357856494 | L177: 10.6175 | M177: 10.8625 | N177: 0.02307511184 | O177: -0.03737566476 | P177: 0.9288762447 | Q177: -0.02025506377 | R177: -0.005903187721 | S177: =VLOOKUP(A177,'MACD SPYG'!$A$2:$G$1452,7,FALSE) -> -0.1561294314 | T177: 1 | U177: 0 | V177: 0 | W177: 0 | X177: 0 | Y177: 0 | Z177: 1 | AA177: 0 | AB177: 0 | AC177: 0 | AD177: 0 | AE177: 0 | AF177: 0 | AG177: 0 | AH177: 0 | AI177: =IF(SUM($AH177:AH177)>0,0,1)*V177 -> 0 | AJ177: =IF(SUM($AH177:AI177)>0,0,1)*W177 -> 0 | AK177: =IF(SUM($AH177:AJ177)>0,0,1)*X177 -> 0 | AL177: =IF(SUM($AH177:AK177)>0,0,1)*Y177 -> 0 | AM177: =IF(SUM($AH177:AL177)>0,0,1)*Z177 -> 1 | AN177: =IF(SUM($AH177:AM177)>0,0,1)*AA177 -> 0 | AO177: =IF(SUM($AH177:AN177)>0,0,1)*AB177 -> 0 | AP177: =IF(SUM($AH177:AO177)>0,0,1)*AC177 -> 0 | AQ177: =IF(SUM($AH177:AP177)>0,0,1)*AD177 -> 0 | AR177: =IF(SUM($AH177:AQ177)>0,0,1)*AE177 -> 0 | AS177: =IF(SUM($AH177:AR177)>0,0,1)*AF177 -> 0 | AT177: =IF(SUM($AH177:AS177)>0,0,1)*AG177 -> 0 | AU177: 1 | AV177: 1 | AW177: 0 | AX177: 1 | AY177: 0 | AZ177: 1 | BA177: 0 | BB177: 1 | BC177: 0 | BD177: XIV | BE177: 0.03087885986 | BF177: 0.06294530673 | BG177: 0 | BH177: 0 | BI177: 235977 | BJ177: =IF(BD176="CASH",1,(1-$BN$4)*IF(BD176="XIV",F177,IF(BD176="UVXY",I177,L177))) -> 8.415389602 | BK177: 1.940595169 | BL177: 1985840.333 | BM177: 1988016.228 | BN177: =IF(BD177="CASH",1,(1+$BN$4)*IF(BD177="XIV",F177,IF(BD177="UVXY",I177,L177))) -> 8.424610398 | BO177: 8.68 | BP177: 2048282.301 | BQ177: 171 | BR177: 2.048282301
A178: 2012-06-06 | B178: 22.16 | C178: 24.71 | D178: 23.4 | E178: 25.5 | F178: 8.95 | G178: 9.34 | H178: 0.04357541899 | I178: 966000 | J178: 882500 | K178: -0.0864389234 | L178: 11.115 | M178: 11.605 | N178: 0.0440845704 | O178: -0.04435186243 | P178: 0.9184964645 | Q178: -0.05513016845 | R178: 0.03110599078 | S178: =VLOOKUP(A178,'MACD SPYG'!$A$2:$G$1452,7,FALSE) -> -0.1058353931 | T178: 1 | U178: 0 | V178: 0 | W178: 0 | X178: 0 | Y178: 0 | Z178: 1 | AA178: 0 | AB178: 0 | AC178: 0 | AD178: 0 | AE178: 0 | AF178: 0 | AG178: 0 | AH178: 0 | AI178: =IF(SUM($AH178:AH178)>0,0,1)*V178 -> 0 | AJ178: =IF(SUM($AH178:AI178)>0,0,1)*W178 -> 0 | AK178: =IF(SUM($AH178:AJ178)>0,0,1)*X178 -> 0 | AL178: =IF(SUM($AH178:AK178)>0,0,1)*Y178 -> 0 | AM178: =IF(SUM($AH178:AL178)>0,0,1)*Z178 -> 1 | AN178: =IF(SUM($AH178:AM178)>0,0,1)*AA178 -> 0 | AO178: =IF(SUM($AH178:AN178)>0,0,1)*AB178 -> 0 | AP178: =IF(SUM($AH178:AO178)>0,0,1)*AC178 -> 0 | AQ178: =IF(SUM($AH178:AP178)>0,0,1)*AD178 -> 0 | AR178: =IF(SUM($AH178:AQ178)>0,0,1)*AE178 -> 0 | AS178: =IF(SUM($AH178:AR178)>0,0,1)*AF178 -> 0 | AT178: =IF(SUM($AH178:AS178)>0,0,1)*AG178 -> 0 | AU178: 1 | AV178: 1 | AW178: 0 | AX178: 1 | AY178: 0 | AZ178: 1 | BA178: 0 | BB178: 1 | BC178: 0 | BD178: XIV | BE178: 0.04357541899 | BF178: 0.08826807536 | BG178: 0 | BH178: 0 | BI178: 235977 | BJ178: =IF(BD177="CASH",1,(1-$BN$4)*IF(BD177="XIV",F178,IF(BD177="UVXY",I178,L178))) -> 8.945099399 | BK178: 1.940595169 | BL178: 2110839.662 | BM178: 2113152.52 | BN178: =IF(BD178="CASH",1,(1+$BN$4)*IF(BD178="XIV",F178,IF(BD178="UVXY",I178,L178))) -> 8.954900601 | BO178: 9.34 | BP178: 2204027.121 | BQ178: 172 | BR178: 2.204027121
A179: 2012-06-07 | B179: 21.72 | C179: 24.47 | D179: 23.05 | E179: 25.3 | F179: 9.74 | G179: 9.4 | H179: -0.03490759754 | I179: 801000 | J179: 859000 | K179: 0.07240948814 | L179: 11.9525 | M179: 11.475 | N179: -0.0399498013 | O179: -0.06179989945 | P179: 0.8968029138 | Q179: -0.1021069692 | R179: 0.04282655246 | S179: =VLOOKUP(A179,'MACD SPYG'!$A$2:$G$1452,7,FALSE) -> 0.03595541404 | T179: 1 | U179: 0 | V179: 1 | W179: 0 | X179: 0 | Y179: 0 | Z179: 1 | AA179: 0 | AB179: 0 | AC179: 0 | AD179: 0 | AE179: 0 | AF179: 1 | AG179: 0 | AH179: 0 | AI179: =IF(SUM($AH179:AH179)>0,0,1)*V179 -> 1 | AJ179: =IF(SUM($AH179:AI179)>0,0,1)*W179 -> 0 | AK179: =IF(SUM($AH179:AJ179)>0,0,1)*X179 -> 0 | AL179: =IF(SUM($AH179:AK179)>0,0,1)*Y179 -> 0 | AM179: =IF(SUM($AH179:AL179)>0,0,1)*Z179 -> 0 | AN179: =IF(SUM($AH179:AM179)>0,0,1)*AA179 -> 0 | AO179: =IF(SUM($AH179:AN179)>0,0,1)*AB179 -> 0 | AP179: =IF(SUM($AH179:AO179)>0,0,1)*AC179 -> 0 | AQ179: =IF(SUM($AH179:AP179)>0,0,1)*AD179 -> 0 | AR179: =IF(SUM($AH179:AQ179)>0,0,1)*AE179 -> 0 | AS179: =IF(SUM($AH179:AR179)>0,0,1)*AF179 -> 0 | AT179: =IF(SUM($AH179:AS179)>0,0,1)*AG179 -> 0 | AU179: 1 | AV179: 1 | AW179: 0 | AX179: 1 | AY179: 0 | AZ179: 1 | BA179: 0 | BB179: 1 | BC179: 0 | BD179: XIV | BE179: -0.03490759754 | BF179: -0.04004103397 | BG179: 0 | BH179: 0 | BI179: 235977 | BJ179: =IF(BD178="CASH",1,(1-$BN$4)*IF(BD178="XIV",F179,IF(BD178="UVXY",I179,L179))) -> 9.734666832 | BK179: 1.940595169 | BL179: 2297159.416 | BM179: 2299676.426 | BN179: =IF(BD179="CASH",1,(1+$BN$4)*IF(BD179="XIV",F179,IF(BD179="UVXY",I179,L179))) -> 9.745333168 | BO179: 9.4 | BP179: 2218185.741 | BQ179: 173 | BR179: 2.218185741
A180: 2012-06-08 | B180: 21.23 | C180: 23.64 | D180: 21.7 | E180: 23.85 | F180: 9.35 | G180: 9.91 | H180: 0.05989304813 | I180: 872000 | J180: 770400 | K180: -0.1165137615 | L180: 11.4025 | M180: 11.8125 | N180: 0.03595702697 | O180: -0.06707029743 | P180: 0.8876174908 | Q180: -0.01985559567 | R180: -0.005319148936 | S180: =VLOOKUP(A180,'MACD SPYG'!$A$2:$G$1452,7,FALSE) -> 0.07952252998 | T180: 1 | U180: 0 | V180: 1 | W180: 0 | X180: 0 | Y180: 0 | Z180: 1 | AA180: 0 | AB180: 0 | AC180: 0 | AD180: 0 | AE180: 0 | AF180: 1 | AG180: 0 | AH180: 0 | AI180: =IF(SUM($AH180:AH180)>0,0,1)*V180 -> 1 | AJ180: =IF(SUM($AH180:AI180)>0,0,1)*W180 -> 0 | AK180: =IF(SUM($AH180:AJ180)>0,0,1)*X180 -> 0 | AL180: =IF(SUM($AH180:AK180)>0,0,1)*Y180 -> 0 | AM180: =IF(SUM($AH180:AL180)>0,0,1)*Z180 -> 0 | AN180: =IF(SUM($AH180:AM180)>0,0,1)*AA180 -> 0 | AO180: =IF(SUM($AH180:AN180)>0,0,1)*AB180 -> 0 | AP180: =IF(SUM($AH180:AO180)>0,0,1)*AC180 -> 0 | AQ180: =IF(SUM($AH180:AP180)>0,0,1)*AD180 -> 0 | AR180: =IF(SUM($AH180:AQ180)>0,0,1)*AE180 -> 0 | AS180: =IF(SUM($AH180:AR180)>0,0,1)*AF180 -> 0 | AT180: =IF(SUM($AH180:AS180)>0,0,1)*AG180 -> 0 | AU180: 1 | AV180: 1 | AW180: 0 | AX180: 1 | AY180: 0 | AZ180: 1 | BA180: 0 | BB180: 1 | BC180: 0 | BD180: XIV | BE180: 0.05989304813 | BF180: 0.09946515321 | BG180: 0 | BH180: 0 | BI180: 235977 | BJ180: =IF(BD179="CASH",1,(1-$BN$4)*IF(BD179="XIV",F180,IF(BD179="UVXY",I180,L180))) -> 9.344880378 | BK180: 1.940595169 | BL180: 2205178.778 | BM180: 2207595.004 | BN180: =IF(BD180="CASH",1,(1+$BN$4)*IF(BD180="XIV",F180,IF(BD180="UVXY",I180,L180))) -> 9.355119622 | BO180: 9.91 | BP180: 2338534.011 | BQ180: 174 | BR180: 2.338534011
A181: 2012-06-11 | B181: 23.56 | C181: 25.5 | D181: 24.55 | E181: 26.4 | F181: 10.28 | G181: 9.05 | H181: -0.1196498054 | I181: 711500 | J181: 892450 | K181: 0.2543218552 | L181: 12.0575 | M181: 11.2475 | N181: -0.06717810491 | O181: -0.04220531548 | P181: 0.8980541455 | Q181: -0.02255985267 | R181: 0.03733602422 | S181: =VLOOKUP(A181,'MACD SPYG'!$A$2:$G$1452,7,FALSE) -> 0.1764845877 | T181: 1 | U181: 0 | V181: 0 | W181: 0 | X181: 0 | Y181: 0 | Z181: 1 | AA181: 0 | AB181: 0 | AC181: 0 | AD181: 0 | AE181: 0 | AF181: 0 | AG181: 0 | AH181: 0 | AI181: =IF(SUM($AH181:AH181)>0,0,1)*V181 -> 0 | AJ181: =IF(SUM($AH181:AI181)>0,0,1)*W181 -> 0 | AK181: =IF(SUM($AH181:AJ181)>0,0,1)*X181 -> 0 | AL181: =IF(SUM($AH181:AK181)>0,0,1)*Y181 -> 0 | AM181: =IF(SUM($AH181:AL181)>0,0,1)*Z181 -> 1 | AN181: =IF(SUM($AH181:AM181)>0,0,1)*AA181 -> 0 | AO181: =IF(SUM($AH181:AN181)>0,0,1)*AB181 -> 0 | AP181: =IF(SUM($AH181:AO181)>0,0,1)*AC181 -> 0 | AQ181: =IF(SUM($AH181:AP181)>0,0,1)*AD181 -> 0 | AR181: =IF(SUM($AH181:AQ181)>0,0,1)*AE181 -> 0 | AS181: =IF(SUM($AH181:AR181)>0,0,1)*AF181 -> 0 | AT181: =IF(SUM($AH181:AS181)>0,0,1)*AG181 -> 0 | AU181: 1 | AV181: 1 | AW181: 0 | AX181: 1 | AY181: 0 | AZ181: 1 | BA181: 0 | BB181: 1 | BC181: 0 | BD181: XIV | BE181: -0.1196498054 | BF181: -0.1157586623 | BG181: 0 | BH181: 0 | BI181: 235977 | BJ181: =IF(BD180="CASH",1,(1-$BN$4)*IF(BD180="XIV",F181,IF(BD180="UVXY",I181,L181))) -> 10.27437115 | BK181: 1.940595169 | BL181: 2424517.222 | BM181: 2427173.779 | BN181: =IF(BD181="CASH",1,(1+$BN$4)*IF(BD181="XIV",F181,IF(BD181="UVXY",I181,L181))) -> 10.28562885 | BO181: 9.05 | BP181: 2135593.791 | BQ181: 175 | BR181: 2.135593791
A182: 2012-06-12 | B182: 22.09 | C182: 24.94 | D182: 23.45 | E182: 25.55 | F182: 9.09 | G182: 9.19 | H182: 0.01100110011 | I182: 877000 | J182: 860500 | K182: -0.01881413911 | L182: 11.34 | M182: 11.6025 | N182: 0.02314814815 | O182: -0.04925083318 | P182: 0.9239215686 | Q182: 0.1097503533 | R182: 0.004419889503 | S182: =VLOOKUP(A182,'MACD SPYG'!$A$2:$G$1452,7,FALSE) -> 0.1635823151 | T182: 1 | U182: 0 | V182: 1 | W182: 0 | X182: 0 | Y182: 0 | Z182: 1 | AA182: 0 | AB182: 0 | AC182: 1 | AD182: 0 | AE182: 0 | AF182: 1 | AG182: 0 | AH182: 0 | AI182: =IF(SUM($AH182:AH182)>0,0,1)*V182 -> 1 | AJ182: =IF(SUM($AH182:AI182)>0,0,1)*W182 -> 0 | AK182: =IF(SUM($AH182:AJ182)>0,0,1)*X182 -> 0 | AL182: =IF(SUM($AH182:AK182)>0,0,1)*Y182 -> 0 | AM182: =IF(SUM($AH182:AL182)>0,0,1)*Z182 -> 0 | AN182: =IF(SUM($AH182:AM182)>0,0,1)*AA182 -> 0 | AO182: =IF(SUM($AH182:AN182)>0,0,1)*AB182 -> 0 | AP182: =IF(SUM($AH182:AO182)>0,0,1)*AC182 -> 0 | AQ182: =IF(SUM($AH182:AP182)>0,0,1)*AD182 -> 0 | AR182: =IF(SUM($AH182:AQ182)>0,0,1)*AE182 -> 0 | AS182: =IF(SUM($AH182:AR182)>0,0,1)*AF182 -> 0 | AT182: =IF(SUM($AH182:AS182)>0,0,1)*AG182 -> 0 | AU182: 1 | AV182: 1 | AW182: 0 | AX182: 1 | AY182: 0 | AZ182: 1 | BA182: 0 | BB182: 1 | BC182: 0 | BD182: XIV | BE182: 0.01100110011 | BF182: -0.01650163524 | BG182: 0 | BH182: 0 | BI182: 235977 | BJ182: =IF(BD181="CASH",1,(1-$BN$4)*IF(BD181="XIV",F182,IF(BD181="UVXY",I182,L182))) -> 9.085022742 | BK182: 1.940595169 | BL182: 2143858.352 | BM182: 2146207.389 | BN182: =IF(BD182="CASH",1,(1+$BN$4)*IF(BD182="XIV",F182,IF(BD182="UVXY",I182,L182))) -> 9.094977258 | BO182: 9.19 | BP182: 2168630.571 | BQ182: 176 | BR182: 2.168630571
A183: 2012-06-13 | B183: 24.27 | C183: 26.5 | D183: 24.95 | E183: 26.75 | F183: 8.94 | G183: 8.7 | H183: -0.02684563758 | I183: 902500 | J183: 946000 | K183: 0.04819944598 | L183: 11.5125 | M183: 11.375 | N183: -0.01194353963 | O183: -0.06525454917 | P183: 0.8857257418 | Q183: -0.06239388795 | R183: -0.02720348205 | S183: =VLOOKUP(A183,'MACD SPYG'!$A$2:$G$1452,7,FALSE) -> 0.1695525465 | T183: 1 | U183: 0 | V183: 1 | W183: 0 | X183: 0 | Y183: 0 | Z183: 1 | AA183: 0 | AB183: 0 | AC183: 0 | AD183: 0 | AE183: 0 | AF183: 1 | AG183: 0 | AH183: 0 | AI183: =IF(SUM($AH183:AH183)>0,0,1)*V183 -> 1 | AJ183: =IF(SUM($AH183:AI183)>0,0,1)*W183 -> 0 | AK183: =IF(SUM($AH183:AJ183)>0,0,1)*X183 -> 0 | AL183: =IF(SUM($AH183:AK183)>0,0,1)*Y183 -> 0 | AM183: =IF(SUM($AH183:AL183)>0,0,1)*Z183 -> 0 | AN183: =IF(SUM($AH183:AM183)>0,0,1)*AA183 -> 0 | AO183: =IF(SUM($AH183:AN183)>0,0,1)*AB183 -> 0 | AP183: =IF(SUM($AH183:AO183)>0,0,1)*AC183 -> 0 | AQ183: =IF(SUM($AH183:AP183)>0,0,1)*AD183 -> 0 | AR183: =IF(SUM($AH183:AQ183)>0,0,1)*AE183 -> 0 | AS183: =IF(SUM($AH183:AR183)>0,0,1)*AF183 -> 0 | AT183: =IF(SUM($AH183:AS183)>0,0,1)*AG183 -> 0 | AU183: 1 | AV183: 1 | AW183: 0 | AX183: 1 | AY183: 0 | AZ183: 1 | BA183: 0 | BB183: 1 | BC183: 0 | BD183: XIV | BE183: -0.02684563758 | BF183: -0.01789707527 | BG183: 0 | BH183: 0 | BI183: 235977 | BJ183: =IF(BD182="CASH",1,(1-$BN$4)*IF(BD182="XIV",F183,IF(BD182="UVXY",I183,L183))) -> 8.935104875 | BK183: 1.940595169 | BL183: 2108481.184 | BM183: 2110791.458 | BN183: =IF(BD183="CASH",1,(1+$BN$4)*IF(BD183="XIV",F183,IF(BD183="UVXY",I183,L183))) -> 8.944895125 | BO183: 8.7 | BP183: 2053001.841 | BQ183: 177 | BR183: 2.053001841
A184: 2012-06-14 | B184: 21.68 | C184: 25 | D184: 22.95 | E184: 25.1 | F184: 8.78 | G184: 9.26 | H184: 0.05466970387 | I184: 933500 | J184: 831450 | K184: -0.1093197643 | L184: 11.3625 | M184: 11.5025 | N184: 0.01232123212 | O184: -0.0392650722 | P184: 0.9158490566 | Q184: 0.09868718877 | R184: 0.009195402299 | S184: =VLOOKUP(A184,'MACD SPYG'!$A$2:$G$1452,7,FALSE) -> 0.1598493118 | T184: 1 | U184: 0 | V184: 0 | W184: 0 | X184: 0 | Y184: 0 | Z184: 1 | AA184: 0 | AB184: 0 | AC184: 1 | AD184: 0 | AE184: 0 | AF184: 0 | AG184: 0 | AH184: 0 | AI184: =IF(SUM($AH184:AH184)>0,0,1)*V184 -> 0 | AJ184: =IF(SUM($AH184:AI184)>0,0,1)*W184 -> 0 | AK184: =IF(SUM($AH184:AJ184)>0,0,1)*X184 -> 0 | AL184: =IF(SUM($AH184:AK184)>0,0,1)*Y184 -> 0 | AM184: =IF(SUM($AH184:AL184)>0,0,1)*Z184 -> 1 | AN184: =IF(SUM($AH184:AM184)>0,0,1)*AA184 -> 0 | AO184: =IF(SUM($AH184:AN184)>0,0,1)*AB184 -> 0 | AP184: =IF(SUM($AH184:AO184)>0,0,1)*AC184 -> 0 | AQ184: =IF(SUM($AH184:AP184)>0,0,1)*AD184 -> 0 | AR184: =IF(SUM($AH184:AQ184)>0,0,1)*AE184 -> 0 | AS184: =IF(SUM($AH184:AR184)>0,0,1)*AF184 -> 0 | AT184: =IF(SUM($AH184:AS184)>0,0,1)*AG184 -> 0 | AU184: 1 | AV184: 1 | AW184: 0 | AX184: 1 | AY184: 0 | AZ184: 1 | BA184: 0 | BB184: 1 | BC184: 0 | BD184: XIV | BE184: 0.05466970387 | BF184: 0.06264231038 | BG184: 0 | BH184: 0 | BI184: 235977 | BJ184: =IF(BD183="CASH",1,(1-$BN$4)*IF(BD183="XIV",F184,IF(BD183="UVXY",I184,L184))) -> 8.775192483 | BK184: 1.940595169 | BL184: 2070745.537 | BM184: 2073014.464 | BN184: =IF(BD184="CASH",1,(1+$BN$4)*IF(BD184="XIV",F184,IF(BD184="UVXY",I184,L184))) -> 8.784807517 | BO184: 9.26 | BP184: 2185148.961 | BQ184: 178 | BR184: 2.185148961
A185: 2012-06-15 | B185: 21.11 | C185: 23.67 | D185: 21.5 | E185: 23.65 | F185: 9.33 | G185: 9.63 | H185: 0.03215434084 | I185: 813500 | J185: 759000 | K185: -0.06699446835 | L185: 11.5825 | M185: 11.9275 | N185: 0.02978631556 | O185: -0.0644335946 | P185: 0.8672 | Q185: -0.1067161104 | R185: 0.007559395248 | S185: =VLOOKUP(A185,'MACD SPYG'!$A$2:$G$1452,7,FALSE) -> 0.1832242261 | T185: 1 | U185: 0 | V185: 1 | W185: 0 | X185: 0 | Y185: 0 | Z185: 1 | AA185: 0 | AB185: 0 | AC185: 0 | AD185: 0 | AE185: 0 | AF185: 1 | AG185: 0 | AH185: 0 | AI185: =IF(SUM($AH185:AH185)>0,0,1)*V185 -> 1 | AJ185: =IF(SUM($AH185:AI185)>0,0,1)*W185 -> 0 | AK185: =IF(SUM($AH185:AJ185)>0,0,1)*X185 -> 0 | AL185: =IF(SUM($AH185:AK185)>0,0,1)*Y185 -> 0 | AM185: =IF(SUM($AH185:AL185)>0,0,1)*Z185 -> 0 | AN185: =IF(SUM($AH185:AM185)>0,0,1)*AA185 -> 0 | AO185: =IF(SUM($AH185:AN185)>0,0,1)*AB185 -> 0 | AP185: =IF(SUM($AH185:AO185)>0,0,1)*AC185 -> 0 | AQ185: =IF(SUM($AH185:AP185)>0,0,1)*AD185 -> 0 | AR185: =IF(SUM($AH185:AQ185)>0,0,1)*AE185 -> 0 | AS185: =IF(SUM($AH185:AR185)>0,0,1)*AF185 -> 0 | AT185: =IF(SUM($AH185:AS185)>0,0,1)*AG185 -> 0 | AU185: 1 | AV185: 1 | AW185: 0 | AX185: 1 | AY185: 0 | AZ185: 1 | BA185: 0 | BB185: 1 | BC185: 0 | BD185: XIV | BE185: 0.03215434084 | BF185: 0.0375133646 | BG185: 0 | BH185: 0 | BI185: 235977 | BJ185: =IF(BD184="CASH",1,(1-$BN$4)*IF(BD184="XIV",F185,IF(BD184="UVXY",I185,L185))) -> 9.324891329 | BK185: 1.940595169 | BL185: 2200461.822 | BM185: 2202872.879 | BN185: =IF(BD185="CASH",1,(1+$BN$4)*IF(BD185="XIV",F185,IF(BD185="UVXY",I185,L185))) -> 9.335108671 | BO185: 9.63 | BP185: 2272460.451 | BQ185: 179 | BR185: 2.272460451
A186: 2012-06-18 | B186: 18.32 | C186: 22.13 | D186: 19 | E186: 21.8 | F186: 9.68 | G186: 10.45 | H186: 0.07954545455 | I186: 748000 | J186: 632000 | K186: -0.1550802139 | L186: 11.795 | M186: 12.235 | N186: 0.03730394235 | O186: -0.03997040169 | P186: 0.8918462188 | Q186: -0.02629151292 | R186: 0.005192107996 | S186: =VLOOKUP(A186,'MACD SPYG'!$A$2:$G$1452,7,FALSE) -> 0.2205834498 | T186: 1 | U186: 0 | V186: 0 | W186: 0 | X186: 0 | Y186: 0 | Z186: 1 | AA186: 0 | AB186: 0 | AC186: 0 | AD186: 0 | AE186: 0 | AF186: 0 | AG186: 0 | AH186: 0 | AI186: =IF(SUM($AH186:AH186)>0,0,1)*V186 -> 0 | AJ186: =IF(SUM($AH186:AI186)>0,0,1)*W186 -> 0 | AK186: =IF(SUM($AH186:AJ186)>0,0,1)*X186 -> 0 | AL186: =IF(SUM($AH186:AK186)>0,0,1)*Y186 -> 0 | AM186: =IF(SUM($AH186:AL186)>0,0,1)*Z186 -> 1 | AN186: =IF(SUM($AH186:AM186)>0,0,1)*AA186 -> 0 | AO186: =IF(SUM($AH186:AN186)>0,0,1)*AB186 -> 0 | AP186: =IF(SUM($AH186:AO186)>0,0,1)*AC186 -> 0 | AQ186: =IF(SUM($AH186:AP186)>0,0,1)*AD186 -> 0 | AR186: =IF(SUM($AH186:AQ186)>0,0,1)*AE186 -> 0 | AS186: =IF(SUM($AH186:AR186)>0,0,1)*AF186 -> 0 | AT186: =IF(SUM($AH186:AS186)>0,0,1)*AG186 -> 0 | AU186: 1 | AV186: 1 | AW186: 0 | AX186: 1 | AY186: 0 | AZ186: 1 | BA186: 0 | BB186: 1 | BC186: 0 | BD186: XIV | BE186: 0.07954545455 | BF186: 0.1167354381 | BG186: 0 | BH186: 0 | BI186: 235977 | BJ186: =IF(BD185="CASH",1,(1-$BN$4)*IF(BD185="XIV",F186,IF(BD185="UVXY",I186,L186))) -> 9.674699686 | BK186: 1.940595169 | BL186: 2283008.548 | BM186: 2285510.053 | BN186: =IF(BD186="CASH",1,(1+$BN$4)*IF(BD186="XIV",F186,IF(BD186="UVXY",I186,L186))) -> 9.685300314 | BO186: 10.45 | BP186: 2465961.591 | BQ186: 180 | BR186: 2.465961591
A187: 2012-06-19 | B187: 18.38 | C187: 21.92 | D187: 18.45 | E187: 21.9 | F187: 10.81 | G187: 10.65 | H187: -0.01480111008 | I187: 586000 | J187: 604500 | K187: 0.03156996587 | L187: 12.44 | M187: 12.6375 | N187: 0.01587620579 | O187: -0.06358474167 | P187: 0.8278355174 | Q187: -0.1321648508 | R187: 0.03444976077 | S187: =VLOOKUP(A187,'MACD SPYG'!$A$2:$G$1452,7,FALSE) -> 0.2731812454 | T187: 1 | U187: 0 | V187: 1 | W187: 0 | X187: 0 | Y187: 0 | Z187: 0 | AA187: 0 | AB187: 0 | AC187: 0 | AD187: 0 | AE187: 0 | AF187: 1 | AG187: 0 | AH187: 0 | AI187: =IF(SUM($AH187:AH187)>0,0,1)*V187 -> 1 | AJ187: =IF(SUM($AH187:AI187)>0,0,1)*W187 -> 0 | AK187: =IF(SUM($AH187:AJ187)>0,0,1)*X187 -> 0 | AL187: =IF(SUM($AH187:AK187)>0,0,1)*Y187 -> 0 | AM187: =IF(SUM($AH187:AL187)>0,0,1)*Z187 -> 0 | AN187: =IF(SUM($AH187:AM187)>0,0,1)*AA187 -> 0 | AO187: =IF(SUM($AH187:AN187)>0,0,1)*AB187 -> 0 | AP187: =IF(SUM($AH187:AO187)>0,0,1)*AC187 -> 0 | AQ187: =IF(SUM($AH187:AP187)>0,0,1)*AD187 -> 0 | AR187: =IF(SUM($AH187:AQ187)>0,0,1)*AE187 -> 0 | AS187: =IF(SUM($AH187:AR187)>0,0,1)*AF187 -> 0 | AT187: =IF(SUM($AH187:AS187)>0,0,1)*AG187 -> 0 | AU187: 1 | AV187: 1 | AW187: 0 | AX187: 1 | AY187: 0 | AZ187: 1 | BA187: 0 | BB187: 1 | BC187: 0 | BD187: XIV | BE187: -0.01480111008 | BF187: -0.01387603015 | BG187: 0 | BH187: 0 | BI187: 235977 | BJ187: =IF(BD186="CASH",1,(1-$BN$4)*IF(BD186="XIV",F187,IF(BD186="UVXY",I187,L187))) -> 10.80408095 | BK187: 1.940595169 | BL187: 2549516.551 | BM187: 2552310.07 | BN187: =IF(BD187="CASH",1,(1+$BN$4)*IF(BD187="XIV",F187,IF(BD187="UVXY",I187,L187))) -> 10.81591905 | BO187: 10.65 | BP187: 2513156.991 | BQ187: 181 | BR187: 2.513156991
A188: 2012-06-20 | B188: 17.24 | C188: 20.84 | D188: 17.78 | E188: 20.45 | F188: 10.66 | G188: 11.08 | H188: 0.03939962477 | I188: 604500 | J188: 552500 | K188: -0.08602150538 | L188: 12.7075 | M188: 12.6825 | N188: -0.001967342121 | O188: -0.04991610053 | P188: 0.8385036496 | Q188: 0.00327510917 | R188: 0.0009389671362 | S188: =VLOOKUP(A188,'MACD SPYG'!$A$2:$G$1452,7,FALSE) -> 0.3051468378 | T188: 1 | U188: 0 | V188: 1 | W188: 0 | X188: 0 | Y188: 0 | Z188: 0 | AA188: 0 | AB188: 0 | AC188: 0 | AD188: 0 | AE188: 0 | AF188: 1 | AG188: 0 | AH188: 0 | AI188: =IF(SUM($AH188:AH188)>0,0,1)*V188 -> 1 | AJ188: =IF(SUM($AH188:AI188)>0,0,1)*W188 -> 0 | AK188: =IF(SUM($AH188:AJ188)>0,0,1)*X188 -> 0 | AL188: =IF(SUM($AH188:AK188)>0,0,1)*Y188 -> 0 | AM188: =IF(SUM($AH188:AL188)>0,0,1)*Z188 -> 0 | AN188: =IF(SUM($AH188:AM188)>0,0,1)*AA188 -> 0 | AO188: =IF(SUM($AH188:AN188)>0,0,1)*AB188 -> 0 | AP188: =IF(SUM($AH188:AO188)>0,0,1)*AC188 -> 0 | AQ188: =IF(SUM($AH188:AP188)>0,0,1)*AD188 -> 0 | AR188: =IF(SUM($AH188:AQ188)>0,0,1)*AE188 -> 0 | AS188: =IF(SUM($AH188:AR188)>0,0,1)*AF188 -> 0 | AT188: =IF(SUM($AH188:AS188)>0,0,1)*AG188 -> 0 | AU188: 1 | AV188: 1 | AW188: 0 | AX188: 1 | AY188: 0 | AZ188: 1 | BA188: 0 | BB188: 1 | BC188: 0 | BD188: XIV | BE188: 0.03939962477 | BF188: 0.03658533765 | BG188: 0 | BH188: 0 | BI188: 235977 | BJ188: =IF(BD187="CASH",1,(1-$BN$4)*IF(BD187="XIV",F188,IF(BD187="UVXY",I188,L188))) -> 10.65416308 | BK188: 1.940595169 | BL188: 2514139.383 | BM188: 2516894.139 | BN188: =IF(BD188="CASH",1,(1+$BN$4)*IF(BD188="XIV",F188,IF(BD188="UVXY",I188,L188))) -> 10.66583692 | BO188: 11.08 | BP188: 2614627.101 | BQ188: 182 | BR188: 2.614627101
A189: 2012-06-21 | B189: 20.08 | C189: 23.16 | D189: 23.35 | E189: 24.75 | F189: 11.05 | G189: 9.77 | H189: -0.1158371041 | I189: 555000 | J189: 671500 | K189: 0.2099099099 | L189: 12.6325 | M189: 11.7325 | N189: -0.07124480507 | O189: -0.06042854668 | P189: 0.8272552783 | Q189: -0.06202393906 | R189: -0.002707581227 | S189: =VLOOKUP(A189,'MACD SPYG'!$A$2:$G$1452,7,FALSE) -> 0.3045785511 | T189: 1 | U189: 0 | V189: 1 | W189: 0 | X189: 0 | Y189: 0 | Z189: 0 | AA189: 0 | AB189: 0 | AC189: 0 | AD189: 0 | AE189: 0 | AF189: 1 | AG189: 0 | AH189: 0 | AI189: =IF(SUM($AH189:AH189)>0,0,1)*V189 -> 1 | AJ189: =IF(SUM($AH189:AI189)>0,0,1)*W189 -> 0 | AK189: =IF(SUM($AH189:AJ189)>0,0,1)*X189 -> 0 | AL189: =IF(SUM($AH189:AK189)>0,0,1)*Y189 -> 0 | AM189: =IF(SUM($AH189:AL189)>0,0,1)*Z189 -> 0 | AN189: =IF(SUM($AH189:AM189)>0,0,1)*AA189 -> 0 | AO189: =IF(SUM($AH189:AN189)>0,0,1)*AB189 -> 0 | AP189: =IF(SUM($AH189:AO189)>0,0,1)*AC189 -> 0 | AQ189: =IF(SUM($AH189:AP189)>0,0,1)*AD189 -> 0 | AR189: =IF(SUM($AH189:AQ189)>0,0,1)*AE189 -> 0 | AS189: =IF(SUM($AH189:AR189)>0,0,1)*AF189 -> 0 | AT189: =IF(SUM($AH189:AS189)>0,0,1)*AG189 -> 0 | AU189: 1 | AV189: 1 | AW189: 0 | AX189: 1 | AY189: 0 | AZ189: 1 | BA189: 0 | BB189: 1 | BC189: 0 | BD189: XIV | BE189: -0.1158371041 | BF189: -0.08416283333 | BG189: 0 | BH189: 0 | BI189: 235977 | BJ189: =IF(BD188="CASH",1,(1-$BN$4)*IF(BD188="XIV",F189,IF(BD188="UVXY",I189,L189))) -> 11.04394954 | BK189: 1.940595169 | BL189: 2606120.021 | BM189: 2608975.561 | BN189: =IF(BD189="CASH",1,(1+$BN$4)*IF(BD189="XIV",F189,IF(BD189="UVXY",I189,L189))) -> 11.05605046 | BO189: 9.77 | BP189: 2305497.231 | BQ189: 183 | BR189: 2.305497231
